{"text_format":"1","workbook":"xlsx","n_sheets":6,"sheets":["Bulk bene upload","工作表2","parameter","FAQ","County code","County code (2)"],"not_rendered":{"charts":0,"images":10,"macros":1,"external_links":1,"defined_names":258,"comments":2,"pivot_tables":0},"unopened":[],"bounds":{"document_bytes":16777216,"sheet_cells":100000,"rows_first":2000,"rows_last":500,"rows_between":2000,"halvings":0,"cell_chars":16384,"cell_head_chars":4096},"cells_cut":0,"cells_raw":0,"read":"whole","date_system":"1900"}

{"sheet":"Bulk bene upload","index":0,"n_rows":1004,"n_cols":29,"rows_kept":1004,"cut":false,"hidden":false,"merged":[[3,4,3,5],[3,0,3,3],[0,0,1,0],[2,0,2,7],[0,4,0,5]]}
["說明 (橘色為必填資訊) \nRemark (orange fields are mandatory)","付款人公司編號\nOrg ID","總筆數\nToal number of transaction"]
[null,"TWGTS",{"$f":"COUNTIF(A:A,\"Y\")","v":5}]
["上方  付款人資訊 (Above: Payer Information)      下方 受款人資訊 (Below: Beneficiary Information)"]
[null,null,null,null,"台幣付款必填(TWD Payment)"]
["\n資料欄位\nData","受款人銀行之國家\nBeneficiary country","受款人姓名\nBeneficiary name\n(請填真實姓名)","台幣/外幣付款\nTWD/ Foreign currency Payment","受款人銀行代碼\nBank code\n(國內受款帳號需填寫)","受款人分行代碼\nBranch code\n(國內受款帳號需填寫)","受款銀行代碼 Beneficiary ID\n台幣付款請填銀行代碼與分行代碼 (ex.星展銀行信義分行為8100179)\n外幣付款請填SWIFTBIC (ex. 中國信託三重分行為CTCBTWTP060)\nFill in bank code and branch code for TWD payment;\nFill in SWIFTBIC code for foreign currency payment","受款銀行帳號\nBank account number",null,"受款人暱稱\nBeneficiary nickname","受款人地址\nBeneficiary address","受款銀行帳號IBAN","轉送代碼\nRouting code","受款人種類\nPayee Category","受款銀行名稱\nBank Name","受款銀行地址\nBank address"]
["Y","INDIA","Chu LEE","外幣付款",null,null,"CITIINBXIBD","6817587527852",null,null,null,"123",45,"Others","Main India Banks","124 CONNAUGHT CIRCUS POINT BABA KHARAK SINGH MARG",null,null,null,null,null,null,null,null,null,{"$f":"IF(B6>0,VLOOKUP(B6,'County code'!A:B,2,FALSE),\" \")","v":"IND"},{"$f":"IF(D6>0,VLOOKUP(D6,'County code'!D:E,2,FALSE),\" \")","v":5},{"$f":"G6","v":"CITIINBXIBD"},{"$f":"IF(AA6=5,AB6,M6)","v":"CITIINBXIBD"}]
["Y","JAPAN","Chu LEE","外幣付款",null,null,"MHCBJPJTCLS","12345678912441",null,null,null,null,null,null,"MITUHO","日本 東京都千代田區大手町一丁目5番5號 大手町塔",null,null,null,null,null,null,null,null,null,{"$f":"IF(B7>0,VLOOKUP(B7,'County code'!A:B,2,FALSE),\" \")","v":"JPN"},{"$f":"IF(D7>0,VLOOKUP(D7,'County code'!D:E,2,FALSE),\" \")","v":5},{"$f":"G9","v":"CTCBTWTP901"},{"$f":"IF(AA7=5,AB7,M7)","v":"CTCBTWTP901"}]
["Y","TAIWAN_REGION","Chu LEE","台幣付款",null,null,8100179,"1234567891244",null,null,null,null,null,null,"DBS","玉山高峰",null,null,null,null,null,null,null,null,null,{"$f":"IF(B8>0,VLOOKUP(B8,'County code'!A:B,2,FALSE),\" \")","v":"TWN"},{"$f":"IF(D8>0,VLOOKUP(D8,'County code'!D:E,2,FALSE),\" \")","v":3},8100179,0]
["Y","TAIWAN_REGION","Chu LEE","外幣付款",null,null,"CTCBTWTP901","1234567891211",null,null,null,null,null,null,"DBS","low street",null,null,null,null,null,null,null,null,null,{"$f":"IF(B9>0,VLOOKUP(B9,'County code'!A:B,2,FALSE),\" \")","v":"TWN"},{"$f":"IF(D9>0,VLOOKUP(D9,'County code'!D:E,2,FALSE),\" \")","v":5},{"$f":"#REF!","v":{"$error":"#REF!"}},{"$error":"#REF!"}]
["Y","SINGAPORE","Chu LEE","外幣付款",null,null,"BOFASG3XJVC","1234567891244",null,null,null,null,null,null,"BANK OF AMERICA (SINGAPORE) LTD.",null,null,null,null,null,null,null,null,null,null,{"$f":"IF(B10>0,VLOOKUP(B10,'County code'!A:B,2,FALSE),\" \")","v":"SGP"},{"$f":"IF(D10>0,VLOOKUP(D10,'County code'!D:E,2,FALSE),\" \")","v":5},"BOFASG3XJVC","BOFASG3XJVC"]
[null,null,null,null,null,null,null,null,null,null,null,null,null,null,null,null,null,null,null,null,null,null,null,null,null,{"$f":"IF(#REF!>0,VLOOKUP(#REF!,'County code'!A:B,2,FALSE),\" \")","v":{"$error":"#REF!"}},{"$f":"IF(#REF!>0,VLOOKUP(#REF!,'County code'!D:E,2,FALSE),\" \")","v":{"$error":"#REF!"}},{"$f":"#REF!","v":{"$error":"#REF!"}},{"$error":"#REF!"}]
[null,null,null,null,null,null,null,null,null,null,null,null,null,null,null,null,null,null,null,null,null,null,null,null,null,{"$f":"IF(B12>0,VLOOKUP(B12,'County code'!A:B,2,FALSE),\" \")","v":" "},{"$f":"IF(D12>0,VLOOKUP(D12,'County code'!D:E,2,FALSE),\" \")","v":" "},0,0]
[null,null,null,null,null,null,null,null,null,null,null,null,null,null,null,null,null,null,null,null,null,null,null,null,null,{"$f":"IF(B13>0,VLOOKUP(B13,'County code'!A:B,2,FALSE),\" \")","v":" "},{"$f":"IF(D13>0,VLOOKUP(D13,'County code'!D:E,2,FALSE),\" \")","v":" "},0,0]
[null,null,null,null,null,null,null,null,null,null,null,null,null,null,null,null,null,null,null,null,null,null,null,null,null,{"$f":"IF(B14>0,VLOOKUP(B14,'County code'!A:B,2,FALSE),\" \")","v":" "},{"$f":"IF(D14>0,VLOOKUP(D14,'County code'!D:E,2,FALSE),\" \")","v":" "},0,0]
[null,null,null,null,null,null,null,null,null,null,null,null,null,null,null,null,null,null,null,null,null,null,null,null,null,{"$f":"IF(B15>0,VLOOKUP(B15,'County code'!A:B,2,FALSE),\" \")","v":" "},{"$f":"IF(D15>0,VLOOKUP(D15,'County code'!D:E,2,FALSE),\" \")","v":" "},0,0]
[null,null,null,null,null,null,null,null,null,null,null,null,null,null,null,null,null,null,null,null,null,null,null,null,null,{"$f":"IF(B16>0,VLOOKUP(B16,'County code'!A:B,2,FALSE),\" \")","v":" "},{"$f":"IF(D16>0,VLOOKUP(D16,'County code'!D:E,2,FALSE),\" \")","v":" "},0,0]
[null,null,null,null,null,null,null,null,null,null,null,null,null,null,null,null,null,null,null,null,null,null,null,null,null,{"$f":"IF(B17>0,VLOOKUP(B17,'County code'!A:B,2,FALSE),\" \")","v":" "},{"$f":"IF(D17>0,VLOOKUP(D17,'County code'!D:E,2,FALSE),\" \")","v":" "},0,0]
[null,null,null,null,null,null,null,null,null,null,null,null,null,null,null,null,null,null,null,null,null,null,null,null,null,{"$f":"IF(B18>0,VLOOKUP(B18,'County code'!A:B,2,FALSE),\" \")","v":" "},{"$f":"IF(D18>0,VLOOKUP(D18,'County code'!D:E,2,FALSE),\" \")","v":" "},0,0]
[null,null,null,null,null,null,null,null,null,null,null,null,null,null,null,null,null,null,null,null,null,null,null,null,null,{"$f":"IF(B19>0,VLOOKUP(B19,'County code'!A:B,2,FALSE),\" \")","v":" "},{"$f":"IF(D19>0,VLOOKUP(D19,'County code'!D:E,2,FALSE),\" \")","v":" "},0,0]
[null,null,null,null,null,null,null,null,null,null,null,null,null,null,null,null,null,null,null,null,null,null,null,null,null,{"$f":"IF(B20>0,VLOOKUP(B20,'County code'!A:B,2,FALSE),\" \")","v":" "},{"$f":"IF(D20>0,VLOOKUP(D20,'County code'!D:E,2,FALSE),\" \")","v":" "},0,0]
[null,null,null,null,null,null,null,null,null,null,null,null,null,null,null,null,null,null,null,null,null,null,null,null,null,{"$f":"IF(B21>0,VLOOKUP(B21,'County code'!A:B,2,FALSE),\" \")","v":" "},{"$f":"IF(D21>0,VLOOKUP(D21,'County code'!D:E,2,FALSE),\" \")","v":" "},0,0]
[null,null,null,null,null,null,null,null,null,null,null,null,null,null,null,null,null,null,null,null,null,null,null,null,null,{"$f":"IF(B22>0,VLOOKUP(B22,'County code'!A:B,2,FALSE),\" \")","v":" "},{"$f":"IF(D22>0,VLOOKUP(D22,'County code'!D:E,2,FALSE),\" \")","v":" "},0,0]
[null,null,null,null,null,null,null,null,null,null,null,null,null,null,null,null,null,null,null,null,null,null,null,null,null,{"$f":"IF(B23>0,VLOOKUP(B23,'County code'!A:B,2,FALSE),\" \")","v":" "},{"$f":"IF(D23>0,VLOOKUP(D23,'County code'!D:E,2,FALSE),\" \")","v":" "},0,0]
[null,null,null,null,null,null,null,null,null,null,null,null,null,null,null,null,null,null,null,null,null,null,null,null,null,{"$f":"IF(B24>0,VLOOKUP(B24,'County code'!A:B,2,FALSE),\" \")","v":" "},{"$f":"IF(D24>0,VLOOKUP(D24,'County code'!D:E,2,FALSE),\" \")","v":" "},0,0]
[null,null,null,null,null,null,null,null,null,null,null,null,null,null,null,null,null,null,null,null,null,null,null,null,null,{"$f":"IF(B25>0,VLOOKUP(B25,'County code'!A:B,2,FALSE),\" \")","v":" "},{"$f":"IF(D25>0,VLOOKUP(D25,'County code'!D:E,2,FALSE),\" \")","v":" "},0,0]
[null,null,null,null,null,null,null,null,null,null,null,null,null,null,null,null,null,null,null,null,null,null,null,null,null,{"$f":"IF(B26>0,VLOOKUP(B26,'County code'!A:B,2,FALSE),\" \")","v":" "},{"$f":"IF(D26>0,VLOOKUP(D26,'County code'!D:E,2,FALSE),\" \")","v":" "},0,0]
[null,null,null,null,null,null,null,null,null,null,null,null,null,null,null,null,null,null,null,null,null,null,null,null,null,{"$f":"IF(B27>0,VLOOKUP(B27,'County code'!A:B,2,FALSE),\" \")","v":" "},{"$f":"IF(D27>0,VLOOKUP(D27,'County code'!D:E,2,FALSE),\" \")","v":" "},0,0]
[null,null,null,null,null,null,null,null,null,null,null,null,null,null,null,null,null,null,null,null,null,null,null,null,null,{"$f":"IF(B28>0,VLOOKUP(B28,'County code'!A:B,2,FALSE),\" \")","v":" "},{"$f":"IF(D28>0,VLOOKUP(D28,'County code'!D:E,2,FALSE),\" \")","v":" "},0,0]
[null,null,null,null,null,null,null,null,null,null,null,null,null,null,null,null,null,null,null,null,null,null,null,null,null,{"$f":"IF(B29>0,VLOOKUP(B29,'County code'!A:B,2,FALSE),\" \")","v":" "},{"$f":"IF(D29>0,VLOOKUP(D29,'County code'!D:E,2,FALSE),\" \")","v":" "},0,0]
[null,null,null,null,null,null,null,null,null,null,null,null,null,null,null,null,null,null,null,null,null,null,null,null,null,{"$f":"IF(B30>0,VLOOKUP(B30,'County code'!A:B,2,FALSE),\" \")","v":" "},{"$f":"IF(D30>0,VLOOKUP(D30,'County code'!D:E,2,FALSE),\" \")","v":" "},0,0]
[null,null,null,null,null,null,null,null,null,null,null,null,null,null,null,null,null,null,null,null,null,null,null,null,null,{"$f":"IF(B31>0,VLOOKUP(B31,'County code'!A:B,2,FALSE),\" \")","v":" "},{"$f":"IF(D31>0,VLOOKUP(D31,'County code'!D:E,2,FALSE),\" \")","v":" "},0,0]
[null,null,null,null,null,null,null,null,null,null,null,null,null,null,null,null,null,null,null,null,null,null,null,null,null,{"$f":"IF(B32>0,VLOOKUP(B32,'County code'!A:B,2,FALSE),\" \")","v":" "},{"$f":"IF(D32>0,VLOOKUP(D32,'County code'!D:E,2,FALSE),\" \")","v":" "},0,0]
[null,null,null,null,null,null,null,null,null,null,null,null,null,null,null,null,null,null,null,null,null,null,null,null,null,{"$f":"IF(B33>0,VLOOKUP(B33,'County code'!A:B,2,FALSE),\" \")","v":" "},{"$f":"IF(D33>0,VLOOKUP(D33,'County code'!D:E,2,FALSE),\" \")","v":" "},0,0]
[null,null,null,null,null,null,null,null,null,null,null,null,null,null,null,null,null,null,null,null,null,null,null,null,null,{"$f":"IF(B34>0,VLOOKUP(B34,'County code'!A:B,2,FALSE),\" \")","v":" "},{"$f":"IF(D34>0,VLOOKUP(D34,'County code'!D:E,2,FALSE),\" \")","v":" "},0,0]
[null,null,null,null,null,null,null,null,null,null,null,null,null,null,null,null,null,null,null,null,null,null,null,null,null,{"$f":"IF(B35>0,VLOOKUP(B35,'County code'!A:B,2,FALSE),\" \")","v":" "},{"$f":"IF(D35>0,VLOOKUP(D35,'County code'!D:E,2,FALSE),\" \")","v":" "},0,0]
[null,null,null,null,null,null,null,null,null,null,null,null,null,null,null,null,null,null,null,null,null,null,null,null,null,{"$f":"IF(B36>0,VLOOKUP(B36,'County code'!A:B,2,FALSE),\" \")","v":" "},{"$f":"IF(D36>0,VLOOKUP(D36,'County code'!D:E,2,FALSE),\" \")","v":" "},{"$f":"G36","v":0},0]
[null,null,null,null,null,null,null,null,null,null,null,null,null,null,null,null,null,null,null,null,null,null,null,null,null,{"$f":"IF(B37>0,VLOOKUP(B37,'County code'!A:B,2,FALSE),\" \")","v":" "},{"$f":"IF(D37>0,VLOOKUP(D37,'County code'!D:E,2,FALSE),\" \")","v":" "},0,0]
[null,null,null,null,null,null,null,null,null,null,null,null,null,null,null,null,null,null,null,null,null,null,null,null,null,{"$f":"IF(B38>0,VLOOKUP(B38,'County code'!A:B,2,FALSE),\" \")","v":" "},{"$f":"IF(D38>0,VLOOKUP(D38,'County code'!D:E,2,FALSE),\" \")","v":" "},0,0]
[null,null,null,null,null,null,null,null,null,null,null,null,null,null,null,null,null,null,null,null,null,null,null,null,null,{"$f":"IF(B39>0,VLOOKUP(B39,'County code'!A:B,2,FALSE),\" \")","v":" "},{"$f":"IF(D39>0,VLOOKUP(D39,'County code'!D:E,2,FALSE),\" \")","v":" "},0,0]
[null,null,null,null,null,null,null,null,null,null,null,null,null,null,null,null,null,null,null,null,null,null,null,null,null,{"$f":"IF(B40>0,VLOOKUP(B40,'County code'!A:B,2,FALSE),\" \")","v":" "},{"$f":"IF(D40>0,VLOOKUP(D40,'County code'!D:E,2,FALSE),\" \")","v":" "},0,0]
[null,null,null,null,null,null,null,null,null,null,null,null,null,null,null,null,null,null,null,null,null,null,null,null,null,{"$f":"IF(B41>0,VLOOKUP(B41,'County code'!A:B,2,FALSE),\" \")","v":" "},{"$f":"IF(D41>0,VLOOKUP(D41,'County code'!D:E,2,FALSE),\" \")","v":" "},0,0]
[null,null,null,null,null,null,null,null,null,null,null,null,null,null,null,null,null,null,null,null,null,null,null,null,null,{"$f":"IF(B42>0,VLOOKUP(B42,'County code'!A:B,2,FALSE),\" \")","v":" "},{"$f":"IF(D42>0,VLOOKUP(D42,'County code'!D:E,2,FALSE),\" \")","v":" "},0,0]
[null,null,null,null,null,null,null,null,null,null,null,null,null,null,null,null,null,null,null,null,null,null,null,null,null,{"$f":"IF(B43>0,VLOOKUP(B43,'County code'!A:B,2,FALSE),\" \")","v":" "},{"$f":"IF(D43>0,VLOOKUP(D43,'County code'!D:E,2,FALSE),\" \")","v":" "},0,0]
[null,null,null,null,null,null,null,null,null,null,null,null,null,null,null,null,null,null,null,null,null,null,null,null,null,{"$f":"IF(B44>0,VLOOKUP(B44,'County code'!A:B,2,FALSE),\" \")","v":" "},{"$f":"IF(D44>0,VLOOKUP(D44,'County code'!D:E,2,FALSE),\" \")","v":" "},0,0]
[null,null,null,null,null,null,null,null,null,null,null,null,null,null,null,null,null,null,null,null,null,null,null,null,null,{"$f":"IF(B45>0,VLOOKUP(B45,'County code'!A:B,2,FALSE),\" \")","v":" "},{"$f":"IF(D45>0,VLOOKUP(D45,'County code'!D:E,2,FALSE),\" \")","v":" "},0,0]
[null,null,null,null,null,null,null,null,null,null,null,null,null,null,null,null,null,null,null,null,null,null,null,null,null,{"$f":"IF(B46>0,VLOOKUP(B46,'County code'!A:B,2,FALSE),\" \")","v":" "},{"$f":"IF(D46>0,VLOOKUP(D46,'County code'!D:E,2,FALSE),\" \")","v":" "},0,0]
[null,null,null,null,null,null,null,null,null,null,null,null,null,null,null,null,null,null,null,null,null,null,null,null,null,{"$f":"IF(B47>0,VLOOKUP(B47,'County code'!A:B,2,FALSE),\" \")","v":" "},{"$f":"IF(D47>0,VLOOKUP(D47,'County code'!D:E,2,FALSE),\" \")","v":" "},0,0]
[null,null,null,null,null,null,null,null,null,null,null,null,null,null,null,null,null,null,null,null,null,null,null,null,null,{"$f":"IF(B48>0,VLOOKUP(B48,'County code'!A:B,2,FALSE),\" \")","v":" "},{"$f":"IF(D48>0,VLOOKUP(D48,'County code'!D:E,2,FALSE),\" \")","v":" "},0,0]
[null,null,null,null,null,null,null,null,null,null,null,null,null,null,null,null,null,null,null,null,null,null,null,null,null,{"$f":"IF(B49>0,VLOOKUP(B49,'County code'!A:B,2,FALSE),\" \")","v":" "},{"$f":"IF(D49>0,VLOOKUP(D49,'County code'!D:E,2,FALSE),\" \")","v":" "},0,0]
[null,null,null,null,null,null,null,null,null,null,null,null,null,null,null,null,null,null,null,null,null,null,null,null,null,{"$f":"IF(B50>0,VLOOKUP(B50,'County code'!A:B,2,FALSE),\" \")","v":" "},{"$f":"IF(D50>0,VLOOKUP(D50,'County code'!D:E,2,FALSE),\" \")","v":" "},0,0]
[null,null,null,null,null,null,null,null,null,null,null,null,null,null,null,null,null,null,null,null,null,null,null,null,null,{"$f":"IF(B51>0,VLOOKUP(B51,'County code'!A:B,2,FALSE),\" \")","v":" "},{"$f":"IF(D51>0,VLOOKUP(D51,'County code'!D:E,2,FALSE),\" \")","v":" "},0,0]
[null,null,null,null,null,null,null,null,null,null,null,null,null,null,null,null,null,null,null,null,null,null,null,null,null,{"$f":"IF(B52>0,VLOOKUP(B52,'County code'!A:B,2,FALSE),\" \")","v":" "},{"$f":"IF(D52>0,VLOOKUP(D52,'County code'!D:E,2,FALSE),\" \")","v":" "},0,0]
[null,null,null,null,null,null,null,null,null,null,null,null,null,null,null,null,null,null,null,null,null,null,null,null,null,{"$f":"IF(B53>0,VLOOKUP(B53,'County code'!A:B,2,FALSE),\" \")","v":" "},{"$f":"IF(D53>0,VLOOKUP(D53,'County code'!D:E,2,FALSE),\" \")","v":" "},0,0]
[null,null,null,null,null,null,null,null,null,null,null,null,null,null,null,null,null,null,null,null,null,null,null,null,null,{"$f":"IF(B54>0,VLOOKUP(B54,'County code'!A:B,2,FALSE),\" \")","v":" "},{"$f":"IF(D54>0,VLOOKUP(D54,'County code'!D:E,2,FALSE),\" \")","v":" "},0,0]
[null,null,null,null,null,null,null,null,null,null,null,null,null,null,null,null,null,null,null,null,null,null,null,null,null,{"$f":"IF(B55>0,VLOOKUP(B55,'County code'!A:B,2,FALSE),\" \")","v":" "},{"$f":"IF(D55>0,VLOOKUP(D55,'County code'!D:E,2,FALSE),\" \")","v":" "},0,0]
[null,null,null,null,null,null,null,null,null,null,null,null,null,null,null,null,null,null,null,null,null,null,null,null,null,{"$f":"IF(B56>0,VLOOKUP(B56,'County code'!A:B,2,FALSE),\" \")","v":" "},{"$f":"IF(D56>0,VLOOKUP(D56,'County code'!D:E,2,FALSE),\" \")","v":" "},0,0]
[null,null,null,null,null,null,null,null,null,null,null,null,null,null,null,null,null,null,null,null,null,null,null,null,null,{"$f":"IF(B57>0,VLOOKUP(B57,'County code'!A:B,2,FALSE),\" \")","v":" "},{"$f":"IF(D57>0,VLOOKUP(D57,'County code'!D:E,2,FALSE),\" \")","v":" "},0,0]
[null,null,null,null,null,null,null,null,null,null,null,null,null,null,null,null,null,null,null,null,null,null,null,null,null,{"$f":"IF(B58>0,VLOOKUP(B58,'County code'!A:B,2,FALSE),\" \")","v":" "},{"$f":"IF(D58>0,VLOOKUP(D58,'County code'!D:E,2,FALSE),\" \")","v":" "},0,0]
[null,null,null,null,null,null,null,null,null,null,null,null,null,null,null,null,null,null,null,null,null,null,null,null,null,{"$f":"IF(B59>0,VLOOKUP(B59,'County code'!A:B,2,FALSE),\" \")","v":" "},{"$f":"IF(D59>0,VLOOKUP(D59,'County code'!D:E,2,FALSE),\" \")","v":" "},0,0]
[null,null,null,null,null,null,null,null,null,null,null,null,null,null,null,null,null,null,null,null,null,null,null,null,null,{"$f":"IF(B60>0,VLOOKUP(B60,'County code'!A:B,2,FALSE),\" \")","v":" "},{"$f":"IF(D60>0,VLOOKUP(D60,'County code'!D:E,2,FALSE),\" \")","v":" "},0,0]
[null,null,null,null,null,null,null,null,null,null,null,null,null,null,null,null,null,null,null,null,null,null,null,null,null,{"$f":"IF(B61>0,VLOOKUP(B61,'County code'!A:B,2,FALSE),\" \")","v":" "},{"$f":"IF(D61>0,VLOOKUP(D61,'County code'!D:E,2,FALSE),\" \")","v":" "},0,0]
[null,null,null,null,null,null,null,null,null,null,null,null,null,null,null,null,null,null,null,null,null,null,null,null,null,{"$f":"IF(B62>0,VLOOKUP(B62,'County code'!A:B,2,FALSE),\" \")","v":" "},{"$f":"IF(D62>0,VLOOKUP(D62,'County code'!D:E,2,FALSE),\" \")","v":" "},0,0]
[null,null,null,null,null,null,null,null,null,null,null,null,null,null,null,null,null,null,null,null,null,null,null,null,null,{"$f":"IF(B63>0,VLOOKUP(B63,'County code'!A:B,2,FALSE),\" \")","v":" "},{"$f":"IF(D63>0,VLOOKUP(D63,'County code'!D:E,2,FALSE),\" \")","v":" "},0,0]
[null,null,null,null,null,null,null,null,null,null,null,null,null,null,null,null,null,null,null,null,null,null,null,null,null,{"$f":"IF(B64>0,VLOOKUP(B64,'County code'!A:B,2,FALSE),\" \")","v":" "},{"$f":"IF(D64>0,VLOOKUP(D64,'County code'!D:E,2,FALSE),\" \")","v":" "},0,0]
[null,null,null,null,null,null,null,null,null,null,null,null,null,null,null,null,null,null,null,null,null,null,null,null,null,{"$f":"IF(B65>0,VLOOKUP(B65,'County code'!A:B,2,FALSE),\" \")","v":" "},{"$f":"IF(D65>0,VLOOKUP(D65,'County code'!D:E,2,FALSE),\" \")","v":" "},0,0]
[null,null,null,null,null,null,null,null,null,null,null,null,null,null,null,null,null,null,null,null,null,null,null,null,null,{"$f":"IF(B66>0,VLOOKUP(B66,'County code'!A:B,2,FALSE),\" \")","v":" "},{"$f":"IF(D66>0,VLOOKUP(D66,'County code'!D:E,2,FALSE),\" \")","v":" "},0,0]
[null,null,null,null,null,null,null,null,null,null,null,null,null,null,null,null,null,null,null,null,null,null,null,null,null,{"$f":"IF(B67>0,VLOOKUP(B67,'County code'!A:B,2,FALSE),\" \")","v":" "},{"$f":"IF(D67>0,VLOOKUP(D67,'County code'!D:E,2,FALSE),\" \")","v":" "},0,0]
[null,null,null,null,null,null,null,null,null,null,null,null,null,null,null,null,null,null,null,null,null,null,null,null,null,{"$f":"IF(B68>0,VLOOKUP(B68,'County code'!A:B,2,FALSE),\" \")","v":" "},{"$f":"IF(D68>0,VLOOKUP(D68,'County code'!D:E,2,FALSE),\" \")","v":" "},{"$f":"G68","v":0},0]
[null,null,null,null,null,null,null,null,null,null,null,null,null,null,null,null,null,null,null,null,null,null,null,null,null,{"$f":"IF(B69>0,VLOOKUP(B69,'County code'!A:B,2,FALSE),\" \")","v":" "},{"$f":"IF(D69>0,VLOOKUP(D69,'County code'!D:E,2,FALSE),\" \")","v":" "},0,{"$f":"IF(AA69=5,AB69,M69)","v":0}]
[null,null,null,null,null,null,null,null,null,null,null,null,null,null,null,null,null,null,null,null,null,null,null,null,null,{"$f":"IF(B70>0,VLOOKUP(B70,'County code'!A:B,2,FALSE),\" \")","v":" "},{"$f":"IF(D70>0,VLOOKUP(D70,'County code'!D:E,2,FALSE),\" \")","v":" "},0,0]
[null,null,null,null,null,null,null,null,null,null,null,null,null,null,null,null,null,null,null,null,null,null,null,null,null,{"$f":"IF(B71>0,VLOOKUP(B71,'County code'!A:B,2,FALSE),\" \")","v":" "},{"$f":"IF(D71>0,VLOOKUP(D71,'County code'!D:E,2,FALSE),\" \")","v":" "},0,0]
[null,null,null,null,null,null,null,null,null,null,null,null,null,null,null,null,null,null,null,null,null,null,null,null,null,{"$f":"IF(B72>0,VLOOKUP(B72,'County code'!A:B,2,FALSE),\" \")","v":" "},{"$f":"IF(D72>0,VLOOKUP(D72,'County code'!D:E,2,FALSE),\" \")","v":" "},0,0]
[null,null,null,null,null,null,null,null,null,null,null,null,null,null,null,null,null,null,null,null,null,null,null,null,null,{"$f":"IF(B73>0,VLOOKUP(B73,'County code'!A:B,2,FALSE),\" \")","v":" "},{"$f":"IF(D73>0,VLOOKUP(D73,'County code'!D:E,2,FALSE),\" \")","v":" "},0,0]
[null,null,null,null,null,null,null,null,null,null,null,null,null,null,null,null,null,null,null,null,null,null,null,null,null,{"$f":"IF(B74>0,VLOOKUP(B74,'County code'!A:B,2,FALSE),\" \")","v":" "},{"$f":"IF(D74>0,VLOOKUP(D74,'County code'!D:E,2,FALSE),\" \")","v":" "},0,0]
[null,null,null,null,null,null,null,null,null,null,null,null,null,null,null,null,null,null,null,null,null,null,null,null,null,{"$f":"IF(B75>0,VLOOKUP(B75,'County code'!A:B,2,FALSE),\" \")","v":" "},{"$f":"IF(D75>0,VLOOKUP(D75,'County code'!D:E,2,FALSE),\" \")","v":" "},0,0]
[null,null,null,null,null,null,null,null,null,null,null,null,null,null,null,null,null,null,null,null,null,null,null,null,null,{"$f":"IF(B76>0,VLOOKUP(B76,'County code'!A:B,2,FALSE),\" \")","v":" "},{"$f":"IF(D76>0,VLOOKUP(D76,'County code'!D:E,2,FALSE),\" \")","v":" "},0,0]
[null,null,null,null,null,null,null,null,null,null,null,null,null,null,null,null,null,null,null,null,null,null,null,null,null,{"$f":"IF(B77>0,VLOOKUP(B77,'County code'!A:B,2,FALSE),\" \")","v":" "},{"$f":"IF(D77>0,VLOOKUP(D77,'County code'!D:E,2,FALSE),\" \")","v":" "},0,0]
[null,null,null,null,null,null,null,null,null,null,null,null,null,null,null,null,null,null,null,null,null,null,null,null,null,{"$f":"IF(B78>0,VLOOKUP(B78,'County code'!A:B,2,FALSE),\" \")","v":" "},{"$f":"IF(D78>0,VLOOKUP(D78,'County code'!D:E,2,FALSE),\" \")","v":" "},0,0]
[null,null,null,null,null,null,null,null,null,null,null,null,null,null,null,null,null,null,null,null,null,null,null,null,null,{"$f":"IF(B79>0,VLOOKUP(B79,'County code'!A:B,2,FALSE),\" \")","v":" "},{"$f":"IF(D79>0,VLOOKUP(D79,'County code'!D:E,2,FALSE),\" \")","v":" "},0,0]
[null,null,null,null,null,null,null,null,null,null,null,null,null,null,null,null,null,null,null,null,null,null,null,null,null,{"$f":"IF(B80>0,VLOOKUP(B80,'County code'!A:B,2,FALSE),\" \")","v":" "},{"$f":"IF(D80>0,VLOOKUP(D80,'County code'!D:E,2,FALSE),\" \")","v":" "},0,0]
[null,null,null,null,null,null,null,null,null,null,null,null,null,null,null,null,null,null,null,null,null,null,null,null,null,{"$f":"IF(B81>0,VLOOKUP(B81,'County code'!A:B,2,FALSE),\" \")","v":" "},{"$f":"IF(D81>0,VLOOKUP(D81,'County code'!D:E,2,FALSE),\" \")","v":" "},0,0]
[null,null,null,null,null,null,null,null,null,null,null,null,null,null,null,null,null,null,null,null,null,null,null,null,null,{"$f":"IF(B82>0,VLOOKUP(B82,'County code'!A:B,2,FALSE),\" \")","v":" "},{"$f":"IF(D82>0,VLOOKUP(D82,'County code'!D:E,2,FALSE),\" \")","v":" "},0,0]
[null,null,null,null,null,null,null,null,null,null,null,null,null,null,null,null,null,null,null,null,null,null,null,null,null,{"$f":"IF(B83>0,VLOOKUP(B83,'County code'!A:B,2,FALSE),\" \")","v":" "},{"$f":"IF(D83>0,VLOOKUP(D83,'County code'!D:E,2,FALSE),\" \")","v":" "},0,0]
[null,null,null,null,null,null,null,null,null,null,null,null,null,null,null,null,null,null,null,null,null,null,null,null,null,{"$f":"IF(B84>0,VLOOKUP(B84,'County code'!A:B,2,FALSE),\" \")","v":" "},{"$f":"IF(D84>0,VLOOKUP(D84,'County code'!D:E,2,FALSE),\" \")","v":" "},0,0]
[null,null,null,null,null,null,null,null,null,null,null,null,null,null,null,null,null,null,null,null,null,null,null,null,null,{"$f":"IF(B85>0,VLOOKUP(B85,'County code'!A:B,2,FALSE),\" \")","v":" "},{"$f":"IF(D85>0,VLOOKUP(D85,'County code'!D:E,2,FALSE),\" \")","v":" "},0,0]
[null,null,null,null,null,null,null,null,null,null,null,null,null,null,null,null,null,null,null,null,null,null,null,null,null,{"$f":"IF(B86>0,VLOOKUP(B86,'County code'!A:B,2,FALSE),\" \")","v":" "},{"$f":"IF(D86>0,VLOOKUP(D86,'County code'!D:E,2,FALSE),\" \")","v":" "},0,0]
[null,null,null,null,null,null,null,null,null,null,null,null,null,null,null,null,null,null,null,null,null,null,null,null,null,{"$f":"IF(B87>0,VLOOKUP(B87,'County code'!A:B,2,FALSE),\" \")","v":" "},{"$f":"IF(D87>0,VLOOKUP(D87,'County code'!D:E,2,FALSE),\" \")","v":" "},0,0]
[null,null,null,null,null,null,null,null,null,null,null,null,null,null,null,null,null,null,null,null,null,null,null,null,null,{"$f":"IF(B88>0,VLOOKUP(B88,'County code'!A:B,2,FALSE),\" \")","v":" "},{"$f":"IF(D88>0,VLOOKUP(D88,'County code'!D:E,2,FALSE),\" \")","v":" "},0,0]
[null,null,null,null,null,null,null,null,null,null,null,null,null,null,null,null,null,null,null,null,null,null,null,null,null,{"$f":"IF(B89>0,VLOOKUP(B89,'County code'!A:B,2,FALSE),\" \")","v":" "},{"$f":"IF(D89>0,VLOOKUP(D89,'County code'!D:E,2,FALSE),\" \")","v":" "},0,0]
[null,null,null,null,null,null,null,null,null,null,null,null,null,null,null,null,null,null,null,null,null,null,null,null,null,{"$f":"IF(B90>0,VLOOKUP(B90,'County code'!A:B,2,FALSE),\" \")","v":" "},{"$f":"IF(D90>0,VLOOKUP(D90,'County code'!D:E,2,FALSE),\" \")","v":" "},0,0]
[null,null,null,null,null,null,null,null,null,null,null,null,null,null,null,null,null,null,null,null,null,null,null,null,null,{"$f":"IF(B91>0,VLOOKUP(B91,'County code'!A:B,2,FALSE),\" \")","v":" "},{"$f":"IF(D91>0,VLOOKUP(D91,'County code'!D:E,2,FALSE),\" \")","v":" "},0,0]
[null,null,null,null,null,null,null,null,null,null,null,null,null,null,null,null,null,null,null,null,null,null,null,null,null,{"$f":"IF(B92>0,VLOOKUP(B92,'County code'!A:B,2,FALSE),\" \")","v":" "},{"$f":"IF(D92>0,VLOOKUP(D92,'County code'!D:E,2,FALSE),\" \")","v":" "},0,0]
[null,null,null,null,null,null,null,null,null,null,null,null,null,null,null,null,null,null,null,null,null,null,null,null,null,{"$f":"IF(B93>0,VLOOKUP(B93,'County code'!A:B,2,FALSE),\" \")","v":" "},{"$f":"IF(D93>0,VLOOKUP(D93,'County code'!D:E,2,FALSE),\" \")","v":" "},0,0]
[null,null,null,null,null,null,null,null,null,null,null,null,null,null,null,null,null,null,null,null,null,null,null,null,null,{"$f":"IF(B94>0,VLOOKUP(B94,'County code'!A:B,2,FALSE),\" \")","v":" "},{"$f":"IF(D94>0,VLOOKUP(D94,'County code'!D:E,2,FALSE),\" \")","v":" "},0,0]
[null,null,null,null,null,null,null,null,null,null,null,null,null,null,null,null,null,null,null,null,null,null,null,null,null,{"$f":"IF(B95>0,VLOOKUP(B95,'County code'!A:B,2,FALSE),\" \")","v":" "},{"$f":"IF(D95>0,VLOOKUP(D95,'County code'!D:E,2,FALSE),\" \")","v":" "},0,0]
[null,null,null,null,null,null,null,null,null,null,null,null,null,null,null,null,null,null,null,null,null,null,null,null,null,{"$f":"IF(B96>0,VLOOKUP(B96,'County code'!A:B,2,FALSE),\" \")","v":" "},{"$f":"IF(D96>0,VLOOKUP(D96,'County code'!D:E,2,FALSE),\" \")","v":" "},0,0]
[null,null,null,null,null,null,null,null,null,null,null,null,null,null,null,null,null,null,null,null,null,null,null,null,null,{"$f":"IF(B97>0,VLOOKUP(B97,'County code'!A:B,2,FALSE),\" \")","v":" "},{"$f":"IF(D97>0,VLOOKUP(D97,'County code'!D:E,2,FALSE),\" \")","v":" "},0,0]
[null,null,null,null,null,null,null,null,null,null,null,null,null,null,null,null,null,null,null,null,null,null,null,null,null,{"$f":"IF(B98>0,VLOOKUP(B98,'County code'!A:B,2,FALSE),\" \")","v":" "},{"$f":"IF(D98>0,VLOOKUP(D98,'County code'!D:E,2,FALSE),\" \")","v":" "},0,0]
[null,null,null,null,null,null,null,null,null,null,null,null,null,null,null,null,null,null,null,null,null,null,null,null,null,{"$f":"IF(B99>0,VLOOKUP(B99,'County code'!A:B,2,FALSE),\" \")","v":" "},{"$f":"IF(D99>0,VLOOKUP(D99,'County code'!D:E,2,FALSE),\" \")","v":" "},0,0]
[null,null,null,null,null,null,null,null,null,null,null,null,null,null,null,null,null,null,null,null,null,null,null,null,null,{"$f":"IF(B100>0,VLOOKUP(B100,'County code'!A:B,2,FALSE),\" \")","v":" "},{"$f":"IF(D100>0,VLOOKUP(D100,'County code'!D:E,2,FALSE),\" \")","v":" "},0,0]
[null,null,null,null,null,null,null,null,null,null,null,null,null,null,null,null,null,null,null,null,null,null,null,null,null,{"$f":"IF(B101>0,VLOOKUP(B101,'County code'!A:B,2,FALSE),\" \")","v":" "},{"$f":"IF(D101>0,VLOOKUP(D101,'County code'!D:E,2,FALSE),\" \")","v":" "},0,0]
[null,null,null,null,null,null,null,null,null,null,null,null,null,null,null,null,null,null,null,null,null,null,null,null,null,{"$f":"IF(B102>0,VLOOKUP(B102,'County code'!A:B,2,FALSE),\" \")","v":" "},{"$f":"IF(D102>0,VLOOKUP(D102,'County code'!D:E,2,FALSE),\" \")","v":" "},0,0]
[null,null,null,null,null,null,null,null,null,null,null,null,null,null,null,null,null,null,null,null,null,null,null,null,null,{"$f":"IF(B103>0,VLOOKUP(B103,'County code'!A:B,2,FALSE),\" \")","v":" "},{"$f":"IF(D103>0,VLOOKUP(D103,'County code'!D:E,2,FALSE),\" \")","v":" "},0,0]
[null,null,null,null,null,null,null,null,null,null,null,null,null,null,null,null,null,null,null,null,null,null,null,null,null,{"$f":"IF(B104>0,VLOOKUP(B104,'County code'!A:B,2,FALSE),\" \")","v":" "},{"$f":"IF(D104>0,VLOOKUP(D104,'County code'!D:E,2,FALSE),\" \")","v":" "},0,0]
[null,null,null,null,null,null,null,null,null,null,null,null,null,null,null,null,null,null,null,null,null,null,null,null,null,{"$f":"IF(B105>0,VLOOKUP(B105,'County code'!A:B,2,FALSE),\" \")","v":" "},{"$f":"IF(D105>0,VLOOKUP(D105,'County code'!D:E,2,FALSE),\" \")","v":" "},0,0]
[null,null,null,null,null,null,null,null,null,null,null,null,null,null,null,null,null,null,null,null,null,null,null,null,null,{"$f":"IF(B106>0,VLOOKUP(B106,'County code'!A:B,2,FALSE),\" \")","v":" "},{"$f":"IF(D106>0,VLOOKUP(D106,'County code'!D:E,2,FALSE),\" \")","v":" "},0,0]
[null,null,null,null,null,null,null,null,null,null,null,null,null,null,null,null,null,null,null,null,null,null,null,null,null,{"$f":"IF(B107>0,VLOOKUP(B107,'County code'!A:B,2,FALSE),\" \")","v":" "},{"$f":"IF(D107>0,VLOOKUP(D107,'County code'!D:E,2,FALSE),\" \")","v":" "},0,0]
[null,null,null,null,null,null,null,null,null,null,null,null,null,null,null,null,null,null,null,null,null,null,null,null,null,{"$f":"IF(B108>0,VLOOKUP(B108,'County code'!A:B,2,FALSE),\" \")","v":" "},{"$f":"IF(D108>0,VLOOKUP(D108,'County code'!D:E,2,FALSE),\" \")","v":" "},0,0]
[null,null,null,null,null,null,null,null,null,null,null,null,null,null,null,null,null,null,null,null,null,null,null,null,null,{"$f":"IF(B109>0,VLOOKUP(B109,'County code'!A:B,2,FALSE),\" \")","v":" "},{"$f":"IF(D109>0,VLOOKUP(D109,'County code'!D:E,2,FALSE),\" \")","v":" "},0,0]
[null,null,null,null,null,null,null,null,null,null,null,null,null,null,null,null,null,null,null,null,null,null,null,null,null,{"$f":"IF(B110>0,VLOOKUP(B110,'County code'!A:B,2,FALSE),\" \")","v":" "},{"$f":"IF(D110>0,VLOOKUP(D110,'County code'!D:E,2,FALSE),\" \")","v":" "},0,0]
[null,null,null,null,null,null,null,null,null,null,null,null,null,null,null,null,null,null,null,null,null,null,null,null,null,{"$f":"IF(B111>0,VLOOKUP(B111,'County code'!A:B,2,FALSE),\" \")","v":" "},{"$f":"IF(D111>0,VLOOKUP(D111,'County code'!D:E,2,FALSE),\" \")","v":" "},0,0]
[null,null,null,null,null,null,null,null,null,null,null,null,null,null,null,null,null,null,null,null,null,null,null,null,null,{"$f":"IF(B112>0,VLOOKUP(B112,'County code'!A:B,2,FALSE),\" \")","v":" "},{"$f":"IF(D112>0,VLOOKUP(D112,'County code'!D:E,2,FALSE),\" \")","v":" "},0,0]
[null,null,null,null,null,null,null,null,null,null,null,null,null,null,null,null,null,null,null,null,null,null,null,null,null,{"$f":"IF(B113>0,VLOOKUP(B113,'County code'!A:B,2,FALSE),\" \")","v":" "},{"$f":"IF(D113>0,VLOOKUP(D113,'County code'!D:E,2,FALSE),\" \")","v":" "},0,0]
[null,null,null,null,null,null,null,null,null,null,null,null,null,null,null,null,null,null,null,null,null,null,null,null,null,{"$f":"IF(B114>0,VLOOKUP(B114,'County code'!A:B,2,FALSE),\" \")","v":" "},{"$f":"IF(D114>0,VLOOKUP(D114,'County code'!D:E,2,FALSE),\" \")","v":" "},0,0]
[null,null,null,null,null,null,null,null,null,null,null,null,null,null,null,null,null,null,null,null,null,null,null,null,null,{"$f":"IF(B115>0,VLOOKUP(B115,'County code'!A:B,2,FALSE),\" \")","v":" "},{"$f":"IF(D115>0,VLOOKUP(D115,'County code'!D:E,2,FALSE),\" \")","v":" "},0,0]
[null,null,null,null,null,null,null,null,null,null,null,null,null,null,null,null,null,null,null,null,null,null,null,null,null,{"$f":"IF(B116>0,VLOOKUP(B116,'County code'!A:B,2,FALSE),\" \")","v":" "},{"$f":"IF(D116>0,VLOOKUP(D116,'County code'!D:E,2,FALSE),\" \")","v":" "},0,0]
[null,null,null,null,null,null,null,null,null,null,null,null,null,null,null,null,null,null,null,null,null,null,null,null,null,{"$f":"IF(B117>0,VLOOKUP(B117,'County code'!A:B,2,FALSE),\" \")","v":" "},{"$f":"IF(D117>0,VLOOKUP(D117,'County code'!D:E,2,FALSE),\" \")","v":" "},0,0]
[null,null,null,null,null,null,null,null,null,null,null,null,null,null,null,null,null,null,null,null,null,null,null,null,null,{"$f":"IF(B118>0,VLOOKUP(B118,'County code'!A:B,2,FALSE),\" \")","v":" "},{"$f":"IF(D118>0,VLOOKUP(D118,'County code'!D:E,2,FALSE),\" \")","v":" "},0,0]
[null,null,null,null,null,null,null,null,null,null,null,null,null,null,null,null,null,null,null,null,null,null,null,null,null,{"$f":"IF(B119>0,VLOOKUP(B119,'County code'!A:B,2,FALSE),\" \")","v":" "},{"$f":"IF(D119>0,VLOOKUP(D119,'County code'!D:E,2,FALSE),\" \")","v":" "},0,0]
[null,null,null,null,null,null,null,null,null,null,null,null,null,null,null,null,null,null,null,null,null,null,null,null,null,{"$f":"IF(B120>0,VLOOKUP(B120,'County code'!A:B,2,FALSE),\" \")","v":" "},{"$f":"IF(D120>0,VLOOKUP(D120,'County code'!D:E,2,FALSE),\" \")","v":" "},0,0]
[null,null,null,null,null,null,null,null,null,null,null,null,null,null,null,null,null,null,null,null,null,null,null,null,null,{"$f":"IF(B121>0,VLOOKUP(B121,'County code'!A:B,2,FALSE),\" \")","v":" "},{"$f":"IF(D121>0,VLOOKUP(D121,'County code'!D:E,2,FALSE),\" \")","v":" "},0,0]
[null,null,null,null,null,null,null,null,null,null,null,null,null,null,null,null,null,null,null,null,null,null,null,null,null,{"$f":"IF(B122>0,VLOOKUP(B122,'County code'!A:B,2,FALSE),\" \")","v":" "},{"$f":"IF(D122>0,VLOOKUP(D122,'County code'!D:E,2,FALSE),\" \")","v":" "},0,0]
[null,null,null,null,null,null,null,null,null,null,null,null,null,null,null,null,null,null,null,null,null,null,null,null,null,{"$f":"IF(B123>0,VLOOKUP(B123,'County code'!A:B,2,FALSE),\" \")","v":" "},{"$f":"IF(D123>0,VLOOKUP(D123,'County code'!D:E,2,FALSE),\" \")","v":" "},0,0]
[null,null,null,null,null,null,null,null,null,null,null,null,null,null,null,null,null,null,null,null,null,null,null,null,null,{"$f":"IF(B124>0,VLOOKUP(B124,'County code'!A:B,2,FALSE),\" \")","v":" "},{"$f":"IF(D124>0,VLOOKUP(D124,'County code'!D:E,2,FALSE),\" \")","v":" "},0,0]
[null,null,null,null,null,null,null,null,null,null,null,null,null,null,null,null,null,null,null,null,null,null,null,null,null,{"$f":"IF(B125>0,VLOOKUP(B125,'County code'!A:B,2,FALSE),\" \")","v":" "},{"$f":"IF(D125>0,VLOOKUP(D125,'County code'!D:E,2,FALSE),\" \")","v":" "},0,0]
[null,null,null,null,null,null,null,null,null,null,null,null,null,null,null,null,null,null,null,null,null,null,null,null,null,{"$f":"IF(B126>0,VLOOKUP(B126,'County code'!A:B,2,FALSE),\" \")","v":" "},{"$f":"IF(D126>0,VLOOKUP(D126,'County code'!D:E,2,FALSE),\" \")","v":" "},0,0]
[null,null,null,null,null,null,null,null,null,null,null,null,null,null,null,null,null,null,null,null,null,null,null,null,null,{"$f":"IF(B127>0,VLOOKUP(B127,'County code'!A:B,2,FALSE),\" \")","v":" "},{"$f":"IF(D127>0,VLOOKUP(D127,'County code'!D:E,2,FALSE),\" \")","v":" "},0,0]
[null,null,null,null,null,null,null,null,null,null,null,null,null,null,null,null,null,null,null,null,null,null,null,null,null,{"$f":"IF(B128>0,VLOOKUP(B128,'County code'!A:B,2,FALSE),\" \")","v":" "},{"$f":"IF(D128>0,VLOOKUP(D128,'County code'!D:E,2,FALSE),\" \")","v":" "},0,0]
[null,null,null,null,null,null,null,null,null,null,null,null,null,null,null,null,null,null,null,null,null,null,null,null,null,{"$f":"IF(B129>0,VLOOKUP(B129,'County code'!A:B,2,FALSE),\" \")","v":" "},{"$f":"IF(D129>0,VLOOKUP(D129,'County code'!D:E,2,FALSE),\" \")","v":" "},0,0]
[null,null,null,null,null,null,null,null,null,null,null,null,null,null,null,null,null,null,null,null,null,null,null,null,null,{"$f":"IF(B130>0,VLOOKUP(B130,'County code'!A:B,2,FALSE),\" \")","v":" "},{"$f":"IF(D130>0,VLOOKUP(D130,'County code'!D:E,2,FALSE),\" \")","v":" "},0,0]
[null,null,null,null,null,null,null,null,null,null,null,null,null,null,null,null,null,null,null,null,null,null,null,null,null,{"$f":"IF(B131>0,VLOOKUP(B131,'County code'!A:B,2,FALSE),\" \")","v":" "},{"$f":"IF(D131>0,VLOOKUP(D131,'County code'!D:E,2,FALSE),\" \")","v":" "},0,0]
[null,null,null,null,null,null,null,null,null,null,null,null,null,null,null,null,null,null,null,null,null,null,null,null,null,{"$f":"IF(B132>0,VLOOKUP(B132,'County code'!A:B,2,FALSE),\" \")","v":" "},{"$f":"IF(D132>0,VLOOKUP(D132,'County code'!D:E,2,FALSE),\" \")","v":" "},{"$f":"G132","v":0},0]
[null,null,null,null,null,null,null,null,null,null,null,null,null,null,null,null,null,null,null,null,null,null,null,null,null,{"$f":"IF(B133>0,VLOOKUP(B133,'County code'!A:B,2,FALSE),\" \")","v":" "},{"$f":"IF(D133>0,VLOOKUP(D133,'County code'!D:E,2,FALSE),\" \")","v":" "},0,{"$f":"IF(AA133=5,AB133,M133)","v":0}]
[null,null,null,null,null,null,null,null,null,null,null,null,null,null,null,null,null,null,null,null,null,null,null,null,null,{"$f":"IF(B134>0,VLOOKUP(B134,'County code'!A:B,2,FALSE),\" \")","v":" "},{"$f":"IF(D134>0,VLOOKUP(D134,'County code'!D:E,2,FALSE),\" \")","v":" "},0,0]
[null,null,null,null,null,null,null,null,null,null,null,null,null,null,null,null,null,null,null,null,null,null,null,null,null,{"$f":"IF(B135>0,VLOOKUP(B135,'County code'!A:B,2,FALSE),\" \")","v":" "},{"$f":"IF(D135>0,VLOOKUP(D135,'County code'!D:E,2,FALSE),\" \")","v":" "},0,0]
[null,null,null,null,null,null,null,null,null,null,null,null,null,null,null,null,null,null,null,null,null,null,null,null,null,{"$f":"IF(B136>0,VLOOKUP(B136,'County code'!A:B,2,FALSE),\" \")","v":" "},{"$f":"IF(D136>0,VLOOKUP(D136,'County code'!D:E,2,FALSE),\" \")","v":" "},0,0]
[null,null,null,null,null,null,null,null,null,null,null,null,null,null,null,null,null,null,null,null,null,null,null,null,null,{"$f":"IF(B137>0,VLOOKUP(B137,'County code'!A:B,2,FALSE),\" \")","v":" "},{"$f":"IF(D137>0,VLOOKUP(D137,'County code'!D:E,2,FALSE),\" \")","v":" "},0,0]
[null,null,null,null,null,null,null,null,null,null,null,null,null,null,null,null,null,null,null,null,null,null,null,null,null,{"$f":"IF(B138>0,VLOOKUP(B138,'County code'!A:B,2,FALSE),\" \")","v":" "},{"$f":"IF(D138>0,VLOOKUP(D138,'County code'!D:E,2,FALSE),\" \")","v":" "},0,0]
[null,null,null,null,null,null,null,null,null,null,null,null,null,null,null,null,null,null,null,null,null,null,null,null,null,{"$f":"IF(B139>0,VLOOKUP(B139,'County code'!A:B,2,FALSE),\" \")","v":" "},{"$f":"IF(D139>0,VLOOKUP(D139,'County code'!D:E,2,FALSE),\" \")","v":" "},0,0]
[null,null,null,null,null,null,null,null,null,null,null,null,null,null,null,null,null,null,null,null,null,null,null,null,null,{"$f":"IF(B140>0,VLOOKUP(B140,'County code'!A:B,2,FALSE),\" \")","v":" "},{"$f":"IF(D140>0,VLOOKUP(D140,'County code'!D:E,2,FALSE),\" \")","v":" "},0,0]
[null,null,null,null,null,null,null,null,null,null,null,null,null,null,null,null,null,null,null,null,null,null,null,null,null,{"$f":"IF(B141>0,VLOOKUP(B141,'County code'!A:B,2,FALSE),\" \")","v":" "},{"$f":"IF(D141>0,VLOOKUP(D141,'County code'!D:E,2,FALSE),\" \")","v":" "},0,0]
[null,null,null,null,null,null,null,null,null,null,null,null,null,null,null,null,null,null,null,null,null,null,null,null,null,{"$f":"IF(B142>0,VLOOKUP(B142,'County code'!A:B,2,FALSE),\" \")","v":" "},{"$f":"IF(D142>0,VLOOKUP(D142,'County code'!D:E,2,FALSE),\" \")","v":" "},0,0]
[null,null,null,null,null,null,null,null,null,null,null,null,null,null,null,null,null,null,null,null,null,null,null,null,null,{"$f":"IF(B143>0,VLOOKUP(B143,'County code'!A:B,2,FALSE),\" \")","v":" "},{"$f":"IF(D143>0,VLOOKUP(D143,'County code'!D:E,2,FALSE),\" \")","v":" "},0,0]
[null,null,null,null,null,null,null,null,null,null,null,null,null,null,null,null,null,null,null,null,null,null,null,null,null,{"$f":"IF(B144>0,VLOOKUP(B144,'County code'!A:B,2,FALSE),\" \")","v":" "},{"$f":"IF(D144>0,VLOOKUP(D144,'County code'!D:E,2,FALSE),\" \")","v":" "},0,0]
[null,null,null,null,null,null,null,null,null,null,null,null,null,null,null,null,null,null,null,null,null,null,null,null,null,{"$f":"IF(B145>0,VLOOKUP(B145,'County code'!A:B,2,FALSE),\" \")","v":" "},{"$f":"IF(D145>0,VLOOKUP(D145,'County code'!D:E,2,FALSE),\" \")","v":" "},0,0]
[null,null,null,null,null,null,null,null,null,null,null,null,null,null,null,null,null,null,null,null,null,null,null,null,null,{"$f":"IF(B146>0,VLOOKUP(B146,'County code'!A:B,2,FALSE),\" \")","v":" "},{"$f":"IF(D146>0,VLOOKUP(D146,'County code'!D:E,2,FALSE),\" \")","v":" "},0,0]
[null,null,null,null,null,null,null,null,null,null,null,null,null,null,null,null,null,null,null,null,null,null,null,null,null,{"$f":"IF(B147>0,VLOOKUP(B147,'County code'!A:B,2,FALSE),\" \")","v":" "},{"$f":"IF(D147>0,VLOOKUP(D147,'County code'!D:E,2,FALSE),\" \")","v":" "},0,0]
[null,null,null,null,null,null,null,null,null,null,null,null,null,null,null,null,null,null,null,null,null,null,null,null,null,{"$f":"IF(B148>0,VLOOKUP(B148,'County code'!A:B,2,FALSE),\" \")","v":" "},{"$f":"IF(D148>0,VLOOKUP(D148,'County code'!D:E,2,FALSE),\" \")","v":" "},0,0]
[null,null,null,null,null,null,null,null,null,null,null,null,null,null,null,null,null,null,null,null,null,null,null,null,null,{"$f":"IF(B149>0,VLOOKUP(B149,'County code'!A:B,2,FALSE),\" \")","v":" "},{"$f":"IF(D149>0,VLOOKUP(D149,'County code'!D:E,2,FALSE),\" \")","v":" "},0,0]
[null,null,null,null,null,null,null,null,null,null,null,null,null,null,null,null,null,null,null,null,null,null,null,null,null,{"$f":"IF(B150>0,VLOOKUP(B150,'County code'!A:B,2,FALSE),\" \")","v":" "},{"$f":"IF(D150>0,VLOOKUP(D150,'County code'!D:E,2,FALSE),\" \")","v":" "},0,0]
[null,null,null,null,null,null,null,null,null,null,null,null,null,null,null,null,null,null,null,null,null,null,null,null,null,{"$f":"IF(B151>0,VLOOKUP(B151,'County code'!A:B,2,FALSE),\" \")","v":" "},{"$f":"IF(D151>0,VLOOKUP(D151,'County code'!D:E,2,FALSE),\" \")","v":" "},0,0]
[null,null,null,null,null,null,null,null,null,null,null,null,null,null,null,null,null,null,null,null,null,null,null,null,null,{"$f":"IF(B152>0,VLOOKUP(B152,'County code'!A:B,2,FALSE),\" \")","v":" "},{"$f":"IF(D152>0,VLOOKUP(D152,'County code'!D:E,2,FALSE),\" \")","v":" "},0,0]
[null,null,null,null,null,null,null,null,null,null,null,null,null,null,null,null,null,null,null,null,null,null,null,null,null,{"$f":"IF(B153>0,VLOOKUP(B153,'County code'!A:B,2,FALSE),\" \")","v":" "},{"$f":"IF(D153>0,VLOOKUP(D153,'County code'!D:E,2,FALSE),\" \")","v":" "},0,0]
[null,null,null,null,null,null,null,null,null,null,null,null,null,null,null,null,null,null,null,null,null,null,null,null,null,{"$f":"IF(B154>0,VLOOKUP(B154,'County code'!A:B,2,FALSE),\" \")","v":" "},{"$f":"IF(D154>0,VLOOKUP(D154,'County code'!D:E,2,FALSE),\" \")","v":" "},0,0]
[null,null,null,null,null,null,null,null,null,null,null,null,null,null,null,null,null,null,null,null,null,null,null,null,null,{"$f":"IF(B155>0,VLOOKUP(B155,'County code'!A:B,2,FALSE),\" \")","v":" "},{"$f":"IF(D155>0,VLOOKUP(D155,'County code'!D:E,2,FALSE),\" \")","v":" "},0,0]
[null,null,null,null,null,null,null,null,null,null,null,null,null,null,null,null,null,null,null,null,null,null,null,null,null,{"$f":"IF(B156>0,VLOOKUP(B156,'County code'!A:B,2,FALSE),\" \")","v":" "},{"$f":"IF(D156>0,VLOOKUP(D156,'County code'!D:E,2,FALSE),\" \")","v":" "},0,0]
[null,null,null,null,null,null,null,null,null,null,null,null,null,null,null,null,null,null,null,null,null,null,null,null,null,{"$f":"IF(B157>0,VLOOKUP(B157,'County code'!A:B,2,FALSE),\" \")","v":" "},{"$f":"IF(D157>0,VLOOKUP(D157,'County code'!D:E,2,FALSE),\" \")","v":" "},0,0]
[null,null,null,null,null,null,null,null,null,null,null,null,null,null,null,null,null,null,null,null,null,null,null,null,null,{"$f":"IF(B158>0,VLOOKUP(B158,'County code'!A:B,2,FALSE),\" \")","v":" "},{"$f":"IF(D158>0,VLOOKUP(D158,'County code'!D:E,2,FALSE),\" \")","v":" "},0,0]
[null,null,null,null,null,null,null,null,null,null,null,null,null,null,null,null,null,null,null,null,null,null,null,null,null,{"$f":"IF(B159>0,VLOOKUP(B159,'County code'!A:B,2,FALSE),\" \")","v":" "},{"$f":"IF(D159>0,VLOOKUP(D159,'County code'!D:E,2,FALSE),\" \")","v":" "},0,0]
[null,null,null,null,null,null,null,null,null,null,null,null,null,null,null,null,null,null,null,null,null,null,null,null,null,{"$f":"IF(B160>0,VLOOKUP(B160,'County code'!A:B,2,FALSE),\" \")","v":" "},{"$f":"IF(D160>0,VLOOKUP(D160,'County code'!D:E,2,FALSE),\" \")","v":" "},0,0]
[null,null,null,null,null,null,null,null,null,null,null,null,null,null,null,null,null,null,null,null,null,null,null,null,null,{"$f":"IF(B161>0,VLOOKUP(B161,'County code'!A:B,2,FALSE),\" \")","v":" "},{"$f":"IF(D161>0,VLOOKUP(D161,'County code'!D:E,2,FALSE),\" \")","v":" "},0,0]
[null,null,null,null,null,null,null,null,null,null,null,null,null,null,null,null,null,null,null,null,null,null,null,null,null,{"$f":"IF(B162>0,VLOOKUP(B162,'County code'!A:B,2,FALSE),\" \")","v":" "},{"$f":"IF(D162>0,VLOOKUP(D162,'County code'!D:E,2,FALSE),\" \")","v":" "},0,0]
[null,null,null,null,null,null,null,null,null,null,null,null,null,null,null,null,null,null,null,null,null,null,null,null,null,{"$f":"IF(B163>0,VLOOKUP(B163,'County code'!A:B,2,FALSE),\" \")","v":" "},{"$f":"IF(D163>0,VLOOKUP(D163,'County code'!D:E,2,FALSE),\" \")","v":" "},0,0]
[null,null,null,null,null,null,null,null,null,null,null,null,null,null,null,null,null,null,null,null,null,null,null,null,null,{"$f":"IF(B164>0,VLOOKUP(B164,'County code'!A:B,2,FALSE),\" \")","v":" "},{"$f":"IF(D164>0,VLOOKUP(D164,'County code'!D:E,2,FALSE),\" \")","v":" "},0,0]
[null,null,null,null,null,null,null,null,null,null,null,null,null,null,null,null,null,null,null,null,null,null,null,null,null,{"$f":"IF(B165>0,VLOOKUP(B165,'County code'!A:B,2,FALSE),\" \")","v":" "},{"$f":"IF(D165>0,VLOOKUP(D165,'County code'!D:E,2,FALSE),\" \")","v":" "},0,0]
[null,null,null,null,null,null,null,null,null,null,null,null,null,null,null,null,null,null,null,null,null,null,null,null,null,{"$f":"IF(B166>0,VLOOKUP(B166,'County code'!A:B,2,FALSE),\" \")","v":" "},{"$f":"IF(D166>0,VLOOKUP(D166,'County code'!D:E,2,FALSE),\" \")","v":" "},0,0]
[null,null,null,null,null,null,null,null,null,null,null,null,null,null,null,null,null,null,null,null,null,null,null,null,null,{"$f":"IF(B167>0,VLOOKUP(B167,'County code'!A:B,2,FALSE),\" \")","v":" "},{"$f":"IF(D167>0,VLOOKUP(D167,'County code'!D:E,2,FALSE),\" \")","v":" "},0,0]
[null,null,null,null,null,null,null,null,null,null,null,null,null,null,null,null,null,null,null,null,null,null,null,null,null,{"$f":"IF(B168>0,VLOOKUP(B168,'County code'!A:B,2,FALSE),\" \")","v":" "},{"$f":"IF(D168>0,VLOOKUP(D168,'County code'!D:E,2,FALSE),\" \")","v":" "},0,0]
[null,null,null,null,null,null,null,null,null,null,null,null,null,null,null,null,null,null,null,null,null,null,null,null,null,{"$f":"IF(B169>0,VLOOKUP(B169,'County code'!A:B,2,FALSE),\" \")","v":" "},{"$f":"IF(D169>0,VLOOKUP(D169,'County code'!D:E,2,FALSE),\" \")","v":" "},0,0]
[null,null,null,null,null,null,null,null,null,null,null,null,null,null,null,null,null,null,null,null,null,null,null,null,null,{"$f":"IF(B170>0,VLOOKUP(B170,'County code'!A:B,2,FALSE),\" \")","v":" "},{"$f":"IF(D170>0,VLOOKUP(D170,'County code'!D:E,2,FALSE),\" \")","v":" "},0,0]
[null,null,null,null,null,null,null,null,null,null,null,null,null,null,null,null,null,null,null,null,null,null,null,null,null,{"$f":"IF(B171>0,VLOOKUP(B171,'County code'!A:B,2,FALSE),\" \")","v":" "},{"$f":"IF(D171>0,VLOOKUP(D171,'County code'!D:E,2,FALSE),\" \")","v":" "},0,0]
[null,null,null,null,null,null,null,null,null,null,null,null,null,null,null,null,null,null,null,null,null,null,null,null,null,{"$f":"IF(B172>0,VLOOKUP(B172,'County code'!A:B,2,FALSE),\" \")","v":" "},{"$f":"IF(D172>0,VLOOKUP(D172,'County code'!D:E,2,FALSE),\" \")","v":" "},0,0]
[null,null,null,null,null,null,null,null,null,null,null,null,null,null,null,null,null,null,null,null,null,null,null,null,null,{"$f":"IF(B173>0,VLOOKUP(B173,'County code'!A:B,2,FALSE),\" \")","v":" "},{"$f":"IF(D173>0,VLOOKUP(D173,'County code'!D:E,2,FALSE),\" \")","v":" "},0,0]
[null,null,null,null,null,null,null,null,null,null,null,null,null,null,null,null,null,null,null,null,null,null,null,null,null,{"$f":"IF(B174>0,VLOOKUP(B174,'County code'!A:B,2,FALSE),\" \")","v":" "},{"$f":"IF(D174>0,VLOOKUP(D174,'County code'!D:E,2,FALSE),\" \")","v":" "},0,0]
[null,null,null,null,null,null,null,null,null,null,null,null,null,null,null,null,null,null,null,null,null,null,null,null,null,{"$f":"IF(B175>0,VLOOKUP(B175,'County code'!A:B,2,FALSE),\" \")","v":" "},{"$f":"IF(D175>0,VLOOKUP(D175,'County code'!D:E,2,FALSE),\" \")","v":" "},0,0]
[null,null,null,null,null,null,null,null,null,null,null,null,null,null,null,null,null,null,null,null,null,null,null,null,null,{"$f":"IF(B176>0,VLOOKUP(B176,'County code'!A:B,2,FALSE),\" \")","v":" "},{"$f":"IF(D176>0,VLOOKUP(D176,'County code'!D:E,2,FALSE),\" \")","v":" "},0,0]
[null,null,null,null,null,null,null,null,null,null,null,null,null,null,null,null,null,null,null,null,null,null,null,null,null,{"$f":"IF(B177>0,VLOOKUP(B177,'County code'!A:B,2,FALSE),\" \")","v":" "},{"$f":"IF(D177>0,VLOOKUP(D177,'County code'!D:E,2,FALSE),\" \")","v":" "},0,0]
[null,null,null,null,null,null,null,null,null,null,null,null,null,null,null,null,null,null,null,null,null,null,null,null,null,{"$f":"IF(B178>0,VLOOKUP(B178,'County code'!A:B,2,FALSE),\" \")","v":" "},{"$f":"IF(D178>0,VLOOKUP(D178,'County code'!D:E,2,FALSE),\" \")","v":" "},0,0]
[null,null,null,null,null,null,null,null,null,null,null,null,null,null,null,null,null,null,null,null,null,null,null,null,null,{"$f":"IF(B179>0,VLOOKUP(B179,'County code'!A:B,2,FALSE),\" \")","v":" "},{"$f":"IF(D179>0,VLOOKUP(D179,'County code'!D:E,2,FALSE),\" \")","v":" "},0,0]
[null,null,null,null,null,null,null,null,null,null,null,null,null,null,null,null,null,null,null,null,null,null,null,null,null,{"$f":"IF(B180>0,VLOOKUP(B180,'County code'!A:B,2,FALSE),\" \")","v":" "},{"$f":"IF(D180>0,VLOOKUP(D180,'County code'!D:E,2,FALSE),\" \")","v":" "},0,0]
[null,null,null,null,null,null,null,null,null,null,null,null,null,null,null,null,null,null,null,null,null,null,null,null,null,{"$f":"IF(B181>0,VLOOKUP(B181,'County code'!A:B,2,FALSE),\" \")","v":" "},{"$f":"IF(D181>0,VLOOKUP(D181,'County code'!D:E,2,FALSE),\" \")","v":" "},0,0]
[null,null,null,null,null,null,null,null,null,null,null,null,null,null,null,null,null,null,null,null,null,null,null,null,null,{"$f":"IF(B182>0,VLOOKUP(B182,'County code'!A:B,2,FALSE),\" \")","v":" "},{"$f":"IF(D182>0,VLOOKUP(D182,'County code'!D:E,2,FALSE),\" \")","v":" "},0,0]
[null,null,null,null,null,null,null,null,null,null,null,null,null,null,null,null,null,null,null,null,null,null,null,null,null,{"$f":"IF(B183>0,VLOOKUP(B183,'County code'!A:B,2,FALSE),\" \")","v":" "},{"$f":"IF(D183>0,VLOOKUP(D183,'County code'!D:E,2,FALSE),\" \")","v":" "},0,0]
[null,null,null,null,null,null,null,null,null,null,null,null,null,null,null,null,null,null,null,null,null,null,null,null,null,{"$f":"IF(B184>0,VLOOKUP(B184,'County code'!A:B,2,FALSE),\" \")","v":" "},{"$f":"IF(D184>0,VLOOKUP(D184,'County code'!D:E,2,FALSE),\" \")","v":" "},0,0]
[null,null,null,null,null,null,null,null,null,null,null,null,null,null,null,null,null,null,null,null,null,null,null,null,null,{"$f":"IF(B185>0,VLOOKUP(B185,'County code'!A:B,2,FALSE),\" \")","v":" "},{"$f":"IF(D185>0,VLOOKUP(D185,'County code'!D:E,2,FALSE),\" \")","v":" "},0,0]
[null,null,null,null,null,null,null,null,null,null,null,null,null,null,null,null,null,null,null,null,null,null,null,null,null,{"$f":"IF(B186>0,VLOOKUP(B186,'County code'!A:B,2,FALSE),\" \")","v":" "},{"$f":"IF(D186>0,VLOOKUP(D186,'County code'!D:E,2,FALSE),\" \")","v":" "},0,0]
[null,null,null,null,null,null,null,null,null,null,null,null,null,null,null,null,null,null,null,null,null,null,null,null,null,{"$f":"IF(B187>0,VLOOKUP(B187,'County code'!A:B,2,FALSE),\" \")","v":" "},{"$f":"IF(D187>0,VLOOKUP(D187,'County code'!D:E,2,FALSE),\" \")","v":" "},0,0]
[null,null,null,null,null,null,null,null,null,null,null,null,null,null,null,null,null,null,null,null,null,null,null,null,null,{"$f":"IF(B188>0,VLOOKUP(B188,'County code'!A:B,2,FALSE),\" \")","v":" "},{"$f":"IF(D188>0,VLOOKUP(D188,'County code'!D:E,2,FALSE),\" \")","v":" "},0,0]
[null,null,null,null,null,null,null,null,null,null,null,null,null,null,null,null,null,null,null,null,null,null,null,null,null,{"$f":"IF(B189>0,VLOOKUP(B189,'County code'!A:B,2,FALSE),\" \")","v":" "},{"$f":"IF(D189>0,VLOOKUP(D189,'County code'!D:E,2,FALSE),\" \")","v":" "},0,0]
[null,null,null,null,null,null,null,null,null,null,null,null,null,null,null,null,null,null,null,null,null,null,null,null,null,{"$f":"IF(B190>0,VLOOKUP(B190,'County code'!A:B,2,FALSE),\" \")","v":" "},{"$f":"IF(D190>0,VLOOKUP(D190,'County code'!D:E,2,FALSE),\" \")","v":" "},0,0]
[null,null,null,null,null,null,null,null,null,null,null,null,null,null,null,null,null,null,null,null,null,null,null,null,null,{"$f":"IF(B191>0,VLOOKUP(B191,'County code'!A:B,2,FALSE),\" \")","v":" "},{"$f":"IF(D191>0,VLOOKUP(D191,'County code'!D:E,2,FALSE),\" \")","v":" "},0,0]
[null,null,null,null,null,null,null,null,null,null,null,null,null,null,null,null,null,null,null,null,null,null,null,null,null,{"$f":"IF(B192>0,VLOOKUP(B192,'County code'!A:B,2,FALSE),\" \")","v":" "},{"$f":"IF(D192>0,VLOOKUP(D192,'County code'!D:E,2,FALSE),\" \")","v":" "},0,0]
[null,null,null,null,null,null,null,null,null,null,null,null,null,null,null,null,null,null,null,null,null,null,null,null,null,{"$f":"IF(B193>0,VLOOKUP(B193,'County code'!A:B,2,FALSE),\" \")","v":" "},{"$f":"IF(D193>0,VLOOKUP(D193,'County code'!D:E,2,FALSE),\" \")","v":" "},0,0]
[null,null,null,null,null,null,null,null,null,null,null,null,null,null,null,null,null,null,null,null,null,null,null,null,null,{"$f":"IF(B194>0,VLOOKUP(B194,'County code'!A:B,2,FALSE),\" \")","v":" "},{"$f":"IF(D194>0,VLOOKUP(D194,'County code'!D:E,2,FALSE),\" \")","v":" "},0,0]
[null,null,null,null,null,null,null,null,null,null,null,null,null,null,null,null,null,null,null,null,null,null,null,null,null,{"$f":"IF(B195>0,VLOOKUP(B195,'County code'!A:B,2,FALSE),\" \")","v":" "},{"$f":"IF(D195>0,VLOOKUP(D195,'County code'!D:E,2,FALSE),\" \")","v":" "},0,0]
[null,null,null,null,null,null,null,null,null,null,null,null,null,null,null,null,null,null,null,null,null,null,null,null,null,{"$f":"IF(B196>0,VLOOKUP(B196,'County code'!A:B,2,FALSE),\" \")","v":" "},{"$f":"IF(D196>0,VLOOKUP(D196,'County code'!D:E,2,FALSE),\" \")","v":" "},{"$f":"G196","v":0},0]
[null,null,null,null,null,null,null,null,null,null,null,null,null,null,null,null,null,null,null,null,null,null,null,null,null,{"$f":"IF(B197>0,VLOOKUP(B197,'County code'!A:B,2,FALSE),\" \")","v":" "},{"$f":"IF(D197>0,VLOOKUP(D197,'County code'!D:E,2,FALSE),\" \")","v":" "},0,{"$f":"IF(AA197=5,AB197,M197)","v":0}]
[null,null,null,null,null,null,null,null,null,null,null,null,null,null,null,null,null,null,null,null,null,null,null,null,null,{"$f":"IF(B198>0,VLOOKUP(B198,'County code'!A:B,2,FALSE),\" \")","v":" "},{"$f":"IF(D198>0,VLOOKUP(D198,'County code'!D:E,2,FALSE),\" \")","v":" "},0,0]
[null,null,null,null,null,null,null,null,null,null,null,null,null,null,null,null,null,null,null,null,null,null,null,null,null,{"$f":"IF(B199>0,VLOOKUP(B199,'County code'!A:B,2,FALSE),\" \")","v":" "},{"$f":"IF(D199>0,VLOOKUP(D199,'County code'!D:E,2,FALSE),\" \")","v":" "},0,0]
[null,null,null,null,null,null,null,null,null,null,null,null,null,null,null,null,null,null,null,null,null,null,null,null,null,{"$f":"IF(B200>0,VLOOKUP(B200,'County code'!A:B,2,FALSE),\" \")","v":" "},{"$f":"IF(D200>0,VLOOKUP(D200,'County code'!D:E,2,FALSE),\" \")","v":" "},0,0]
[null,null,null,null,null,null,null,null,null,null,null,null,null,null,null,null,null,null,null,null,null,null,null,null,null,{"$f":"IF(B201>0,VLOOKUP(B201,'County code'!A:B,2,FALSE),\" \")","v":" "},{"$f":"IF(D201>0,VLOOKUP(D201,'County code'!D:E,2,FALSE),\" \")","v":" "},0,0]
[null,null,null,null,null,null,null,null,null,null,null,null,null,null,null,null,null,null,null,null,null,null,null,null,null,{"$f":"IF(B202>0,VLOOKUP(B202,'County code'!A:B,2,FALSE),\" \")","v":" "},{"$f":"IF(D202>0,VLOOKUP(D202,'County code'!D:E,2,FALSE),\" \")","v":" "},0,0]
[null,null,null,null,null,null,null,null,null,null,null,null,null,null,null,null,null,null,null,null,null,null,null,null,null,{"$f":"IF(B203>0,VLOOKUP(B203,'County code'!A:B,2,FALSE),\" \")","v":" "},{"$f":"IF(D203>0,VLOOKUP(D203,'County code'!D:E,2,FALSE),\" \")","v":" "},0,0]
[null,null,null,null,null,null,null,null,null,null,null,null,null,null,null,null,null,null,null,null,null,null,null,null,null,{"$f":"IF(B204>0,VLOOKUP(B204,'County code'!A:B,2,FALSE),\" \")","v":" "},{"$f":"IF(D204>0,VLOOKUP(D204,'County code'!D:E,2,FALSE),\" \")","v":" "},0,0]
[null,null,null,null,null,null,null,null,null,null,null,null,null,null,null,null,null,null,null,null,null,null,null,null,null,{"$f":"IF(B205>0,VLOOKUP(B205,'County code'!A:B,2,FALSE),\" \")","v":" "},{"$f":"IF(D205>0,VLOOKUP(D205,'County code'!D:E,2,FALSE),\" \")","v":" "},0,0]
[null,null,null,null,null,null,null,null,null,null,null,null,null,null,null,null,null,null,null,null,null,null,null,null,null,{"$f":"IF(B206>0,VLOOKUP(B206,'County code'!A:B,2,FALSE),\" \")","v":" "},{"$f":"IF(D206>0,VLOOKUP(D206,'County code'!D:E,2,FALSE),\" \")","v":" "},0,0]
[null,null,null,null,null,null,null,null,null,null,null,null,null,null,null,null,null,null,null,null,null,null,null,null,null,{"$f":"IF(B207>0,VLOOKUP(B207,'County code'!A:B,2,FALSE),\" \")","v":" "},{"$f":"IF(D207>0,VLOOKUP(D207,'County code'!D:E,2,FALSE),\" \")","v":" "},0,0]
[null,null,null,null,null,null,null,null,null,null,null,null,null,null,null,null,null,null,null,null,null,null,null,null,null,{"$f":"IF(B208>0,VLOOKUP(B208,'County code'!A:B,2,FALSE),\" \")","v":" "},{"$f":"IF(D208>0,VLOOKUP(D208,'County code'!D:E,2,FALSE),\" \")","v":" "},0,0]
[null,null,null,null,null,null,null,null,null,null,null,null,null,null,null,null,null,null,null,null,null,null,null,null,null,{"$f":"IF(B209>0,VLOOKUP(B209,'County code'!A:B,2,FALSE),\" \")","v":" "},{"$f":"IF(D209>0,VLOOKUP(D209,'County code'!D:E,2,FALSE),\" \")","v":" "},0,0]
[null,null,null,null,null,null,null,null,null,null,null,null,null,null,null,null,null,null,null,null,null,null,null,null,null,{"$f":"IF(B210>0,VLOOKUP(B210,'County code'!A:B,2,FALSE),\" \")","v":" "},{"$f":"IF(D210>0,VLOOKUP(D210,'County code'!D:E,2,FALSE),\" \")","v":" "},0,0]
[null,null,null,null,null,null,null,null,null,null,null,null,null,null,null,null,null,null,null,null,null,null,null,null,null,{"$f":"IF(B211>0,VLOOKUP(B211,'County code'!A:B,2,FALSE),\" \")","v":" "},{"$f":"IF(D211>0,VLOOKUP(D211,'County code'!D:E,2,FALSE),\" \")","v":" "},0,0]
[null,null,null,null,null,null,null,null,null,null,null,null,null,null,null,null,null,null,null,null,null,null,null,null,null,{"$f":"IF(B212>0,VLOOKUP(B212,'County code'!A:B,2,FALSE),\" \")","v":" "},{"$f":"IF(D212>0,VLOOKUP(D212,'County code'!D:E,2,FALSE),\" \")","v":" "},0,0]
[null,null,null,null,null,null,null,null,null,null,null,null,null,null,null,null,null,null,null,null,null,null,null,null,null,{"$f":"IF(B213>0,VLOOKUP(B213,'County code'!A:B,2,FALSE),\" \")","v":" "},{"$f":"IF(D213>0,VLOOKUP(D213,'County code'!D:E,2,FALSE),\" \")","v":" "},0,0]
[null,null,null,null,null,null,null,null,null,null,null,null,null,null,null,null,null,null,null,null,null,null,null,null,null,{"$f":"IF(B214>0,VLOOKUP(B214,'County code'!A:B,2,FALSE),\" \")","v":" "},{"$f":"IF(D214>0,VLOOKUP(D214,'County code'!D:E,2,FALSE),\" \")","v":" "},0,0]
[null,null,null,null,null,null,null,null,null,null,null,null,null,null,null,null,null,null,null,null,null,null,null,null,null,{"$f":"IF(B215>0,VLOOKUP(B215,'County code'!A:B,2,FALSE),\" \")","v":" "},{"$f":"IF(D215>0,VLOOKUP(D215,'County code'!D:E,2,FALSE),\" \")","v":" "},0,0]
[null,null,null,null,null,null,null,null,null,null,null,null,null,null,null,null,null,null,null,null,null,null,null,null,null,{"$f":"IF(B216>0,VLOOKUP(B216,'County code'!A:B,2,FALSE),\" \")","v":" "},{"$f":"IF(D216>0,VLOOKUP(D216,'County code'!D:E,2,FALSE),\" \")","v":" "},0,0]
[null,null,null,null,null,null,null,null,null,null,null,null,null,null,null,null,null,null,null,null,null,null,null,null,null,{"$f":"IF(B217>0,VLOOKUP(B217,'County code'!A:B,2,FALSE),\" \")","v":" "},{"$f":"IF(D217>0,VLOOKUP(D217,'County code'!D:E,2,FALSE),\" \")","v":" "},0,0]
[null,null,null,null,null,null,null,null,null,null,null,null,null,null,null,null,null,null,null,null,null,null,null,null,null,{"$f":"IF(B218>0,VLOOKUP(B218,'County code'!A:B,2,FALSE),\" \")","v":" "},{"$f":"IF(D218>0,VLOOKUP(D218,'County code'!D:E,2,FALSE),\" \")","v":" "},0,0]
[null,null,null,null,null,null,null,null,null,null,null,null,null,null,null,null,null,null,null,null,null,null,null,null,null,{"$f":"IF(B219>0,VLOOKUP(B219,'County code'!A:B,2,FALSE),\" \")","v":" "},{"$f":"IF(D219>0,VLOOKUP(D219,'County code'!D:E,2,FALSE),\" \")","v":" "},0,0]
[null,null,null,null,null,null,null,null,null,null,null,null,null,null,null,null,null,null,null,null,null,null,null,null,null,{"$f":"IF(B220>0,VLOOKUP(B220,'County code'!A:B,2,FALSE),\" \")","v":" "},{"$f":"IF(D220>0,VLOOKUP(D220,'County code'!D:E,2,FALSE),\" \")","v":" "},0,0]
[null,null,null,null,null,null,null,null,null,null,null,null,null,null,null,null,null,null,null,null,null,null,null,null,null,{"$f":"IF(B221>0,VLOOKUP(B221,'County code'!A:B,2,FALSE),\" \")","v":" "},{"$f":"IF(D221>0,VLOOKUP(D221,'County code'!D:E,2,FALSE),\" \")","v":" "},0,0]
[null,null,null,null,null,null,null,null,null,null,null,null,null,null,null,null,null,null,null,null,null,null,null,null,null,{"$f":"IF(B222>0,VLOOKUP(B222,'County code'!A:B,2,FALSE),\" \")","v":" "},{"$f":"IF(D222>0,VLOOKUP(D222,'County code'!D:E,2,FALSE),\" \")","v":" "},0,0]
[null,null,null,null,null,null,null,null,null,null,null,null,null,null,null,null,null,null,null,null,null,null,null,null,null,{"$f":"IF(B223>0,VLOOKUP(B223,'County code'!A:B,2,FALSE),\" \")","v":" "},{"$f":"IF(D223>0,VLOOKUP(D223,'County code'!D:E,2,FALSE),\" \")","v":" "},0,0]
[null,null,null,null,null,null,null,null,null,null,null,null,null,null,null,null,null,null,null,null,null,null,null,null,null,{"$f":"IF(B224>0,VLOOKUP(B224,'County code'!A:B,2,FALSE),\" \")","v":" "},{"$f":"IF(D224>0,VLOOKUP(D224,'County code'!D:E,2,FALSE),\" \")","v":" "},0,0]
[null,null,null,null,null,null,null,null,null,null,null,null,null,null,null,null,null,null,null,null,null,null,null,null,null,{"$f":"IF(B225>0,VLOOKUP(B225,'County code'!A:B,2,FALSE),\" \")","v":" "},{"$f":"IF(D225>0,VLOOKUP(D225,'County code'!D:E,2,FALSE),\" \")","v":" "},0,0]
[null,null,null,null,null,null,null,null,null,null,null,null,null,null,null,null,null,null,null,null,null,null,null,null,null,{"$f":"IF(B226>0,VLOOKUP(B226,'County code'!A:B,2,FALSE),\" \")","v":" "},{"$f":"IF(D226>0,VLOOKUP(D226,'County code'!D:E,2,FALSE),\" \")","v":" "},0,0]
[null,null,null,null,null,null,null,null,null,null,null,null,null,null,null,null,null,null,null,null,null,null,null,null,null,{"$f":"IF(B227>0,VLOOKUP(B227,'County code'!A:B,2,FALSE),\" \")","v":" "},{"$f":"IF(D227>0,VLOOKUP(D227,'County code'!D:E,2,FALSE),\" \")","v":" "},0,0]
[null,null,null,null,null,null,null,null,null,null,null,null,null,null,null,null,null,null,null,null,null,null,null,null,null,{"$f":"IF(B228>0,VLOOKUP(B228,'County code'!A:B,2,FALSE),\" \")","v":" "},{"$f":"IF(D228>0,VLOOKUP(D228,'County code'!D:E,2,FALSE),\" \")","v":" "},0,0]
[null,null,null,null,null,null,null,null,null,null,null,null,null,null,null,null,null,null,null,null,null,null,null,null,null,{"$f":"IF(B229>0,VLOOKUP(B229,'County code'!A:B,2,FALSE),\" \")","v":" "},{"$f":"IF(D229>0,VLOOKUP(D229,'County code'!D:E,2,FALSE),\" \")","v":" "},0,0]
[null,null,null,null,null,null,null,null,null,null,null,null,null,null,null,null,null,null,null,null,null,null,null,null,null,{"$f":"IF(B230>0,VLOOKUP(B230,'County code'!A:B,2,FALSE),\" \")","v":" "},{"$f":"IF(D230>0,VLOOKUP(D230,'County code'!D:E,2,FALSE),\" \")","v":" "},0,0]
[null,null,null,null,null,null,null,null,null,null,null,null,null,null,null,null,null,null,null,null,null,null,null,null,null,{"$f":"IF(B231>0,VLOOKUP(B231,'County code'!A:B,2,FALSE),\" \")","v":" "},{"$f":"IF(D231>0,VLOOKUP(D231,'County code'!D:E,2,FALSE),\" \")","v":" "},0,0]
[null,null,null,null,null,null,null,null,null,null,null,null,null,null,null,null,null,null,null,null,null,null,null,null,null,{"$f":"IF(B232>0,VLOOKUP(B232,'County code'!A:B,2,FALSE),\" \")","v":" "},{"$f":"IF(D232>0,VLOOKUP(D232,'County code'!D:E,2,FALSE),\" \")","v":" "},0,0]
[null,null,null,null,null,null,null,null,null,null,null,null,null,null,null,null,null,null,null,null,null,null,null,null,null,{"$f":"IF(B233>0,VLOOKUP(B233,'County code'!A:B,2,FALSE),\" \")","v":" "},{"$f":"IF(D233>0,VLOOKUP(D233,'County code'!D:E,2,FALSE),\" \")","v":" "},0,0]
[null,null,null,null,null,null,null,null,null,null,null,null,null,null,null,null,null,null,null,null,null,null,null,null,null,{"$f":"IF(B234>0,VLOOKUP(B234,'County code'!A:B,2,FALSE),\" \")","v":" "},{"$f":"IF(D234>0,VLOOKUP(D234,'County code'!D:E,2,FALSE),\" \")","v":" "},0,0]
[null,null,null,null,null,null,null,null,null,null,null,null,null,null,null,null,null,null,null,null,null,null,null,null,null,{"$f":"IF(B235>0,VLOOKUP(B235,'County code'!A:B,2,FALSE),\" \")","v":" "},{"$f":"IF(D235>0,VLOOKUP(D235,'County code'!D:E,2,FALSE),\" \")","v":" "},0,0]
[null,null,null,null,null,null,null,null,null,null,null,null,null,null,null,null,null,null,null,null,null,null,null,null,null,{"$f":"IF(B236>0,VLOOKUP(B236,'County code'!A:B,2,FALSE),\" \")","v":" "},{"$f":"IF(D236>0,VLOOKUP(D236,'County code'!D:E,2,FALSE),\" \")","v":" "},0,0]
[null,null,null,null,null,null,null,null,null,null,null,null,null,null,null,null,null,null,null,null,null,null,null,null,null,{"$f":"IF(B237>0,VLOOKUP(B237,'County code'!A:B,2,FALSE),\" \")","v":" "},{"$f":"IF(D237>0,VLOOKUP(D237,'County code'!D:E,2,FALSE),\" \")","v":" "},0,0]
[null,null,null,null,null,null,null,null,null,null,null,null,null,null,null,null,null,null,null,null,null,null,null,null,null,{"$f":"IF(B238>0,VLOOKUP(B238,'County code'!A:B,2,FALSE),\" \")","v":" "},{"$f":"IF(D238>0,VLOOKUP(D238,'County code'!D:E,2,FALSE),\" \")","v":" "},0,0]
[null,null,null,null,null,null,null,null,null,null,null,null,null,null,null,null,null,null,null,null,null,null,null,null,null,{"$f":"IF(B239>0,VLOOKUP(B239,'County code'!A:B,2,FALSE),\" \")","v":" "},{"$f":"IF(D239>0,VLOOKUP(D239,'County code'!D:E,2,FALSE),\" \")","v":" "},0,0]
[null,null,null,null,null,null,null,null,null,null,null,null,null,null,null,null,null,null,null,null,null,null,null,null,null,{"$f":"IF(B240>0,VLOOKUP(B240,'County code'!A:B,2,FALSE),\" \")","v":" "},{"$f":"IF(D240>0,VLOOKUP(D240,'County code'!D:E,2,FALSE),\" \")","v":" "},0,0]
[null,null,null,null,null,null,null,null,null,null,null,null,null,null,null,null,null,null,null,null,null,null,null,null,null,{"$f":"IF(B241>0,VLOOKUP(B241,'County code'!A:B,2,FALSE),\" \")","v":" "},{"$f":"IF(D241>0,VLOOKUP(D241,'County code'!D:E,2,FALSE),\" \")","v":" "},0,0]
[null,null,null,null,null,null,null,null,null,null,null,null,null,null,null,null,null,null,null,null,null,null,null,null,null,{"$f":"IF(B242>0,VLOOKUP(B242,'County code'!A:B,2,FALSE),\" \")","v":" "},{"$f":"IF(D242>0,VLOOKUP(D242,'County code'!D:E,2,FALSE),\" \")","v":" "},0,0]
[null,null,null,null,null,null,null,null,null,null,null,null,null,null,null,null,null,null,null,null,null,null,null,null,null,{"$f":"IF(B243>0,VLOOKUP(B243,'County code'!A:B,2,FALSE),\" \")","v":" "},{"$f":"IF(D243>0,VLOOKUP(D243,'County code'!D:E,2,FALSE),\" \")","v":" "},0,0]
[null,null,null,null,null,null,null,null,null,null,null,null,null,null,null,null,null,null,null,null,null,null,null,null,null,{"$f":"IF(B244>0,VLOOKUP(B244,'County code'!A:B,2,FALSE),\" \")","v":" "},{"$f":"IF(D244>0,VLOOKUP(D244,'County code'!D:E,2,FALSE),\" \")","v":" "},0,0]
[null,null,null,null,null,null,null,null,null,null,null,null,null,null,null,null,null,null,null,null,null,null,null,null,null,{"$f":"IF(B245>0,VLOOKUP(B245,'County code'!A:B,2,FALSE),\" \")","v":" "},{"$f":"IF(D245>0,VLOOKUP(D245,'County code'!D:E,2,FALSE),\" \")","v":" "},0,0]
[null,null,null,null,null,null,null,null,null,null,null,null,null,null,null,null,null,null,null,null,null,null,null,null,null,{"$f":"IF(B246>0,VLOOKUP(B246,'County code'!A:B,2,FALSE),\" \")","v":" "},{"$f":"IF(D246>0,VLOOKUP(D246,'County code'!D:E,2,FALSE),\" \")","v":" "},0,0]
[null,null,null,null,null,null,null,null,null,null,null,null,null,null,null,null,null,null,null,null,null,null,null,null,null,{"$f":"IF(B247>0,VLOOKUP(B247,'County code'!A:B,2,FALSE),\" \")","v":" "},{"$f":"IF(D247>0,VLOOKUP(D247,'County code'!D:E,2,FALSE),\" \")","v":" "},0,0]
[null,null,null,null,null,null,null,null,null,null,null,null,null,null,null,null,null,null,null,null,null,null,null,null,null,{"$f":"IF(B248>0,VLOOKUP(B248,'County code'!A:B,2,FALSE),\" \")","v":" "},{"$f":"IF(D248>0,VLOOKUP(D248,'County code'!D:E,2,FALSE),\" \")","v":" "},0,0]
[null,null,null,null,null,null,null,null,null,null,null,null,null,null,null,null,null,null,null,null,null,null,null,null,null,{"$f":"IF(B249>0,VLOOKUP(B249,'County code'!A:B,2,FALSE),\" \")","v":" "},{"$f":"IF(D249>0,VLOOKUP(D249,'County code'!D:E,2,FALSE),\" \")","v":" "},0,0]
[null,null,null,null,null,null,null,null,null,null,null,null,null,null,null,null,null,null,null,null,null,null,null,null,null,{"$f":"IF(B250>0,VLOOKUP(B250,'County code'!A:B,2,FALSE),\" \")","v":" "},{"$f":"IF(D250>0,VLOOKUP(D250,'County code'!D:E,2,FALSE),\" \")","v":" "},0,0]
[null,null,null,null,null,null,null,null,null,null,null,null,null,null,null,null,null,null,null,null,null,null,null,null,null,{"$f":"IF(B251>0,VLOOKUP(B251,'County code'!A:B,2,FALSE),\" \")","v":" "},{"$f":"IF(D251>0,VLOOKUP(D251,'County code'!D:E,2,FALSE),\" \")","v":" "},0,0]
[null,null,null,null,null,null,null,null,null,null,null,null,null,null,null,null,null,null,null,null,null,null,null,null,null,{"$f":"IF(B252>0,VLOOKUP(B252,'County code'!A:B,2,FALSE),\" \")","v":" "},{"$f":"IF(D252>0,VLOOKUP(D252,'County code'!D:E,2,FALSE),\" \")","v":" "},0,0]
[null,null,null,null,null,null,null,null,null,null,null,null,null,null,null,null,null,null,null,null,null,null,null,null,null,{"$f":"IF(B253>0,VLOOKUP(B253,'County code'!A:B,2,FALSE),\" \")","v":" "},{"$f":"IF(D253>0,VLOOKUP(D253,'County code'!D:E,2,FALSE),\" \")","v":" "},0,0]
[null,null,null,null,null,null,null,null,null,null,null,null,null,null,null,null,null,null,null,null,null,null,null,null,null,{"$f":"IF(B254>0,VLOOKUP(B254,'County code'!A:B,2,FALSE),\" \")","v":" "},{"$f":"IF(D254>0,VLOOKUP(D254,'County code'!D:E,2,FALSE),\" \")","v":" "},0,0]
[null,null,null,null,null,null,null,null,null,null,null,null,null,null,null,null,null,null,null,null,null,null,null,null,null,{"$f":"IF(B255>0,VLOOKUP(B255,'County code'!A:B,2,FALSE),\" \")","v":" "},{"$f":"IF(D255>0,VLOOKUP(D255,'County code'!D:E,2,FALSE),\" \")","v":" "},0,0]
[null,null,null,null,null,null,null,null,null,null,null,null,null,null,null,null,null,null,null,null,null,null,null,null,null,{"$f":"IF(B256>0,VLOOKUP(B256,'County code'!A:B,2,FALSE),\" \")","v":" "},{"$f":"IF(D256>0,VLOOKUP(D256,'County code'!D:E,2,FALSE),\" \")","v":" "},0,0]
[null,null,null,null,null,null,null,null,null,null,null,null,null,null,null,null,null,null,null,null,null,null,null,null,null,{"$f":"IF(B257>0,VLOOKUP(B257,'County code'!A:B,2,FALSE),\" \")","v":" "},{"$f":"IF(D257>0,VLOOKUP(D257,'County code'!D:E,2,FALSE),\" \")","v":" "},0,0]
[null,null,null,null,null,null,null,null,null,null,null,null,null,null,null,null,null,null,null,null,null,null,null,null,null,{"$f":"IF(B258>0,VLOOKUP(B258,'County code'!A:B,2,FALSE),\" \")","v":" "},{"$f":"IF(D258>0,VLOOKUP(D258,'County code'!D:E,2,FALSE),\" \")","v":" "},0,0]
[null,null,null,null,null,null,null,null,null,null,null,null,null,null,null,null,null,null,null,null,null,null,null,null,null,{"$f":"IF(B259>0,VLOOKUP(B259,'County code'!A:B,2,FALSE),\" \")","v":" "},{"$f":"IF(D259>0,VLOOKUP(D259,'County code'!D:E,2,FALSE),\" \")","v":" "},0,0]
[null,null,null,null,null,null,null,null,null,null,null,null,null,null,null,null,null,null,null,null,null,null,null,null,null,{"$f":"IF(B260>0,VLOOKUP(B260,'County code'!A:B,2,FALSE),\" \")","v":" "},{"$f":"IF(D260>0,VLOOKUP(D260,'County code'!D:E,2,FALSE),\" \")","v":" "},{"$f":"G260","v":0},0]
[null,null,null,null,null,null,null,null,null,null,null,null,null,null,null,null,null,null,null,null,null,null,null,null,null,{"$f":"IF(B261>0,VLOOKUP(B261,'County code'!A:B,2,FALSE),\" \")","v":" "},{"$f":"IF(D261>0,VLOOKUP(D261,'County code'!D:E,2,FALSE),\" \")","v":" "},0,{"$f":"IF(AA261=5,AB261,M261)","v":0}]
[null,null,null,null,null,null,null,null,null,null,null,null,null,null,null,null,null,null,null,null,null,null,null,null,null,{"$f":"IF(B262>0,VLOOKUP(B262,'County code'!A:B,2,FALSE),\" \")","v":" "},{"$f":"IF(D262>0,VLOOKUP(D262,'County code'!D:E,2,FALSE),\" \")","v":" "},0,0]
[null,null,null,null,null,null,null,null,null,null,null,null,null,null,null,null,null,null,null,null,null,null,null,null,null,{"$f":"IF(B263>0,VLOOKUP(B263,'County code'!A:B,2,FALSE),\" \")","v":" "},{"$f":"IF(D263>0,VLOOKUP(D263,'County code'!D:E,2,FALSE),\" \")","v":" "},0,0]
[null,null,null,null,null,null,null,null,null,null,null,null,null,null,null,null,null,null,null,null,null,null,null,null,null,{"$f":"IF(B264>0,VLOOKUP(B264,'County code'!A:B,2,FALSE),\" \")","v":" "},{"$f":"IF(D264>0,VLOOKUP(D264,'County code'!D:E,2,FALSE),\" \")","v":" "},0,0]
[null,null,null,null,null,null,null,null,null,null,null,null,null,null,null,null,null,null,null,null,null,null,null,null,null,{"$f":"IF(B265>0,VLOOKUP(B265,'County code'!A:B,2,FALSE),\" \")","v":" "},{"$f":"IF(D265>0,VLOOKUP(D265,'County code'!D:E,2,FALSE),\" \")","v":" "},0,0]
[null,null,null,null,null,null,null,null,null,null,null,null,null,null,null,null,null,null,null,null,null,null,null,null,null,{"$f":"IF(B266>0,VLOOKUP(B266,'County code'!A:B,2,FALSE),\" \")","v":" "},{"$f":"IF(D266>0,VLOOKUP(D266,'County code'!D:E,2,FALSE),\" \")","v":" "},0,0]
[null,null,null,null,null,null,null,null,null,null,null,null,null,null,null,null,null,null,null,null,null,null,null,null,null,{"$f":"IF(B267>0,VLOOKUP(B267,'County code'!A:B,2,FALSE),\" \")","v":" "},{"$f":"IF(D267>0,VLOOKUP(D267,'County code'!D:E,2,FALSE),\" \")","v":" "},0,0]
[null,null,null,null,null,null,null,null,null,null,null,null,null,null,null,null,null,null,null,null,null,null,null,null,null,{"$f":"IF(B268>0,VLOOKUP(B268,'County code'!A:B,2,FALSE),\" \")","v":" "},{"$f":"IF(D268>0,VLOOKUP(D268,'County code'!D:E,2,FALSE),\" \")","v":" "},0,0]
[null,null,null,null,null,null,null,null,null,null,null,null,null,null,null,null,null,null,null,null,null,null,null,null,null,{"$f":"IF(B269>0,VLOOKUP(B269,'County code'!A:B,2,FALSE),\" \")","v":" "},{"$f":"IF(D269>0,VLOOKUP(D269,'County code'!D:E,2,FALSE),\" \")","v":" "},0,0]
[null,null,null,null,null,null,null,null,null,null,null,null,null,null,null,null,null,null,null,null,null,null,null,null,null,{"$f":"IF(B270>0,VLOOKUP(B270,'County code'!A:B,2,FALSE),\" \")","v":" "},{"$f":"IF(D270>0,VLOOKUP(D270,'County code'!D:E,2,FALSE),\" \")","v":" "},0,0]
[null,null,null,null,null,null,null,null,null,null,null,null,null,null,null,null,null,null,null,null,null,null,null,null,null,{"$f":"IF(B271>0,VLOOKUP(B271,'County code'!A:B,2,FALSE),\" \")","v":" "},{"$f":"IF(D271>0,VLOOKUP(D271,'County code'!D:E,2,FALSE),\" \")","v":" "},0,0]
[null,null,null,null,null,null,null,null,null,null,null,null,null,null,null,null,null,null,null,null,null,null,null,null,null,{"$f":"IF(B272>0,VLOOKUP(B272,'County code'!A:B,2,FALSE),\" \")","v":" "},{"$f":"IF(D272>0,VLOOKUP(D272,'County code'!D:E,2,FALSE),\" \")","v":" "},0,0]
[null,null,null,null,null,null,null,null,null,null,null,null,null,null,null,null,null,null,null,null,null,null,null,null,null,{"$f":"IF(B273>0,VLOOKUP(B273,'County code'!A:B,2,FALSE),\" \")","v":" "},{"$f":"IF(D273>0,VLOOKUP(D273,'County code'!D:E,2,FALSE),\" \")","v":" "},0,0]
[null,null,null,null,null,null,null,null,null,null,null,null,null,null,null,null,null,null,null,null,null,null,null,null,null,{"$f":"IF(B274>0,VLOOKUP(B274,'County code'!A:B,2,FALSE),\" \")","v":" "},{"$f":"IF(D274>0,VLOOKUP(D274,'County code'!D:E,2,FALSE),\" \")","v":" "},0,0]
[null,null,null,null,null,null,null,null,null,null,null,null,null,null,null,null,null,null,null,null,null,null,null,null,null,{"$f":"IF(B275>0,VLOOKUP(B275,'County code'!A:B,2,FALSE),\" \")","v":" "},{"$f":"IF(D275>0,VLOOKUP(D275,'County code'!D:E,2,FALSE),\" \")","v":" "},0,0]
[null,null,null,null,null,null,null,null,null,null,null,null,null,null,null,null,null,null,null,null,null,null,null,null,null,{"$f":"IF(B276>0,VLOOKUP(B276,'County code'!A:B,2,FALSE),\" \")","v":" "},{"$f":"IF(D276>0,VLOOKUP(D276,'County code'!D:E,2,FALSE),\" \")","v":" "},0,0]
[null,null,null,null,null,null,null,null,null,null,null,null,null,null,null,null,null,null,null,null,null,null,null,null,null,{"$f":"IF(B277>0,VLOOKUP(B277,'County code'!A:B,2,FALSE),\" \")","v":" "},{"$f":"IF(D277>0,VLOOKUP(D277,'County code'!D:E,2,FALSE),\" \")","v":" "},0,0]
[null,null,null,null,null,null,null,null,null,null,null,null,null,null,null,null,null,null,null,null,null,null,null,null,null,{"$f":"IF(B278>0,VLOOKUP(B278,'County code'!A:B,2,FALSE),\" \")","v":" "},{"$f":"IF(D278>0,VLOOKUP(D278,'County code'!D:E,2,FALSE),\" \")","v":" "},0,0]
[null,null,null,null,null,null,null,null,null,null,null,null,null,null,null,null,null,null,null,null,null,null,null,null,null,{"$f":"IF(B279>0,VLOOKUP(B279,'County code'!A:B,2,FALSE),\" \")","v":" "},{"$f":"IF(D279>0,VLOOKUP(D279,'County code'!D:E,2,FALSE),\" \")","v":" "},0,0]
[null,null,null,null,null,null,null,null,null,null,null,null,null,null,null,null,null,null,null,null,null,null,null,null,null,{"$f":"IF(B280>0,VLOOKUP(B280,'County code'!A:B,2,FALSE),\" \")","v":" "},{"$f":"IF(D280>0,VLOOKUP(D280,'County code'!D:E,2,FALSE),\" \")","v":" "},0,0]
[null,null,null,null,null,null,null,null,null,null,null,null,null,null,null,null,null,null,null,null,null,null,null,null,null,{"$f":"IF(B281>0,VLOOKUP(B281,'County code'!A:B,2,FALSE),\" \")","v":" "},{"$f":"IF(D281>0,VLOOKUP(D281,'County code'!D:E,2,FALSE),\" \")","v":" "},0,0]
[null,null,null,null,null,null,null,null,null,null,null,null,null,null,null,null,null,null,null,null,null,null,null,null,null,{"$f":"IF(B282>0,VLOOKUP(B282,'County code'!A:B,2,FALSE),\" \")","v":" "},{"$f":"IF(D282>0,VLOOKUP(D282,'County code'!D:E,2,FALSE),\" \")","v":" "},0,0]
[null,null,null,null,null,null,null,null,null,null,null,null,null,null,null,null,null,null,null,null,null,null,null,null,null,{"$f":"IF(B283>0,VLOOKUP(B283,'County code'!A:B,2,FALSE),\" \")","v":" "},{"$f":"IF(D283>0,VLOOKUP(D283,'County code'!D:E,2,FALSE),\" \")","v":" "},0,0]
[null,null,null,null,null,null,null,null,null,null,null,null,null,null,null,null,null,null,null,null,null,null,null,null,null,{"$f":"IF(B284>0,VLOOKUP(B284,'County code'!A:B,2,FALSE),\" \")","v":" "},{"$f":"IF(D284>0,VLOOKUP(D284,'County code'!D:E,2,FALSE),\" \")","v":" "},0,0]
[null,null,null,null,null,null,null,null,null,null,null,null,null,null,null,null,null,null,null,null,null,null,null,null,null,{"$f":"IF(B285>0,VLOOKUP(B285,'County code'!A:B,2,FALSE),\" \")","v":" "},{"$f":"IF(D285>0,VLOOKUP(D285,'County code'!D:E,2,FALSE),\" \")","v":" "},0,0]
[null,null,null,null,null,null,null,null,null,null,null,null,null,null,null,null,null,null,null,null,null,null,null,null,null,{"$f":"IF(B286>0,VLOOKUP(B286,'County code'!A:B,2,FALSE),\" \")","v":" "},{"$f":"IF(D286>0,VLOOKUP(D286,'County code'!D:E,2,FALSE),\" \")","v":" "},0,0]
[null,null,null,null,null,null,null,null,null,null,null,null,null,null,null,null,null,null,null,null,null,null,null,null,null,{"$f":"IF(B287>0,VLOOKUP(B287,'County code'!A:B,2,FALSE),\" \")","v":" "},{"$f":"IF(D287>0,VLOOKUP(D287,'County code'!D:E,2,FALSE),\" \")","v":" "},0,0]
[null,null,null,null,null,null,null,null,null,null,null,null,null,null,null,null,null,null,null,null,null,null,null,null,null,{"$f":"IF(B288>0,VLOOKUP(B288,'County code'!A:B,2,FALSE),\" \")","v":" "},{"$f":"IF(D288>0,VLOOKUP(D288,'County code'!D:E,2,FALSE),\" \")","v":" "},0,0]
[null,null,null,null,null,null,null,null,null,null,null,null,null,null,null,null,null,null,null,null,null,null,null,null,null,{"$f":"IF(B289>0,VLOOKUP(B289,'County code'!A:B,2,FALSE),\" \")","v":" "},{"$f":"IF(D289>0,VLOOKUP(D289,'County code'!D:E,2,FALSE),\" \")","v":" "},0,0]
[null,null,null,null,null,null,null,null,null,null,null,null,null,null,null,null,null,null,null,null,null,null,null,null,null,{"$f":"IF(B290>0,VLOOKUP(B290,'County code'!A:B,2,FALSE),\" \")","v":" "},{"$f":"IF(D290>0,VLOOKUP(D290,'County code'!D:E,2,FALSE),\" \")","v":" "},0,0]
[null,null,null,null,null,null,null,null,null,null,null,null,null,null,null,null,null,null,null,null,null,null,null,null,null,{"$f":"IF(B291>0,VLOOKUP(B291,'County code'!A:B,2,FALSE),\" \")","v":" "},{"$f":"IF(D291>0,VLOOKUP(D291,'County code'!D:E,2,FALSE),\" \")","v":" "},0,0]
[null,null,null,null,null,null,null,null,null,null,null,null,null,null,null,null,null,null,null,null,null,null,null,null,null,{"$f":"IF(B292>0,VLOOKUP(B292,'County code'!A:B,2,FALSE),\" \")","v":" "},{"$f":"IF(D292>0,VLOOKUP(D292,'County code'!D:E,2,FALSE),\" \")","v":" "},0,0]
[null,null,null,null,null,null,null,null,null,null,null,null,null,null,null,null,null,null,null,null,null,null,null,null,null,{"$f":"IF(B293>0,VLOOKUP(B293,'County code'!A:B,2,FALSE),\" \")","v":" "},{"$f":"IF(D293>0,VLOOKUP(D293,'County code'!D:E,2,FALSE),\" \")","v":" "},0,0]
[null,null,null,null,null,null,null,null,null,null,null,null,null,null,null,null,null,null,null,null,null,null,null,null,null,{"$f":"IF(B294>0,VLOOKUP(B294,'County code'!A:B,2,FALSE),\" \")","v":" "},{"$f":"IF(D294>0,VLOOKUP(D294,'County code'!D:E,2,FALSE),\" \")","v":" "},0,0]
[null,null,null,null,null,null,null,null,null,null,null,null,null,null,null,null,null,null,null,null,null,null,null,null,null,{"$f":"IF(B295>0,VLOOKUP(B295,'County code'!A:B,2,FALSE),\" \")","v":" "},{"$f":"IF(D295>0,VLOOKUP(D295,'County code'!D:E,2,FALSE),\" \")","v":" "},0,0]
[null,null,null,null,null,null,null,null,null,null,null,null,null,null,null,null,null,null,null,null,null,null,null,null,null,{"$f":"IF(B296>0,VLOOKUP(B296,'County code'!A:B,2,FALSE),\" \")","v":" "},{"$f":"IF(D296>0,VLOOKUP(D296,'County code'!D:E,2,FALSE),\" \")","v":" "},0,0]
[null,null,null,null,null,null,null,null,null,null,null,null,null,null,null,null,null,null,null,null,null,null,null,null,null,{"$f":"IF(B297>0,VLOOKUP(B297,'County code'!A:B,2,FALSE),\" \")","v":" "},{"$f":"IF(D297>0,VLOOKUP(D297,'County code'!D:E,2,FALSE),\" \")","v":" "},0,0]
[null,null,null,null,null,null,null,null,null,null,null,null,null,null,null,null,null,null,null,null,null,null,null,null,null,{"$f":"IF(B298>0,VLOOKUP(B298,'County code'!A:B,2,FALSE),\" \")","v":" "},{"$f":"IF(D298>0,VLOOKUP(D298,'County code'!D:E,2,FALSE),\" \")","v":" "},0,0]
[null,null,null,null,null,null,null,null,null,null,null,null,null,null,null,null,null,null,null,null,null,null,null,null,null,{"$f":"IF(B299>0,VLOOKUP(B299,'County code'!A:B,2,FALSE),\" \")","v":" "},{"$f":"IF(D299>0,VLOOKUP(D299,'County code'!D:E,2,FALSE),\" \")","v":" "},0,0]
[null,null,null,null,null,null,null,null,null,null,null,null,null,null,null,null,null,null,null,null,null,null,null,null,null,{"$f":"IF(B300>0,VLOOKUP(B300,'County code'!A:B,2,FALSE),\" \")","v":" "},{"$f":"IF(D300>0,VLOOKUP(D300,'County code'!D:E,2,FALSE),\" \")","v":" "},0,0]
[null,null,null,null,null,null,null,null,null,null,null,null,null,null,null,null,null,null,null,null,null,null,null,null,null,{"$f":"IF(B301>0,VLOOKUP(B301,'County code'!A:B,2,FALSE),\" \")","v":" "},{"$f":"IF(D301>0,VLOOKUP(D301,'County code'!D:E,2,FALSE),\" \")","v":" "},0,0]
[null,null,null,null,null,null,null,null,null,null,null,null,null,null,null,null,null,null,null,null,null,null,null,null,null,{"$f":"IF(B302>0,VLOOKUP(B302,'County code'!A:B,2,FALSE),\" \")","v":" "},{"$f":"IF(D302>0,VLOOKUP(D302,'County code'!D:E,2,FALSE),\" \")","v":" "},0,0]
[null,null,null,null,null,null,null,null,null,null,null,null,null,null,null,null,null,null,null,null,null,null,null,null,null,{"$f":"IF(B303>0,VLOOKUP(B303,'County code'!A:B,2,FALSE),\" \")","v":" "},{"$f":"IF(D303>0,VLOOKUP(D303,'County code'!D:E,2,FALSE),\" \")","v":" "},0,0]
[null,null,null,null,null,null,null,null,null,null,null,null,null,null,null,null,null,null,null,null,null,null,null,null,null,{"$f":"IF(B304>0,VLOOKUP(B304,'County code'!A:B,2,FALSE),\" \")","v":" "},{"$f":"IF(D304>0,VLOOKUP(D304,'County code'!D:E,2,FALSE),\" \")","v":" "},0,0]
[null,null,null,null,null,null,null,null,null,null,null,null,null,null,null,null,null,null,null,null,null,null,null,null,null,{"$f":"IF(B305>0,VLOOKUP(B305,'County code'!A:B,2,FALSE),\" \")","v":" "},{"$f":"IF(D305>0,VLOOKUP(D305,'County code'!D:E,2,FALSE),\" \")","v":" "},0,0]
[null,null,null,null,null,null,null,null,null,null,null,null,null,null,null,null,null,null,null,null,null,null,null,null,null,{"$f":"IF(B306>0,VLOOKUP(B306,'County code'!A:B,2,FALSE),\" \")","v":" "},{"$f":"IF(D306>0,VLOOKUP(D306,'County code'!D:E,2,FALSE),\" \")","v":" "},0,0]
[null,null,null,null,null,null,null,null,null,null,null,null,null,null,null,null,null,null,null,null,null,null,null,null,null,{"$f":"IF(B307>0,VLOOKUP(B307,'County code'!A:B,2,FALSE),\" \")","v":" "},{"$f":"IF(D307>0,VLOOKUP(D307,'County code'!D:E,2,FALSE),\" \")","v":" "},0,0]
[null,null,null,null,null,null,null,null,null,null,null,null,null,null,null,null,null,null,null,null,null,null,null,null,null,{"$f":"IF(B308>0,VLOOKUP(B308,'County code'!A:B,2,FALSE),\" \")","v":" "},{"$f":"IF(D308>0,VLOOKUP(D308,'County code'!D:E,2,FALSE),\" \")","v":" "},0,0]
[null,null,null,null,null,null,null,null,null,null,null,null,null,null,null,null,null,null,null,null,null,null,null,null,null,{"$f":"IF(B309>0,VLOOKUP(B309,'County code'!A:B,2,FALSE),\" \")","v":" "},{"$f":"IF(D309>0,VLOOKUP(D309,'County code'!D:E,2,FALSE),\" \")","v":" "},0,0]
[null,null,null,null,null,null,null,null,null,null,null,null,null,null,null,null,null,null,null,null,null,null,null,null,null,{"$f":"IF(B310>0,VLOOKUP(B310,'County code'!A:B,2,FALSE),\" \")","v":" "},{"$f":"IF(D310>0,VLOOKUP(D310,'County code'!D:E,2,FALSE),\" \")","v":" "},0,0]
[null,null,null,null,null,null,null,null,null,null,null,null,null,null,null,null,null,null,null,null,null,null,null,null,null,{"$f":"IF(B311>0,VLOOKUP(B311,'County code'!A:B,2,FALSE),\" \")","v":" "},{"$f":"IF(D311>0,VLOOKUP(D311,'County code'!D:E,2,FALSE),\" \")","v":" "},0,0]
[null,null,null,null,null,null,null,null,null,null,null,null,null,null,null,null,null,null,null,null,null,null,null,null,null,{"$f":"IF(B312>0,VLOOKUP(B312,'County code'!A:B,2,FALSE),\" \")","v":" "},{"$f":"IF(D312>0,VLOOKUP(D312,'County code'!D:E,2,FALSE),\" \")","v":" "},0,0]
[null,null,null,null,null,null,null,null,null,null,null,null,null,null,null,null,null,null,null,null,null,null,null,null,null,{"$f":"IF(B313>0,VLOOKUP(B313,'County code'!A:B,2,FALSE),\" \")","v":" "},{"$f":"IF(D313>0,VLOOKUP(D313,'County code'!D:E,2,FALSE),\" \")","v":" "},0,0]
[null,null,null,null,null,null,null,null,null,null,null,null,null,null,null,null,null,null,null,null,null,null,null,null,null,{"$f":"IF(B314>0,VLOOKUP(B314,'County code'!A:B,2,FALSE),\" \")","v":" "},{"$f":"IF(D314>0,VLOOKUP(D314,'County code'!D:E,2,FALSE),\" \")","v":" "},0,0]
[null,null,null,null,null,null,null,null,null,null,null,null,null,null,null,null,null,null,null,null,null,null,null,null,null,{"$f":"IF(B315>0,VLOOKUP(B315,'County code'!A:B,2,FALSE),\" \")","v":" "},{"$f":"IF(D315>0,VLOOKUP(D315,'County code'!D:E,2,FALSE),\" \")","v":" "},0,0]
[null,null,null,null,null,null,null,null,null,null,null,null,null,null,null,null,null,null,null,null,null,null,null,null,null,{"$f":"IF(B316>0,VLOOKUP(B316,'County code'!A:B,2,FALSE),\" \")","v":" "},{"$f":"IF(D316>0,VLOOKUP(D316,'County code'!D:E,2,FALSE),\" \")","v":" "},0,0]
[null,null,null,null,null,null,null,null,null,null,null,null,null,null,null,null,null,null,null,null,null,null,null,null,null,{"$f":"IF(B317>0,VLOOKUP(B317,'County code'!A:B,2,FALSE),\" \")","v":" "},{"$f":"IF(D317>0,VLOOKUP(D317,'County code'!D:E,2,FALSE),\" \")","v":" "},0,0]
[null,null,null,null,null,null,null,null,null,null,null,null,null,null,null,null,null,null,null,null,null,null,null,null,null,{"$f":"IF(B318>0,VLOOKUP(B318,'County code'!A:B,2,FALSE),\" \")","v":" "},{"$f":"IF(D318>0,VLOOKUP(D318,'County code'!D:E,2,FALSE),\" \")","v":" "},0,0]
[null,null,null,null,null,null,null,null,null,null,null,null,null,null,null,null,null,null,null,null,null,null,null,null,null,{"$f":"IF(B319>0,VLOOKUP(B319,'County code'!A:B,2,FALSE),\" \")","v":" "},{"$f":"IF(D319>0,VLOOKUP(D319,'County code'!D:E,2,FALSE),\" \")","v":" "},0,0]
[null,null,null,null,null,null,null,null,null,null,null,null,null,null,null,null,null,null,null,null,null,null,null,null,null,{"$f":"IF(B320>0,VLOOKUP(B320,'County code'!A:B,2,FALSE),\" \")","v":" "},{"$f":"IF(D320>0,VLOOKUP(D320,'County code'!D:E,2,FALSE),\" \")","v":" "},0,0]
[null,null,null,null,null,null,null,null,null,null,null,null,null,null,null,null,null,null,null,null,null,null,null,null,null,{"$f":"IF(B321>0,VLOOKUP(B321,'County code'!A:B,2,FALSE),\" \")","v":" "},{"$f":"IF(D321>0,VLOOKUP(D321,'County code'!D:E,2,FALSE),\" \")","v":" "},0,0]
[null,null,null,null,null,null,null,null,null,null,null,null,null,null,null,null,null,null,null,null,null,null,null,null,null,{"$f":"IF(B322>0,VLOOKUP(B322,'County code'!A:B,2,FALSE),\" \")","v":" "},{"$f":"IF(D322>0,VLOOKUP(D322,'County code'!D:E,2,FALSE),\" \")","v":" "},0,0]
[null,null,null,null,null,null,null,null,null,null,null,null,null,null,null,null,null,null,null,null,null,null,null,null,null,{"$f":"IF(B323>0,VLOOKUP(B323,'County code'!A:B,2,FALSE),\" \")","v":" "},{"$f":"IF(D323>0,VLOOKUP(D323,'County code'!D:E,2,FALSE),\" \")","v":" "},0,0]
[null,null,null,null,null,null,null,null,null,null,null,null,null,null,null,null,null,null,null,null,null,null,null,null,null,{"$f":"IF(B324>0,VLOOKUP(B324,'County code'!A:B,2,FALSE),\" \")","v":" "},{"$f":"IF(D324>0,VLOOKUP(D324,'County code'!D:E,2,FALSE),\" \")","v":" "},{"$f":"G324","v":0},0]
[null,null,null,null,null,null,null,null,null,null,null,null,null,null,null,null,null,null,null,null,null,null,null,null,null,{"$f":"IF(B325>0,VLOOKUP(B325,'County code'!A:B,2,FALSE),\" \")","v":" "},{"$f":"IF(D325>0,VLOOKUP(D325,'County code'!D:E,2,FALSE),\" \")","v":" "},0,{"$f":"IF(AA325=5,AB325,M325)","v":0}]
[null,null,null,null,null,null,null,null,null,null,null,null,null,null,null,null,null,null,null,null,null,null,null,null,null,{"$f":"IF(B326>0,VLOOKUP(B326,'County code'!A:B,2,FALSE),\" \")","v":" "},{"$f":"IF(D326>0,VLOOKUP(D326,'County code'!D:E,2,FALSE),\" \")","v":" "},0,0]
[null,null,null,null,null,null,null,null,null,null,null,null,null,null,null,null,null,null,null,null,null,null,null,null,null,{"$f":"IF(B327>0,VLOOKUP(B327,'County code'!A:B,2,FALSE),\" \")","v":" "},{"$f":"IF(D327>0,VLOOKUP(D327,'County code'!D:E,2,FALSE),\" \")","v":" "},0,0]
[null,null,null,null,null,null,null,null,null,null,null,null,null,null,null,null,null,null,null,null,null,null,null,null,null,{"$f":"IF(B328>0,VLOOKUP(B328,'County code'!A:B,2,FALSE),\" \")","v":" "},{"$f":"IF(D328>0,VLOOKUP(D328,'County code'!D:E,2,FALSE),\" \")","v":" "},0,0]
[null,null,null,null,null,null,null,null,null,null,null,null,null,null,null,null,null,null,null,null,null,null,null,null,null,{"$f":"IF(B329>0,VLOOKUP(B329,'County code'!A:B,2,FALSE),\" \")","v":" "},{"$f":"IF(D329>0,VLOOKUP(D329,'County code'!D:E,2,FALSE),\" \")","v":" "},0,0]
[null,null,null,null,null,null,null,null,null,null,null,null,null,null,null,null,null,null,null,null,null,null,null,null,null,{"$f":"IF(B330>0,VLOOKUP(B330,'County code'!A:B,2,FALSE),\" \")","v":" "},{"$f":"IF(D330>0,VLOOKUP(D330,'County code'!D:E,2,FALSE),\" \")","v":" "},0,0]
[null,null,null,null,null,null,null,null,null,null,null,null,null,null,null,null,null,null,null,null,null,null,null,null,null,{"$f":"IF(B331>0,VLOOKUP(B331,'County code'!A:B,2,FALSE),\" \")","v":" "},{"$f":"IF(D331>0,VLOOKUP(D331,'County code'!D:E,2,FALSE),\" \")","v":" "},0,0]
[null,null,null,null,null,null,null,null,null,null,null,null,null,null,null,null,null,null,null,null,null,null,null,null,null,{"$f":"IF(B332>0,VLOOKUP(B332,'County code'!A:B,2,FALSE),\" \")","v":" "},{"$f":"IF(D332>0,VLOOKUP(D332,'County code'!D:E,2,FALSE),\" \")","v":" "},0,0]
[null,null,null,null,null,null,null,null,null,null,null,null,null,null,null,null,null,null,null,null,null,null,null,null,null,{"$f":"IF(B333>0,VLOOKUP(B333,'County code'!A:B,2,FALSE),\" \")","v":" "},{"$f":"IF(D333>0,VLOOKUP(D333,'County code'!D:E,2,FALSE),\" \")","v":" "},0,0]
[null,null,null,null,null,null,null,null,null,null,null,null,null,null,null,null,null,null,null,null,null,null,null,null,null,{"$f":"IF(B334>0,VLOOKUP(B334,'County code'!A:B,2,FALSE),\" \")","v":" "},{"$f":"IF(D334>0,VLOOKUP(D334,'County code'!D:E,2,FALSE),\" \")","v":" "},0,0]
[null,null,null,null,null,null,null,null,null,null,null,null,null,null,null,null,null,null,null,null,null,null,null,null,null,{"$f":"IF(B335>0,VLOOKUP(B335,'County code'!A:B,2,FALSE),\" \")","v":" "},{"$f":"IF(D335>0,VLOOKUP(D335,'County code'!D:E,2,FALSE),\" \")","v":" "},0,0]
[null,null,null,null,null,null,null,null,null,null,null,null,null,null,null,null,null,null,null,null,null,null,null,null,null,{"$f":"IF(B336>0,VLOOKUP(B336,'County code'!A:B,2,FALSE),\" \")","v":" "},{"$f":"IF(D336>0,VLOOKUP(D336,'County code'!D:E,2,FALSE),\" \")","v":" "},0,0]
[null,null,null,null,null,null,null,null,null,null,null,null,null,null,null,null,null,null,null,null,null,null,null,null,null,{"$f":"IF(B337>0,VLOOKUP(B337,'County code'!A:B,2,FALSE),\" \")","v":" "},{"$f":"IF(D337>0,VLOOKUP(D337,'County code'!D:E,2,FALSE),\" \")","v":" "},0,0]
[null,null,null,null,null,null,null,null,null,null,null,null,null,null,null,null,null,null,null,null,null,null,null,null,null,{"$f":"IF(B338>0,VLOOKUP(B338,'County code'!A:B,2,FALSE),\" \")","v":" "},{"$f":"IF(D338>0,VLOOKUP(D338,'County code'!D:E,2,FALSE),\" \")","v":" "},0,0]
[null,null,null,null,null,null,null,null,null,null,null,null,null,null,null,null,null,null,null,null,null,null,null,null,null,{"$f":"IF(B339>0,VLOOKUP(B339,'County code'!A:B,2,FALSE),\" \")","v":" "},{"$f":"IF(D339>0,VLOOKUP(D339,'County code'!D:E,2,FALSE),\" \")","v":" "},0,0]
[null,null,null,null,null,null,null,null,null,null,null,null,null,null,null,null,null,null,null,null,null,null,null,null,null,{"$f":"IF(B340>0,VLOOKUP(B340,'County code'!A:B,2,FALSE),\" \")","v":" "},{"$f":"IF(D340>0,VLOOKUP(D340,'County code'!D:E,2,FALSE),\" \")","v":" "},0,0]
[null,null,null,null,null,null,null,null,null,null,null,null,null,null,null,null,null,null,null,null,null,null,null,null,null,{"$f":"IF(B341>0,VLOOKUP(B341,'County code'!A:B,2,FALSE),\" \")","v":" "},{"$f":"IF(D341>0,VLOOKUP(D341,'County code'!D:E,2,FALSE),\" \")","v":" "},0,0]
[null,null,null,null,null,null,null,null,null,null,null,null,null,null,null,null,null,null,null,null,null,null,null,null,null,{"$f":"IF(B342>0,VLOOKUP(B342,'County code'!A:B,2,FALSE),\" \")","v":" "},{"$f":"IF(D342>0,VLOOKUP(D342,'County code'!D:E,2,FALSE),\" \")","v":" "},0,0]
[null,null,null,null,null,null,null,null,null,null,null,null,null,null,null,null,null,null,null,null,null,null,null,null,null,{"$f":"IF(B343>0,VLOOKUP(B343,'County code'!A:B,2,FALSE),\" \")","v":" "},{"$f":"IF(D343>0,VLOOKUP(D343,'County code'!D:E,2,FALSE),\" \")","v":" "},0,0]
[null,null,null,null,null,null,null,null,null,null,null,null,null,null,null,null,null,null,null,null,null,null,null,null,null,{"$f":"IF(B344>0,VLOOKUP(B344,'County code'!A:B,2,FALSE),\" \")","v":" "},{"$f":"IF(D344>0,VLOOKUP(D344,'County code'!D:E,2,FALSE),\" \")","v":" "},0,0]
[null,null,null,null,null,null,null,null,null,null,null,null,null,null,null,null,null,null,null,null,null,null,null,null,null,{"$f":"IF(B345>0,VLOOKUP(B345,'County code'!A:B,2,FALSE),\" \")","v":" "},{"$f":"IF(D345>0,VLOOKUP(D345,'County code'!D:E,2,FALSE),\" \")","v":" "},0,0]
[null,null,null,null,null,null,null,null,null,null,null,null,null,null,null,null,null,null,null,null,null,null,null,null,null,{"$f":"IF(B346>0,VLOOKUP(B346,'County code'!A:B,2,FALSE),\" \")","v":" "},{"$f":"IF(D346>0,VLOOKUP(D346,'County code'!D:E,2,FALSE),\" \")","v":" "},0,0]
[null,null,null,null,null,null,null,null,null,null,null,null,null,null,null,null,null,null,null,null,null,null,null,null,null,{"$f":"IF(B347>0,VLOOKUP(B347,'County code'!A:B,2,FALSE),\" \")","v":" "},{"$f":"IF(D347>0,VLOOKUP(D347,'County code'!D:E,2,FALSE),\" \")","v":" "},0,0]
[null,null,null,null,null,null,null,null,null,null,null,null,null,null,null,null,null,null,null,null,null,null,null,null,null,{"$f":"IF(B348>0,VLOOKUP(B348,'County code'!A:B,2,FALSE),\" \")","v":" "},{"$f":"IF(D348>0,VLOOKUP(D348,'County code'!D:E,2,FALSE),\" \")","v":" "},0,0]
[null,null,null,null,null,null,null,null,null,null,null,null,null,null,null,null,null,null,null,null,null,null,null,null,null,{"$f":"IF(B349>0,VLOOKUP(B349,'County code'!A:B,2,FALSE),\" \")","v":" "},{"$f":"IF(D349>0,VLOOKUP(D349,'County code'!D:E,2,FALSE),\" \")","v":" "},0,0]
[null,null,null,null,null,null,null,null,null,null,null,null,null,null,null,null,null,null,null,null,null,null,null,null,null,{"$f":"IF(B350>0,VLOOKUP(B350,'County code'!A:B,2,FALSE),\" \")","v":" "},{"$f":"IF(D350>0,VLOOKUP(D350,'County code'!D:E,2,FALSE),\" \")","v":" "},0,0]
[null,null,null,null,null,null,null,null,null,null,null,null,null,null,null,null,null,null,null,null,null,null,null,null,null,{"$f":"IF(B351>0,VLOOKUP(B351,'County code'!A:B,2,FALSE),\" \")","v":" "},{"$f":"IF(D351>0,VLOOKUP(D351,'County code'!D:E,2,FALSE),\" \")","v":" "},0,0]
[null,null,null,null,null,null,null,null,null,null,null,null,null,null,null,null,null,null,null,null,null,null,null,null,null,{"$f":"IF(B352>0,VLOOKUP(B352,'County code'!A:B,2,FALSE),\" \")","v":" "},{"$f":"IF(D352>0,VLOOKUP(D352,'County code'!D:E,2,FALSE),\" \")","v":" "},0,0]
[null,null,null,null,null,null,null,null,null,null,null,null,null,null,null,null,null,null,null,null,null,null,null,null,null,{"$f":"IF(B353>0,VLOOKUP(B353,'County code'!A:B,2,FALSE),\" \")","v":" "},{"$f":"IF(D353>0,VLOOKUP(D353,'County code'!D:E,2,FALSE),\" \")","v":" "},0,0]
[null,null,null,null,null,null,null,null,null,null,null,null,null,null,null,null,null,null,null,null,null,null,null,null,null,{"$f":"IF(B354>0,VLOOKUP(B354,'County code'!A:B,2,FALSE),\" \")","v":" "},{"$f":"IF(D354>0,VLOOKUP(D354,'County code'!D:E,2,FALSE),\" \")","v":" "},0,0]
[null,null,null,null,null,null,null,null,null,null,null,null,null,null,null,null,null,null,null,null,null,null,null,null,null,{"$f":"IF(B355>0,VLOOKUP(B355,'County code'!A:B,2,FALSE),\" \")","v":" "},{"$f":"IF(D355>0,VLOOKUP(D355,'County code'!D:E,2,FALSE),\" \")","v":" "},0,0]
[null,null,null,null,null,null,null,null,null,null,null,null,null,null,null,null,null,null,null,null,null,null,null,null,null,{"$f":"IF(B356>0,VLOOKUP(B356,'County code'!A:B,2,FALSE),\" \")","v":" "},{"$f":"IF(D356>0,VLOOKUP(D356,'County code'!D:E,2,FALSE),\" \")","v":" "},0,0]
[null,null,null,null,null,null,null,null,null,null,null,null,null,null,null,null,null,null,null,null,null,null,null,null,null,{"$f":"IF(B357>0,VLOOKUP(B357,'County code'!A:B,2,FALSE),\" \")","v":" "},{"$f":"IF(D357>0,VLOOKUP(D357,'County code'!D:E,2,FALSE),\" \")","v":" "},0,0]
[null,null,null,null,null,null,null,null,null,null,null,null,null,null,null,null,null,null,null,null,null,null,null,null,null,{"$f":"IF(B358>0,VLOOKUP(B358,'County code'!A:B,2,FALSE),\" \")","v":" "},{"$f":"IF(D358>0,VLOOKUP(D358,'County code'!D:E,2,FALSE),\" \")","v":" "},0,0]
[null,null,null,null,null,null,null,null,null,null,null,null,null,null,null,null,null,null,null,null,null,null,null,null,null,{"$f":"IF(B359>0,VLOOKUP(B359,'County code'!A:B,2,FALSE),\" \")","v":" "},{"$f":"IF(D359>0,VLOOKUP(D359,'County code'!D:E,2,FALSE),\" \")","v":" "},0,0]
[null,null,null,null,null,null,null,null,null,null,null,null,null,null,null,null,null,null,null,null,null,null,null,null,null,{"$f":"IF(B360>0,VLOOKUP(B360,'County code'!A:B,2,FALSE),\" \")","v":" "},{"$f":"IF(D360>0,VLOOKUP(D360,'County code'!D:E,2,FALSE),\" \")","v":" "},0,0]
[null,null,null,null,null,null,null,null,null,null,null,null,null,null,null,null,null,null,null,null,null,null,null,null,null,{"$f":"IF(B361>0,VLOOKUP(B361,'County code'!A:B,2,FALSE),\" \")","v":" "},{"$f":"IF(D361>0,VLOOKUP(D361,'County code'!D:E,2,FALSE),\" \")","v":" "},0,0]
[null,null,null,null,null,null,null,null,null,null,null,null,null,null,null,null,null,null,null,null,null,null,null,null,null,{"$f":"IF(B362>0,VLOOKUP(B362,'County code'!A:B,2,FALSE),\" \")","v":" "},{"$f":"IF(D362>0,VLOOKUP(D362,'County code'!D:E,2,FALSE),\" \")","v":" "},0,0]
[null,null,null,null,null,null,null,null,null,null,null,null,null,null,null,null,null,null,null,null,null,null,null,null,null,{"$f":"IF(B363>0,VLOOKUP(B363,'County code'!A:B,2,FALSE),\" \")","v":" "},{"$f":"IF(D363>0,VLOOKUP(D363,'County code'!D:E,2,FALSE),\" \")","v":" "},0,0]
[null,null,null,null,null,null,null,null,null,null,null,null,null,null,null,null,null,null,null,null,null,null,null,null,null,{"$f":"IF(B364>0,VLOOKUP(B364,'County code'!A:B,2,FALSE),\" \")","v":" "},{"$f":"IF(D364>0,VLOOKUP(D364,'County code'!D:E,2,FALSE),\" \")","v":" "},0,0]
[null,null,null,null,null,null,null,null,null,null,null,null,null,null,null,null,null,null,null,null,null,null,null,null,null,{"$f":"IF(B365>0,VLOOKUP(B365,'County code'!A:B,2,FALSE),\" \")","v":" "},{"$f":"IF(D365>0,VLOOKUP(D365,'County code'!D:E,2,FALSE),\" \")","v":" "},0,0]
[null,null,null,null,null,null,null,null,null,null,null,null,null,null,null,null,null,null,null,null,null,null,null,null,null,{"$f":"IF(B366>0,VLOOKUP(B366,'County code'!A:B,2,FALSE),\" \")","v":" "},{"$f":"IF(D366>0,VLOOKUP(D366,'County code'!D:E,2,FALSE),\" \")","v":" "},0,0]
[null,null,null,null,null,null,null,null,null,null,null,null,null,null,null,null,null,null,null,null,null,null,null,null,null,{"$f":"IF(B367>0,VLOOKUP(B367,'County code'!A:B,2,FALSE),\" \")","v":" "},{"$f":"IF(D367>0,VLOOKUP(D367,'County code'!D:E,2,FALSE),\" \")","v":" "},0,0]
[null,null,null,null,null,null,null,null,null,null,null,null,null,null,null,null,null,null,null,null,null,null,null,null,null,{"$f":"IF(B368>0,VLOOKUP(B368,'County code'!A:B,2,FALSE),\" \")","v":" "},{"$f":"IF(D368>0,VLOOKUP(D368,'County code'!D:E,2,FALSE),\" \")","v":" "},0,0]
[null,null,null,null,null,null,null,null,null,null,null,null,null,null,null,null,null,null,null,null,null,null,null,null,null,{"$f":"IF(B369>0,VLOOKUP(B369,'County code'!A:B,2,FALSE),\" \")","v":" "},{"$f":"IF(D369>0,VLOOKUP(D369,'County code'!D:E,2,FALSE),\" \")","v":" "},0,0]
[null,null,null,null,null,null,null,null,null,null,null,null,null,null,null,null,null,null,null,null,null,null,null,null,null,{"$f":"IF(B370>0,VLOOKUP(B370,'County code'!A:B,2,FALSE),\" \")","v":" "},{"$f":"IF(D370>0,VLOOKUP(D370,'County code'!D:E,2,FALSE),\" \")","v":" "},0,0]
[null,null,null,null,null,null,null,null,null,null,null,null,null,null,null,null,null,null,null,null,null,null,null,null,null,{"$f":"IF(B371>0,VLOOKUP(B371,'County code'!A:B,2,FALSE),\" \")","v":" "},{"$f":"IF(D371>0,VLOOKUP(D371,'County code'!D:E,2,FALSE),\" \")","v":" "},0,0]
[null,null,null,null,null,null,null,null,null,null,null,null,null,null,null,null,null,null,null,null,null,null,null,null,null,{"$f":"IF(B372>0,VLOOKUP(B372,'County code'!A:B,2,FALSE),\" \")","v":" "},{"$f":"IF(D372>0,VLOOKUP(D372,'County code'!D:E,2,FALSE),\" \")","v":" "},0,0]
[null,null,null,null,null,null,null,null,null,null,null,null,null,null,null,null,null,null,null,null,null,null,null,null,null,{"$f":"IF(B373>0,VLOOKUP(B373,'County code'!A:B,2,FALSE),\" \")","v":" "},{"$f":"IF(D373>0,VLOOKUP(D373,'County code'!D:E,2,FALSE),\" \")","v":" "},0,0]
[null,null,null,null,null,null,null,null,null,null,null,null,null,null,null,null,null,null,null,null,null,null,null,null,null,{"$f":"IF(B374>0,VLOOKUP(B374,'County code'!A:B,2,FALSE),\" \")","v":" "},{"$f":"IF(D374>0,VLOOKUP(D374,'County code'!D:E,2,FALSE),\" \")","v":" "},0,0]
[null,null,null,null,null,null,null,null,null,null,null,null,null,null,null,null,null,null,null,null,null,null,null,null,null,{"$f":"IF(B375>0,VLOOKUP(B375,'County code'!A:B,2,FALSE),\" \")","v":" "},{"$f":"IF(D375>0,VLOOKUP(D375,'County code'!D:E,2,FALSE),\" \")","v":" "},0,0]
[null,null,null,null,null,null,null,null,null,null,null,null,null,null,null,null,null,null,null,null,null,null,null,null,null,{"$f":"IF(B376>0,VLOOKUP(B376,'County code'!A:B,2,FALSE),\" \")","v":" "},{"$f":"IF(D376>0,VLOOKUP(D376,'County code'!D:E,2,FALSE),\" \")","v":" "},0,0]
[null,null,null,null,null,null,null,null,null,null,null,null,null,null,null,null,null,null,null,null,null,null,null,null,null,{"$f":"IF(B377>0,VLOOKUP(B377,'County code'!A:B,2,FALSE),\" \")","v":" "},{"$f":"IF(D377>0,VLOOKUP(D377,'County code'!D:E,2,FALSE),\" \")","v":" "},0,0]
[null,null,null,null,null,null,null,null,null,null,null,null,null,null,null,null,null,null,null,null,null,null,null,null,null,{"$f":"IF(B378>0,VLOOKUP(B378,'County code'!A:B,2,FALSE),\" \")","v":" "},{"$f":"IF(D378>0,VLOOKUP(D378,'County code'!D:E,2,FALSE),\" \")","v":" "},0,0]
[null,null,null,null,null,null,null,null,null,null,null,null,null,null,null,null,null,null,null,null,null,null,null,null,null,{"$f":"IF(B379>0,VLOOKUP(B379,'County code'!A:B,2,FALSE),\" \")","v":" "},{"$f":"IF(D379>0,VLOOKUP(D379,'County code'!D:E,2,FALSE),\" \")","v":" "},0,0]
[null,null,null,null,null,null,null,null,null,null,null,null,null,null,null,null,null,null,null,null,null,null,null,null,null,{"$f":"IF(B380>0,VLOOKUP(B380,'County code'!A:B,2,FALSE),\" \")","v":" "},{"$f":"IF(D380>0,VLOOKUP(D380,'County code'!D:E,2,FALSE),\" \")","v":" "},0,0]
[null,null,null,null,null,null,null,null,null,null,null,null,null,null,null,null,null,null,null,null,null,null,null,null,null,{"$f":"IF(B381>0,VLOOKUP(B381,'County code'!A:B,2,FALSE),\" \")","v":" "},{"$f":"IF(D381>0,VLOOKUP(D381,'County code'!D:E,2,FALSE),\" \")","v":" "},0,0]
[null,null,null,null,null,null,null,null,null,null,null,null,null,null,null,null,null,null,null,null,null,null,null,null,null,{"$f":"IF(B382>0,VLOOKUP(B382,'County code'!A:B,2,FALSE),\" \")","v":" "},{"$f":"IF(D382>0,VLOOKUP(D382,'County code'!D:E,2,FALSE),\" \")","v":" "},0,0]
[null,null,null,null,null,null,null,null,null,null,null,null,null,null,null,null,null,null,null,null,null,null,null,null,null,{"$f":"IF(B383>0,VLOOKUP(B383,'County code'!A:B,2,FALSE),\" \")","v":" "},{"$f":"IF(D383>0,VLOOKUP(D383,'County code'!D:E,2,FALSE),\" \")","v":" "},0,0]
[null,null,null,null,null,null,null,null,null,null,null,null,null,null,null,null,null,null,null,null,null,null,null,null,null,{"$f":"IF(B384>0,VLOOKUP(B384,'County code'!A:B,2,FALSE),\" \")","v":" "},{"$f":"IF(D384>0,VLOOKUP(D384,'County code'!D:E,2,FALSE),\" \")","v":" "},0,0]
[null,null,null,null,null,null,null,null,null,null,null,null,null,null,null,null,null,null,null,null,null,null,null,null,null,{"$f":"IF(B385>0,VLOOKUP(B385,'County code'!A:B,2,FALSE),\" \")","v":" "},{"$f":"IF(D385>0,VLOOKUP(D385,'County code'!D:E,2,FALSE),\" \")","v":" "},0,0]
[null,null,null,null,null,null,null,null,null,null,null,null,null,null,null,null,null,null,null,null,null,null,null,null,null,{"$f":"IF(B386>0,VLOOKUP(B386,'County code'!A:B,2,FALSE),\" \")","v":" "},{"$f":"IF(D386>0,VLOOKUP(D386,'County code'!D:E,2,FALSE),\" \")","v":" "},0,0]
[null,null,null,null,null,null,null,null,null,null,null,null,null,null,null,null,null,null,null,null,null,null,null,null,null,{"$f":"IF(B387>0,VLOOKUP(B387,'County code'!A:B,2,FALSE),\" \")","v":" "},{"$f":"IF(D387>0,VLOOKUP(D387,'County code'!D:E,2,FALSE),\" \")","v":" "},0,0]
[null,null,null,null,null,null,null,null,null,null,null,null,null,null,null,null,null,null,null,null,null,null,null,null,null,{"$f":"IF(B388>0,VLOOKUP(B388,'County code'!A:B,2,FALSE),\" \")","v":" "},{"$f":"IF(D388>0,VLOOKUP(D388,'County code'!D:E,2,FALSE),\" \")","v":" "},{"$f":"G388","v":0},0]
[null,null,null,null,null,null,null,null,null,null,null,null,null,null,null,null,null,null,null,null,null,null,null,null,null,{"$f":"IF(B389>0,VLOOKUP(B389,'County code'!A:B,2,FALSE),\" \")","v":" "},{"$f":"IF(D389>0,VLOOKUP(D389,'County code'!D:E,2,FALSE),\" \")","v":" "},0,{"$f":"IF(AA389=5,AB389,M389)","v":0}]
[null,null,null,null,null,null,null,null,null,null,null,null,null,null,null,null,null,null,null,null,null,null,null,null,null,{"$f":"IF(B390>0,VLOOKUP(B390,'County code'!A:B,2,FALSE),\" \")","v":" "},{"$f":"IF(D390>0,VLOOKUP(D390,'County code'!D:E,2,FALSE),\" \")","v":" "},0,0]
[null,null,null,null,null,null,null,null,null,null,null,null,null,null,null,null,null,null,null,null,null,null,null,null,null,{"$f":"IF(B391>0,VLOOKUP(B391,'County code'!A:B,2,FALSE),\" \")","v":" "},{"$f":"IF(D391>0,VLOOKUP(D391,'County code'!D:E,2,FALSE),\" \")","v":" "},0,0]
[null,null,null,null,null,null,null,null,null,null,null,null,null,null,null,null,null,null,null,null,null,null,null,null,null,{"$f":"IF(B392>0,VLOOKUP(B392,'County code'!A:B,2,FALSE),\" \")","v":" "},{"$f":"IF(D392>0,VLOOKUP(D392,'County code'!D:E,2,FALSE),\" \")","v":" "},0,0]
[null,null,null,null,null,null,null,null,null,null,null,null,null,null,null,null,null,null,null,null,null,null,null,null,null,{"$f":"IF(B393>0,VLOOKUP(B393,'County code'!A:B,2,FALSE),\" \")","v":" "},{"$f":"IF(D393>0,VLOOKUP(D393,'County code'!D:E,2,FALSE),\" \")","v":" "},0,0]
[null,null,null,null,null,null,null,null,null,null,null,null,null,null,null,null,null,null,null,null,null,null,null,null,null,{"$f":"IF(B394>0,VLOOKUP(B394,'County code'!A:B,2,FALSE),\" \")","v":" "},{"$f":"IF(D394>0,VLOOKUP(D394,'County code'!D:E,2,FALSE),\" \")","v":" "},0,0]
[null,null,null,null,null,null,null,null,null,null,null,null,null,null,null,null,null,null,null,null,null,null,null,null,null,{"$f":"IF(B395>0,VLOOKUP(B395,'County code'!A:B,2,FALSE),\" \")","v":" "},{"$f":"IF(D395>0,VLOOKUP(D395,'County code'!D:E,2,FALSE),\" \")","v":" "},0,0]
[null,null,null,null,null,null,null,null,null,null,null,null,null,null,null,null,null,null,null,null,null,null,null,null,null,{"$f":"IF(B396>0,VLOOKUP(B396,'County code'!A:B,2,FALSE),\" \")","v":" "},{"$f":"IF(D396>0,VLOOKUP(D396,'County code'!D:E,2,FALSE),\" \")","v":" "},0,0]
[null,null,null,null,null,null,null,null,null,null,null,null,null,null,null,null,null,null,null,null,null,null,null,null,null,{"$f":"IF(B397>0,VLOOKUP(B397,'County code'!A:B,2,FALSE),\" \")","v":" "},{"$f":"IF(D397>0,VLOOKUP(D397,'County code'!D:E,2,FALSE),\" \")","v":" "},0,0]
[null,null,null,null,null,null,null,null,null,null,null,null,null,null,null,null,null,null,null,null,null,null,null,null,null,{"$f":"IF(B398>0,VLOOKUP(B398,'County code'!A:B,2,FALSE),\" \")","v":" "},{"$f":"IF(D398>0,VLOOKUP(D398,'County code'!D:E,2,FALSE),\" \")","v":" "},0,0]
[null,null,null,null,null,null,null,null,null,null,null,null,null,null,null,null,null,null,null,null,null,null,null,null,null,{"$f":"IF(B399>0,VLOOKUP(B399,'County code'!A:B,2,FALSE),\" \")","v":" "},{"$f":"IF(D399>0,VLOOKUP(D399,'County code'!D:E,2,FALSE),\" \")","v":" "},0,0]
[null,null,null,null,null,null,null,null,null,null,null,null,null,null,null,null,null,null,null,null,null,null,null,null,null,{"$f":"IF(B400>0,VLOOKUP(B400,'County code'!A:B,2,FALSE),\" \")","v":" "},{"$f":"IF(D400>0,VLOOKUP(D400,'County code'!D:E,2,FALSE),\" \")","v":" "},0,0]
[null,null,null,null,null,null,null,null,null,null,null,null,null,null,null,null,null,null,null,null,null,null,null,null,null,{"$f":"IF(B401>0,VLOOKUP(B401,'County code'!A:B,2,FALSE),\" \")","v":" "},{"$f":"IF(D401>0,VLOOKUP(D401,'County code'!D:E,2,FALSE),\" \")","v":" "},0,0]
[null,null,null,null,null,null,null,null,null,null,null,null,null,null,null,null,null,null,null,null,null,null,null,null,null,{"$f":"IF(B402>0,VLOOKUP(B402,'County code'!A:B,2,FALSE),\" \")","v":" "},{"$f":"IF(D402>0,VLOOKUP(D402,'County code'!D:E,2,FALSE),\" \")","v":" "},0,0]
[null,null,null,null,null,null,null,null,null,null,null,null,null,null,null,null,null,null,null,null,null,null,null,null,null,{"$f":"IF(B403>0,VLOOKUP(B403,'County code'!A:B,2,FALSE),\" \")","v":" "},{"$f":"IF(D403>0,VLOOKUP(D403,'County code'!D:E,2,FALSE),\" \")","v":" "},0,0]
[null,null,null,null,null,null,null,null,null,null,null,null,null,null,null,null,null,null,null,null,null,null,null,null,null,{"$f":"IF(B404>0,VLOOKUP(B404,'County code'!A:B,2,FALSE),\" \")","v":" "},{"$f":"IF(D404>0,VLOOKUP(D404,'County code'!D:E,2,FALSE),\" \")","v":" "},0,0]
[null,null,null,null,null,null,null,null,null,null,null,null,null,null,null,null,null,null,null,null,null,null,null,null,null,{"$f":"IF(B405>0,VLOOKUP(B405,'County code'!A:B,2,FALSE),\" \")","v":" "},{"$f":"IF(D405>0,VLOOKUP(D405,'County code'!D:E,2,FALSE),\" \")","v":" "},0,0]
[null,null,null,null,null,null,null,null,null,null,null,null,null,null,null,null,null,null,null,null,null,null,null,null,null,{"$f":"IF(B406>0,VLOOKUP(B406,'County code'!A:B,2,FALSE),\" \")","v":" "},{"$f":"IF(D406>0,VLOOKUP(D406,'County code'!D:E,2,FALSE),\" \")","v":" "},0,0]
[null,null,null,null,null,null,null,null,null,null,null,null,null,null,null,null,null,null,null,null,null,null,null,null,null,{"$f":"IF(B407>0,VLOOKUP(B407,'County code'!A:B,2,FALSE),\" \")","v":" "},{"$f":"IF(D407>0,VLOOKUP(D407,'County code'!D:E,2,FALSE),\" \")","v":" "},0,0]
[null,null,null,null,null,null,null,null,null,null,null,null,null,null,null,null,null,null,null,null,null,null,null,null,null,{"$f":"IF(B408>0,VLOOKUP(B408,'County code'!A:B,2,FALSE),\" \")","v":" "},{"$f":"IF(D408>0,VLOOKUP(D408,'County code'!D:E,2,FALSE),\" \")","v":" "},0,0]
[null,null,null,null,null,null,null,null,null,null,null,null,null,null,null,null,null,null,null,null,null,null,null,null,null,{"$f":"IF(B409>0,VLOOKUP(B409,'County code'!A:B,2,FALSE),\" \")","v":" "},{"$f":"IF(D409>0,VLOOKUP(D409,'County code'!D:E,2,FALSE),\" \")","v":" "},0,0]
[null,null,null,null,null,null,null,null,null,null,null,null,null,null,null,null,null,null,null,null,null,null,null,null,null,{"$f":"IF(B410>0,VLOOKUP(B410,'County code'!A:B,2,FALSE),\" \")","v":" "},{"$f":"IF(D410>0,VLOOKUP(D410,'County code'!D:E,2,FALSE),\" \")","v":" "},0,0]
[null,null,null,null,null,null,null,null,null,null,null,null,null,null,null,null,null,null,null,null,null,null,null,null,null,{"$f":"IF(B411>0,VLOOKUP(B411,'County code'!A:B,2,FALSE),\" \")","v":" "},{"$f":"IF(D411>0,VLOOKUP(D411,'County code'!D:E,2,FALSE),\" \")","v":" "},0,0]
[null,null,null,null,null,null,null,null,null,null,null,null,null,null,null,null,null,null,null,null,null,null,null,null,null,{"$f":"IF(B412>0,VLOOKUP(B412,'County code'!A:B,2,FALSE),\" \")","v":" "},{"$f":"IF(D412>0,VLOOKUP(D412,'County code'!D:E,2,FALSE),\" \")","v":" "},0,0]
[null,null,null,null,null,null,null,null,null,null,null,null,null,null,null,null,null,null,null,null,null,null,null,null,null,{"$f":"IF(B413>0,VLOOKUP(B413,'County code'!A:B,2,FALSE),\" \")","v":" "},{"$f":"IF(D413>0,VLOOKUP(D413,'County code'!D:E,2,FALSE),\" \")","v":" "},0,0]
[null,null,null,null,null,null,null,null,null,null,null,null,null,null,null,null,null,null,null,null,null,null,null,null,null,{"$f":"IF(B414>0,VLOOKUP(B414,'County code'!A:B,2,FALSE),\" \")","v":" "},{"$f":"IF(D414>0,VLOOKUP(D414,'County code'!D:E,2,FALSE),\" \")","v":" "},0,0]
[null,null,null,null,null,null,null,null,null,null,null,null,null,null,null,null,null,null,null,null,null,null,null,null,null,{"$f":"IF(B415>0,VLOOKUP(B415,'County code'!A:B,2,FALSE),\" \")","v":" "},{"$f":"IF(D415>0,VLOOKUP(D415,'County code'!D:E,2,FALSE),\" \")","v":" "},0,0]
[null,null,null,null,null,null,null,null,null,null,null,null,null,null,null,null,null,null,null,null,null,null,null,null,null,{"$f":"IF(B416>0,VLOOKUP(B416,'County code'!A:B,2,FALSE),\" \")","v":" "},{"$f":"IF(D416>0,VLOOKUP(D416,'County code'!D:E,2,FALSE),\" \")","v":" "},0,0]
[null,null,null,null,null,null,null,null,null,null,null,null,null,null,null,null,null,null,null,null,null,null,null,null,null,{"$f":"IF(B417>0,VLOOKUP(B417,'County code'!A:B,2,FALSE),\" \")","v":" "},{"$f":"IF(D417>0,VLOOKUP(D417,'County code'!D:E,2,FALSE),\" \")","v":" "},0,0]
[null,null,null,null,null,null,null,null,null,null,null,null,null,null,null,null,null,null,null,null,null,null,null,null,null,{"$f":"IF(B418>0,VLOOKUP(B418,'County code'!A:B,2,FALSE),\" \")","v":" "},{"$f":"IF(D418>0,VLOOKUP(D418,'County code'!D:E,2,FALSE),\" \")","v":" "},0,0]
[null,null,null,null,null,null,null,null,null,null,null,null,null,null,null,null,null,null,null,null,null,null,null,null,null,{"$f":"IF(B419>0,VLOOKUP(B419,'County code'!A:B,2,FALSE),\" \")","v":" "},{"$f":"IF(D419>0,VLOOKUP(D419,'County code'!D:E,2,FALSE),\" \")","v":" "},0,0]
[null,null,null,null,null,null,null,null,null,null,null,null,null,null,null,null,null,null,null,null,null,null,null,null,null,{"$f":"IF(B420>0,VLOOKUP(B420,'County code'!A:B,2,FALSE),\" \")","v":" "},{"$f":"IF(D420>0,VLOOKUP(D420,'County code'!D:E,2,FALSE),\" \")","v":" "},0,0]
[null,null,null,null,null,null,null,null,null,null,null,null,null,null,null,null,null,null,null,null,null,null,null,null,null,{"$f":"IF(B421>0,VLOOKUP(B421,'County code'!A:B,2,FALSE),\" \")","v":" "},{"$f":"IF(D421>0,VLOOKUP(D421,'County code'!D:E,2,FALSE),\" \")","v":" "},0,0]
[null,null,null,null,null,null,null,null,null,null,null,null,null,null,null,null,null,null,null,null,null,null,null,null,null,{"$f":"IF(B422>0,VLOOKUP(B422,'County code'!A:B,2,FALSE),\" \")","v":" "},{"$f":"IF(D422>0,VLOOKUP(D422,'County code'!D:E,2,FALSE),\" \")","v":" "},0,0]
[null,null,null,null,null,null,null,null,null,null,null,null,null,null,null,null,null,null,null,null,null,null,null,null,null,{"$f":"IF(B423>0,VLOOKUP(B423,'County code'!A:B,2,FALSE),\" \")","v":" "},{"$f":"IF(D423>0,VLOOKUP(D423,'County code'!D:E,2,FALSE),\" \")","v":" "},0,0]
[null,null,null,null,null,null,null,null,null,null,null,null,null,null,null,null,null,null,null,null,null,null,null,null,null,{"$f":"IF(B424>0,VLOOKUP(B424,'County code'!A:B,2,FALSE),\" \")","v":" "},{"$f":"IF(D424>0,VLOOKUP(D424,'County code'!D:E,2,FALSE),\" \")","v":" "},0,0]
[null,null,null,null,null,null,null,null,null,null,null,null,null,null,null,null,null,null,null,null,null,null,null,null,null,{"$f":"IF(B425>0,VLOOKUP(B425,'County code'!A:B,2,FALSE),\" \")","v":" "},{"$f":"IF(D425>0,VLOOKUP(D425,'County code'!D:E,2,FALSE),\" \")","v":" "},0,0]
[null,null,null,null,null,null,null,null,null,null,null,null,null,null,null,null,null,null,null,null,null,null,null,null,null,{"$f":"IF(B426>0,VLOOKUP(B426,'County code'!A:B,2,FALSE),\" \")","v":" "},{"$f":"IF(D426>0,VLOOKUP(D426,'County code'!D:E,2,FALSE),\" \")","v":" "},0,0]
[null,null,null,null,null,null,null,null,null,null,null,null,null,null,null,null,null,null,null,null,null,null,null,null,null,{"$f":"IF(B427>0,VLOOKUP(B427,'County code'!A:B,2,FALSE),\" \")","v":" "},{"$f":"IF(D427>0,VLOOKUP(D427,'County code'!D:E,2,FALSE),\" \")","v":" "},0,0]
[null,null,null,null,null,null,null,null,null,null,null,null,null,null,null,null,null,null,null,null,null,null,null,null,null,{"$f":"IF(B428>0,VLOOKUP(B428,'County code'!A:B,2,FALSE),\" \")","v":" "},{"$f":"IF(D428>0,VLOOKUP(D428,'County code'!D:E,2,FALSE),\" \")","v":" "},0,0]
[null,null,null,null,null,null,null,null,null,null,null,null,null,null,null,null,null,null,null,null,null,null,null,null,null,{"$f":"IF(B429>0,VLOOKUP(B429,'County code'!A:B,2,FALSE),\" \")","v":" "},{"$f":"IF(D429>0,VLOOKUP(D429,'County code'!D:E,2,FALSE),\" \")","v":" "},0,0]
[null,null,null,null,null,null,null,null,null,null,null,null,null,null,null,null,null,null,null,null,null,null,null,null,null,{"$f":"IF(B430>0,VLOOKUP(B430,'County code'!A:B,2,FALSE),\" \")","v":" "},{"$f":"IF(D430>0,VLOOKUP(D430,'County code'!D:E,2,FALSE),\" \")","v":" "},0,0]
[null,null,null,null,null,null,null,null,null,null,null,null,null,null,null,null,null,null,null,null,null,null,null,null,null,{"$f":"IF(B431>0,VLOOKUP(B431,'County code'!A:B,2,FALSE),\" \")","v":" "},{"$f":"IF(D431>0,VLOOKUP(D431,'County code'!D:E,2,FALSE),\" \")","v":" "},0,0]
[null,null,null,null,null,null,null,null,null,null,null,null,null,null,null,null,null,null,null,null,null,null,null,null,null,{"$f":"IF(B432>0,VLOOKUP(B432,'County code'!A:B,2,FALSE),\" \")","v":" "},{"$f":"IF(D432>0,VLOOKUP(D432,'County code'!D:E,2,FALSE),\" \")","v":" "},0,0]
[null,null,null,null,null,null,null,null,null,null,null,null,null,null,null,null,null,null,null,null,null,null,null,null,null,{"$f":"IF(B433>0,VLOOKUP(B433,'County code'!A:B,2,FALSE),\" \")","v":" "},{"$f":"IF(D433>0,VLOOKUP(D433,'County code'!D:E,2,FALSE),\" \")","v":" "},0,0]
[null,null,null,null,null,null,null,null,null,null,null,null,null,null,null,null,null,null,null,null,null,null,null,null,null,{"$f":"IF(B434>0,VLOOKUP(B434,'County code'!A:B,2,FALSE),\" \")","v":" "},{"$f":"IF(D434>0,VLOOKUP(D434,'County code'!D:E,2,FALSE),\" \")","v":" "},0,0]
[null,null,null,null,null,null,null,null,null,null,null,null,null,null,null,null,null,null,null,null,null,null,null,null,null,{"$f":"IF(B435>0,VLOOKUP(B435,'County code'!A:B,2,FALSE),\" \")","v":" "},{"$f":"IF(D435>0,VLOOKUP(D435,'County code'!D:E,2,FALSE),\" \")","v":" "},0,0]
[null,null,null,null,null,null,null,null,null,null,null,null,null,null,null,null,null,null,null,null,null,null,null,null,null,{"$f":"IF(B436>0,VLOOKUP(B436,'County code'!A:B,2,FALSE),\" \")","v":" "},{"$f":"IF(D436>0,VLOOKUP(D436,'County code'!D:E,2,FALSE),\" \")","v":" "},0,0]
[null,null,null,null,null,null,null,null,null,null,null,null,null,null,null,null,null,null,null,null,null,null,null,null,null,{"$f":"IF(B437>0,VLOOKUP(B437,'County code'!A:B,2,FALSE),\" \")","v":" "},{"$f":"IF(D437>0,VLOOKUP(D437,'County code'!D:E,2,FALSE),\" \")","v":" "},0,0]
[null,null,null,null,null,null,null,null,null,null,null,null,null,null,null,null,null,null,null,null,null,null,null,null,null,{"$f":"IF(B438>0,VLOOKUP(B438,'County code'!A:B,2,FALSE),\" \")","v":" "},{"$f":"IF(D438>0,VLOOKUP(D438,'County code'!D:E,2,FALSE),\" \")","v":" "},0,0]
[null,null,null,null,null,null,null,null,null,null,null,null,null,null,null,null,null,null,null,null,null,null,null,null,null,{"$f":"IF(B439>0,VLOOKUP(B439,'County code'!A:B,2,FALSE),\" \")","v":" "},{"$f":"IF(D439>0,VLOOKUP(D439,'County code'!D:E,2,FALSE),\" \")","v":" "},0,0]
[null,null,null,null,null,null,null,null,null,null,null,null,null,null,null,null,null,null,null,null,null,null,null,null,null,{"$f":"IF(B440>0,VLOOKUP(B440,'County code'!A:B,2,FALSE),\" \")","v":" "},{"$f":"IF(D440>0,VLOOKUP(D440,'County code'!D:E,2,FALSE),\" \")","v":" "},0,0]
[null,null,null,null,null,null,null,null,null,null,null,null,null,null,null,null,null,null,null,null,null,null,null,null,null,{"$f":"IF(B441>0,VLOOKUP(B441,'County code'!A:B,2,FALSE),\" \")","v":" "},{"$f":"IF(D441>0,VLOOKUP(D441,'County code'!D:E,2,FALSE),\" \")","v":" "},0,0]
[null,null,null,null,null,null,null,null,null,null,null,null,null,null,null,null,null,null,null,null,null,null,null,null,null,{"$f":"IF(B442>0,VLOOKUP(B442,'County code'!A:B,2,FALSE),\" \")","v":" "},{"$f":"IF(D442>0,VLOOKUP(D442,'County code'!D:E,2,FALSE),\" \")","v":" "},0,0]
[null,null,null,null,null,null,null,null,null,null,null,null,null,null,null,null,null,null,null,null,null,null,null,null,null,{"$f":"IF(B443>0,VLOOKUP(B443,'County code'!A:B,2,FALSE),\" \")","v":" "},{"$f":"IF(D443>0,VLOOKUP(D443,'County code'!D:E,2,FALSE),\" \")","v":" "},0,0]
[null,null,null,null,null,null,null,null,null,null,null,null,null,null,null,null,null,null,null,null,null,null,null,null,null,{"$f":"IF(B444>0,VLOOKUP(B444,'County code'!A:B,2,FALSE),\" \")","v":" "},{"$f":"IF(D444>0,VLOOKUP(D444,'County code'!D:E,2,FALSE),\" \")","v":" "},0,0]
[null,null,null,null,null,null,null,null,null,null,null,null,null,null,null,null,null,null,null,null,null,null,null,null,null,{"$f":"IF(B445>0,VLOOKUP(B445,'County code'!A:B,2,FALSE),\" \")","v":" "},{"$f":"IF(D445>0,VLOOKUP(D445,'County code'!D:E,2,FALSE),\" \")","v":" "},0,0]
[null,null,null,null,null,null,null,null,null,null,null,null,null,null,null,null,null,null,null,null,null,null,null,null,null,{"$f":"IF(B446>0,VLOOKUP(B446,'County code'!A:B,2,FALSE),\" \")","v":" "},{"$f":"IF(D446>0,VLOOKUP(D446,'County code'!D:E,2,FALSE),\" \")","v":" "},0,0]
[null,null,null,null,null,null,null,null,null,null,null,null,null,null,null,null,null,null,null,null,null,null,null,null,null,{"$f":"IF(B447>0,VLOOKUP(B447,'County code'!A:B,2,FALSE),\" \")","v":" "},{"$f":"IF(D447>0,VLOOKUP(D447,'County code'!D:E,2,FALSE),\" \")","v":" "},0,0]
[null,null,null,null,null,null,null,null,null,null,null,null,null,null,null,null,null,null,null,null,null,null,null,null,null,{"$f":"IF(B448>0,VLOOKUP(B448,'County code'!A:B,2,FALSE),\" \")","v":" "},{"$f":"IF(D448>0,VLOOKUP(D448,'County code'!D:E,2,FALSE),\" \")","v":" "},0,0]
[null,null,null,null,null,null,null,null,null,null,null,null,null,null,null,null,null,null,null,null,null,null,null,null,null,{"$f":"IF(B449>0,VLOOKUP(B449,'County code'!A:B,2,FALSE),\" \")","v":" "},{"$f":"IF(D449>0,VLOOKUP(D449,'County code'!D:E,2,FALSE),\" \")","v":" "},0,0]
[null,null,null,null,null,null,null,null,null,null,null,null,null,null,null,null,null,null,null,null,null,null,null,null,null,{"$f":"IF(B450>0,VLOOKUP(B450,'County code'!A:B,2,FALSE),\" \")","v":" "},{"$f":"IF(D450>0,VLOOKUP(D450,'County code'!D:E,2,FALSE),\" \")","v":" "},0,0]
[null,null,null,null,null,null,null,null,null,null,null,null,null,null,null,null,null,null,null,null,null,null,null,null,null,{"$f":"IF(B451>0,VLOOKUP(B451,'County code'!A:B,2,FALSE),\" \")","v":" "},{"$f":"IF(D451>0,VLOOKUP(D451,'County code'!D:E,2,FALSE),\" \")","v":" "},0,0]
[null,null,null,null,null,null,null,null,null,null,null,null,null,null,null,null,null,null,null,null,null,null,null,null,null,{"$f":"IF(B452>0,VLOOKUP(B452,'County code'!A:B,2,FALSE),\" \")","v":" "},{"$f":"IF(D452>0,VLOOKUP(D452,'County code'!D:E,2,FALSE),\" \")","v":" "},{"$f":"G452","v":0},0]
[null,null,null,null,null,null,null,null,null,null,null,null,null,null,null,null,null,null,null,null,null,null,null,null,null,{"$f":"IF(B453>0,VLOOKUP(B453,'County code'!A:B,2,FALSE),\" \")","v":" "},{"$f":"IF(D453>0,VLOOKUP(D453,'County code'!D:E,2,FALSE),\" \")","v":" "},0,{"$f":"IF(AA453=5,AB453,M453)","v":0}]
[null,null,null,null,null,null,null,null,null,null,null,null,null,null,null,null,null,null,null,null,null,null,null,null,null,{"$f":"IF(B454>0,VLOOKUP(B454,'County code'!A:B,2,FALSE),\" \")","v":" "},{"$f":"IF(D454>0,VLOOKUP(D454,'County code'!D:E,2,FALSE),\" \")","v":" "},0,0]
[null,null,null,null,null,null,null,null,null,null,null,null,null,null,null,null,null,null,null,null,null,null,null,null,null,{"$f":"IF(B455>0,VLOOKUP(B455,'County code'!A:B,2,FALSE),\" \")","v":" "},{"$f":"IF(D455>0,VLOOKUP(D455,'County code'!D:E,2,FALSE),\" \")","v":" "},0,0]
[null,null,null,null,null,null,null,null,null,null,null,null,null,null,null,null,null,null,null,null,null,null,null,null,null,{"$f":"IF(B456>0,VLOOKUP(B456,'County code'!A:B,2,FALSE),\" \")","v":" "},{"$f":"IF(D456>0,VLOOKUP(D456,'County code'!D:E,2,FALSE),\" \")","v":" "},0,0]
[null,null,null,null,null,null,null,null,null,null,null,null,null,null,null,null,null,null,null,null,null,null,null,null,null,{"$f":"IF(B457>0,VLOOKUP(B457,'County code'!A:B,2,FALSE),\" \")","v":" "},{"$f":"IF(D457>0,VLOOKUP(D457,'County code'!D:E,2,FALSE),\" \")","v":" "},0,0]
[null,null,null,null,null,null,null,null,null,null,null,null,null,null,null,null,null,null,null,null,null,null,null,null,null,{"$f":"IF(B458>0,VLOOKUP(B458,'County code'!A:B,2,FALSE),\" \")","v":" "},{"$f":"IF(D458>0,VLOOKUP(D458,'County code'!D:E,2,FALSE),\" \")","v":" "},0,0]
[null,null,null,null,null,null,null,null,null,null,null,null,null,null,null,null,null,null,null,null,null,null,null,null,null,{"$f":"IF(B459>0,VLOOKUP(B459,'County code'!A:B,2,FALSE),\" \")","v":" "},{"$f":"IF(D459>0,VLOOKUP(D459,'County code'!D:E,2,FALSE),\" \")","v":" "},0,0]
[null,null,null,null,null,null,null,null,null,null,null,null,null,null,null,null,null,null,null,null,null,null,null,null,null,{"$f":"IF(B460>0,VLOOKUP(B460,'County code'!A:B,2,FALSE),\" \")","v":" "},{"$f":"IF(D460>0,VLOOKUP(D460,'County code'!D:E,2,FALSE),\" \")","v":" "},0,0]
[null,null,null,null,null,null,null,null,null,null,null,null,null,null,null,null,null,null,null,null,null,null,null,null,null,{"$f":"IF(B461>0,VLOOKUP(B461,'County code'!A:B,2,FALSE),\" \")","v":" "},{"$f":"IF(D461>0,VLOOKUP(D461,'County code'!D:E,2,FALSE),\" \")","v":" "},0,0]
[null,null,null,null,null,null,null,null,null,null,null,null,null,null,null,null,null,null,null,null,null,null,null,null,null,{"$f":"IF(B462>0,VLOOKUP(B462,'County code'!A:B,2,FALSE),\" \")","v":" "},{"$f":"IF(D462>0,VLOOKUP(D462,'County code'!D:E,2,FALSE),\" \")","v":" "},0,0]
[null,null,null,null,null,null,null,null,null,null,null,null,null,null,null,null,null,null,null,null,null,null,null,null,null,{"$f":"IF(B463>0,VLOOKUP(B463,'County code'!A:B,2,FALSE),\" \")","v":" "},{"$f":"IF(D463>0,VLOOKUP(D463,'County code'!D:E,2,FALSE),\" \")","v":" "},0,0]
[null,null,null,null,null,null,null,null,null,null,null,null,null,null,null,null,null,null,null,null,null,null,null,null,null,{"$f":"IF(B464>0,VLOOKUP(B464,'County code'!A:B,2,FALSE),\" \")","v":" "},{"$f":"IF(D464>0,VLOOKUP(D464,'County code'!D:E,2,FALSE),\" \")","v":" "},0,0]
[null,null,null,null,null,null,null,null,null,null,null,null,null,null,null,null,null,null,null,null,null,null,null,null,null,{"$f":"IF(B465>0,VLOOKUP(B465,'County code'!A:B,2,FALSE),\" \")","v":" "},{"$f":"IF(D465>0,VLOOKUP(D465,'County code'!D:E,2,FALSE),\" \")","v":" "},0,0]
[null,null,null,null,null,null,null,null,null,null,null,null,null,null,null,null,null,null,null,null,null,null,null,null,null,{"$f":"IF(B466>0,VLOOKUP(B466,'County code'!A:B,2,FALSE),\" \")","v":" "},{"$f":"IF(D466>0,VLOOKUP(D466,'County code'!D:E,2,FALSE),\" \")","v":" "},0,0]
[null,null,null,null,null,null,null,null,null,null,null,null,null,null,null,null,null,null,null,null,null,null,null,null,null,{"$f":"IF(B467>0,VLOOKUP(B467,'County code'!A:B,2,FALSE),\" \")","v":" "},{"$f":"IF(D467>0,VLOOKUP(D467,'County code'!D:E,2,FALSE),\" \")","v":" "},0,0]
[null,null,null,null,null,null,null,null,null,null,null,null,null,null,null,null,null,null,null,null,null,null,null,null,null,{"$f":"IF(B468>0,VLOOKUP(B468,'County code'!A:B,2,FALSE),\" \")","v":" "},{"$f":"IF(D468>0,VLOOKUP(D468,'County code'!D:E,2,FALSE),\" \")","v":" "},0,0]
[null,null,null,null,null,null,null,null,null,null,null,null,null,null,null,null,null,null,null,null,null,null,null,null,null,{"$f":"IF(B469>0,VLOOKUP(B469,'County code'!A:B,2,FALSE),\" \")","v":" "},{"$f":"IF(D469>0,VLOOKUP(D469,'County code'!D:E,2,FALSE),\" \")","v":" "},0,0]
[null,null,null,null,null,null,null,null,null,null,null,null,null,null,null,null,null,null,null,null,null,null,null,null,null,{"$f":"IF(B470>0,VLOOKUP(B470,'County code'!A:B,2,FALSE),\" \")","v":" "},{"$f":"IF(D470>0,VLOOKUP(D470,'County code'!D:E,2,FALSE),\" \")","v":" "},0,0]
[null,null,null,null,null,null,null,null,null,null,null,null,null,null,null,null,null,null,null,null,null,null,null,null,null,{"$f":"IF(B471>0,VLOOKUP(B471,'County code'!A:B,2,FALSE),\" \")","v":" "},{"$f":"IF(D471>0,VLOOKUP(D471,'County code'!D:E,2,FALSE),\" \")","v":" "},0,0]
[null,null,null,null,null,null,null,null,null,null,null,null,null,null,null,null,null,null,null,null,null,null,null,null,null,{"$f":"IF(B472>0,VLOOKUP(B472,'County code'!A:B,2,FALSE),\" \")","v":" "},{"$f":"IF(D472>0,VLOOKUP(D472,'County code'!D:E,2,FALSE),\" \")","v":" "},0,0]
[null,null,null,null,null,null,null,null,null,null,null,null,null,null,null,null,null,null,null,null,null,null,null,null,null,{"$f":"IF(B473>0,VLOOKUP(B473,'County code'!A:B,2,FALSE),\" \")","v":" "},{"$f":"IF(D473>0,VLOOKUP(D473,'County code'!D:E,2,FALSE),\" \")","v":" "},0,0]
[null,null,null,null,null,null,null,null,null,null,null,null,null,null,null,null,null,null,null,null,null,null,null,null,null,{"$f":"IF(B474>0,VLOOKUP(B474,'County code'!A:B,2,FALSE),\" \")","v":" "},{"$f":"IF(D474>0,VLOOKUP(D474,'County code'!D:E,2,FALSE),\" \")","v":" "},0,0]
[null,null,null,null,null,null,null,null,null,null,null,null,null,null,null,null,null,null,null,null,null,null,null,null,null,{"$f":"IF(B475>0,VLOOKUP(B475,'County code'!A:B,2,FALSE),\" \")","v":" "},{"$f":"IF(D475>0,VLOOKUP(D475,'County code'!D:E,2,FALSE),\" \")","v":" "},0,0]
[null,null,null,null,null,null,null,null,null,null,null,null,null,null,null,null,null,null,null,null,null,null,null,null,null,{"$f":"IF(B476>0,VLOOKUP(B476,'County code'!A:B,2,FALSE),\" \")","v":" "},{"$f":"IF(D476>0,VLOOKUP(D476,'County code'!D:E,2,FALSE),\" \")","v":" "},0,0]
[null,null,null,null,null,null,null,null,null,null,null,null,null,null,null,null,null,null,null,null,null,null,null,null,null,{"$f":"IF(B477>0,VLOOKUP(B477,'County code'!A:B,2,FALSE),\" \")","v":" "},{"$f":"IF(D477>0,VLOOKUP(D477,'County code'!D:E,2,FALSE),\" \")","v":" "},0,0]
[null,null,null,null,null,null,null,null,null,null,null,null,null,null,null,null,null,null,null,null,null,null,null,null,null,{"$f":"IF(B478>0,VLOOKUP(B478,'County code'!A:B,2,FALSE),\" \")","v":" "},{"$f":"IF(D478>0,VLOOKUP(D478,'County code'!D:E,2,FALSE),\" \")","v":" "},0,0]
[null,null,null,null,null,null,null,null,null,null,null,null,null,null,null,null,null,null,null,null,null,null,null,null,null,{"$f":"IF(B479>0,VLOOKUP(B479,'County code'!A:B,2,FALSE),\" \")","v":" "},{"$f":"IF(D479>0,VLOOKUP(D479,'County code'!D:E,2,FALSE),\" \")","v":" "},0,0]
[null,null,null,null,null,null,null,null,null,null,null,null,null,null,null,null,null,null,null,null,null,null,null,null,null,{"$f":"IF(B480>0,VLOOKUP(B480,'County code'!A:B,2,FALSE),\" \")","v":" "},{"$f":"IF(D480>0,VLOOKUP(D480,'County code'!D:E,2,FALSE),\" \")","v":" "},0,0]
[null,null,null,null,null,null,null,null,null,null,null,null,null,null,null,null,null,null,null,null,null,null,null,null,null,{"$f":"IF(B481>0,VLOOKUP(B481,'County code'!A:B,2,FALSE),\" \")","v":" "},{"$f":"IF(D481>0,VLOOKUP(D481,'County code'!D:E,2,FALSE),\" \")","v":" "},0,0]
[null,null,null,null,null,null,null,null,null,null,null,null,null,null,null,null,null,null,null,null,null,null,null,null,null,{"$f":"IF(B482>0,VLOOKUP(B482,'County code'!A:B,2,FALSE),\" \")","v":" "},{"$f":"IF(D482>0,VLOOKUP(D482,'County code'!D:E,2,FALSE),\" \")","v":" "},0,0]
[null,null,null,null,null,null,null,null,null,null,null,null,null,null,null,null,null,null,null,null,null,null,null,null,null,{"$f":"IF(B483>0,VLOOKUP(B483,'County code'!A:B,2,FALSE),\" \")","v":" "},{"$f":"IF(D483>0,VLOOKUP(D483,'County code'!D:E,2,FALSE),\" \")","v":" "},0,0]
[null,null,null,null,null,null,null,null,null,null,null,null,null,null,null,null,null,null,null,null,null,null,null,null,null,{"$f":"IF(B484>0,VLOOKUP(B484,'County code'!A:B,2,FALSE),\" \")","v":" "},{"$f":"IF(D484>0,VLOOKUP(D484,'County code'!D:E,2,FALSE),\" \")","v":" "},0,0]
[null,null,null,null,null,null,null,null,null,null,null,null,null,null,null,null,null,null,null,null,null,null,null,null,null,{"$f":"IF(B485>0,VLOOKUP(B485,'County code'!A:B,2,FALSE),\" \")","v":" "},{"$f":"IF(D485>0,VLOOKUP(D485,'County code'!D:E,2,FALSE),\" \")","v":" "},0,0]
[null,null,null,null,null,null,null,null,null,null,null,null,null,null,null,null,null,null,null,null,null,null,null,null,null,{"$f":"IF(B486>0,VLOOKUP(B486,'County code'!A:B,2,FALSE),\" \")","v":" "},{"$f":"IF(D486>0,VLOOKUP(D486,'County code'!D:E,2,FALSE),\" \")","v":" "},0,0]
[null,null,null,null,null,null,null,null,null,null,null,null,null,null,null,null,null,null,null,null,null,null,null,null,null,{"$f":"IF(B487>0,VLOOKUP(B487,'County code'!A:B,2,FALSE),\" \")","v":" "},{"$f":"IF(D487>0,VLOOKUP(D487,'County code'!D:E,2,FALSE),\" \")","v":" "},0,0]
[null,null,null,null,null,null,null,null,null,null,null,null,null,null,null,null,null,null,null,null,null,null,null,null,null,{"$f":"IF(B488>0,VLOOKUP(B488,'County code'!A:B,2,FALSE),\" \")","v":" "},{"$f":"IF(D488>0,VLOOKUP(D488,'County code'!D:E,2,FALSE),\" \")","v":" "},0,0]
[null,null,null,null,null,null,null,null,null,null,null,null,null,null,null,null,null,null,null,null,null,null,null,null,null,{"$f":"IF(B489>0,VLOOKUP(B489,'County code'!A:B,2,FALSE),\" \")","v":" "},{"$f":"IF(D489>0,VLOOKUP(D489,'County code'!D:E,2,FALSE),\" \")","v":" "},0,0]
[null,null,null,null,null,null,null,null,null,null,null,null,null,null,null,null,null,null,null,null,null,null,null,null,null,{"$f":"IF(B490>0,VLOOKUP(B490,'County code'!A:B,2,FALSE),\" \")","v":" "},{"$f":"IF(D490>0,VLOOKUP(D490,'County code'!D:E,2,FALSE),\" \")","v":" "},0,0]
[null,null,null,null,null,null,null,null,null,null,null,null,null,null,null,null,null,null,null,null,null,null,null,null,null,{"$f":"IF(B491>0,VLOOKUP(B491,'County code'!A:B,2,FALSE),\" \")","v":" "},{"$f":"IF(D491>0,VLOOKUP(D491,'County code'!D:E,2,FALSE),\" \")","v":" "},0,0]
[null,null,null,null,null,null,null,null,null,null,null,null,null,null,null,null,null,null,null,null,null,null,null,null,null,{"$f":"IF(B492>0,VLOOKUP(B492,'County code'!A:B,2,FALSE),\" \")","v":" "},{"$f":"IF(D492>0,VLOOKUP(D492,'County code'!D:E,2,FALSE),\" \")","v":" "},0,0]
[null,null,null,null,null,null,null,null,null,null,null,null,null,null,null,null,null,null,null,null,null,null,null,null,null,{"$f":"IF(B493>0,VLOOKUP(B493,'County code'!A:B,2,FALSE),\" \")","v":" "},{"$f":"IF(D493>0,VLOOKUP(D493,'County code'!D:E,2,FALSE),\" \")","v":" "},0,0]
[null,null,null,null,null,null,null,null,null,null,null,null,null,null,null,null,null,null,null,null,null,null,null,null,null,{"$f":"IF(B494>0,VLOOKUP(B494,'County code'!A:B,2,FALSE),\" \")","v":" "},{"$f":"IF(D494>0,VLOOKUP(D494,'County code'!D:E,2,FALSE),\" \")","v":" "},0,0]
[null,null,null,null,null,null,null,null,null,null,null,null,null,null,null,null,null,null,null,null,null,null,null,null,null,{"$f":"IF(B495>0,VLOOKUP(B495,'County code'!A:B,2,FALSE),\" \")","v":" "},{"$f":"IF(D495>0,VLOOKUP(D495,'County code'!D:E,2,FALSE),\" \")","v":" "},0,0]
[null,null,null,null,null,null,null,null,null,null,null,null,null,null,null,null,null,null,null,null,null,null,null,null,null,{"$f":"IF(B496>0,VLOOKUP(B496,'County code'!A:B,2,FALSE),\" \")","v":" "},{"$f":"IF(D496>0,VLOOKUP(D496,'County code'!D:E,2,FALSE),\" \")","v":" "},0,0]
[null,null,null,null,null,null,null,null,null,null,null,null,null,null,null,null,null,null,null,null,null,null,null,null,null,{"$f":"IF(B497>0,VLOOKUP(B497,'County code'!A:B,2,FALSE),\" \")","v":" "},{"$f":"IF(D497>0,VLOOKUP(D497,'County code'!D:E,2,FALSE),\" \")","v":" "},0,0]
[null,null,null,null,null,null,null,null,null,null,null,null,null,null,null,null,null,null,null,null,null,null,null,null,null,{"$f":"IF(B498>0,VLOOKUP(B498,'County code'!A:B,2,FALSE),\" \")","v":" "},{"$f":"IF(D498>0,VLOOKUP(D498,'County code'!D:E,2,FALSE),\" \")","v":" "},0,0]
[null,null,null,null,null,null,null,null,null,null,null,null,null,null,null,null,null,null,null,null,null,null,null,null,null,{"$f":"IF(B499>0,VLOOKUP(B499,'County code'!A:B,2,FALSE),\" \")","v":" "},{"$f":"IF(D499>0,VLOOKUP(D499,'County code'!D:E,2,FALSE),\" \")","v":" "},0,0]
[null,null,null,null,null,null,null,null,null,null,null,null,null,null,null,null,null,null,null,null,null,null,null,null,null,{"$f":"IF(B500>0,VLOOKUP(B500,'County code'!A:B,2,FALSE),\" \")","v":" "},{"$f":"IF(D500>0,VLOOKUP(D500,'County code'!D:E,2,FALSE),\" \")","v":" "},0,0]
[null,null,null,null,null,null,null,null,null,null,null,null,null,null,null,null,null,null,null,null,null,null,null,null,null,{"$f":"IF(B501>0,VLOOKUP(B501,'County code'!A:B,2,FALSE),\" \")","v":" "},{"$f":"IF(D501>0,VLOOKUP(D501,'County code'!D:E,2,FALSE),\" \")","v":" "},0,0]
[null,null,null,null,null,null,null,null,null,null,null,null,null,null,null,null,null,null,null,null,null,null,null,null,null,{"$f":"IF(B502>0,VLOOKUP(B502,'County code'!A:B,2,FALSE),\" \")","v":" "},{"$f":"IF(D502>0,VLOOKUP(D502,'County code'!D:E,2,FALSE),\" \")","v":" "},0,0]
[null,null,null,null,null,null,null,null,null,null,null,null,null,null,null,null,null,null,null,null,null,null,null,null,null,{"$f":"IF(B503>0,VLOOKUP(B503,'County code'!A:B,2,FALSE),\" \")","v":" "},{"$f":"IF(D503>0,VLOOKUP(D503,'County code'!D:E,2,FALSE),\" \")","v":" "},0,0]
[null,null,null,null,null,null,null,null,null,null,null,null,null,null,null,null,null,null,null,null,null,null,null,null,null,{"$f":"IF(B504>0,VLOOKUP(B504,'County code'!A:B,2,FALSE),\" \")","v":" "},{"$f":"IF(D504>0,VLOOKUP(D504,'County code'!D:E,2,FALSE),\" \")","v":" "},0,0]
[null,null,null,null,null,null,null,null,null,null,null,null,null,null,null,null,null,null,null,null,null,null,null,null,null,{"$f":"IF(B505>0,VLOOKUP(B505,'County code'!A:B,2,FALSE),\" \")","v":" "},{"$f":"IF(D505>0,VLOOKUP(D505,'County code'!D:E,2,FALSE),\" \")","v":" "},0,0]
[null,null,null,null,null,null,null,null,null,null,null,null,null,null,null,null,null,null,null,null,null,null,null,null,null,{"$f":"IF(B506>0,VLOOKUP(B506,'County code'!A:B,2,FALSE),\" \")","v":" "},{"$f":"IF(D506>0,VLOOKUP(D506,'County code'!D:E,2,FALSE),\" \")","v":" "},0,0]
[null,null,null,null,null,null,null,null,null,null,null,null,null,null,null,null,null,null,null,null,null,null,null,null,null,{"$f":"IF(B507>0,VLOOKUP(B507,'County code'!A:B,2,FALSE),\" \")","v":" "},{"$f":"IF(D507>0,VLOOKUP(D507,'County code'!D:E,2,FALSE),\" \")","v":" "},0,0]
[null,null,null,null,null,null,null,null,null,null,null,null,null,null,null,null,null,null,null,null,null,null,null,null,null,{"$f":"IF(B508>0,VLOOKUP(B508,'County code'!A:B,2,FALSE),\" \")","v":" "},{"$f":"IF(D508>0,VLOOKUP(D508,'County code'!D:E,2,FALSE),\" \")","v":" "},0,0]
[null,null,null,null,null,null,null,null,null,null,null,null,null,null,null,null,null,null,null,null,null,null,null,null,null,{"$f":"IF(B509>0,VLOOKUP(B509,'County code'!A:B,2,FALSE),\" \")","v":" "},{"$f":"IF(D509>0,VLOOKUP(D509,'County code'!D:E,2,FALSE),\" \")","v":" "},0,0]
[null,null,null,null,null,null,null,null,null,null,null,null,null,null,null,null,null,null,null,null,null,null,null,null,null,{"$f":"IF(B510>0,VLOOKUP(B510,'County code'!A:B,2,FALSE),\" \")","v":" "},{"$f":"IF(D510>0,VLOOKUP(D510,'County code'!D:E,2,FALSE),\" \")","v":" "},0,0]
[null,null,null,null,null,null,null,null,null,null,null,null,null,null,null,null,null,null,null,null,null,null,null,null,null,{"$f":"IF(B511>0,VLOOKUP(B511,'County code'!A:B,2,FALSE),\" \")","v":" "},{"$f":"IF(D511>0,VLOOKUP(D511,'County code'!D:E,2,FALSE),\" \")","v":" "},0,0]
[null,null,null,null,null,null,null,null,null,null,null,null,null,null,null,null,null,null,null,null,null,null,null,null,null,{"$f":"IF(B512>0,VLOOKUP(B512,'County code'!A:B,2,FALSE),\" \")","v":" "},{"$f":"IF(D512>0,VLOOKUP(D512,'County code'!D:E,2,FALSE),\" \")","v":" "},0,0]
[null,null,null,null,null,null,null,null,null,null,null,null,null,null,null,null,null,null,null,null,null,null,null,null,null,{"$f":"IF(B513>0,VLOOKUP(B513,'County code'!A:B,2,FALSE),\" \")","v":" "},{"$f":"IF(D513>0,VLOOKUP(D513,'County code'!D:E,2,FALSE),\" \")","v":" "},0,0]
[null,null,null,null,null,null,null,null,null,null,null,null,null,null,null,null,null,null,null,null,null,null,null,null,null,{"$f":"IF(B514>0,VLOOKUP(B514,'County code'!A:B,2,FALSE),\" \")","v":" "},{"$f":"IF(D514>0,VLOOKUP(D514,'County code'!D:E,2,FALSE),\" \")","v":" "},0,0]
[null,null,null,null,null,null,null,null,null,null,null,null,null,null,null,null,null,null,null,null,null,null,null,null,null,{"$f":"IF(B515>0,VLOOKUP(B515,'County code'!A:B,2,FALSE),\" \")","v":" "},{"$f":"IF(D515>0,VLOOKUP(D515,'County code'!D:E,2,FALSE),\" \")","v":" "},0,0]
[null,null,null,null,null,null,null,null,null,null,null,null,null,null,null,null,null,null,null,null,null,null,null,null,null,{"$f":"IF(B516>0,VLOOKUP(B516,'County code'!A:B,2,FALSE),\" \")","v":" "},{"$f":"IF(D516>0,VLOOKUP(D516,'County code'!D:E,2,FALSE),\" \")","v":" "},{"$f":"G516","v":0},0]
[null,null,null,null,null,null,null,null,null,null,null,null,null,null,null,null,null,null,null,null,null,null,null,null,null,{"$f":"IF(B517>0,VLOOKUP(B517,'County code'!A:B,2,FALSE),\" \")","v":" "},{"$f":"IF(D517>0,VLOOKUP(D517,'County code'!D:E,2,FALSE),\" \")","v":" "},0,{"$f":"IF(AA517=5,AB517,M517)","v":0}]
[null,null,null,null,null,null,null,null,null,null,null,null,null,null,null,null,null,null,null,null,null,null,null,null,null,{"$f":"IF(B518>0,VLOOKUP(B518,'County code'!A:B,2,FALSE),\" \")","v":" "},{"$f":"IF(D518>0,VLOOKUP(D518,'County code'!D:E,2,FALSE),\" \")","v":" "},0,0]
[null,null,null,null,null,null,null,null,null,null,null,null,null,null,null,null,null,null,null,null,null,null,null,null,null,{"$f":"IF(B519>0,VLOOKUP(B519,'County code'!A:B,2,FALSE),\" \")","v":" "},{"$f":"IF(D519>0,VLOOKUP(D519,'County code'!D:E,2,FALSE),\" \")","v":" "},0,0]
[null,null,null,null,null,null,null,null,null,null,null,null,null,null,null,null,null,null,null,null,null,null,null,null,null,{"$f":"IF(B520>0,VLOOKUP(B520,'County code'!A:B,2,FALSE),\" \")","v":" "},{"$f":"IF(D520>0,VLOOKUP(D520,'County code'!D:E,2,FALSE),\" \")","v":" "},0,0]
[null,null,null,null,null,null,null,null,null,null,null,null,null,null,null,null,null,null,null,null,null,null,null,null,null,{"$f":"IF(B521>0,VLOOKUP(B521,'County code'!A:B,2,FALSE),\" \")","v":" "},{"$f":"IF(D521>0,VLOOKUP(D521,'County code'!D:E,2,FALSE),\" \")","v":" "},0,0]
[null,null,null,null,null,null,null,null,null,null,null,null,null,null,null,null,null,null,null,null,null,null,null,null,null,{"$f":"IF(B522>0,VLOOKUP(B522,'County code'!A:B,2,FALSE),\" \")","v":" "},{"$f":"IF(D522>0,VLOOKUP(D522,'County code'!D:E,2,FALSE),\" \")","v":" "},0,0]
[null,null,null,null,null,null,null,null,null,null,null,null,null,null,null,null,null,null,null,null,null,null,null,null,null,{"$f":"IF(B523>0,VLOOKUP(B523,'County code'!A:B,2,FALSE),\" \")","v":" "},{"$f":"IF(D523>0,VLOOKUP(D523,'County code'!D:E,2,FALSE),\" \")","v":" "},0,0]
[null,null,null,null,null,null,null,null,null,null,null,null,null,null,null,null,null,null,null,null,null,null,null,null,null,{"$f":"IF(B524>0,VLOOKUP(B524,'County code'!A:B,2,FALSE),\" \")","v":" "},{"$f":"IF(D524>0,VLOOKUP(D524,'County code'!D:E,2,FALSE),\" \")","v":" "},0,0]
[null,null,null,null,null,null,null,null,null,null,null,null,null,null,null,null,null,null,null,null,null,null,null,null,null,{"$f":"IF(B525>0,VLOOKUP(B525,'County code'!A:B,2,FALSE),\" \")","v":" "},{"$f":"IF(D525>0,VLOOKUP(D525,'County code'!D:E,2,FALSE),\" \")","v":" "},0,0]
[null,null,null,null,null,null,null,null,null,null,null,null,null,null,null,null,null,null,null,null,null,null,null,null,null,{"$f":"IF(B526>0,VLOOKUP(B526,'County code'!A:B,2,FALSE),\" \")","v":" "},{"$f":"IF(D526>0,VLOOKUP(D526,'County code'!D:E,2,FALSE),\" \")","v":" "},0,0]
[null,null,null,null,null,null,null,null,null,null,null,null,null,null,null,null,null,null,null,null,null,null,null,null,null,{"$f":"IF(B527>0,VLOOKUP(B527,'County code'!A:B,2,FALSE),\" \")","v":" "},{"$f":"IF(D527>0,VLOOKUP(D527,'County code'!D:E,2,FALSE),\" \")","v":" "},0,0]
[null,null,null,null,null,null,null,null,null,null,null,null,null,null,null,null,null,null,null,null,null,null,null,null,null,{"$f":"IF(B528>0,VLOOKUP(B528,'County code'!A:B,2,FALSE),\" \")","v":" "},{"$f":"IF(D528>0,VLOOKUP(D528,'County code'!D:E,2,FALSE),\" \")","v":" "},0,0]
[null,null,null,null,null,null,null,null,null,null,null,null,null,null,null,null,null,null,null,null,null,null,null,null,null,{"$f":"IF(B529>0,VLOOKUP(B529,'County code'!A:B,2,FALSE),\" \")","v":" "},{"$f":"IF(D529>0,VLOOKUP(D529,'County code'!D:E,2,FALSE),\" \")","v":" "},0,0]
[null,null,null,null,null,null,null,null,null,null,null,null,null,null,null,null,null,null,null,null,null,null,null,null,null,{"$f":"IF(B530>0,VLOOKUP(B530,'County code'!A:B,2,FALSE),\" \")","v":" "},{"$f":"IF(D530>0,VLOOKUP(D530,'County code'!D:E,2,FALSE),\" \")","v":" "},0,0]
[null,null,null,null,null,null,null,null,null,null,null,null,null,null,null,null,null,null,null,null,null,null,null,null,null,{"$f":"IF(B531>0,VLOOKUP(B531,'County code'!A:B,2,FALSE),\" \")","v":" "},{"$f":"IF(D531>0,VLOOKUP(D531,'County code'!D:E,2,FALSE),\" \")","v":" "},0,0]
[null,null,null,null,null,null,null,null,null,null,null,null,null,null,null,null,null,null,null,null,null,null,null,null,null,{"$f":"IF(B532>0,VLOOKUP(B532,'County code'!A:B,2,FALSE),\" \")","v":" "},{"$f":"IF(D532>0,VLOOKUP(D532,'County code'!D:E,2,FALSE),\" \")","v":" "},0,0]
[null,null,null,null,null,null,null,null,null,null,null,null,null,null,null,null,null,null,null,null,null,null,null,null,null,{"$f":"IF(B533>0,VLOOKUP(B533,'County code'!A:B,2,FALSE),\" \")","v":" "},{"$f":"IF(D533>0,VLOOKUP(D533,'County code'!D:E,2,FALSE),\" \")","v":" "},0,0]
[null,null,null,null,null,null,null,null,null,null,null,null,null,null,null,null,null,null,null,null,null,null,null,null,null,{"$f":"IF(B534>0,VLOOKUP(B534,'County code'!A:B,2,FALSE),\" \")","v":" "},{"$f":"IF(D534>0,VLOOKUP(D534,'County code'!D:E,2,FALSE),\" \")","v":" "},0,0]
[null,null,null,null,null,null,null,null,null,null,null,null,null,null,null,null,null,null,null,null,null,null,null,null,null,{"$f":"IF(B535>0,VLOOKUP(B535,'County code'!A:B,2,FALSE),\" \")","v":" "},{"$f":"IF(D535>0,VLOOKUP(D535,'County code'!D:E,2,FALSE),\" \")","v":" "},0,0]
[null,null,null,null,null,null,null,null,null,null,null,null,null,null,null,null,null,null,null,null,null,null,null,null,null,{"$f":"IF(B536>0,VLOOKUP(B536,'County code'!A:B,2,FALSE),\" \")","v":" "},{"$f":"IF(D536>0,VLOOKUP(D536,'County code'!D:E,2,FALSE),\" \")","v":" "},0,0]
[null,null,null,null,null,null,null,null,null,null,null,null,null,null,null,null,null,null,null,null,null,null,null,null,null,{"$f":"IF(B537>0,VLOOKUP(B537,'County code'!A:B,2,FALSE),\" \")","v":" "},{"$f":"IF(D537>0,VLOOKUP(D537,'County code'!D:E,2,FALSE),\" \")","v":" "},0,0]
[null,null,null,null,null,null,null,null,null,null,null,null,null,null,null,null,null,null,null,null,null,null,null,null,null,{"$f":"IF(B538>0,VLOOKUP(B538,'County code'!A:B,2,FALSE),\" \")","v":" "},{"$f":"IF(D538>0,VLOOKUP(D538,'County code'!D:E,2,FALSE),\" \")","v":" "},0,0]
[null,null,null,null,null,null,null,null,null,null,null,null,null,null,null,null,null,null,null,null,null,null,null,null,null,{"$f":"IF(B539>0,VLOOKUP(B539,'County code'!A:B,2,FALSE),\" \")","v":" "},{"$f":"IF(D539>0,VLOOKUP(D539,'County code'!D:E,2,FALSE),\" \")","v":" "},0,0]
[null,null,null,null,null,null,null,null,null,null,null,null,null,null,null,null,null,null,null,null,null,null,null,null,null,{"$f":"IF(B540>0,VLOOKUP(B540,'County code'!A:B,2,FALSE),\" \")","v":" "},{"$f":"IF(D540>0,VLOOKUP(D540,'County code'!D:E,2,FALSE),\" \")","v":" "},0,0]
[null,null,null,null,null,null,null,null,null,null,null,null,null,null,null,null,null,null,null,null,null,null,null,null,null,{"$f":"IF(B541>0,VLOOKUP(B541,'County code'!A:B,2,FALSE),\" \")","v":" "},{"$f":"IF(D541>0,VLOOKUP(D541,'County code'!D:E,2,FALSE),\" \")","v":" "},0,0]
[null,null,null,null,null,null,null,null,null,null,null,null,null,null,null,null,null,null,null,null,null,null,null,null,null,{"$f":"IF(B542>0,VLOOKUP(B542,'County code'!A:B,2,FALSE),\" \")","v":" "},{"$f":"IF(D542>0,VLOOKUP(D542,'County code'!D:E,2,FALSE),\" \")","v":" "},0,0]
[null,null,null,null,null,null,null,null,null,null,null,null,null,null,null,null,null,null,null,null,null,null,null,null,null,{"$f":"IF(B543>0,VLOOKUP(B543,'County code'!A:B,2,FALSE),\" \")","v":" "},{"$f":"IF(D543>0,VLOOKUP(D543,'County code'!D:E,2,FALSE),\" \")","v":" "},0,0]
[null,null,null,null,null,null,null,null,null,null,null,null,null,null,null,null,null,null,null,null,null,null,null,null,null,{"$f":"IF(B544>0,VLOOKUP(B544,'County code'!A:B,2,FALSE),\" \")","v":" "},{"$f":"IF(D544>0,VLOOKUP(D544,'County code'!D:E,2,FALSE),\" \")","v":" "},0,0]
[null,null,null,null,null,null,null,null,null,null,null,null,null,null,null,null,null,null,null,null,null,null,null,null,null,{"$f":"IF(B545>0,VLOOKUP(B545,'County code'!A:B,2,FALSE),\" \")","v":" "},{"$f":"IF(D545>0,VLOOKUP(D545,'County code'!D:E,2,FALSE),\" \")","v":" "},0,0]
[null,null,null,null,null,null,null,null,null,null,null,null,null,null,null,null,null,null,null,null,null,null,null,null,null,{"$f":"IF(B546>0,VLOOKUP(B546,'County code'!A:B,2,FALSE),\" \")","v":" "},{"$f":"IF(D546>0,VLOOKUP(D546,'County code'!D:E,2,FALSE),\" \")","v":" "},0,0]
[null,null,null,null,null,null,null,null,null,null,null,null,null,null,null,null,null,null,null,null,null,null,null,null,null,{"$f":"IF(B547>0,VLOOKUP(B547,'County code'!A:B,2,FALSE),\" \")","v":" "},{"$f":"IF(D547>0,VLOOKUP(D547,'County code'!D:E,2,FALSE),\" \")","v":" "},0,0]
[null,null,null,null,null,null,null,null,null,null,null,null,null,null,null,null,null,null,null,null,null,null,null,null,null,{"$f":"IF(B548>0,VLOOKUP(B548,'County code'!A:B,2,FALSE),\" \")","v":" "},{"$f":"IF(D548>0,VLOOKUP(D548,'County code'!D:E,2,FALSE),\" \")","v":" "},0,0]
[null,null,null,null,null,null,null,null,null,null,null,null,null,null,null,null,null,null,null,null,null,null,null,null,null,{"$f":"IF(B549>0,VLOOKUP(B549,'County code'!A:B,2,FALSE),\" \")","v":" "},{"$f":"IF(D549>0,VLOOKUP(D549,'County code'!D:E,2,FALSE),\" \")","v":" "},0,0]
[null,null,null,null,null,null,null,null,null,null,null,null,null,null,null,null,null,null,null,null,null,null,null,null,null,{"$f":"IF(B550>0,VLOOKUP(B550,'County code'!A:B,2,FALSE),\" \")","v":" "},{"$f":"IF(D550>0,VLOOKUP(D550,'County code'!D:E,2,FALSE),\" \")","v":" "},0,0]
[null,null,null,null,null,null,null,null,null,null,null,null,null,null,null,null,null,null,null,null,null,null,null,null,null,{"$f":"IF(B551>0,VLOOKUP(B551,'County code'!A:B,2,FALSE),\" \")","v":" "},{"$f":"IF(D551>0,VLOOKUP(D551,'County code'!D:E,2,FALSE),\" \")","v":" "},0,0]
[null,null,null,null,null,null,null,null,null,null,null,null,null,null,null,null,null,null,null,null,null,null,null,null,null,{"$f":"IF(B552>0,VLOOKUP(B552,'County code'!A:B,2,FALSE),\" \")","v":" "},{"$f":"IF(D552>0,VLOOKUP(D552,'County code'!D:E,2,FALSE),\" \")","v":" "},0,0]
[null,null,null,null,null,null,null,null,null,null,null,null,null,null,null,null,null,null,null,null,null,null,null,null,null,{"$f":"IF(B553>0,VLOOKUP(B553,'County code'!A:B,2,FALSE),\" \")","v":" "},{"$f":"IF(D553>0,VLOOKUP(D553,'County code'!D:E,2,FALSE),\" \")","v":" "},0,0]
[null,null,null,null,null,null,null,null,null,null,null,null,null,null,null,null,null,null,null,null,null,null,null,null,null,{"$f":"IF(B554>0,VLOOKUP(B554,'County code'!A:B,2,FALSE),\" \")","v":" "},{"$f":"IF(D554>0,VLOOKUP(D554,'County code'!D:E,2,FALSE),\" \")","v":" "},0,0]
[null,null,null,null,null,null,null,null,null,null,null,null,null,null,null,null,null,null,null,null,null,null,null,null,null,{"$f":"IF(B555>0,VLOOKUP(B555,'County code'!A:B,2,FALSE),\" \")","v":" "},{"$f":"IF(D555>0,VLOOKUP(D555,'County code'!D:E,2,FALSE),\" \")","v":" "},0,0]
[null,null,null,null,null,null,null,null,null,null,null,null,null,null,null,null,null,null,null,null,null,null,null,null,null,{"$f":"IF(B556>0,VLOOKUP(B556,'County code'!A:B,2,FALSE),\" \")","v":" "},{"$f":"IF(D556>0,VLOOKUP(D556,'County code'!D:E,2,FALSE),\" \")","v":" "},0,0]
[null,null,null,null,null,null,null,null,null,null,null,null,null,null,null,null,null,null,null,null,null,null,null,null,null,{"$f":"IF(B557>0,VLOOKUP(B557,'County code'!A:B,2,FALSE),\" \")","v":" "},{"$f":"IF(D557>0,VLOOKUP(D557,'County code'!D:E,2,FALSE),\" \")","v":" "},0,0]
[null,null,null,null,null,null,null,null,null,null,null,null,null,null,null,null,null,null,null,null,null,null,null,null,null,{"$f":"IF(B558>0,VLOOKUP(B558,'County code'!A:B,2,FALSE),\" \")","v":" "},{"$f":"IF(D558>0,VLOOKUP(D558,'County code'!D:E,2,FALSE),\" \")","v":" "},0,0]
[null,null,null,null,null,null,null,null,null,null,null,null,null,null,null,null,null,null,null,null,null,null,null,null,null,{"$f":"IF(B559>0,VLOOKUP(B559,'County code'!A:B,2,FALSE),\" \")","v":" "},{"$f":"IF(D559>0,VLOOKUP(D559,'County code'!D:E,2,FALSE),\" \")","v":" "},0,0]
[null,null,null,null,null,null,null,null,null,null,null,null,null,null,null,null,null,null,null,null,null,null,null,null,null,{"$f":"IF(B560>0,VLOOKUP(B560,'County code'!A:B,2,FALSE),\" \")","v":" "},{"$f":"IF(D560>0,VLOOKUP(D560,'County code'!D:E,2,FALSE),\" \")","v":" "},0,0]
[null,null,null,null,null,null,null,null,null,null,null,null,null,null,null,null,null,null,null,null,null,null,null,null,null,{"$f":"IF(B561>0,VLOOKUP(B561,'County code'!A:B,2,FALSE),\" \")","v":" "},{"$f":"IF(D561>0,VLOOKUP(D561,'County code'!D:E,2,FALSE),\" \")","v":" "},0,0]
[null,null,null,null,null,null,null,null,null,null,null,null,null,null,null,null,null,null,null,null,null,null,null,null,null,{"$f":"IF(B562>0,VLOOKUP(B562,'County code'!A:B,2,FALSE),\" \")","v":" "},{"$f":"IF(D562>0,VLOOKUP(D562,'County code'!D:E,2,FALSE),\" \")","v":" "},0,0]
[null,null,null,null,null,null,null,null,null,null,null,null,null,null,null,null,null,null,null,null,null,null,null,null,null,{"$f":"IF(B563>0,VLOOKUP(B563,'County code'!A:B,2,FALSE),\" \")","v":" "},{"$f":"IF(D563>0,VLOOKUP(D563,'County code'!D:E,2,FALSE),\" \")","v":" "},0,0]
[null,null,null,null,null,null,null,null,null,null,null,null,null,null,null,null,null,null,null,null,null,null,null,null,null,{"$f":"IF(B564>0,VLOOKUP(B564,'County code'!A:B,2,FALSE),\" \")","v":" "},{"$f":"IF(D564>0,VLOOKUP(D564,'County code'!D:E,2,FALSE),\" \")","v":" "},0,0]
[null,null,null,null,null,null,null,null,null,null,null,null,null,null,null,null,null,null,null,null,null,null,null,null,null,{"$f":"IF(B565>0,VLOOKUP(B565,'County code'!A:B,2,FALSE),\" \")","v":" "},{"$f":"IF(D565>0,VLOOKUP(D565,'County code'!D:E,2,FALSE),\" \")","v":" "},0,0]
[null,null,null,null,null,null,null,null,null,null,null,null,null,null,null,null,null,null,null,null,null,null,null,null,null,{"$f":"IF(B566>0,VLOOKUP(B566,'County code'!A:B,2,FALSE),\" \")","v":" "},{"$f":"IF(D566>0,VLOOKUP(D566,'County code'!D:E,2,FALSE),\" \")","v":" "},0,0]
[null,null,null,null,null,null,null,null,null,null,null,null,null,null,null,null,null,null,null,null,null,null,null,null,null,{"$f":"IF(B567>0,VLOOKUP(B567,'County code'!A:B,2,FALSE),\" \")","v":" "},{"$f":"IF(D567>0,VLOOKUP(D567,'County code'!D:E,2,FALSE),\" \")","v":" "},0,0]
[null,null,null,null,null,null,null,null,null,null,null,null,null,null,null,null,null,null,null,null,null,null,null,null,null,{"$f":"IF(B568>0,VLOOKUP(B568,'County code'!A:B,2,FALSE),\" \")","v":" "},{"$f":"IF(D568>0,VLOOKUP(D568,'County code'!D:E,2,FALSE),\" \")","v":" "},0,0]
[null,null,null,null,null,null,null,null,null,null,null,null,null,null,null,null,null,null,null,null,null,null,null,null,null,{"$f":"IF(B569>0,VLOOKUP(B569,'County code'!A:B,2,FALSE),\" \")","v":" "},{"$f":"IF(D569>0,VLOOKUP(D569,'County code'!D:E,2,FALSE),\" \")","v":" "},0,0]
[null,null,null,null,null,null,null,null,null,null,null,null,null,null,null,null,null,null,null,null,null,null,null,null,null,{"$f":"IF(B570>0,VLOOKUP(B570,'County code'!A:B,2,FALSE),\" \")","v":" "},{"$f":"IF(D570>0,VLOOKUP(D570,'County code'!D:E,2,FALSE),\" \")","v":" "},0,0]
[null,null,null,null,null,null,null,null,null,null,null,null,null,null,null,null,null,null,null,null,null,null,null,null,null,{"$f":"IF(B571>0,VLOOKUP(B571,'County code'!A:B,2,FALSE),\" \")","v":" "},{"$f":"IF(D571>0,VLOOKUP(D571,'County code'!D:E,2,FALSE),\" \")","v":" "},0,0]
[null,null,null,null,null,null,null,null,null,null,null,null,null,null,null,null,null,null,null,null,null,null,null,null,null,{"$f":"IF(B572>0,VLOOKUP(B572,'County code'!A:B,2,FALSE),\" \")","v":" "},{"$f":"IF(D572>0,VLOOKUP(D572,'County code'!D:E,2,FALSE),\" \")","v":" "},0,0]
[null,null,null,null,null,null,null,null,null,null,null,null,null,null,null,null,null,null,null,null,null,null,null,null,null,{"$f":"IF(B573>0,VLOOKUP(B573,'County code'!A:B,2,FALSE),\" \")","v":" "},{"$f":"IF(D573>0,VLOOKUP(D573,'County code'!D:E,2,FALSE),\" \")","v":" "},0,0]
[null,null,null,null,null,null,null,null,null,null,null,null,null,null,null,null,null,null,null,null,null,null,null,null,null,{"$f":"IF(B574>0,VLOOKUP(B574,'County code'!A:B,2,FALSE),\" \")","v":" "},{"$f":"IF(D574>0,VLOOKUP(D574,'County code'!D:E,2,FALSE),\" \")","v":" "},0,0]
[null,null,null,null,null,null,null,null,null,null,null,null,null,null,null,null,null,null,null,null,null,null,null,null,null,{"$f":"IF(B575>0,VLOOKUP(B575,'County code'!A:B,2,FALSE),\" \")","v":" "},{"$f":"IF(D575>0,VLOOKUP(D575,'County code'!D:E,2,FALSE),\" \")","v":" "},0,0]
[null,null,null,null,null,null,null,null,null,null,null,null,null,null,null,null,null,null,null,null,null,null,null,null,null,{"$f":"IF(B576>0,VLOOKUP(B576,'County code'!A:B,2,FALSE),\" \")","v":" "},{"$f":"IF(D576>0,VLOOKUP(D576,'County code'!D:E,2,FALSE),\" \")","v":" "},0,0]
[null,null,null,null,null,null,null,null,null,null,null,null,null,null,null,null,null,null,null,null,null,null,null,null,null,{"$f":"IF(B577>0,VLOOKUP(B577,'County code'!A:B,2,FALSE),\" \")","v":" "},{"$f":"IF(D577>0,VLOOKUP(D577,'County code'!D:E,2,FALSE),\" \")","v":" "},0,0]
[null,null,null,null,null,null,null,null,null,null,null,null,null,null,null,null,null,null,null,null,null,null,null,null,null,{"$f":"IF(B578>0,VLOOKUP(B578,'County code'!A:B,2,FALSE),\" \")","v":" "},{"$f":"IF(D578>0,VLOOKUP(D578,'County code'!D:E,2,FALSE),\" \")","v":" "},0,0]
[null,null,null,null,null,null,null,null,null,null,null,null,null,null,null,null,null,null,null,null,null,null,null,null,null,{"$f":"IF(B579>0,VLOOKUP(B579,'County code'!A:B,2,FALSE),\" \")","v":" "},{"$f":"IF(D579>0,VLOOKUP(D579,'County code'!D:E,2,FALSE),\" \")","v":" "},0,0]
[null,null,null,null,null,null,null,null,null,null,null,null,null,null,null,null,null,null,null,null,null,null,null,null,null,{"$f":"IF(B580>0,VLOOKUP(B580,'County code'!A:B,2,FALSE),\" \")","v":" "},{"$f":"IF(D580>0,VLOOKUP(D580,'County code'!D:E,2,FALSE),\" \")","v":" "},{"$f":"G580","v":0},0]
[null,null,null,null,null,null,null,null,null,null,null,null,null,null,null,null,null,null,null,null,null,null,null,null,null,{"$f":"IF(B581>0,VLOOKUP(B581,'County code'!A:B,2,FALSE),\" \")","v":" "},{"$f":"IF(D581>0,VLOOKUP(D581,'County code'!D:E,2,FALSE),\" \")","v":" "},0,{"$f":"IF(AA581=5,AB581,M581)","v":0}]
[null,null,null,null,null,null,null,null,null,null,null,null,null,null,null,null,null,null,null,null,null,null,null,null,null,{"$f":"IF(B582>0,VLOOKUP(B582,'County code'!A:B,2,FALSE),\" \")","v":" "},{"$f":"IF(D582>0,VLOOKUP(D582,'County code'!D:E,2,FALSE),\" \")","v":" "},0,0]
[null,null,null,null,null,null,null,null,null,null,null,null,null,null,null,null,null,null,null,null,null,null,null,null,null,{"$f":"IF(B583>0,VLOOKUP(B583,'County code'!A:B,2,FALSE),\" \")","v":" "},{"$f":"IF(D583>0,VLOOKUP(D583,'County code'!D:E,2,FALSE),\" \")","v":" "},0,0]
[null,null,null,null,null,null,null,null,null,null,null,null,null,null,null,null,null,null,null,null,null,null,null,null,null,{"$f":"IF(B584>0,VLOOKUP(B584,'County code'!A:B,2,FALSE),\" \")","v":" "},{"$f":"IF(D584>0,VLOOKUP(D584,'County code'!D:E,2,FALSE),\" \")","v":" "},0,0]
[null,null,null,null,null,null,null,null,null,null,null,null,null,null,null,null,null,null,null,null,null,null,null,null,null,{"$f":"IF(B585>0,VLOOKUP(B585,'County code'!A:B,2,FALSE),\" \")","v":" "},{"$f":"IF(D585>0,VLOOKUP(D585,'County code'!D:E,2,FALSE),\" \")","v":" "},0,0]
[null,null,null,null,null,null,null,null,null,null,null,null,null,null,null,null,null,null,null,null,null,null,null,null,null,{"$f":"IF(B586>0,VLOOKUP(B586,'County code'!A:B,2,FALSE),\" \")","v":" "},{"$f":"IF(D586>0,VLOOKUP(D586,'County code'!D:E,2,FALSE),\" \")","v":" "},0,0]
[null,null,null,null,null,null,null,null,null,null,null,null,null,null,null,null,null,null,null,null,null,null,null,null,null,{"$f":"IF(B587>0,VLOOKUP(B587,'County code'!A:B,2,FALSE),\" \")","v":" "},{"$f":"IF(D587>0,VLOOKUP(D587,'County code'!D:E,2,FALSE),\" \")","v":" "},0,0]
[null,null,null,null,null,null,null,null,null,null,null,null,null,null,null,null,null,null,null,null,null,null,null,null,null,{"$f":"IF(B588>0,VLOOKUP(B588,'County code'!A:B,2,FALSE),\" \")","v":" "},{"$f":"IF(D588>0,VLOOKUP(D588,'County code'!D:E,2,FALSE),\" \")","v":" "},0,0]
[null,null,null,null,null,null,null,null,null,null,null,null,null,null,null,null,null,null,null,null,null,null,null,null,null,{"$f":"IF(B589>0,VLOOKUP(B589,'County code'!A:B,2,FALSE),\" \")","v":" "},{"$f":"IF(D589>0,VLOOKUP(D589,'County code'!D:E,2,FALSE),\" \")","v":" "},0,0]
[null,null,null,null,null,null,null,null,null,null,null,null,null,null,null,null,null,null,null,null,null,null,null,null,null,{"$f":"IF(B590>0,VLOOKUP(B590,'County code'!A:B,2,FALSE),\" \")","v":" "},{"$f":"IF(D590>0,VLOOKUP(D590,'County code'!D:E,2,FALSE),\" \")","v":" "},0,0]
[null,null,null,null,null,null,null,null,null,null,null,null,null,null,null,null,null,null,null,null,null,null,null,null,null,{"$f":"IF(B591>0,VLOOKUP(B591,'County code'!A:B,2,FALSE),\" \")","v":" "},{"$f":"IF(D591>0,VLOOKUP(D591,'County code'!D:E,2,FALSE),\" \")","v":" "},0,0]
[null,null,null,null,null,null,null,null,null,null,null,null,null,null,null,null,null,null,null,null,null,null,null,null,null,{"$f":"IF(B592>0,VLOOKUP(B592,'County code'!A:B,2,FALSE),\" \")","v":" "},{"$f":"IF(D592>0,VLOOKUP(D592,'County code'!D:E,2,FALSE),\" \")","v":" "},0,0]
[null,null,null,null,null,null,null,null,null,null,null,null,null,null,null,null,null,null,null,null,null,null,null,null,null,{"$f":"IF(B593>0,VLOOKUP(B593,'County code'!A:B,2,FALSE),\" \")","v":" "},{"$f":"IF(D593>0,VLOOKUP(D593,'County code'!D:E,2,FALSE),\" \")","v":" "},0,0]
[null,null,null,null,null,null,null,null,null,null,null,null,null,null,null,null,null,null,null,null,null,null,null,null,null,{"$f":"IF(B594>0,VLOOKUP(B594,'County code'!A:B,2,FALSE),\" \")","v":" "},{"$f":"IF(D594>0,VLOOKUP(D594,'County code'!D:E,2,FALSE),\" \")","v":" "},0,0]
[null,null,null,null,null,null,null,null,null,null,null,null,null,null,null,null,null,null,null,null,null,null,null,null,null,{"$f":"IF(B595>0,VLOOKUP(B595,'County code'!A:B,2,FALSE),\" \")","v":" "},{"$f":"IF(D595>0,VLOOKUP(D595,'County code'!D:E,2,FALSE),\" \")","v":" "},0,0]
[null,null,null,null,null,null,null,null,null,null,null,null,null,null,null,null,null,null,null,null,null,null,null,null,null,{"$f":"IF(B596>0,VLOOKUP(B596,'County code'!A:B,2,FALSE),\" \")","v":" "},{"$f":"IF(D596>0,VLOOKUP(D596,'County code'!D:E,2,FALSE),\" \")","v":" "},0,0]
[null,null,null,null,null,null,null,null,null,null,null,null,null,null,null,null,null,null,null,null,null,null,null,null,null,{"$f":"IF(B597>0,VLOOKUP(B597,'County code'!A:B,2,FALSE),\" \")","v":" "},{"$f":"IF(D597>0,VLOOKUP(D597,'County code'!D:E,2,FALSE),\" \")","v":" "},0,0]
[null,null,null,null,null,null,null,null,null,null,null,null,null,null,null,null,null,null,null,null,null,null,null,null,null,{"$f":"IF(B598>0,VLOOKUP(B598,'County code'!A:B,2,FALSE),\" \")","v":" "},{"$f":"IF(D598>0,VLOOKUP(D598,'County code'!D:E,2,FALSE),\" \")","v":" "},0,0]
[null,null,null,null,null,null,null,null,null,null,null,null,null,null,null,null,null,null,null,null,null,null,null,null,null,{"$f":"IF(B599>0,VLOOKUP(B599,'County code'!A:B,2,FALSE),\" \")","v":" "},{"$f":"IF(D599>0,VLOOKUP(D599,'County code'!D:E,2,FALSE),\" \")","v":" "},0,0]
[null,null,null,null,null,null,null,null,null,null,null,null,null,null,null,null,null,null,null,null,null,null,null,null,null,{"$f":"IF(B600>0,VLOOKUP(B600,'County code'!A:B,2,FALSE),\" \")","v":" "},{"$f":"IF(D600>0,VLOOKUP(D600,'County code'!D:E,2,FALSE),\" \")","v":" "},0,0]
[null,null,null,null,null,null,null,null,null,null,null,null,null,null,null,null,null,null,null,null,null,null,null,null,null,{"$f":"IF(B601>0,VLOOKUP(B601,'County code'!A:B,2,FALSE),\" \")","v":" "},{"$f":"IF(D601>0,VLOOKUP(D601,'County code'!D:E,2,FALSE),\" \")","v":" "},0,0]
[null,null,null,null,null,null,null,null,null,null,null,null,null,null,null,null,null,null,null,null,null,null,null,null,null,{"$f":"IF(B602>0,VLOOKUP(B602,'County code'!A:B,2,FALSE),\" \")","v":" "},{"$f":"IF(D602>0,VLOOKUP(D602,'County code'!D:E,2,FALSE),\" \")","v":" "},0,0]
[null,null,null,null,null,null,null,null,null,null,null,null,null,null,null,null,null,null,null,null,null,null,null,null,null,{"$f":"IF(B603>0,VLOOKUP(B603,'County code'!A:B,2,FALSE),\" \")","v":" "},{"$f":"IF(D603>0,VLOOKUP(D603,'County code'!D:E,2,FALSE),\" \")","v":" "},0,0]
[null,null,null,null,null,null,null,null,null,null,null,null,null,null,null,null,null,null,null,null,null,null,null,null,null,{"$f":"IF(B604>0,VLOOKUP(B604,'County code'!A:B,2,FALSE),\" \")","v":" "},{"$f":"IF(D604>0,VLOOKUP(D604,'County code'!D:E,2,FALSE),\" \")","v":" "},0,0]
[null,null,null,null,null,null,null,null,null,null,null,null,null,null,null,null,null,null,null,null,null,null,null,null,null,{"$f":"IF(B605>0,VLOOKUP(B605,'County code'!A:B,2,FALSE),\" \")","v":" "},{"$f":"IF(D605>0,VLOOKUP(D605,'County code'!D:E,2,FALSE),\" \")","v":" "},0,0]
[null,null,null,null,null,null,null,null,null,null,null,null,null,null,null,null,null,null,null,null,null,null,null,null,null,{"$f":"IF(B606>0,VLOOKUP(B606,'County code'!A:B,2,FALSE),\" \")","v":" "},{"$f":"IF(D606>0,VLOOKUP(D606,'County code'!D:E,2,FALSE),\" \")","v":" "},0,0]
[null,null,null,null,null,null,null,null,null,null,null,null,null,null,null,null,null,null,null,null,null,null,null,null,null,{"$f":"IF(B607>0,VLOOKUP(B607,'County code'!A:B,2,FALSE),\" \")","v":" "},{"$f":"IF(D607>0,VLOOKUP(D607,'County code'!D:E,2,FALSE),\" \")","v":" "},0,0]
[null,null,null,null,null,null,null,null,null,null,null,null,null,null,null,null,null,null,null,null,null,null,null,null,null,{"$f":"IF(B608>0,VLOOKUP(B608,'County code'!A:B,2,FALSE),\" \")","v":" "},{"$f":"IF(D608>0,VLOOKUP(D608,'County code'!D:E,2,FALSE),\" \")","v":" "},0,0]
[null,null,null,null,null,null,null,null,null,null,null,null,null,null,null,null,null,null,null,null,null,null,null,null,null,{"$f":"IF(B609>0,VLOOKUP(B609,'County code'!A:B,2,FALSE),\" \")","v":" "},{"$f":"IF(D609>0,VLOOKUP(D609,'County code'!D:E,2,FALSE),\" \")","v":" "},0,0]
[null,null,null,null,null,null,null,null,null,null,null,null,null,null,null,null,null,null,null,null,null,null,null,null,null,{"$f":"IF(B610>0,VLOOKUP(B610,'County code'!A:B,2,FALSE),\" \")","v":" "},{"$f":"IF(D610>0,VLOOKUP(D610,'County code'!D:E,2,FALSE),\" \")","v":" "},0,0]
[null,null,null,null,null,null,null,null,null,null,null,null,null,null,null,null,null,null,null,null,null,null,null,null,null,{"$f":"IF(B611>0,VLOOKUP(B611,'County code'!A:B,2,FALSE),\" \")","v":" "},{"$f":"IF(D611>0,VLOOKUP(D611,'County code'!D:E,2,FALSE),\" \")","v":" "},0,0]
[null,null,null,null,null,null,null,null,null,null,null,null,null,null,null,null,null,null,null,null,null,null,null,null,null,{"$f":"IF(B612>0,VLOOKUP(B612,'County code'!A:B,2,FALSE),\" \")","v":" "},{"$f":"IF(D612>0,VLOOKUP(D612,'County code'!D:E,2,FALSE),\" \")","v":" "},0,0]
[null,null,null,null,null,null,null,null,null,null,null,null,null,null,null,null,null,null,null,null,null,null,null,null,null,{"$f":"IF(B613>0,VLOOKUP(B613,'County code'!A:B,2,FALSE),\" \")","v":" "},{"$f":"IF(D613>0,VLOOKUP(D613,'County code'!D:E,2,FALSE),\" \")","v":" "},0,0]
[null,null,null,null,null,null,null,null,null,null,null,null,null,null,null,null,null,null,null,null,null,null,null,null,null,{"$f":"IF(B614>0,VLOOKUP(B614,'County code'!A:B,2,FALSE),\" \")","v":" "},{"$f":"IF(D614>0,VLOOKUP(D614,'County code'!D:E,2,FALSE),\" \")","v":" "},0,0]
[null,null,null,null,null,null,null,null,null,null,null,null,null,null,null,null,null,null,null,null,null,null,null,null,null,{"$f":"IF(B615>0,VLOOKUP(B615,'County code'!A:B,2,FALSE),\" \")","v":" "},{"$f":"IF(D615>0,VLOOKUP(D615,'County code'!D:E,2,FALSE),\" \")","v":" "},0,0]
[null,null,null,null,null,null,null,null,null,null,null,null,null,null,null,null,null,null,null,null,null,null,null,null,null,{"$f":"IF(B616>0,VLOOKUP(B616,'County code'!A:B,2,FALSE),\" \")","v":" "},{"$f":"IF(D616>0,VLOOKUP(D616,'County code'!D:E,2,FALSE),\" \")","v":" "},0,0]
[null,null,null,null,null,null,null,null,null,null,null,null,null,null,null,null,null,null,null,null,null,null,null,null,null,{"$f":"IF(B617>0,VLOOKUP(B617,'County code'!A:B,2,FALSE),\" \")","v":" "},{"$f":"IF(D617>0,VLOOKUP(D617,'County code'!D:E,2,FALSE),\" \")","v":" "},0,0]
[null,null,null,null,null,null,null,null,null,null,null,null,null,null,null,null,null,null,null,null,null,null,null,null,null,{"$f":"IF(B618>0,VLOOKUP(B618,'County code'!A:B,2,FALSE),\" \")","v":" "},{"$f":"IF(D618>0,VLOOKUP(D618,'County code'!D:E,2,FALSE),\" \")","v":" "},0,0]
[null,null,null,null,null,null,null,null,null,null,null,null,null,null,null,null,null,null,null,null,null,null,null,null,null,{"$f":"IF(B619>0,VLOOKUP(B619,'County code'!A:B,2,FALSE),\" \")","v":" "},{"$f":"IF(D619>0,VLOOKUP(D619,'County code'!D:E,2,FALSE),\" \")","v":" "},0,0]
[null,null,null,null,null,null,null,null,null,null,null,null,null,null,null,null,null,null,null,null,null,null,null,null,null,{"$f":"IF(B620>0,VLOOKUP(B620,'County code'!A:B,2,FALSE),\" \")","v":" "},{"$f":"IF(D620>0,VLOOKUP(D620,'County code'!D:E,2,FALSE),\" \")","v":" "},0,0]
[null,null,null,null,null,null,null,null,null,null,null,null,null,null,null,null,null,null,null,null,null,null,null,null,null,{"$f":"IF(B621>0,VLOOKUP(B621,'County code'!A:B,2,FALSE),\" \")","v":" "},{"$f":"IF(D621>0,VLOOKUP(D621,'County code'!D:E,2,FALSE),\" \")","v":" "},0,0]
[null,null,null,null,null,null,null,null,null,null,null,null,null,null,null,null,null,null,null,null,null,null,null,null,null,{"$f":"IF(B622>0,VLOOKUP(B622,'County code'!A:B,2,FALSE),\" \")","v":" "},{"$f":"IF(D622>0,VLOOKUP(D622,'County code'!D:E,2,FALSE),\" \")","v":" "},0,0]
[null,null,null,null,null,null,null,null,null,null,null,null,null,null,null,null,null,null,null,null,null,null,null,null,null,{"$f":"IF(B623>0,VLOOKUP(B623,'County code'!A:B,2,FALSE),\" \")","v":" "},{"$f":"IF(D623>0,VLOOKUP(D623,'County code'!D:E,2,FALSE),\" \")","v":" "},0,0]
[null,null,null,null,null,null,null,null,null,null,null,null,null,null,null,null,null,null,null,null,null,null,null,null,null,{"$f":"IF(B624>0,VLOOKUP(B624,'County code'!A:B,2,FALSE),\" \")","v":" "},{"$f":"IF(D624>0,VLOOKUP(D624,'County code'!D:E,2,FALSE),\" \")","v":" "},0,0]
[null,null,null,null,null,null,null,null,null,null,null,null,null,null,null,null,null,null,null,null,null,null,null,null,null,{"$f":"IF(B625>0,VLOOKUP(B625,'County code'!A:B,2,FALSE),\" \")","v":" "},{"$f":"IF(D625>0,VLOOKUP(D625,'County code'!D:E,2,FALSE),\" \")","v":" "},0,0]
[null,null,null,null,null,null,null,null,null,null,null,null,null,null,null,null,null,null,null,null,null,null,null,null,null,{"$f":"IF(B626>0,VLOOKUP(B626,'County code'!A:B,2,FALSE),\" \")","v":" "},{"$f":"IF(D626>0,VLOOKUP(D626,'County code'!D:E,2,FALSE),\" \")","v":" "},0,0]
[null,null,null,null,null,null,null,null,null,null,null,null,null,null,null,null,null,null,null,null,null,null,null,null,null,{"$f":"IF(B627>0,VLOOKUP(B627,'County code'!A:B,2,FALSE),\" \")","v":" "},{"$f":"IF(D627>0,VLOOKUP(D627,'County code'!D:E,2,FALSE),\" \")","v":" "},0,0]
[null,null,null,null,null,null,null,null,null,null,null,null,null,null,null,null,null,null,null,null,null,null,null,null,null,{"$f":"IF(B628>0,VLOOKUP(B628,'County code'!A:B,2,FALSE),\" \")","v":" "},{"$f":"IF(D628>0,VLOOKUP(D628,'County code'!D:E,2,FALSE),\" \")","v":" "},0,0]
[null,null,null,null,null,null,null,null,null,null,null,null,null,null,null,null,null,null,null,null,null,null,null,null,null,{"$f":"IF(B629>0,VLOOKUP(B629,'County code'!A:B,2,FALSE),\" \")","v":" "},{"$f":"IF(D629>0,VLOOKUP(D629,'County code'!D:E,2,FALSE),\" \")","v":" "},0,0]
[null,null,null,null,null,null,null,null,null,null,null,null,null,null,null,null,null,null,null,null,null,null,null,null,null,{"$f":"IF(B630>0,VLOOKUP(B630,'County code'!A:B,2,FALSE),\" \")","v":" "},{"$f":"IF(D630>0,VLOOKUP(D630,'County code'!D:E,2,FALSE),\" \")","v":" "},0,0]
[null,null,null,null,null,null,null,null,null,null,null,null,null,null,null,null,null,null,null,null,null,null,null,null,null,{"$f":"IF(B631>0,VLOOKUP(B631,'County code'!A:B,2,FALSE),\" \")","v":" "},{"$f":"IF(D631>0,VLOOKUP(D631,'County code'!D:E,2,FALSE),\" \")","v":" "},0,0]
[null,null,null,null,null,null,null,null,null,null,null,null,null,null,null,null,null,null,null,null,null,null,null,null,null,{"$f":"IF(B632>0,VLOOKUP(B632,'County code'!A:B,2,FALSE),\" \")","v":" "},{"$f":"IF(D632>0,VLOOKUP(D632,'County code'!D:E,2,FALSE),\" \")","v":" "},0,0]
[null,null,null,null,null,null,null,null,null,null,null,null,null,null,null,null,null,null,null,null,null,null,null,null,null,{"$f":"IF(B633>0,VLOOKUP(B633,'County code'!A:B,2,FALSE),\" \")","v":" "},{"$f":"IF(D633>0,VLOOKUP(D633,'County code'!D:E,2,FALSE),\" \")","v":" "},0,0]
[null,null,null,null,null,null,null,null,null,null,null,null,null,null,null,null,null,null,null,null,null,null,null,null,null,{"$f":"IF(B634>0,VLOOKUP(B634,'County code'!A:B,2,FALSE),\" \")","v":" "},{"$f":"IF(D634>0,VLOOKUP(D634,'County code'!D:E,2,FALSE),\" \")","v":" "},0,0]
[null,null,null,null,null,null,null,null,null,null,null,null,null,null,null,null,null,null,null,null,null,null,null,null,null,{"$f":"IF(B635>0,VLOOKUP(B635,'County code'!A:B,2,FALSE),\" \")","v":" "},{"$f":"IF(D635>0,VLOOKUP(D635,'County code'!D:E,2,FALSE),\" \")","v":" "},0,0]
[null,null,null,null,null,null,null,null,null,null,null,null,null,null,null,null,null,null,null,null,null,null,null,null,null,{"$f":"IF(B636>0,VLOOKUP(B636,'County code'!A:B,2,FALSE),\" \")","v":" "},{"$f":"IF(D636>0,VLOOKUP(D636,'County code'!D:E,2,FALSE),\" \")","v":" "},0,0]
[null,null,null,null,null,null,null,null,null,null,null,null,null,null,null,null,null,null,null,null,null,null,null,null,null,{"$f":"IF(B637>0,VLOOKUP(B637,'County code'!A:B,2,FALSE),\" \")","v":" "},{"$f":"IF(D637>0,VLOOKUP(D637,'County code'!D:E,2,FALSE),\" \")","v":" "},0,0]
[null,null,null,null,null,null,null,null,null,null,null,null,null,null,null,null,null,null,null,null,null,null,null,null,null,{"$f":"IF(B638>0,VLOOKUP(B638,'County code'!A:B,2,FALSE),\" \")","v":" "},{"$f":"IF(D638>0,VLOOKUP(D638,'County code'!D:E,2,FALSE),\" \")","v":" "},0,0]
[null,null,null,null,null,null,null,null,null,null,null,null,null,null,null,null,null,null,null,null,null,null,null,null,null,{"$f":"IF(B639>0,VLOOKUP(B639,'County code'!A:B,2,FALSE),\" \")","v":" "},{"$f":"IF(D639>0,VLOOKUP(D639,'County code'!D:E,2,FALSE),\" \")","v":" "},0,0]
[null,null,null,null,null,null,null,null,null,null,null,null,null,null,null,null,null,null,null,null,null,null,null,null,null,{"$f":"IF(B640>0,VLOOKUP(B640,'County code'!A:B,2,FALSE),\" \")","v":" "},{"$f":"IF(D640>0,VLOOKUP(D640,'County code'!D:E,2,FALSE),\" \")","v":" "},0,0]
[null,null,null,null,null,null,null,null,null,null,null,null,null,null,null,null,null,null,null,null,null,null,null,null,null,{"$f":"IF(B641>0,VLOOKUP(B641,'County code'!A:B,2,FALSE),\" \")","v":" "},{"$f":"IF(D641>0,VLOOKUP(D641,'County code'!D:E,2,FALSE),\" \")","v":" "},0,0]
[null,null,null,null,null,null,null,null,null,null,null,null,null,null,null,null,null,null,null,null,null,null,null,null,null,{"$f":"IF(B642>0,VLOOKUP(B642,'County code'!A:B,2,FALSE),\" \")","v":" "},{"$f":"IF(D642>0,VLOOKUP(D642,'County code'!D:E,2,FALSE),\" \")","v":" "},0,0]
[null,null,null,null,null,null,null,null,null,null,null,null,null,null,null,null,null,null,null,null,null,null,null,null,null,{"$f":"IF(B643>0,VLOOKUP(B643,'County code'!A:B,2,FALSE),\" \")","v":" "},{"$f":"IF(D643>0,VLOOKUP(D643,'County code'!D:E,2,FALSE),\" \")","v":" "},0,0]
[null,null,null,null,null,null,null,null,null,null,null,null,null,null,null,null,null,null,null,null,null,null,null,null,null,{"$f":"IF(B644>0,VLOOKUP(B644,'County code'!A:B,2,FALSE),\" \")","v":" "},{"$f":"IF(D644>0,VLOOKUP(D644,'County code'!D:E,2,FALSE),\" \")","v":" "},{"$f":"G644","v":0},0]
[null,null,null,null,null,null,null,null,null,null,null,null,null,null,null,null,null,null,null,null,null,null,null,null,null,{"$f":"IF(B645>0,VLOOKUP(B645,'County code'!A:B,2,FALSE),\" \")","v":" "},{"$f":"IF(D645>0,VLOOKUP(D645,'County code'!D:E,2,FALSE),\" \")","v":" "},0,{"$f":"IF(AA645=5,AB645,M645)","v":0}]
[null,null,null,null,null,null,null,null,null,null,null,null,null,null,null,null,null,null,null,null,null,null,null,null,null,{"$f":"IF(B646>0,VLOOKUP(B646,'County code'!A:B,2,FALSE),\" \")","v":" "},{"$f":"IF(D646>0,VLOOKUP(D646,'County code'!D:E,2,FALSE),\" \")","v":" "},0,0]
[null,null,null,null,null,null,null,null,null,null,null,null,null,null,null,null,null,null,null,null,null,null,null,null,null,{"$f":"IF(B647>0,VLOOKUP(B647,'County code'!A:B,2,FALSE),\" \")","v":" "},{"$f":"IF(D647>0,VLOOKUP(D647,'County code'!D:E,2,FALSE),\" \")","v":" "},0,0]
[null,null,null,null,null,null,null,null,null,null,null,null,null,null,null,null,null,null,null,null,null,null,null,null,null,{"$f":"IF(B648>0,VLOOKUP(B648,'County code'!A:B,2,FALSE),\" \")","v":" "},{"$f":"IF(D648>0,VLOOKUP(D648,'County code'!D:E,2,FALSE),\" \")","v":" "},0,0]
[null,null,null,null,null,null,null,null,null,null,null,null,null,null,null,null,null,null,null,null,null,null,null,null,null,{"$f":"IF(B649>0,VLOOKUP(B649,'County code'!A:B,2,FALSE),\" \")","v":" "},{"$f":"IF(D649>0,VLOOKUP(D649,'County code'!D:E,2,FALSE),\" \")","v":" "},0,0]
[null,null,null,null,null,null,null,null,null,null,null,null,null,null,null,null,null,null,null,null,null,null,null,null,null,{"$f":"IF(B650>0,VLOOKUP(B650,'County code'!A:B,2,FALSE),\" \")","v":" "},{"$f":"IF(D650>0,VLOOKUP(D650,'County code'!D:E,2,FALSE),\" \")","v":" "},0,0]
[null,null,null,null,null,null,null,null,null,null,null,null,null,null,null,null,null,null,null,null,null,null,null,null,null,{"$f":"IF(B651>0,VLOOKUP(B651,'County code'!A:B,2,FALSE),\" \")","v":" "},{"$f":"IF(D651>0,VLOOKUP(D651,'County code'!D:E,2,FALSE),\" \")","v":" "},0,0]
[null,null,null,null,null,null,null,null,null,null,null,null,null,null,null,null,null,null,null,null,null,null,null,null,null,{"$f":"IF(B652>0,VLOOKUP(B652,'County code'!A:B,2,FALSE),\" \")","v":" "},{"$f":"IF(D652>0,VLOOKUP(D652,'County code'!D:E,2,FALSE),\" \")","v":" "},0,0]
[null,null,null,null,null,null,null,null,null,null,null,null,null,null,null,null,null,null,null,null,null,null,null,null,null,{"$f":"IF(B653>0,VLOOKUP(B653,'County code'!A:B,2,FALSE),\" \")","v":" "},{"$f":"IF(D653>0,VLOOKUP(D653,'County code'!D:E,2,FALSE),\" \")","v":" "},0,0]
[null,null,null,null,null,null,null,null,null,null,null,null,null,null,null,null,null,null,null,null,null,null,null,null,null,{"$f":"IF(B654>0,VLOOKUP(B654,'County code'!A:B,2,FALSE),\" \")","v":" "},{"$f":"IF(D654>0,VLOOKUP(D654,'County code'!D:E,2,FALSE),\" \")","v":" "},0,0]
[null,null,null,null,null,null,null,null,null,null,null,null,null,null,null,null,null,null,null,null,null,null,null,null,null,{"$f":"IF(B655>0,VLOOKUP(B655,'County code'!A:B,2,FALSE),\" \")","v":" "},{"$f":"IF(D655>0,VLOOKUP(D655,'County code'!D:E,2,FALSE),\" \")","v":" "},0,0]
[null,null,null,null,null,null,null,null,null,null,null,null,null,null,null,null,null,null,null,null,null,null,null,null,null,{"$f":"IF(B656>0,VLOOKUP(B656,'County code'!A:B,2,FALSE),\" \")","v":" "},{"$f":"IF(D656>0,VLOOKUP(D656,'County code'!D:E,2,FALSE),\" \")","v":" "},0,0]
[null,null,null,null,null,null,null,null,null,null,null,null,null,null,null,null,null,null,null,null,null,null,null,null,null,{"$f":"IF(B657>0,VLOOKUP(B657,'County code'!A:B,2,FALSE),\" \")","v":" "},{"$f":"IF(D657>0,VLOOKUP(D657,'County code'!D:E,2,FALSE),\" \")","v":" "},0,0]
[null,null,null,null,null,null,null,null,null,null,null,null,null,null,null,null,null,null,null,null,null,null,null,null,null,{"$f":"IF(B658>0,VLOOKUP(B658,'County code'!A:B,2,FALSE),\" \")","v":" "},{"$f":"IF(D658>0,VLOOKUP(D658,'County code'!D:E,2,FALSE),\" \")","v":" "},0,0]
[null,null,null,null,null,null,null,null,null,null,null,null,null,null,null,null,null,null,null,null,null,null,null,null,null,{"$f":"IF(B659>0,VLOOKUP(B659,'County code'!A:B,2,FALSE),\" \")","v":" "},{"$f":"IF(D659>0,VLOOKUP(D659,'County code'!D:E,2,FALSE),\" \")","v":" "},0,0]
[null,null,null,null,null,null,null,null,null,null,null,null,null,null,null,null,null,null,null,null,null,null,null,null,null,{"$f":"IF(B660>0,VLOOKUP(B660,'County code'!A:B,2,FALSE),\" \")","v":" "},{"$f":"IF(D660>0,VLOOKUP(D660,'County code'!D:E,2,FALSE),\" \")","v":" "},0,0]
[null,null,null,null,null,null,null,null,null,null,null,null,null,null,null,null,null,null,null,null,null,null,null,null,null,{"$f":"IF(B661>0,VLOOKUP(B661,'County code'!A:B,2,FALSE),\" \")","v":" "},{"$f":"IF(D661>0,VLOOKUP(D661,'County code'!D:E,2,FALSE),\" \")","v":" "},0,0]
[null,null,null,null,null,null,null,null,null,null,null,null,null,null,null,null,null,null,null,null,null,null,null,null,null,{"$f":"IF(B662>0,VLOOKUP(B662,'County code'!A:B,2,FALSE),\" \")","v":" "},{"$f":"IF(D662>0,VLOOKUP(D662,'County code'!D:E,2,FALSE),\" \")","v":" "},0,0]
[null,null,null,null,null,null,null,null,null,null,null,null,null,null,null,null,null,null,null,null,null,null,null,null,null,{"$f":"IF(B663>0,VLOOKUP(B663,'County code'!A:B,2,FALSE),\" \")","v":" "},{"$f":"IF(D663>0,VLOOKUP(D663,'County code'!D:E,2,FALSE),\" \")","v":" "},0,0]
[null,null,null,null,null,null,null,null,null,null,null,null,null,null,null,null,null,null,null,null,null,null,null,null,null,{"$f":"IF(B664>0,VLOOKUP(B664,'County code'!A:B,2,FALSE),\" \")","v":" "},{"$f":"IF(D664>0,VLOOKUP(D664,'County code'!D:E,2,FALSE),\" \")","v":" "},0,0]
[null,null,null,null,null,null,null,null,null,null,null,null,null,null,null,null,null,null,null,null,null,null,null,null,null,{"$f":"IF(B665>0,VLOOKUP(B665,'County code'!A:B,2,FALSE),\" \")","v":" "},{"$f":"IF(D665>0,VLOOKUP(D665,'County code'!D:E,2,FALSE),\" \")","v":" "},0,0]
[null,null,null,null,null,null,null,null,null,null,null,null,null,null,null,null,null,null,null,null,null,null,null,null,null,{"$f":"IF(B666>0,VLOOKUP(B666,'County code'!A:B,2,FALSE),\" \")","v":" "},{"$f":"IF(D666>0,VLOOKUP(D666,'County code'!D:E,2,FALSE),\" \")","v":" "},0,0]
[null,null,null,null,null,null,null,null,null,null,null,null,null,null,null,null,null,null,null,null,null,null,null,null,null,{"$f":"IF(B667>0,VLOOKUP(B667,'County code'!A:B,2,FALSE),\" \")","v":" "},{"$f":"IF(D667>0,VLOOKUP(D667,'County code'!D:E,2,FALSE),\" \")","v":" "},0,0]
[null,null,null,null,null,null,null,null,null,null,null,null,null,null,null,null,null,null,null,null,null,null,null,null,null,{"$f":"IF(B668>0,VLOOKUP(B668,'County code'!A:B,2,FALSE),\" \")","v":" "},{"$f":"IF(D668>0,VLOOKUP(D668,'County code'!D:E,2,FALSE),\" \")","v":" "},0,0]
[null,null,null,null,null,null,null,null,null,null,null,null,null,null,null,null,null,null,null,null,null,null,null,null,null,{"$f":"IF(B669>0,VLOOKUP(B669,'County code'!A:B,2,FALSE),\" \")","v":" "},{"$f":"IF(D669>0,VLOOKUP(D669,'County code'!D:E,2,FALSE),\" \")","v":" "},0,0]
[null,null,null,null,null,null,null,null,null,null,null,null,null,null,null,null,null,null,null,null,null,null,null,null,null,{"$f":"IF(B670>0,VLOOKUP(B670,'County code'!A:B,2,FALSE),\" \")","v":" "},{"$f":"IF(D670>0,VLOOKUP(D670,'County code'!D:E,2,FALSE),\" \")","v":" "},0,0]
[null,null,null,null,null,null,null,null,null,null,null,null,null,null,null,null,null,null,null,null,null,null,null,null,null,{"$f":"IF(B671>0,VLOOKUP(B671,'County code'!A:B,2,FALSE),\" \")","v":" "},{"$f":"IF(D671>0,VLOOKUP(D671,'County code'!D:E,2,FALSE),\" \")","v":" "},0,0]
[null,null,null,null,null,null,null,null,null,null,null,null,null,null,null,null,null,null,null,null,null,null,null,null,null,{"$f":"IF(B672>0,VLOOKUP(B672,'County code'!A:B,2,FALSE),\" \")","v":" "},{"$f":"IF(D672>0,VLOOKUP(D672,'County code'!D:E,2,FALSE),\" \")","v":" "},0,0]
[null,null,null,null,null,null,null,null,null,null,null,null,null,null,null,null,null,null,null,null,null,null,null,null,null,{"$f":"IF(B673>0,VLOOKUP(B673,'County code'!A:B,2,FALSE),\" \")","v":" "},{"$f":"IF(D673>0,VLOOKUP(D673,'County code'!D:E,2,FALSE),\" \")","v":" "},0,0]
[null,null,null,null,null,null,null,null,null,null,null,null,null,null,null,null,null,null,null,null,null,null,null,null,null,{"$f":"IF(B674>0,VLOOKUP(B674,'County code'!A:B,2,FALSE),\" \")","v":" "},{"$f":"IF(D674>0,VLOOKUP(D674,'County code'!D:E,2,FALSE),\" \")","v":" "},0,0]
[null,null,null,null,null,null,null,null,null,null,null,null,null,null,null,null,null,null,null,null,null,null,null,null,null,{"$f":"IF(B675>0,VLOOKUP(B675,'County code'!A:B,2,FALSE),\" \")","v":" "},{"$f":"IF(D675>0,VLOOKUP(D675,'County code'!D:E,2,FALSE),\" \")","v":" "},0,0]
[null,null,null,null,null,null,null,null,null,null,null,null,null,null,null,null,null,null,null,null,null,null,null,null,null,{"$f":"IF(B676>0,VLOOKUP(B676,'County code'!A:B,2,FALSE),\" \")","v":" "},{"$f":"IF(D676>0,VLOOKUP(D676,'County code'!D:E,2,FALSE),\" \")","v":" "},0,0]
[null,null,null,null,null,null,null,null,null,null,null,null,null,null,null,null,null,null,null,null,null,null,null,null,null,{"$f":"IF(B677>0,VLOOKUP(B677,'County code'!A:B,2,FALSE),\" \")","v":" "},{"$f":"IF(D677>0,VLOOKUP(D677,'County code'!D:E,2,FALSE),\" \")","v":" "},0,0]
[null,null,null,null,null,null,null,null,null,null,null,null,null,null,null,null,null,null,null,null,null,null,null,null,null,{"$f":"IF(B678>0,VLOOKUP(B678,'County code'!A:B,2,FALSE),\" \")","v":" "},{"$f":"IF(D678>0,VLOOKUP(D678,'County code'!D:E,2,FALSE),\" \")","v":" "},0,0]
[null,null,null,null,null,null,null,null,null,null,null,null,null,null,null,null,null,null,null,null,null,null,null,null,null,{"$f":"IF(B679>0,VLOOKUP(B679,'County code'!A:B,2,FALSE),\" \")","v":" "},{"$f":"IF(D679>0,VLOOKUP(D679,'County code'!D:E,2,FALSE),\" \")","v":" "},0,0]
[null,null,null,null,null,null,null,null,null,null,null,null,null,null,null,null,null,null,null,null,null,null,null,null,null,{"$f":"IF(B680>0,VLOOKUP(B680,'County code'!A:B,2,FALSE),\" \")","v":" "},{"$f":"IF(D680>0,VLOOKUP(D680,'County code'!D:E,2,FALSE),\" \")","v":" "},0,0]
[null,null,null,null,null,null,null,null,null,null,null,null,null,null,null,null,null,null,null,null,null,null,null,null,null,{"$f":"IF(B681>0,VLOOKUP(B681,'County code'!A:B,2,FALSE),\" \")","v":" "},{"$f":"IF(D681>0,VLOOKUP(D681,'County code'!D:E,2,FALSE),\" \")","v":" "},0,0]
[null,null,null,null,null,null,null,null,null,null,null,null,null,null,null,null,null,null,null,null,null,null,null,null,null,{"$f":"IF(B682>0,VLOOKUP(B682,'County code'!A:B,2,FALSE),\" \")","v":" "},{"$f":"IF(D682>0,VLOOKUP(D682,'County code'!D:E,2,FALSE),\" \")","v":" "},0,0]
[null,null,null,null,null,null,null,null,null,null,null,null,null,null,null,null,null,null,null,null,null,null,null,null,null,{"$f":"IF(B683>0,VLOOKUP(B683,'County code'!A:B,2,FALSE),\" \")","v":" "},{"$f":"IF(D683>0,VLOOKUP(D683,'County code'!D:E,2,FALSE),\" \")","v":" "},0,0]
[null,null,null,null,null,null,null,null,null,null,null,null,null,null,null,null,null,null,null,null,null,null,null,null,null,{"$f":"IF(B684>0,VLOOKUP(B684,'County code'!A:B,2,FALSE),\" \")","v":" "},{"$f":"IF(D684>0,VLOOKUP(D684,'County code'!D:E,2,FALSE),\" \")","v":" "},0,0]
[null,null,null,null,null,null,null,null,null,null,null,null,null,null,null,null,null,null,null,null,null,null,null,null,null,{"$f":"IF(B685>0,VLOOKUP(B685,'County code'!A:B,2,FALSE),\" \")","v":" "},{"$f":"IF(D685>0,VLOOKUP(D685,'County code'!D:E,2,FALSE),\" \")","v":" "},0,0]
[null,null,null,null,null,null,null,null,null,null,null,null,null,null,null,null,null,null,null,null,null,null,null,null,null,{"$f":"IF(B686>0,VLOOKUP(B686,'County code'!A:B,2,FALSE),\" \")","v":" "},{"$f":"IF(D686>0,VLOOKUP(D686,'County code'!D:E,2,FALSE),\" \")","v":" "},0,0]
[null,null,null,null,null,null,null,null,null,null,null,null,null,null,null,null,null,null,null,null,null,null,null,null,null,{"$f":"IF(B687>0,VLOOKUP(B687,'County code'!A:B,2,FALSE),\" \")","v":" "},{"$f":"IF(D687>0,VLOOKUP(D687,'County code'!D:E,2,FALSE),\" \")","v":" "},0,0]
[null,null,null,null,null,null,null,null,null,null,null,null,null,null,null,null,null,null,null,null,null,null,null,null,null,{"$f":"IF(B688>0,VLOOKUP(B688,'County code'!A:B,2,FALSE),\" \")","v":" "},{"$f":"IF(D688>0,VLOOKUP(D688,'County code'!D:E,2,FALSE),\" \")","v":" "},0,0]
[null,null,null,null,null,null,null,null,null,null,null,null,null,null,null,null,null,null,null,null,null,null,null,null,null,{"$f":"IF(B689>0,VLOOKUP(B689,'County code'!A:B,2,FALSE),\" \")","v":" "},{"$f":"IF(D689>0,VLOOKUP(D689,'County code'!D:E,2,FALSE),\" \")","v":" "},0,0]
[null,null,null,null,null,null,null,null,null,null,null,null,null,null,null,null,null,null,null,null,null,null,null,null,null,{"$f":"IF(B690>0,VLOOKUP(B690,'County code'!A:B,2,FALSE),\" \")","v":" "},{"$f":"IF(D690>0,VLOOKUP(D690,'County code'!D:E,2,FALSE),\" \")","v":" "},0,0]
[null,null,null,null,null,null,null,null,null,null,null,null,null,null,null,null,null,null,null,null,null,null,null,null,null,{"$f":"IF(B691>0,VLOOKUP(B691,'County code'!A:B,2,FALSE),\" \")","v":" "},{"$f":"IF(D691>0,VLOOKUP(D691,'County code'!D:E,2,FALSE),\" \")","v":" "},0,0]
[null,null,null,null,null,null,null,null,null,null,null,null,null,null,null,null,null,null,null,null,null,null,null,null,null,{"$f":"IF(B692>0,VLOOKUP(B692,'County code'!A:B,2,FALSE),\" \")","v":" "},{"$f":"IF(D692>0,VLOOKUP(D692,'County code'!D:E,2,FALSE),\" \")","v":" "},0,0]
[null,null,null,null,null,null,null,null,null,null,null,null,null,null,null,null,null,null,null,null,null,null,null,null,null,{"$f":"IF(B693>0,VLOOKUP(B693,'County code'!A:B,2,FALSE),\" \")","v":" "},{"$f":"IF(D693>0,VLOOKUP(D693,'County code'!D:E,2,FALSE),\" \")","v":" "},0,0]
[null,null,null,null,null,null,null,null,null,null,null,null,null,null,null,null,null,null,null,null,null,null,null,null,null,{"$f":"IF(B694>0,VLOOKUP(B694,'County code'!A:B,2,FALSE),\" \")","v":" "},{"$f":"IF(D694>0,VLOOKUP(D694,'County code'!D:E,2,FALSE),\" \")","v":" "},0,0]
[null,null,null,null,null,null,null,null,null,null,null,null,null,null,null,null,null,null,null,null,null,null,null,null,null,{"$f":"IF(B695>0,VLOOKUP(B695,'County code'!A:B,2,FALSE),\" \")","v":" "},{"$f":"IF(D695>0,VLOOKUP(D695,'County code'!D:E,2,FALSE),\" \")","v":" "},0,0]
[null,null,null,null,null,null,null,null,null,null,null,null,null,null,null,null,null,null,null,null,null,null,null,null,null,{"$f":"IF(B696>0,VLOOKUP(B696,'County code'!A:B,2,FALSE),\" \")","v":" "},{"$f":"IF(D696>0,VLOOKUP(D696,'County code'!D:E,2,FALSE),\" \")","v":" "},0,0]
[null,null,null,null,null,null,null,null,null,null,null,null,null,null,null,null,null,null,null,null,null,null,null,null,null,{"$f":"IF(B697>0,VLOOKUP(B697,'County code'!A:B,2,FALSE),\" \")","v":" "},{"$f":"IF(D697>0,VLOOKUP(D697,'County code'!D:E,2,FALSE),\" \")","v":" "},0,0]
[null,null,null,null,null,null,null,null,null,null,null,null,null,null,null,null,null,null,null,null,null,null,null,null,null,{"$f":"IF(B698>0,VLOOKUP(B698,'County code'!A:B,2,FALSE),\" \")","v":" "},{"$f":"IF(D698>0,VLOOKUP(D698,'County code'!D:E,2,FALSE),\" \")","v":" "},0,0]
[null,null,null,null,null,null,null,null,null,null,null,null,null,null,null,null,null,null,null,null,null,null,null,null,null,{"$f":"IF(B699>0,VLOOKUP(B699,'County code'!A:B,2,FALSE),\" \")","v":" "},{"$f":"IF(D699>0,VLOOKUP(D699,'County code'!D:E,2,FALSE),\" \")","v":" "},0,0]
[null,null,null,null,null,null,null,null,null,null,null,null,null,null,null,null,null,null,null,null,null,null,null,null,null,{"$f":"IF(B700>0,VLOOKUP(B700,'County code'!A:B,2,FALSE),\" \")","v":" "},{"$f":"IF(D700>0,VLOOKUP(D700,'County code'!D:E,2,FALSE),\" \")","v":" "},0,0]
[null,null,null,null,null,null,null,null,null,null,null,null,null,null,null,null,null,null,null,null,null,null,null,null,null,{"$f":"IF(B701>0,VLOOKUP(B701,'County code'!A:B,2,FALSE),\" \")","v":" "},{"$f":"IF(D701>0,VLOOKUP(D701,'County code'!D:E,2,FALSE),\" \")","v":" "},0,0]
[null,null,null,null,null,null,null,null,null,null,null,null,null,null,null,null,null,null,null,null,null,null,null,null,null,{"$f":"IF(B702>0,VLOOKUP(B702,'County code'!A:B,2,FALSE),\" \")","v":" "},{"$f":"IF(D702>0,VLOOKUP(D702,'County code'!D:E,2,FALSE),\" \")","v":" "},0,0]
[null,null,null,null,null,null,null,null,null,null,null,null,null,null,null,null,null,null,null,null,null,null,null,null,null,{"$f":"IF(B703>0,VLOOKUP(B703,'County code'!A:B,2,FALSE),\" \")","v":" "},{"$f":"IF(D703>0,VLOOKUP(D703,'County code'!D:E,2,FALSE),\" \")","v":" "},0,0]
[null,null,null,null,null,null,null,null,null,null,null,null,null,null,null,null,null,null,null,null,null,null,null,null,null,{"$f":"IF(B704>0,VLOOKUP(B704,'County code'!A:B,2,FALSE),\" \")","v":" "},{"$f":"IF(D704>0,VLOOKUP(D704,'County code'!D:E,2,FALSE),\" \")","v":" "},0,0]
[null,null,null,null,null,null,null,null,null,null,null,null,null,null,null,null,null,null,null,null,null,null,null,null,null,{"$f":"IF(B705>0,VLOOKUP(B705,'County code'!A:B,2,FALSE),\" \")","v":" "},{"$f":"IF(D705>0,VLOOKUP(D705,'County code'!D:E,2,FALSE),\" \")","v":" "},0,0]
[null,null,null,null,null,null,null,null,null,null,null,null,null,null,null,null,null,null,null,null,null,null,null,null,null,{"$f":"IF(B706>0,VLOOKUP(B706,'County code'!A:B,2,FALSE),\" \")","v":" "},{"$f":"IF(D706>0,VLOOKUP(D706,'County code'!D:E,2,FALSE),\" \")","v":" "},0,0]
[null,null,null,null,null,null,null,null,null,null,null,null,null,null,null,null,null,null,null,null,null,null,null,null,null,{"$f":"IF(B707>0,VLOOKUP(B707,'County code'!A:B,2,FALSE),\" \")","v":" "},{"$f":"IF(D707>0,VLOOKUP(D707,'County code'!D:E,2,FALSE),\" \")","v":" "},0,0]
[null,null,null,null,null,null,null,null,null,null,null,null,null,null,null,null,null,null,null,null,null,null,null,null,null,{"$f":"IF(B708>0,VLOOKUP(B708,'County code'!A:B,2,FALSE),\" \")","v":" "},{"$f":"IF(D708>0,VLOOKUP(D708,'County code'!D:E,2,FALSE),\" \")","v":" "},{"$f":"G708","v":0},0]
[null,null,null,null,null,null,null,null,null,null,null,null,null,null,null,null,null,null,null,null,null,null,null,null,null,{"$f":"IF(B709>0,VLOOKUP(B709,'County code'!A:B,2,FALSE),\" \")","v":" "},{"$f":"IF(D709>0,VLOOKUP(D709,'County code'!D:E,2,FALSE),\" \")","v":" "},0,{"$f":"IF(AA709=5,AB709,M709)","v":0}]
[null,null,null,null,null,null,null,null,null,null,null,null,null,null,null,null,null,null,null,null,null,null,null,null,null,{"$f":"IF(B710>0,VLOOKUP(B710,'County code'!A:B,2,FALSE),\" \")","v":" "},{"$f":"IF(D710>0,VLOOKUP(D710,'County code'!D:E,2,FALSE),\" \")","v":" "},0,0]
[null,null,null,null,null,null,null,null,null,null,null,null,null,null,null,null,null,null,null,null,null,null,null,null,null,{"$f":"IF(B711>0,VLOOKUP(B711,'County code'!A:B,2,FALSE),\" \")","v":" "},{"$f":"IF(D711>0,VLOOKUP(D711,'County code'!D:E,2,FALSE),\" \")","v":" "},0,0]
[null,null,null,null,null,null,null,null,null,null,null,null,null,null,null,null,null,null,null,null,null,null,null,null,null,{"$f":"IF(B712>0,VLOOKUP(B712,'County code'!A:B,2,FALSE),\" \")","v":" "},{"$f":"IF(D712>0,VLOOKUP(D712,'County code'!D:E,2,FALSE),\" \")","v":" "},0,0]
[null,null,null,null,null,null,null,null,null,null,null,null,null,null,null,null,null,null,null,null,null,null,null,null,null,{"$f":"IF(B713>0,VLOOKUP(B713,'County code'!A:B,2,FALSE),\" \")","v":" "},{"$f":"IF(D713>0,VLOOKUP(D713,'County code'!D:E,2,FALSE),\" \")","v":" "},0,0]
[null,null,null,null,null,null,null,null,null,null,null,null,null,null,null,null,null,null,null,null,null,null,null,null,null,{"$f":"IF(B714>0,VLOOKUP(B714,'County code'!A:B,2,FALSE),\" \")","v":" "},{"$f":"IF(D714>0,VLOOKUP(D714,'County code'!D:E,2,FALSE),\" \")","v":" "},0,0]
[null,null,null,null,null,null,null,null,null,null,null,null,null,null,null,null,null,null,null,null,null,null,null,null,null,{"$f":"IF(B715>0,VLOOKUP(B715,'County code'!A:B,2,FALSE),\" \")","v":" "},{"$f":"IF(D715>0,VLOOKUP(D715,'County code'!D:E,2,FALSE),\" \")","v":" "},0,0]
[null,null,null,null,null,null,null,null,null,null,null,null,null,null,null,null,null,null,null,null,null,null,null,null,null,{"$f":"IF(B716>0,VLOOKUP(B716,'County code'!A:B,2,FALSE),\" \")","v":" "},{"$f":"IF(D716>0,VLOOKUP(D716,'County code'!D:E,2,FALSE),\" \")","v":" "},0,0]
[null,null,null,null,null,null,null,null,null,null,null,null,null,null,null,null,null,null,null,null,null,null,null,null,null,{"$f":"IF(B717>0,VLOOKUP(B717,'County code'!A:B,2,FALSE),\" \")","v":" "},{"$f":"IF(D717>0,VLOOKUP(D717,'County code'!D:E,2,FALSE),\" \")","v":" "},0,0]
[null,null,null,null,null,null,null,null,null,null,null,null,null,null,null,null,null,null,null,null,null,null,null,null,null,{"$f":"IF(B718>0,VLOOKUP(B718,'County code'!A:B,2,FALSE),\" \")","v":" "},{"$f":"IF(D718>0,VLOOKUP(D718,'County code'!D:E,2,FALSE),\" \")","v":" "},0,0]
[null,null,null,null,null,null,null,null,null,null,null,null,null,null,null,null,null,null,null,null,null,null,null,null,null,{"$f":"IF(B719>0,VLOOKUP(B719,'County code'!A:B,2,FALSE),\" \")","v":" "},{"$f":"IF(D719>0,VLOOKUP(D719,'County code'!D:E,2,FALSE),\" \")","v":" "},0,0]
[null,null,null,null,null,null,null,null,null,null,null,null,null,null,null,null,null,null,null,null,null,null,null,null,null,{"$f":"IF(B720>0,VLOOKUP(B720,'County code'!A:B,2,FALSE),\" \")","v":" "},{"$f":"IF(D720>0,VLOOKUP(D720,'County code'!D:E,2,FALSE),\" \")","v":" "},0,0]
[null,null,null,null,null,null,null,null,null,null,null,null,null,null,null,null,null,null,null,null,null,null,null,null,null,{"$f":"IF(B721>0,VLOOKUP(B721,'County code'!A:B,2,FALSE),\" \")","v":" "},{"$f":"IF(D721>0,VLOOKUP(D721,'County code'!D:E,2,FALSE),\" \")","v":" "},0,0]
[null,null,null,null,null,null,null,null,null,null,null,null,null,null,null,null,null,null,null,null,null,null,null,null,null,{"$f":"IF(B722>0,VLOOKUP(B722,'County code'!A:B,2,FALSE),\" \")","v":" "},{"$f":"IF(D722>0,VLOOKUP(D722,'County code'!D:E,2,FALSE),\" \")","v":" "},0,0]
[null,null,null,null,null,null,null,null,null,null,null,null,null,null,null,null,null,null,null,null,null,null,null,null,null,{"$f":"IF(B723>0,VLOOKUP(B723,'County code'!A:B,2,FALSE),\" \")","v":" "},{"$f":"IF(D723>0,VLOOKUP(D723,'County code'!D:E,2,FALSE),\" \")","v":" "},0,0]
[null,null,null,null,null,null,null,null,null,null,null,null,null,null,null,null,null,null,null,null,null,null,null,null,null,{"$f":"IF(B724>0,VLOOKUP(B724,'County code'!A:B,2,FALSE),\" \")","v":" "},{"$f":"IF(D724>0,VLOOKUP(D724,'County code'!D:E,2,FALSE),\" \")","v":" "},0,0]
[null,null,null,null,null,null,null,null,null,null,null,null,null,null,null,null,null,null,null,null,null,null,null,null,null,{"$f":"IF(B725>0,VLOOKUP(B725,'County code'!A:B,2,FALSE),\" \")","v":" "},{"$f":"IF(D725>0,VLOOKUP(D725,'County code'!D:E,2,FALSE),\" \")","v":" "},0,0]
[null,null,null,null,null,null,null,null,null,null,null,null,null,null,null,null,null,null,null,null,null,null,null,null,null,{"$f":"IF(B726>0,VLOOKUP(B726,'County code'!A:B,2,FALSE),\" \")","v":" "},{"$f":"IF(D726>0,VLOOKUP(D726,'County code'!D:E,2,FALSE),\" \")","v":" "},0,0]
[null,null,null,null,null,null,null,null,null,null,null,null,null,null,null,null,null,null,null,null,null,null,null,null,null,{"$f":"IF(B727>0,VLOOKUP(B727,'County code'!A:B,2,FALSE),\" \")","v":" "},{"$f":"IF(D727>0,VLOOKUP(D727,'County code'!D:E,2,FALSE),\" \")","v":" "},0,0]
[null,null,null,null,null,null,null,null,null,null,null,null,null,null,null,null,null,null,null,null,null,null,null,null,null,{"$f":"IF(B728>0,VLOOKUP(B728,'County code'!A:B,2,FALSE),\" \")","v":" "},{"$f":"IF(D728>0,VLOOKUP(D728,'County code'!D:E,2,FALSE),\" \")","v":" "},0,0]
[null,null,null,null,null,null,null,null,null,null,null,null,null,null,null,null,null,null,null,null,null,null,null,null,null,{"$f":"IF(B729>0,VLOOKUP(B729,'County code'!A:B,2,FALSE),\" \")","v":" "},{"$f":"IF(D729>0,VLOOKUP(D729,'County code'!D:E,2,FALSE),\" \")","v":" "},0,0]
[null,null,null,null,null,null,null,null,null,null,null,null,null,null,null,null,null,null,null,null,null,null,null,null,null,{"$f":"IF(B730>0,VLOOKUP(B730,'County code'!A:B,2,FALSE),\" \")","v":" "},{"$f":"IF(D730>0,VLOOKUP(D730,'County code'!D:E,2,FALSE),\" \")","v":" "},0,0]
[null,null,null,null,null,null,null,null,null,null,null,null,null,null,null,null,null,null,null,null,null,null,null,null,null,{"$f":"IF(B731>0,VLOOKUP(B731,'County code'!A:B,2,FALSE),\" \")","v":" "},{"$f":"IF(D731>0,VLOOKUP(D731,'County code'!D:E,2,FALSE),\" \")","v":" "},0,0]
[null,null,null,null,null,null,null,null,null,null,null,null,null,null,null,null,null,null,null,null,null,null,null,null,null,{"$f":"IF(B732>0,VLOOKUP(B732,'County code'!A:B,2,FALSE),\" \")","v":" "},{"$f":"IF(D732>0,VLOOKUP(D732,'County code'!D:E,2,FALSE),\" \")","v":" "},0,0]
[null,null,null,null,null,null,null,null,null,null,null,null,null,null,null,null,null,null,null,null,null,null,null,null,null,{"$f":"IF(B733>0,VLOOKUP(B733,'County code'!A:B,2,FALSE),\" \")","v":" "},{"$f":"IF(D733>0,VLOOKUP(D733,'County code'!D:E,2,FALSE),\" \")","v":" "},0,0]
[null,null,null,null,null,null,null,null,null,null,null,null,null,null,null,null,null,null,null,null,null,null,null,null,null,{"$f":"IF(B734>0,VLOOKUP(B734,'County code'!A:B,2,FALSE),\" \")","v":" "},{"$f":"IF(D734>0,VLOOKUP(D734,'County code'!D:E,2,FALSE),\" \")","v":" "},0,0]
[null,null,null,null,null,null,null,null,null,null,null,null,null,null,null,null,null,null,null,null,null,null,null,null,null,{"$f":"IF(B735>0,VLOOKUP(B735,'County code'!A:B,2,FALSE),\" \")","v":" "},{"$f":"IF(D735>0,VLOOKUP(D735,'County code'!D:E,2,FALSE),\" \")","v":" "},0,0]
[null,null,null,null,null,null,null,null,null,null,null,null,null,null,null,null,null,null,null,null,null,null,null,null,null,{"$f":"IF(B736>0,VLOOKUP(B736,'County code'!A:B,2,FALSE),\" \")","v":" "},{"$f":"IF(D736>0,VLOOKUP(D736,'County code'!D:E,2,FALSE),\" \")","v":" "},0,0]
[null,null,null,null,null,null,null,null,null,null,null,null,null,null,null,null,null,null,null,null,null,null,null,null,null,{"$f":"IF(B737>0,VLOOKUP(B737,'County code'!A:B,2,FALSE),\" \")","v":" "},{"$f":"IF(D737>0,VLOOKUP(D737,'County code'!D:E,2,FALSE),\" \")","v":" "},0,0]
[null,null,null,null,null,null,null,null,null,null,null,null,null,null,null,null,null,null,null,null,null,null,null,null,null,{"$f":"IF(B738>0,VLOOKUP(B738,'County code'!A:B,2,FALSE),\" \")","v":" "},{"$f":"IF(D738>0,VLOOKUP(D738,'County code'!D:E,2,FALSE),\" \")","v":" "},0,0]
[null,null,null,null,null,null,null,null,null,null,null,null,null,null,null,null,null,null,null,null,null,null,null,null,null,{"$f":"IF(B739>0,VLOOKUP(B739,'County code'!A:B,2,FALSE),\" \")","v":" "},{"$f":"IF(D739>0,VLOOKUP(D739,'County code'!D:E,2,FALSE),\" \")","v":" "},0,0]
[null,null,null,null,null,null,null,null,null,null,null,null,null,null,null,null,null,null,null,null,null,null,null,null,null,{"$f":"IF(B740>0,VLOOKUP(B740,'County code'!A:B,2,FALSE),\" \")","v":" "},{"$f":"IF(D740>0,VLOOKUP(D740,'County code'!D:E,2,FALSE),\" \")","v":" "},0,0]
[null,null,null,null,null,null,null,null,null,null,null,null,null,null,null,null,null,null,null,null,null,null,null,null,null,{"$f":"IF(B741>0,VLOOKUP(B741,'County code'!A:B,2,FALSE),\" \")","v":" "},{"$f":"IF(D741>0,VLOOKUP(D741,'County code'!D:E,2,FALSE),\" \")","v":" "},0,0]
[null,null,null,null,null,null,null,null,null,null,null,null,null,null,null,null,null,null,null,null,null,null,null,null,null,{"$f":"IF(B742>0,VLOOKUP(B742,'County code'!A:B,2,FALSE),\" \")","v":" "},{"$f":"IF(D742>0,VLOOKUP(D742,'County code'!D:E,2,FALSE),\" \")","v":" "},0,0]
[null,null,null,null,null,null,null,null,null,null,null,null,null,null,null,null,null,null,null,null,null,null,null,null,null,{"$f":"IF(B743>0,VLOOKUP(B743,'County code'!A:B,2,FALSE),\" \")","v":" "},{"$f":"IF(D743>0,VLOOKUP(D743,'County code'!D:E,2,FALSE),\" \")","v":" "},0,0]
[null,null,null,null,null,null,null,null,null,null,null,null,null,null,null,null,null,null,null,null,null,null,null,null,null,{"$f":"IF(B744>0,VLOOKUP(B744,'County code'!A:B,2,FALSE),\" \")","v":" "},{"$f":"IF(D744>0,VLOOKUP(D744,'County code'!D:E,2,FALSE),\" \")","v":" "},0,0]
[null,null,null,null,null,null,null,null,null,null,null,null,null,null,null,null,null,null,null,null,null,null,null,null,null,{"$f":"IF(B745>0,VLOOKUP(B745,'County code'!A:B,2,FALSE),\" \")","v":" "},{"$f":"IF(D745>0,VLOOKUP(D745,'County code'!D:E,2,FALSE),\" \")","v":" "},0,0]
[null,null,null,null,null,null,null,null,null,null,null,null,null,null,null,null,null,null,null,null,null,null,null,null,null,{"$f":"IF(B746>0,VLOOKUP(B746,'County code'!A:B,2,FALSE),\" \")","v":" "},{"$f":"IF(D746>0,VLOOKUP(D746,'County code'!D:E,2,FALSE),\" \")","v":" "},0,0]
[null,null,null,null,null,null,null,null,null,null,null,null,null,null,null,null,null,null,null,null,null,null,null,null,null,{"$f":"IF(B747>0,VLOOKUP(B747,'County code'!A:B,2,FALSE),\" \")","v":" "},{"$f":"IF(D747>0,VLOOKUP(D747,'County code'!D:E,2,FALSE),\" \")","v":" "},0,0]
[null,null,null,null,null,null,null,null,null,null,null,null,null,null,null,null,null,null,null,null,null,null,null,null,null,{"$f":"IF(B748>0,VLOOKUP(B748,'County code'!A:B,2,FALSE),\" \")","v":" "},{"$f":"IF(D748>0,VLOOKUP(D748,'County code'!D:E,2,FALSE),\" \")","v":" "},0,0]
[null,null,null,null,null,null,null,null,null,null,null,null,null,null,null,null,null,null,null,null,null,null,null,null,null,{"$f":"IF(B749>0,VLOOKUP(B749,'County code'!A:B,2,FALSE),\" \")","v":" "},{"$f":"IF(D749>0,VLOOKUP(D749,'County code'!D:E,2,FALSE),\" \")","v":" "},0,0]
[null,null,null,null,null,null,null,null,null,null,null,null,null,null,null,null,null,null,null,null,null,null,null,null,null,{"$f":"IF(B750>0,VLOOKUP(B750,'County code'!A:B,2,FALSE),\" \")","v":" "},{"$f":"IF(D750>0,VLOOKUP(D750,'County code'!D:E,2,FALSE),\" \")","v":" "},0,0]
[null,null,null,null,null,null,null,null,null,null,null,null,null,null,null,null,null,null,null,null,null,null,null,null,null,{"$f":"IF(B751>0,VLOOKUP(B751,'County code'!A:B,2,FALSE),\" \")","v":" "},{"$f":"IF(D751>0,VLOOKUP(D751,'County code'!D:E,2,FALSE),\" \")","v":" "},0,0]
[null,null,null,null,null,null,null,null,null,null,null,null,null,null,null,null,null,null,null,null,null,null,null,null,null,{"$f":"IF(B752>0,VLOOKUP(B752,'County code'!A:B,2,FALSE),\" \")","v":" "},{"$f":"IF(D752>0,VLOOKUP(D752,'County code'!D:E,2,FALSE),\" \")","v":" "},0,0]
[null,null,null,null,null,null,null,null,null,null,null,null,null,null,null,null,null,null,null,null,null,null,null,null,null,{"$f":"IF(B753>0,VLOOKUP(B753,'County code'!A:B,2,FALSE),\" \")","v":" "},{"$f":"IF(D753>0,VLOOKUP(D753,'County code'!D:E,2,FALSE),\" \")","v":" "},0,0]
[null,null,null,null,null,null,null,null,null,null,null,null,null,null,null,null,null,null,null,null,null,null,null,null,null,{"$f":"IF(B754>0,VLOOKUP(B754,'County code'!A:B,2,FALSE),\" \")","v":" "},{"$f":"IF(D754>0,VLOOKUP(D754,'County code'!D:E,2,FALSE),\" \")","v":" "},0,0]
[null,null,null,null,null,null,null,null,null,null,null,null,null,null,null,null,null,null,null,null,null,null,null,null,null,{"$f":"IF(B755>0,VLOOKUP(B755,'County code'!A:B,2,FALSE),\" \")","v":" "},{"$f":"IF(D755>0,VLOOKUP(D755,'County code'!D:E,2,FALSE),\" \")","v":" "},0,0]
[null,null,null,null,null,null,null,null,null,null,null,null,null,null,null,null,null,null,null,null,null,null,null,null,null,{"$f":"IF(B756>0,VLOOKUP(B756,'County code'!A:B,2,FALSE),\" \")","v":" "},{"$f":"IF(D756>0,VLOOKUP(D756,'County code'!D:E,2,FALSE),\" \")","v":" "},0,0]
[null,null,null,null,null,null,null,null,null,null,null,null,null,null,null,null,null,null,null,null,null,null,null,null,null,{"$f":"IF(B757>0,VLOOKUP(B757,'County code'!A:B,2,FALSE),\" \")","v":" "},{"$f":"IF(D757>0,VLOOKUP(D757,'County code'!D:E,2,FALSE),\" \")","v":" "},0,0]
[null,null,null,null,null,null,null,null,null,null,null,null,null,null,null,null,null,null,null,null,null,null,null,null,null,{"$f":"IF(B758>0,VLOOKUP(B758,'County code'!A:B,2,FALSE),\" \")","v":" "},{"$f":"IF(D758>0,VLOOKUP(D758,'County code'!D:E,2,FALSE),\" \")","v":" "},0,0]
[null,null,null,null,null,null,null,null,null,null,null,null,null,null,null,null,null,null,null,null,null,null,null,null,null,{"$f":"IF(B759>0,VLOOKUP(B759,'County code'!A:B,2,FALSE),\" \")","v":" "},{"$f":"IF(D759>0,VLOOKUP(D759,'County code'!D:E,2,FALSE),\" \")","v":" "},0,0]
[null,null,null,null,null,null,null,null,null,null,null,null,null,null,null,null,null,null,null,null,null,null,null,null,null,{"$f":"IF(B760>0,VLOOKUP(B760,'County code'!A:B,2,FALSE),\" \")","v":" "},{"$f":"IF(D760>0,VLOOKUP(D760,'County code'!D:E,2,FALSE),\" \")","v":" "},0,0]
[null,null,null,null,null,null,null,null,null,null,null,null,null,null,null,null,null,null,null,null,null,null,null,null,null,{"$f":"IF(B761>0,VLOOKUP(B761,'County code'!A:B,2,FALSE),\" \")","v":" "},{"$f":"IF(D761>0,VLOOKUP(D761,'County code'!D:E,2,FALSE),\" \")","v":" "},0,0]
[null,null,null,null,null,null,null,null,null,null,null,null,null,null,null,null,null,null,null,null,null,null,null,null,null,{"$f":"IF(B762>0,VLOOKUP(B762,'County code'!A:B,2,FALSE),\" \")","v":" "},{"$f":"IF(D762>0,VLOOKUP(D762,'County code'!D:E,2,FALSE),\" \")","v":" "},0,0]
[null,null,null,null,null,null,null,null,null,null,null,null,null,null,null,null,null,null,null,null,null,null,null,null,null,{"$f":"IF(B763>0,VLOOKUP(B763,'County code'!A:B,2,FALSE),\" \")","v":" "},{"$f":"IF(D763>0,VLOOKUP(D763,'County code'!D:E,2,FALSE),\" \")","v":" "},0,0]
[null,null,null,null,null,null,null,null,null,null,null,null,null,null,null,null,null,null,null,null,null,null,null,null,null,{"$f":"IF(B764>0,VLOOKUP(B764,'County code'!A:B,2,FALSE),\" \")","v":" "},{"$f":"IF(D764>0,VLOOKUP(D764,'County code'!D:E,2,FALSE),\" \")","v":" "},0,0]
[null,null,null,null,null,null,null,null,null,null,null,null,null,null,null,null,null,null,null,null,null,null,null,null,null,{"$f":"IF(B765>0,VLOOKUP(B765,'County code'!A:B,2,FALSE),\" \")","v":" "},{"$f":"IF(D765>0,VLOOKUP(D765,'County code'!D:E,2,FALSE),\" \")","v":" "},0,0]
[null,null,null,null,null,null,null,null,null,null,null,null,null,null,null,null,null,null,null,null,null,null,null,null,null,{"$f":"IF(B766>0,VLOOKUP(B766,'County code'!A:B,2,FALSE),\" \")","v":" "},{"$f":"IF(D766>0,VLOOKUP(D766,'County code'!D:E,2,FALSE),\" \")","v":" "},0,0]
[null,null,null,null,null,null,null,null,null,null,null,null,null,null,null,null,null,null,null,null,null,null,null,null,null,{"$f":"IF(B767>0,VLOOKUP(B767,'County code'!A:B,2,FALSE),\" \")","v":" "},{"$f":"IF(D767>0,VLOOKUP(D767,'County code'!D:E,2,FALSE),\" \")","v":" "},0,0]
[null,null,null,null,null,null,null,null,null,null,null,null,null,null,null,null,null,null,null,null,null,null,null,null,null,{"$f":"IF(B768>0,VLOOKUP(B768,'County code'!A:B,2,FALSE),\" \")","v":" "},{"$f":"IF(D768>0,VLOOKUP(D768,'County code'!D:E,2,FALSE),\" \")","v":" "},0,0]
[null,null,null,null,null,null,null,null,null,null,null,null,null,null,null,null,null,null,null,null,null,null,null,null,null,{"$f":"IF(B769>0,VLOOKUP(B769,'County code'!A:B,2,FALSE),\" \")","v":" "},{"$f":"IF(D769>0,VLOOKUP(D769,'County code'!D:E,2,FALSE),\" \")","v":" "},0,0]
[null,null,null,null,null,null,null,null,null,null,null,null,null,null,null,null,null,null,null,null,null,null,null,null,null,{"$f":"IF(B770>0,VLOOKUP(B770,'County code'!A:B,2,FALSE),\" \")","v":" "},{"$f":"IF(D770>0,VLOOKUP(D770,'County code'!D:E,2,FALSE),\" \")","v":" "},0,0]
[null,null,null,null,null,null,null,null,null,null,null,null,null,null,null,null,null,null,null,null,null,null,null,null,null,{"$f":"IF(B771>0,VLOOKUP(B771,'County code'!A:B,2,FALSE),\" \")","v":" "},{"$f":"IF(D771>0,VLOOKUP(D771,'County code'!D:E,2,FALSE),\" \")","v":" "},0,0]
[null,null,null,null,null,null,null,null,null,null,null,null,null,null,null,null,null,null,null,null,null,null,null,null,null,{"$f":"IF(B772>0,VLOOKUP(B772,'County code'!A:B,2,FALSE),\" \")","v":" "},{"$f":"IF(D772>0,VLOOKUP(D772,'County code'!D:E,2,FALSE),\" \")","v":" "},{"$f":"G772","v":0},0]
[null,null,null,null,null,null,null,null,null,null,null,null,null,null,null,null,null,null,null,null,null,null,null,null,null,{"$f":"IF(B773>0,VLOOKUP(B773,'County code'!A:B,2,FALSE),\" \")","v":" "},{"$f":"IF(D773>0,VLOOKUP(D773,'County code'!D:E,2,FALSE),\" \")","v":" "},0,{"$f":"IF(AA773=5,AB773,M773)","v":0}]
[null,null,null,null,null,null,null,null,null,null,null,null,null,null,null,null,null,null,null,null,null,null,null,null,null,{"$f":"IF(B774>0,VLOOKUP(B774,'County code'!A:B,2,FALSE),\" \")","v":" "},{"$f":"IF(D774>0,VLOOKUP(D774,'County code'!D:E,2,FALSE),\" \")","v":" "},0,0]
[null,null,null,null,null,null,null,null,null,null,null,null,null,null,null,null,null,null,null,null,null,null,null,null,null,{"$f":"IF(B775>0,VLOOKUP(B775,'County code'!A:B,2,FALSE),\" \")","v":" "},{"$f":"IF(D775>0,VLOOKUP(D775,'County code'!D:E,2,FALSE),\" \")","v":" "},0,0]
[null,null,null,null,null,null,null,null,null,null,null,null,null,null,null,null,null,null,null,null,null,null,null,null,null,{"$f":"IF(B776>0,VLOOKUP(B776,'County code'!A:B,2,FALSE),\" \")","v":" "},{"$f":"IF(D776>0,VLOOKUP(D776,'County code'!D:E,2,FALSE),\" \")","v":" "},0,0]
[null,null,null,null,null,null,null,null,null,null,null,null,null,null,null,null,null,null,null,null,null,null,null,null,null,{"$f":"IF(B777>0,VLOOKUP(B777,'County code'!A:B,2,FALSE),\" \")","v":" "},{"$f":"IF(D777>0,VLOOKUP(D777,'County code'!D:E,2,FALSE),\" \")","v":" "},0,0]
[null,null,null,null,null,null,null,null,null,null,null,null,null,null,null,null,null,null,null,null,null,null,null,null,null,{"$f":"IF(B778>0,VLOOKUP(B778,'County code'!A:B,2,FALSE),\" \")","v":" "},{"$f":"IF(D778>0,VLOOKUP(D778,'County code'!D:E,2,FALSE),\" \")","v":" "},0,0]
[null,null,null,null,null,null,null,null,null,null,null,null,null,null,null,null,null,null,null,null,null,null,null,null,null,{"$f":"IF(B779>0,VLOOKUP(B779,'County code'!A:B,2,FALSE),\" \")","v":" "},{"$f":"IF(D779>0,VLOOKUP(D779,'County code'!D:E,2,FALSE),\" \")","v":" "},0,0]
[null,null,null,null,null,null,null,null,null,null,null,null,null,null,null,null,null,null,null,null,null,null,null,null,null,{"$f":"IF(B780>0,VLOOKUP(B780,'County code'!A:B,2,FALSE),\" \")","v":" "},{"$f":"IF(D780>0,VLOOKUP(D780,'County code'!D:E,2,FALSE),\" \")","v":" "},0,0]
[null,null,null,null,null,null,null,null,null,null,null,null,null,null,null,null,null,null,null,null,null,null,null,null,null,{"$f":"IF(B781>0,VLOOKUP(B781,'County code'!A:B,2,FALSE),\" \")","v":" "},{"$f":"IF(D781>0,VLOOKUP(D781,'County code'!D:E,2,FALSE),\" \")","v":" "},0,0]
[null,null,null,null,null,null,null,null,null,null,null,null,null,null,null,null,null,null,null,null,null,null,null,null,null,{"$f":"IF(B782>0,VLOOKUP(B782,'County code'!A:B,2,FALSE),\" \")","v":" "},{"$f":"IF(D782>0,VLOOKUP(D782,'County code'!D:E,2,FALSE),\" \")","v":" "},0,0]
[null,null,null,null,null,null,null,null,null,null,null,null,null,null,null,null,null,null,null,null,null,null,null,null,null,{"$f":"IF(B783>0,VLOOKUP(B783,'County code'!A:B,2,FALSE),\" \")","v":" "},{"$f":"IF(D783>0,VLOOKUP(D783,'County code'!D:E,2,FALSE),\" \")","v":" "},0,0]
[null,null,null,null,null,null,null,null,null,null,null,null,null,null,null,null,null,null,null,null,null,null,null,null,null,{"$f":"IF(B784>0,VLOOKUP(B784,'County code'!A:B,2,FALSE),\" \")","v":" "},{"$f":"IF(D784>0,VLOOKUP(D784,'County code'!D:E,2,FALSE),\" \")","v":" "},0,0]
[null,null,null,null,null,null,null,null,null,null,null,null,null,null,null,null,null,null,null,null,null,null,null,null,null,{"$f":"IF(B785>0,VLOOKUP(B785,'County code'!A:B,2,FALSE),\" \")","v":" "},{"$f":"IF(D785>0,VLOOKUP(D785,'County code'!D:E,2,FALSE),\" \")","v":" "},0,0]
[null,null,null,null,null,null,null,null,null,null,null,null,null,null,null,null,null,null,null,null,null,null,null,null,null,{"$f":"IF(B786>0,VLOOKUP(B786,'County code'!A:B,2,FALSE),\" \")","v":" "},{"$f":"IF(D786>0,VLOOKUP(D786,'County code'!D:E,2,FALSE),\" \")","v":" "},0,0]
[null,null,null,null,null,null,null,null,null,null,null,null,null,null,null,null,null,null,null,null,null,null,null,null,null,{"$f":"IF(B787>0,VLOOKUP(B787,'County code'!A:B,2,FALSE),\" \")","v":" "},{"$f":"IF(D787>0,VLOOKUP(D787,'County code'!D:E,2,FALSE),\" \")","v":" "},0,0]
[null,null,null,null,null,null,null,null,null,null,null,null,null,null,null,null,null,null,null,null,null,null,null,null,null,{"$f":"IF(B788>0,VLOOKUP(B788,'County code'!A:B,2,FALSE),\" \")","v":" "},{"$f":"IF(D788>0,VLOOKUP(D788,'County code'!D:E,2,FALSE),\" \")","v":" "},0,0]
[null,null,null,null,null,null,null,null,null,null,null,null,null,null,null,null,null,null,null,null,null,null,null,null,null,{"$f":"IF(B789>0,VLOOKUP(B789,'County code'!A:B,2,FALSE),\" \")","v":" "},{"$f":"IF(D789>0,VLOOKUP(D789,'County code'!D:E,2,FALSE),\" \")","v":" "},0,0]
[null,null,null,null,null,null,null,null,null,null,null,null,null,null,null,null,null,null,null,null,null,null,null,null,null,{"$f":"IF(B790>0,VLOOKUP(B790,'County code'!A:B,2,FALSE),\" \")","v":" "},{"$f":"IF(D790>0,VLOOKUP(D790,'County code'!D:E,2,FALSE),\" \")","v":" "},0,0]
[null,null,null,null,null,null,null,null,null,null,null,null,null,null,null,null,null,null,null,null,null,null,null,null,null,{"$f":"IF(B791>0,VLOOKUP(B791,'County code'!A:B,2,FALSE),\" \")","v":" "},{"$f":"IF(D791>0,VLOOKUP(D791,'County code'!D:E,2,FALSE),\" \")","v":" "},0,0]
[null,null,null,null,null,null,null,null,null,null,null,null,null,null,null,null,null,null,null,null,null,null,null,null,null,{"$f":"IF(B792>0,VLOOKUP(B792,'County code'!A:B,2,FALSE),\" \")","v":" "},{"$f":"IF(D792>0,VLOOKUP(D792,'County code'!D:E,2,FALSE),\" \")","v":" "},0,0]
[null,null,null,null,null,null,null,null,null,null,null,null,null,null,null,null,null,null,null,null,null,null,null,null,null,{"$f":"IF(B793>0,VLOOKUP(B793,'County code'!A:B,2,FALSE),\" \")","v":" "},{"$f":"IF(D793>0,VLOOKUP(D793,'County code'!D:E,2,FALSE),\" \")","v":" "},0,0]
[null,null,null,null,null,null,null,null,null,null,null,null,null,null,null,null,null,null,null,null,null,null,null,null,null,{"$f":"IF(B794>0,VLOOKUP(B794,'County code'!A:B,2,FALSE),\" \")","v":" "},{"$f":"IF(D794>0,VLOOKUP(D794,'County code'!D:E,2,FALSE),\" \")","v":" "},0,0]
[null,null,null,null,null,null,null,null,null,null,null,null,null,null,null,null,null,null,null,null,null,null,null,null,null,{"$f":"IF(B795>0,VLOOKUP(B795,'County code'!A:B,2,FALSE),\" \")","v":" "},{"$f":"IF(D795>0,VLOOKUP(D795,'County code'!D:E,2,FALSE),\" \")","v":" "},0,0]
[null,null,null,null,null,null,null,null,null,null,null,null,null,null,null,null,null,null,null,null,null,null,null,null,null,{"$f":"IF(B796>0,VLOOKUP(B796,'County code'!A:B,2,FALSE),\" \")","v":" "},{"$f":"IF(D796>0,VLOOKUP(D796,'County code'!D:E,2,FALSE),\" \")","v":" "},0,0]
[null,null,null,null,null,null,null,null,null,null,null,null,null,null,null,null,null,null,null,null,null,null,null,null,null,{"$f":"IF(B797>0,VLOOKUP(B797,'County code'!A:B,2,FALSE),\" \")","v":" "},{"$f":"IF(D797>0,VLOOKUP(D797,'County code'!D:E,2,FALSE),\" \")","v":" "},0,0]
[null,null,null,null,null,null,null,null,null,null,null,null,null,null,null,null,null,null,null,null,null,null,null,null,null,{"$f":"IF(B798>0,VLOOKUP(B798,'County code'!A:B,2,FALSE),\" \")","v":" "},{"$f":"IF(D798>0,VLOOKUP(D798,'County code'!D:E,2,FALSE),\" \")","v":" "},0,0]
[null,null,null,null,null,null,null,null,null,null,null,null,null,null,null,null,null,null,null,null,null,null,null,null,null,{"$f":"IF(B799>0,VLOOKUP(B799,'County code'!A:B,2,FALSE),\" \")","v":" "},{"$f":"IF(D799>0,VLOOKUP(D799,'County code'!D:E,2,FALSE),\" \")","v":" "},0,0]
[null,null,null,null,null,null,null,null,null,null,null,null,null,null,null,null,null,null,null,null,null,null,null,null,null,{"$f":"IF(B800>0,VLOOKUP(B800,'County code'!A:B,2,FALSE),\" \")","v":" "},{"$f":"IF(D800>0,VLOOKUP(D800,'County code'!D:E,2,FALSE),\" \")","v":" "},0,0]
[null,null,null,null,null,null,null,null,null,null,null,null,null,null,null,null,null,null,null,null,null,null,null,null,null,{"$f":"IF(B801>0,VLOOKUP(B801,'County code'!A:B,2,FALSE),\" \")","v":" "},{"$f":"IF(D801>0,VLOOKUP(D801,'County code'!D:E,2,FALSE),\" \")","v":" "},0,0]
[null,null,null,null,null,null,null,null,null,null,null,null,null,null,null,null,null,null,null,null,null,null,null,null,null,{"$f":"IF(B802>0,VLOOKUP(B802,'County code'!A:B,2,FALSE),\" \")","v":" "},{"$f":"IF(D802>0,VLOOKUP(D802,'County code'!D:E,2,FALSE),\" \")","v":" "},0,0]
[null,null,null,null,null,null,null,null,null,null,null,null,null,null,null,null,null,null,null,null,null,null,null,null,null,{"$f":"IF(B803>0,VLOOKUP(B803,'County code'!A:B,2,FALSE),\" \")","v":" "},{"$f":"IF(D803>0,VLOOKUP(D803,'County code'!D:E,2,FALSE),\" \")","v":" "},0,0]
[null,null,null,null,null,null,null,null,null,null,null,null,null,null,null,null,null,null,null,null,null,null,null,null,null,{"$f":"IF(B804>0,VLOOKUP(B804,'County code'!A:B,2,FALSE),\" \")","v":" "},{"$f":"IF(D804>0,VLOOKUP(D804,'County code'!D:E,2,FALSE),\" \")","v":" "},0,0]
[null,null,null,null,null,null,null,null,null,null,null,null,null,null,null,null,null,null,null,null,null,null,null,null,null,{"$f":"IF(B805>0,VLOOKUP(B805,'County code'!A:B,2,FALSE),\" \")","v":" "},{"$f":"IF(D805>0,VLOOKUP(D805,'County code'!D:E,2,FALSE),\" \")","v":" "},0,0]
[null,null,null,null,null,null,null,null,null,null,null,null,null,null,null,null,null,null,null,null,null,null,null,null,null,{"$f":"IF(B806>0,VLOOKUP(B806,'County code'!A:B,2,FALSE),\" \")","v":" "},{"$f":"IF(D806>0,VLOOKUP(D806,'County code'!D:E,2,FALSE),\" \")","v":" "},0,0]
[null,null,null,null,null,null,null,null,null,null,null,null,null,null,null,null,null,null,null,null,null,null,null,null,null,{"$f":"IF(B807>0,VLOOKUP(B807,'County code'!A:B,2,FALSE),\" \")","v":" "},{"$f":"IF(D807>0,VLOOKUP(D807,'County code'!D:E,2,FALSE),\" \")","v":" "},0,0]
[null,null,null,null,null,null,null,null,null,null,null,null,null,null,null,null,null,null,null,null,null,null,null,null,null,{"$f":"IF(B808>0,VLOOKUP(B808,'County code'!A:B,2,FALSE),\" \")","v":" "},{"$f":"IF(D808>0,VLOOKUP(D808,'County code'!D:E,2,FALSE),\" \")","v":" "},0,0]
[null,null,null,null,null,null,null,null,null,null,null,null,null,null,null,null,null,null,null,null,null,null,null,null,null,{"$f":"IF(B809>0,VLOOKUP(B809,'County code'!A:B,2,FALSE),\" \")","v":" "},{"$f":"IF(D809>0,VLOOKUP(D809,'County code'!D:E,2,FALSE),\" \")","v":" "},0,0]
[null,null,null,null,null,null,null,null,null,null,null,null,null,null,null,null,null,null,null,null,null,null,null,null,null,{"$f":"IF(B810>0,VLOOKUP(B810,'County code'!A:B,2,FALSE),\" \")","v":" "},{"$f":"IF(D810>0,VLOOKUP(D810,'County code'!D:E,2,FALSE),\" \")","v":" "},0,0]
[null,null,null,null,null,null,null,null,null,null,null,null,null,null,null,null,null,null,null,null,null,null,null,null,null,{"$f":"IF(B811>0,VLOOKUP(B811,'County code'!A:B,2,FALSE),\" \")","v":" "},{"$f":"IF(D811>0,VLOOKUP(D811,'County code'!D:E,2,FALSE),\" \")","v":" "},0,0]
[null,null,null,null,null,null,null,null,null,null,null,null,null,null,null,null,null,null,null,null,null,null,null,null,null,{"$f":"IF(B812>0,VLOOKUP(B812,'County code'!A:B,2,FALSE),\" \")","v":" "},{"$f":"IF(D812>0,VLOOKUP(D812,'County code'!D:E,2,FALSE),\" \")","v":" "},0,0]
[null,null,null,null,null,null,null,null,null,null,null,null,null,null,null,null,null,null,null,null,null,null,null,null,null,{"$f":"IF(B813>0,VLOOKUP(B813,'County code'!A:B,2,FALSE),\" \")","v":" "},{"$f":"IF(D813>0,VLOOKUP(D813,'County code'!D:E,2,FALSE),\" \")","v":" "},0,0]
[null,null,null,null,null,null,null,null,null,null,null,null,null,null,null,null,null,null,null,null,null,null,null,null,null,{"$f":"IF(B814>0,VLOOKUP(B814,'County code'!A:B,2,FALSE),\" \")","v":" "},{"$f":"IF(D814>0,VLOOKUP(D814,'County code'!D:E,2,FALSE),\" \")","v":" "},0,0]
[null,null,null,null,null,null,null,null,null,null,null,null,null,null,null,null,null,null,null,null,null,null,null,null,null,{"$f":"IF(B815>0,VLOOKUP(B815,'County code'!A:B,2,FALSE),\" \")","v":" "},{"$f":"IF(D815>0,VLOOKUP(D815,'County code'!D:E,2,FALSE),\" \")","v":" "},0,0]
[null,null,null,null,null,null,null,null,null,null,null,null,null,null,null,null,null,null,null,null,null,null,null,null,null,{"$f":"IF(B816>0,VLOOKUP(B816,'County code'!A:B,2,FALSE),\" \")","v":" "},{"$f":"IF(D816>0,VLOOKUP(D816,'County code'!D:E,2,FALSE),\" \")","v":" "},0,0]
[null,null,null,null,null,null,null,null,null,null,null,null,null,null,null,null,null,null,null,null,null,null,null,null,null,{"$f":"IF(B817>0,VLOOKUP(B817,'County code'!A:B,2,FALSE),\" \")","v":" "},{"$f":"IF(D817>0,VLOOKUP(D817,'County code'!D:E,2,FALSE),\" \")","v":" "},0,0]
[null,null,null,null,null,null,null,null,null,null,null,null,null,null,null,null,null,null,null,null,null,null,null,null,null,{"$f":"IF(B818>0,VLOOKUP(B818,'County code'!A:B,2,FALSE),\" \")","v":" "},{"$f":"IF(D818>0,VLOOKUP(D818,'County code'!D:E,2,FALSE),\" \")","v":" "},0,0]
[null,null,null,null,null,null,null,null,null,null,null,null,null,null,null,null,null,null,null,null,null,null,null,null,null,{"$f":"IF(B819>0,VLOOKUP(B819,'County code'!A:B,2,FALSE),\" \")","v":" "},{"$f":"IF(D819>0,VLOOKUP(D819,'County code'!D:E,2,FALSE),\" \")","v":" "},0,0]
[null,null,null,null,null,null,null,null,null,null,null,null,null,null,null,null,null,null,null,null,null,null,null,null,null,{"$f":"IF(B820>0,VLOOKUP(B820,'County code'!A:B,2,FALSE),\" \")","v":" "},{"$f":"IF(D820>0,VLOOKUP(D820,'County code'!D:E,2,FALSE),\" \")","v":" "},0,0]
[null,null,null,null,null,null,null,null,null,null,null,null,null,null,null,null,null,null,null,null,null,null,null,null,null,{"$f":"IF(B821>0,VLOOKUP(B821,'County code'!A:B,2,FALSE),\" \")","v":" "},{"$f":"IF(D821>0,VLOOKUP(D821,'County code'!D:E,2,FALSE),\" \")","v":" "},0,0]
[null,null,null,null,null,null,null,null,null,null,null,null,null,null,null,null,null,null,null,null,null,null,null,null,null,{"$f":"IF(B822>0,VLOOKUP(B822,'County code'!A:B,2,FALSE),\" \")","v":" "},{"$f":"IF(D822>0,VLOOKUP(D822,'County code'!D:E,2,FALSE),\" \")","v":" "},0,0]
[null,null,null,null,null,null,null,null,null,null,null,null,null,null,null,null,null,null,null,null,null,null,null,null,null,{"$f":"IF(B823>0,VLOOKUP(B823,'County code'!A:B,2,FALSE),\" \")","v":" "},{"$f":"IF(D823>0,VLOOKUP(D823,'County code'!D:E,2,FALSE),\" \")","v":" "},0,0]
[null,null,null,null,null,null,null,null,null,null,null,null,null,null,null,null,null,null,null,null,null,null,null,null,null,{"$f":"IF(B824>0,VLOOKUP(B824,'County code'!A:B,2,FALSE),\" \")","v":" "},{"$f":"IF(D824>0,VLOOKUP(D824,'County code'!D:E,2,FALSE),\" \")","v":" "},0,0]
[null,null,null,null,null,null,null,null,null,null,null,null,null,null,null,null,null,null,null,null,null,null,null,null,null,{"$f":"IF(B825>0,VLOOKUP(B825,'County code'!A:B,2,FALSE),\" \")","v":" "},{"$f":"IF(D825>0,VLOOKUP(D825,'County code'!D:E,2,FALSE),\" \")","v":" "},0,0]
[null,null,null,null,null,null,null,null,null,null,null,null,null,null,null,null,null,null,null,null,null,null,null,null,null,{"$f":"IF(B826>0,VLOOKUP(B826,'County code'!A:B,2,FALSE),\" \")","v":" "},{"$f":"IF(D826>0,VLOOKUP(D826,'County code'!D:E,2,FALSE),\" \")","v":" "},0,0]
[null,null,null,null,null,null,null,null,null,null,null,null,null,null,null,null,null,null,null,null,null,null,null,null,null,{"$f":"IF(B827>0,VLOOKUP(B827,'County code'!A:B,2,FALSE),\" \")","v":" "},{"$f":"IF(D827>0,VLOOKUP(D827,'County code'!D:E,2,FALSE),\" \")","v":" "},0,0]
[null,null,null,null,null,null,null,null,null,null,null,null,null,null,null,null,null,null,null,null,null,null,null,null,null,{"$f":"IF(B828>0,VLOOKUP(B828,'County code'!A:B,2,FALSE),\" \")","v":" "},{"$f":"IF(D828>0,VLOOKUP(D828,'County code'!D:E,2,FALSE),\" \")","v":" "},0,0]
[null,null,null,null,null,null,null,null,null,null,null,null,null,null,null,null,null,null,null,null,null,null,null,null,null,{"$f":"IF(B829>0,VLOOKUP(B829,'County code'!A:B,2,FALSE),\" \")","v":" "},{"$f":"IF(D829>0,VLOOKUP(D829,'County code'!D:E,2,FALSE),\" \")","v":" "},0,0]
[null,null,null,null,null,null,null,null,null,null,null,null,null,null,null,null,null,null,null,null,null,null,null,null,null,{"$f":"IF(B830>0,VLOOKUP(B830,'County code'!A:B,2,FALSE),\" \")","v":" "},{"$f":"IF(D830>0,VLOOKUP(D830,'County code'!D:E,2,FALSE),\" \")","v":" "},0,0]
[null,null,null,null,null,null,null,null,null,null,null,null,null,null,null,null,null,null,null,null,null,null,null,null,null,{"$f":"IF(B831>0,VLOOKUP(B831,'County code'!A:B,2,FALSE),\" \")","v":" "},{"$f":"IF(D831>0,VLOOKUP(D831,'County code'!D:E,2,FALSE),\" \")","v":" "},0,0]
[null,null,null,null,null,null,null,null,null,null,null,null,null,null,null,null,null,null,null,null,null,null,null,null,null,{"$f":"IF(B832>0,VLOOKUP(B832,'County code'!A:B,2,FALSE),\" \")","v":" "},{"$f":"IF(D832>0,VLOOKUP(D832,'County code'!D:E,2,FALSE),\" \")","v":" "},0,0]
[null,null,null,null,null,null,null,null,null,null,null,null,null,null,null,null,null,null,null,null,null,null,null,null,null,{"$f":"IF(B833>0,VLOOKUP(B833,'County code'!A:B,2,FALSE),\" \")","v":" "},{"$f":"IF(D833>0,VLOOKUP(D833,'County code'!D:E,2,FALSE),\" \")","v":" "},0,0]
[null,null,null,null,null,null,null,null,null,null,null,null,null,null,null,null,null,null,null,null,null,null,null,null,null,{"$f":"IF(B834>0,VLOOKUP(B834,'County code'!A:B,2,FALSE),\" \")","v":" "},{"$f":"IF(D834>0,VLOOKUP(D834,'County code'!D:E,2,FALSE),\" \")","v":" "},0,0]
[null,null,null,null,null,null,null,null,null,null,null,null,null,null,null,null,null,null,null,null,null,null,null,null,null,{"$f":"IF(B835>0,VLOOKUP(B835,'County code'!A:B,2,FALSE),\" \")","v":" "},{"$f":"IF(D835>0,VLOOKUP(D835,'County code'!D:E,2,FALSE),\" \")","v":" "},0,0]
[null,null,null,null,null,null,null,null,null,null,null,null,null,null,null,null,null,null,null,null,null,null,null,null,null,{"$f":"IF(B836>0,VLOOKUP(B836,'County code'!A:B,2,FALSE),\" \")","v":" "},{"$f":"IF(D836>0,VLOOKUP(D836,'County code'!D:E,2,FALSE),\" \")","v":" "},{"$f":"G836","v":0},0]
[null,null,null,null,null,null,null,null,null,null,null,null,null,null,null,null,null,null,null,null,null,null,null,null,null,{"$f":"IF(B837>0,VLOOKUP(B837,'County code'!A:B,2,FALSE),\" \")","v":" "},{"$f":"IF(D837>0,VLOOKUP(D837,'County code'!D:E,2,FALSE),\" \")","v":" "},0,{"$f":"IF(AA837=5,AB837,M837)","v":0}]
[null,null,null,null,null,null,null,null,null,null,null,null,null,null,null,null,null,null,null,null,null,null,null,null,null,{"$f":"IF(B838>0,VLOOKUP(B838,'County code'!A:B,2,FALSE),\" \")","v":" "},{"$f":"IF(D838>0,VLOOKUP(D838,'County code'!D:E,2,FALSE),\" \")","v":" "},0,0]
[null,null,null,null,null,null,null,null,null,null,null,null,null,null,null,null,null,null,null,null,null,null,null,null,null,{"$f":"IF(B839>0,VLOOKUP(B839,'County code'!A:B,2,FALSE),\" \")","v":" "},{"$f":"IF(D839>0,VLOOKUP(D839,'County code'!D:E,2,FALSE),\" \")","v":" "},0,0]
[null,null,null,null,null,null,null,null,null,null,null,null,null,null,null,null,null,null,null,null,null,null,null,null,null,{"$f":"IF(B840>0,VLOOKUP(B840,'County code'!A:B,2,FALSE),\" \")","v":" "},{"$f":"IF(D840>0,VLOOKUP(D840,'County code'!D:E,2,FALSE),\" \")","v":" "},0,0]
[null,null,null,null,null,null,null,null,null,null,null,null,null,null,null,null,null,null,null,null,null,null,null,null,null,{"$f":"IF(B841>0,VLOOKUP(B841,'County code'!A:B,2,FALSE),\" \")","v":" "},{"$f":"IF(D841>0,VLOOKUP(D841,'County code'!D:E,2,FALSE),\" \")","v":" "},0,0]
[null,null,null,null,null,null,null,null,null,null,null,null,null,null,null,null,null,null,null,null,null,null,null,null,null,{"$f":"IF(B842>0,VLOOKUP(B842,'County code'!A:B,2,FALSE),\" \")","v":" "},{"$f":"IF(D842>0,VLOOKUP(D842,'County code'!D:E,2,FALSE),\" \")","v":" "},0,0]
[null,null,null,null,null,null,null,null,null,null,null,null,null,null,null,null,null,null,null,null,null,null,null,null,null,{"$f":"IF(B843>0,VLOOKUP(B843,'County code'!A:B,2,FALSE),\" \")","v":" "},{"$f":"IF(D843>0,VLOOKUP(D843,'County code'!D:E,2,FALSE),\" \")","v":" "},0,0]
[null,null,null,null,null,null,null,null,null,null,null,null,null,null,null,null,null,null,null,null,null,null,null,null,null,{"$f":"IF(B844>0,VLOOKUP(B844,'County code'!A:B,2,FALSE),\" \")","v":" "},{"$f":"IF(D844>0,VLOOKUP(D844,'County code'!D:E,2,FALSE),\" \")","v":" "},0,0]
[null,null,null,null,null,null,null,null,null,null,null,null,null,null,null,null,null,null,null,null,null,null,null,null,null,{"$f":"IF(B845>0,VLOOKUP(B845,'County code'!A:B,2,FALSE),\" \")","v":" "},{"$f":"IF(D845>0,VLOOKUP(D845,'County code'!D:E,2,FALSE),\" \")","v":" "},0,0]
[null,null,null,null,null,null,null,null,null,null,null,null,null,null,null,null,null,null,null,null,null,null,null,null,null,{"$f":"IF(B846>0,VLOOKUP(B846,'County code'!A:B,2,FALSE),\" \")","v":" "},{"$f":"IF(D846>0,VLOOKUP(D846,'County code'!D:E,2,FALSE),\" \")","v":" "},0,0]
[null,null,null,null,null,null,null,null,null,null,null,null,null,null,null,null,null,null,null,null,null,null,null,null,null,{"$f":"IF(B847>0,VLOOKUP(B847,'County code'!A:B,2,FALSE),\" \")","v":" "},{"$f":"IF(D847>0,VLOOKUP(D847,'County code'!D:E,2,FALSE),\" \")","v":" "},0,0]
[null,null,null,null,null,null,null,null,null,null,null,null,null,null,null,null,null,null,null,null,null,null,null,null,null,{"$f":"IF(B848>0,VLOOKUP(B848,'County code'!A:B,2,FALSE),\" \")","v":" "},{"$f":"IF(D848>0,VLOOKUP(D848,'County code'!D:E,2,FALSE),\" \")","v":" "},0,0]
[null,null,null,null,null,null,null,null,null,null,null,null,null,null,null,null,null,null,null,null,null,null,null,null,null,{"$f":"IF(B849>0,VLOOKUP(B849,'County code'!A:B,2,FALSE),\" \")","v":" "},{"$f":"IF(D849>0,VLOOKUP(D849,'County code'!D:E,2,FALSE),\" \")","v":" "},0,0]
[null,null,null,null,null,null,null,null,null,null,null,null,null,null,null,null,null,null,null,null,null,null,null,null,null,{"$f":"IF(B850>0,VLOOKUP(B850,'County code'!A:B,2,FALSE),\" \")","v":" "},{"$f":"IF(D850>0,VLOOKUP(D850,'County code'!D:E,2,FALSE),\" \")","v":" "},0,0]
[null,null,null,null,null,null,null,null,null,null,null,null,null,null,null,null,null,null,null,null,null,null,null,null,null,{"$f":"IF(B851>0,VLOOKUP(B851,'County code'!A:B,2,FALSE),\" \")","v":" "},{"$f":"IF(D851>0,VLOOKUP(D851,'County code'!D:E,2,FALSE),\" \")","v":" "},0,0]
[null,null,null,null,null,null,null,null,null,null,null,null,null,null,null,null,null,null,null,null,null,null,null,null,null,{"$f":"IF(B852>0,VLOOKUP(B852,'County code'!A:B,2,FALSE),\" \")","v":" "},{"$f":"IF(D852>0,VLOOKUP(D852,'County code'!D:E,2,FALSE),\" \")","v":" "},0,0]
[null,null,null,null,null,null,null,null,null,null,null,null,null,null,null,null,null,null,null,null,null,null,null,null,null,{"$f":"IF(B853>0,VLOOKUP(B853,'County code'!A:B,2,FALSE),\" \")","v":" "},{"$f":"IF(D853>0,VLOOKUP(D853,'County code'!D:E,2,FALSE),\" \")","v":" "},0,0]
[null,null,null,null,null,null,null,null,null,null,null,null,null,null,null,null,null,null,null,null,null,null,null,null,null,{"$f":"IF(B854>0,VLOOKUP(B854,'County code'!A:B,2,FALSE),\" \")","v":" "},{"$f":"IF(D854>0,VLOOKUP(D854,'County code'!D:E,2,FALSE),\" \")","v":" "},0,0]
[null,null,null,null,null,null,null,null,null,null,null,null,null,null,null,null,null,null,null,null,null,null,null,null,null,{"$f":"IF(B855>0,VLOOKUP(B855,'County code'!A:B,2,FALSE),\" \")","v":" "},{"$f":"IF(D855>0,VLOOKUP(D855,'County code'!D:E,2,FALSE),\" \")","v":" "},0,0]
[null,null,null,null,null,null,null,null,null,null,null,null,null,null,null,null,null,null,null,null,null,null,null,null,null,{"$f":"IF(B856>0,VLOOKUP(B856,'County code'!A:B,2,FALSE),\" \")","v":" "},{"$f":"IF(D856>0,VLOOKUP(D856,'County code'!D:E,2,FALSE),\" \")","v":" "},0,0]
[null,null,null,null,null,null,null,null,null,null,null,null,null,null,null,null,null,null,null,null,null,null,null,null,null,{"$f":"IF(B857>0,VLOOKUP(B857,'County code'!A:B,2,FALSE),\" \")","v":" "},{"$f":"IF(D857>0,VLOOKUP(D857,'County code'!D:E,2,FALSE),\" \")","v":" "},0,0]
[null,null,null,null,null,null,null,null,null,null,null,null,null,null,null,null,null,null,null,null,null,null,null,null,null,{"$f":"IF(B858>0,VLOOKUP(B858,'County code'!A:B,2,FALSE),\" \")","v":" "},{"$f":"IF(D858>0,VLOOKUP(D858,'County code'!D:E,2,FALSE),\" \")","v":" "},0,0]
[null,null,null,null,null,null,null,null,null,null,null,null,null,null,null,null,null,null,null,null,null,null,null,null,null,{"$f":"IF(B859>0,VLOOKUP(B859,'County code'!A:B,2,FALSE),\" \")","v":" "},{"$f":"IF(D859>0,VLOOKUP(D859,'County code'!D:E,2,FALSE),\" \")","v":" "},0,0]
[null,null,null,null,null,null,null,null,null,null,null,null,null,null,null,null,null,null,null,null,null,null,null,null,null,{"$f":"IF(B860>0,VLOOKUP(B860,'County code'!A:B,2,FALSE),\" \")","v":" "},{"$f":"IF(D860>0,VLOOKUP(D860,'County code'!D:E,2,FALSE),\" \")","v":" "},0,0]
[null,null,null,null,null,null,null,null,null,null,null,null,null,null,null,null,null,null,null,null,null,null,null,null,null,{"$f":"IF(B861>0,VLOOKUP(B861,'County code'!A:B,2,FALSE),\" \")","v":" "},{"$f":"IF(D861>0,VLOOKUP(D861,'County code'!D:E,2,FALSE),\" \")","v":" "},0,0]
[null,null,null,null,null,null,null,null,null,null,null,null,null,null,null,null,null,null,null,null,null,null,null,null,null,{"$f":"IF(B862>0,VLOOKUP(B862,'County code'!A:B,2,FALSE),\" \")","v":" "},{"$f":"IF(D862>0,VLOOKUP(D862,'County code'!D:E,2,FALSE),\" \")","v":" "},0,0]
[null,null,null,null,null,null,null,null,null,null,null,null,null,null,null,null,null,null,null,null,null,null,null,null,null,{"$f":"IF(B863>0,VLOOKUP(B863,'County code'!A:B,2,FALSE),\" \")","v":" "},{"$f":"IF(D863>0,VLOOKUP(D863,'County code'!D:E,2,FALSE),\" \")","v":" "},0,0]
[null,null,null,null,null,null,null,null,null,null,null,null,null,null,null,null,null,null,null,null,null,null,null,null,null,{"$f":"IF(B864>0,VLOOKUP(B864,'County code'!A:B,2,FALSE),\" \")","v":" "},{"$f":"IF(D864>0,VLOOKUP(D864,'County code'!D:E,2,FALSE),\" \")","v":" "},0,0]
[null,null,null,null,null,null,null,null,null,null,null,null,null,null,null,null,null,null,null,null,null,null,null,null,null,{"$f":"IF(B865>0,VLOOKUP(B865,'County code'!A:B,2,FALSE),\" \")","v":" "},{"$f":"IF(D865>0,VLOOKUP(D865,'County code'!D:E,2,FALSE),\" \")","v":" "},0,0]
[null,null,null,null,null,null,null,null,null,null,null,null,null,null,null,null,null,null,null,null,null,null,null,null,null,{"$f":"IF(B866>0,VLOOKUP(B866,'County code'!A:B,2,FALSE),\" \")","v":" "},{"$f":"IF(D866>0,VLOOKUP(D866,'County code'!D:E,2,FALSE),\" \")","v":" "},0,0]
[null,null,null,null,null,null,null,null,null,null,null,null,null,null,null,null,null,null,null,null,null,null,null,null,null,{"$f":"IF(B867>0,VLOOKUP(B867,'County code'!A:B,2,FALSE),\" \")","v":" "},{"$f":"IF(D867>0,VLOOKUP(D867,'County code'!D:E,2,FALSE),\" \")","v":" "},0,0]
[null,null,null,null,null,null,null,null,null,null,null,null,null,null,null,null,null,null,null,null,null,null,null,null,null,{"$f":"IF(B868>0,VLOOKUP(B868,'County code'!A:B,2,FALSE),\" \")","v":" "},{"$f":"IF(D868>0,VLOOKUP(D868,'County code'!D:E,2,FALSE),\" \")","v":" "},0,0]
[null,null,null,null,null,null,null,null,null,null,null,null,null,null,null,null,null,null,null,null,null,null,null,null,null,{"$f":"IF(B869>0,VLOOKUP(B869,'County code'!A:B,2,FALSE),\" \")","v":" "},{"$f":"IF(D869>0,VLOOKUP(D869,'County code'!D:E,2,FALSE),\" \")","v":" "},0,0]
[null,null,null,null,null,null,null,null,null,null,null,null,null,null,null,null,null,null,null,null,null,null,null,null,null,{"$f":"IF(B870>0,VLOOKUP(B870,'County code'!A:B,2,FALSE),\" \")","v":" "},{"$f":"IF(D870>0,VLOOKUP(D870,'County code'!D:E,2,FALSE),\" \")","v":" "},0,0]
[null,null,null,null,null,null,null,null,null,null,null,null,null,null,null,null,null,null,null,null,null,null,null,null,null,{"$f":"IF(B871>0,VLOOKUP(B871,'County code'!A:B,2,FALSE),\" \")","v":" "},{"$f":"IF(D871>0,VLOOKUP(D871,'County code'!D:E,2,FALSE),\" \")","v":" "},0,0]
[null,null,null,null,null,null,null,null,null,null,null,null,null,null,null,null,null,null,null,null,null,null,null,null,null,{"$f":"IF(B872>0,VLOOKUP(B872,'County code'!A:B,2,FALSE),\" \")","v":" "},{"$f":"IF(D872>0,VLOOKUP(D872,'County code'!D:E,2,FALSE),\" \")","v":" "},0,0]
[null,null,null,null,null,null,null,null,null,null,null,null,null,null,null,null,null,null,null,null,null,null,null,null,null,{"$f":"IF(B873>0,VLOOKUP(B873,'County code'!A:B,2,FALSE),\" \")","v":" "},{"$f":"IF(D873>0,VLOOKUP(D873,'County code'!D:E,2,FALSE),\" \")","v":" "},0,0]
[null,null,null,null,null,null,null,null,null,null,null,null,null,null,null,null,null,null,null,null,null,null,null,null,null,{"$f":"IF(B874>0,VLOOKUP(B874,'County code'!A:B,2,FALSE),\" \")","v":" "},{"$f":"IF(D874>0,VLOOKUP(D874,'County code'!D:E,2,FALSE),\" \")","v":" "},0,0]
[null,null,null,null,null,null,null,null,null,null,null,null,null,null,null,null,null,null,null,null,null,null,null,null,null,{"$f":"IF(B875>0,VLOOKUP(B875,'County code'!A:B,2,FALSE),\" \")","v":" "},{"$f":"IF(D875>0,VLOOKUP(D875,'County code'!D:E,2,FALSE),\" \")","v":" "},0,0]
[null,null,null,null,null,null,null,null,null,null,null,null,null,null,null,null,null,null,null,null,null,null,null,null,null,{"$f":"IF(B876>0,VLOOKUP(B876,'County code'!A:B,2,FALSE),\" \")","v":" "},{"$f":"IF(D876>0,VLOOKUP(D876,'County code'!D:E,2,FALSE),\" \")","v":" "},0,0]
[null,null,null,null,null,null,null,null,null,null,null,null,null,null,null,null,null,null,null,null,null,null,null,null,null,{"$f":"IF(B877>0,VLOOKUP(B877,'County code'!A:B,2,FALSE),\" \")","v":" "},{"$f":"IF(D877>0,VLOOKUP(D877,'County code'!D:E,2,FALSE),\" \")","v":" "},0,0]
[null,null,null,null,null,null,null,null,null,null,null,null,null,null,null,null,null,null,null,null,null,null,null,null,null,{"$f":"IF(B878>0,VLOOKUP(B878,'County code'!A:B,2,FALSE),\" \")","v":" "},{"$f":"IF(D878>0,VLOOKUP(D878,'County code'!D:E,2,FALSE),\" \")","v":" "},0,0]
[null,null,null,null,null,null,null,null,null,null,null,null,null,null,null,null,null,null,null,null,null,null,null,null,null,{"$f":"IF(B879>0,VLOOKUP(B879,'County code'!A:B,2,FALSE),\" \")","v":" "},{"$f":"IF(D879>0,VLOOKUP(D879,'County code'!D:E,2,FALSE),\" \")","v":" "},0,0]
[null,null,null,null,null,null,null,null,null,null,null,null,null,null,null,null,null,null,null,null,null,null,null,null,null,{"$f":"IF(B880>0,VLOOKUP(B880,'County code'!A:B,2,FALSE),\" \")","v":" "},{"$f":"IF(D880>0,VLOOKUP(D880,'County code'!D:E,2,FALSE),\" \")","v":" "},0,0]
[null,null,null,null,null,null,null,null,null,null,null,null,null,null,null,null,null,null,null,null,null,null,null,null,null,{"$f":"IF(B881>0,VLOOKUP(B881,'County code'!A:B,2,FALSE),\" \")","v":" "},{"$f":"IF(D881>0,VLOOKUP(D881,'County code'!D:E,2,FALSE),\" \")","v":" "},0,0]
[null,null,null,null,null,null,null,null,null,null,null,null,null,null,null,null,null,null,null,null,null,null,null,null,null,{"$f":"IF(B882>0,VLOOKUP(B882,'County code'!A:B,2,FALSE),\" \")","v":" "},{"$f":"IF(D882>0,VLOOKUP(D882,'County code'!D:E,2,FALSE),\" \")","v":" "},0,0]
[null,null,null,null,null,null,null,null,null,null,null,null,null,null,null,null,null,null,null,null,null,null,null,null,null,{"$f":"IF(B883>0,VLOOKUP(B883,'County code'!A:B,2,FALSE),\" \")","v":" "},{"$f":"IF(D883>0,VLOOKUP(D883,'County code'!D:E,2,FALSE),\" \")","v":" "},0,0]
[null,null,null,null,null,null,null,null,null,null,null,null,null,null,null,null,null,null,null,null,null,null,null,null,null,{"$f":"IF(B884>0,VLOOKUP(B884,'County code'!A:B,2,FALSE),\" \")","v":" "},{"$f":"IF(D884>0,VLOOKUP(D884,'County code'!D:E,2,FALSE),\" \")","v":" "},0,0]
[null,null,null,null,null,null,null,null,null,null,null,null,null,null,null,null,null,null,null,null,null,null,null,null,null,{"$f":"IF(B885>0,VLOOKUP(B885,'County code'!A:B,2,FALSE),\" \")","v":" "},{"$f":"IF(D885>0,VLOOKUP(D885,'County code'!D:E,2,FALSE),\" \")","v":" "},0,0]
[null,null,null,null,null,null,null,null,null,null,null,null,null,null,null,null,null,null,null,null,null,null,null,null,null,{"$f":"IF(B886>0,VLOOKUP(B886,'County code'!A:B,2,FALSE),\" \")","v":" "},{"$f":"IF(D886>0,VLOOKUP(D886,'County code'!D:E,2,FALSE),\" \")","v":" "},0,0]
[null,null,null,null,null,null,null,null,null,null,null,null,null,null,null,null,null,null,null,null,null,null,null,null,null,{"$f":"IF(B887>0,VLOOKUP(B887,'County code'!A:B,2,FALSE),\" \")","v":" "},{"$f":"IF(D887>0,VLOOKUP(D887,'County code'!D:E,2,FALSE),\" \")","v":" "},0,0]
[null,null,null,null,null,null,null,null,null,null,null,null,null,null,null,null,null,null,null,null,null,null,null,null,null,{"$f":"IF(B888>0,VLOOKUP(B888,'County code'!A:B,2,FALSE),\" \")","v":" "},{"$f":"IF(D888>0,VLOOKUP(D888,'County code'!D:E,2,FALSE),\" \")","v":" "},0,0]
[null,null,null,null,null,null,null,null,null,null,null,null,null,null,null,null,null,null,null,null,null,null,null,null,null,{"$f":"IF(B889>0,VLOOKUP(B889,'County code'!A:B,2,FALSE),\" \")","v":" "},{"$f":"IF(D889>0,VLOOKUP(D889,'County code'!D:E,2,FALSE),\" \")","v":" "},0,0]
[null,null,null,null,null,null,null,null,null,null,null,null,null,null,null,null,null,null,null,null,null,null,null,null,null,{"$f":"IF(B890>0,VLOOKUP(B890,'County code'!A:B,2,FALSE),\" \")","v":" "},{"$f":"IF(D890>0,VLOOKUP(D890,'County code'!D:E,2,FALSE),\" \")","v":" "},0,0]
[null,null,null,null,null,null,null,null,null,null,null,null,null,null,null,null,null,null,null,null,null,null,null,null,null,{"$f":"IF(B891>0,VLOOKUP(B891,'County code'!A:B,2,FALSE),\" \")","v":" "},{"$f":"IF(D891>0,VLOOKUP(D891,'County code'!D:E,2,FALSE),\" \")","v":" "},0,0]
[null,null,null,null,null,null,null,null,null,null,null,null,null,null,null,null,null,null,null,null,null,null,null,null,null,{"$f":"IF(B892>0,VLOOKUP(B892,'County code'!A:B,2,FALSE),\" \")","v":" "},{"$f":"IF(D892>0,VLOOKUP(D892,'County code'!D:E,2,FALSE),\" \")","v":" "},0,0]
[null,null,null,null,null,null,null,null,null,null,null,null,null,null,null,null,null,null,null,null,null,null,null,null,null,{"$f":"IF(B893>0,VLOOKUP(B893,'County code'!A:B,2,FALSE),\" \")","v":" "},{"$f":"IF(D893>0,VLOOKUP(D893,'County code'!D:E,2,FALSE),\" \")","v":" "},0,0]
[null,null,null,null,null,null,null,null,null,null,null,null,null,null,null,null,null,null,null,null,null,null,null,null,null,{"$f":"IF(B894>0,VLOOKUP(B894,'County code'!A:B,2,FALSE),\" \")","v":" "},{"$f":"IF(D894>0,VLOOKUP(D894,'County code'!D:E,2,FALSE),\" \")","v":" "},0,0]
[null,null,null,null,null,null,null,null,null,null,null,null,null,null,null,null,null,null,null,null,null,null,null,null,null,{"$f":"IF(B895>0,VLOOKUP(B895,'County code'!A:B,2,FALSE),\" \")","v":" "},{"$f":"IF(D895>0,VLOOKUP(D895,'County code'!D:E,2,FALSE),\" \")","v":" "},0,0]
[null,null,null,null,null,null,null,null,null,null,null,null,null,null,null,null,null,null,null,null,null,null,null,null,null,{"$f":"IF(B896>0,VLOOKUP(B896,'County code'!A:B,2,FALSE),\" \")","v":" "},{"$f":"IF(D896>0,VLOOKUP(D896,'County code'!D:E,2,FALSE),\" \")","v":" "},0,0]
[null,null,null,null,null,null,null,null,null,null,null,null,null,null,null,null,null,null,null,null,null,null,null,null,null,{"$f":"IF(B897>0,VLOOKUP(B897,'County code'!A:B,2,FALSE),\" \")","v":" "},{"$f":"IF(D897>0,VLOOKUP(D897,'County code'!D:E,2,FALSE),\" \")","v":" "},0,0]
[null,null,null,null,null,null,null,null,null,null,null,null,null,null,null,null,null,null,null,null,null,null,null,null,null,{"$f":"IF(B898>0,VLOOKUP(B898,'County code'!A:B,2,FALSE),\" \")","v":" "},{"$f":"IF(D898>0,VLOOKUP(D898,'County code'!D:E,2,FALSE),\" \")","v":" "},0,0]
[null,null,null,null,null,null,null,null,null,null,null,null,null,null,null,null,null,null,null,null,null,null,null,null,null,{"$f":"IF(B899>0,VLOOKUP(B899,'County code'!A:B,2,FALSE),\" \")","v":" "},{"$f":"IF(D899>0,VLOOKUP(D899,'County code'!D:E,2,FALSE),\" \")","v":" "},0,0]
[null,null,null,null,null,null,null,null,null,null,null,null,null,null,null,null,null,null,null,null,null,null,null,null,null,{"$f":"IF(B900>0,VLOOKUP(B900,'County code'!A:B,2,FALSE),\" \")","v":" "},{"$f":"IF(D900>0,VLOOKUP(D900,'County code'!D:E,2,FALSE),\" \")","v":" "},{"$f":"G900","v":0},0]
[null,null,null,null,null,null,null,null,null,null,null,null,null,null,null,null,null,null,null,null,null,null,null,null,null,{"$f":"IF(B901>0,VLOOKUP(B901,'County code'!A:B,2,FALSE),\" \")","v":" "},{"$f":"IF(D901>0,VLOOKUP(D901,'County code'!D:E,2,FALSE),\" \")","v":" "},0,{"$f":"IF(AA901=5,AB901,M901)","v":0}]
[null,null,null,null,null,null,null,null,null,null,null,null,null,null,null,null,null,null,null,null,null,null,null,null,null,{"$f":"IF(B902>0,VLOOKUP(B902,'County code'!A:B,2,FALSE),\" \")","v":" "},{"$f":"IF(D902>0,VLOOKUP(D902,'County code'!D:E,2,FALSE),\" \")","v":" "},0,0]
[null,null,null,null,null,null,null,null,null,null,null,null,null,null,null,null,null,null,null,null,null,null,null,null,null,{"$f":"IF(B903>0,VLOOKUP(B903,'County code'!A:B,2,FALSE),\" \")","v":" "},{"$f":"IF(D903>0,VLOOKUP(D903,'County code'!D:E,2,FALSE),\" \")","v":" "},0,0]
[null,null,null,null,null,null,null,null,null,null,null,null,null,null,null,null,null,null,null,null,null,null,null,null,null,{"$f":"IF(B904>0,VLOOKUP(B904,'County code'!A:B,2,FALSE),\" \")","v":" "},{"$f":"IF(D904>0,VLOOKUP(D904,'County code'!D:E,2,FALSE),\" \")","v":" "},0,0]
[null,null,null,null,null,null,null,null,null,null,null,null,null,null,null,null,null,null,null,null,null,null,null,null,null,{"$f":"IF(B905>0,VLOOKUP(B905,'County code'!A:B,2,FALSE),\" \")","v":" "},{"$f":"IF(D905>0,VLOOKUP(D905,'County code'!D:E,2,FALSE),\" \")","v":" "},0,0]
[null,null,null,null,null,null,null,null,null,null,null,null,null,null,null,null,null,null,null,null,null,null,null,null,null,{"$f":"IF(B906>0,VLOOKUP(B906,'County code'!A:B,2,FALSE),\" \")","v":" "},{"$f":"IF(D906>0,VLOOKUP(D906,'County code'!D:E,2,FALSE),\" \")","v":" "},0,0]
[null,null,null,null,null,null,null,null,null,null,null,null,null,null,null,null,null,null,null,null,null,null,null,null,null,{"$f":"IF(B907>0,VLOOKUP(B907,'County code'!A:B,2,FALSE),\" \")","v":" "},{"$f":"IF(D907>0,VLOOKUP(D907,'County code'!D:E,2,FALSE),\" \")","v":" "},0,0]
[null,null,null,null,null,null,null,null,null,null,null,null,null,null,null,null,null,null,null,null,null,null,null,null,null,{"$f":"IF(B908>0,VLOOKUP(B908,'County code'!A:B,2,FALSE),\" \")","v":" "},{"$f":"IF(D908>0,VLOOKUP(D908,'County code'!D:E,2,FALSE),\" \")","v":" "},0,0]
[null,null,null,null,null,null,null,null,null,null,null,null,null,null,null,null,null,null,null,null,null,null,null,null,null,{"$f":"IF(B909>0,VLOOKUP(B909,'County code'!A:B,2,FALSE),\" \")","v":" "},{"$f":"IF(D909>0,VLOOKUP(D909,'County code'!D:E,2,FALSE),\" \")","v":" "},0,0]
[null,null,null,null,null,null,null,null,null,null,null,null,null,null,null,null,null,null,null,null,null,null,null,null,null,{"$f":"IF(B910>0,VLOOKUP(B910,'County code'!A:B,2,FALSE),\" \")","v":" "},{"$f":"IF(D910>0,VLOOKUP(D910,'County code'!D:E,2,FALSE),\" \")","v":" "},0,0]
[null,null,null,null,null,null,null,null,null,null,null,null,null,null,null,null,null,null,null,null,null,null,null,null,null,{"$f":"IF(B911>0,VLOOKUP(B911,'County code'!A:B,2,FALSE),\" \")","v":" "},{"$f":"IF(D911>0,VLOOKUP(D911,'County code'!D:E,2,FALSE),\" \")","v":" "},0,0]
[null,null,null,null,null,null,null,null,null,null,null,null,null,null,null,null,null,null,null,null,null,null,null,null,null,{"$f":"IF(B912>0,VLOOKUP(B912,'County code'!A:B,2,FALSE),\" \")","v":" "},{"$f":"IF(D912>0,VLOOKUP(D912,'County code'!D:E,2,FALSE),\" \")","v":" "},0,0]
[null,null,null,null,null,null,null,null,null,null,null,null,null,null,null,null,null,null,null,null,null,null,null,null,null,{"$f":"IF(B913>0,VLOOKUP(B913,'County code'!A:B,2,FALSE),\" \")","v":" "},{"$f":"IF(D913>0,VLOOKUP(D913,'County code'!D:E,2,FALSE),\" \")","v":" "},0,0]
[null,null,null,null,null,null,null,null,null,null,null,null,null,null,null,null,null,null,null,null,null,null,null,null,null,{"$f":"IF(B914>0,VLOOKUP(B914,'County code'!A:B,2,FALSE),\" \")","v":" "},{"$f":"IF(D914>0,VLOOKUP(D914,'County code'!D:E,2,FALSE),\" \")","v":" "},0,0]
[null,null,null,null,null,null,null,null,null,null,null,null,null,null,null,null,null,null,null,null,null,null,null,null,null,{"$f":"IF(B915>0,VLOOKUP(B915,'County code'!A:B,2,FALSE),\" \")","v":" "},{"$f":"IF(D915>0,VLOOKUP(D915,'County code'!D:E,2,FALSE),\" \")","v":" "},0,0]
[null,null,null,null,null,null,null,null,null,null,null,null,null,null,null,null,null,null,null,null,null,null,null,null,null,{"$f":"IF(B916>0,VLOOKUP(B916,'County code'!A:B,2,FALSE),\" \")","v":" "},{"$f":"IF(D916>0,VLOOKUP(D916,'County code'!D:E,2,FALSE),\" \")","v":" "},0,0]
[null,null,null,null,null,null,null,null,null,null,null,null,null,null,null,null,null,null,null,null,null,null,null,null,null,{"$f":"IF(B917>0,VLOOKUP(B917,'County code'!A:B,2,FALSE),\" \")","v":" "},{"$f":"IF(D917>0,VLOOKUP(D917,'County code'!D:E,2,FALSE),\" \")","v":" "},0,0]
[null,null,null,null,null,null,null,null,null,null,null,null,null,null,null,null,null,null,null,null,null,null,null,null,null,{"$f":"IF(B918>0,VLOOKUP(B918,'County code'!A:B,2,FALSE),\" \")","v":" "},{"$f":"IF(D918>0,VLOOKUP(D918,'County code'!D:E,2,FALSE),\" \")","v":" "},0,0]
[null,null,null,null,null,null,null,null,null,null,null,null,null,null,null,null,null,null,null,null,null,null,null,null,null,{"$f":"IF(B919>0,VLOOKUP(B919,'County code'!A:B,2,FALSE),\" \")","v":" "},{"$f":"IF(D919>0,VLOOKUP(D919,'County code'!D:E,2,FALSE),\" \")","v":" "},0,0]
[null,null,null,null,null,null,null,null,null,null,null,null,null,null,null,null,null,null,null,null,null,null,null,null,null,{"$f":"IF(B920>0,VLOOKUP(B920,'County code'!A:B,2,FALSE),\" \")","v":" "},{"$f":"IF(D920>0,VLOOKUP(D920,'County code'!D:E,2,FALSE),\" \")","v":" "},0,0]
[null,null,null,null,null,null,null,null,null,null,null,null,null,null,null,null,null,null,null,null,null,null,null,null,null,{"$f":"IF(B921>0,VLOOKUP(B921,'County code'!A:B,2,FALSE),\" \")","v":" "},{"$f":"IF(D921>0,VLOOKUP(D921,'County code'!D:E,2,FALSE),\" \")","v":" "},0,0]
[null,null,null,null,null,null,null,null,null,null,null,null,null,null,null,null,null,null,null,null,null,null,null,null,null,{"$f":"IF(B922>0,VLOOKUP(B922,'County code'!A:B,2,FALSE),\" \")","v":" "},{"$f":"IF(D922>0,VLOOKUP(D922,'County code'!D:E,2,FALSE),\" \")","v":" "},0,0]
[null,null,null,null,null,null,null,null,null,null,null,null,null,null,null,null,null,null,null,null,null,null,null,null,null,{"$f":"IF(B923>0,VLOOKUP(B923,'County code'!A:B,2,FALSE),\" \")","v":" "},{"$f":"IF(D923>0,VLOOKUP(D923,'County code'!D:E,2,FALSE),\" \")","v":" "},0,0]
[null,null,null,null,null,null,null,null,null,null,null,null,null,null,null,null,null,null,null,null,null,null,null,null,null,{"$f":"IF(B924>0,VLOOKUP(B924,'County code'!A:B,2,FALSE),\" \")","v":" "},{"$f":"IF(D924>0,VLOOKUP(D924,'County code'!D:E,2,FALSE),\" \")","v":" "},0,0]
[null,null,null,null,null,null,null,null,null,null,null,null,null,null,null,null,null,null,null,null,null,null,null,null,null,{"$f":"IF(B925>0,VLOOKUP(B925,'County code'!A:B,2,FALSE),\" \")","v":" "},{"$f":"IF(D925>0,VLOOKUP(D925,'County code'!D:E,2,FALSE),\" \")","v":" "},0,0]
[null,null,null,null,null,null,null,null,null,null,null,null,null,null,null,null,null,null,null,null,null,null,null,null,null,{"$f":"IF(B926>0,VLOOKUP(B926,'County code'!A:B,2,FALSE),\" \")","v":" "},{"$f":"IF(D926>0,VLOOKUP(D926,'County code'!D:E,2,FALSE),\" \")","v":" "},0,0]
[null,null,null,null,null,null,null,null,null,null,null,null,null,null,null,null,null,null,null,null,null,null,null,null,null,{"$f":"IF(B927>0,VLOOKUP(B927,'County code'!A:B,2,FALSE),\" \")","v":" "},{"$f":"IF(D927>0,VLOOKUP(D927,'County code'!D:E,2,FALSE),\" \")","v":" "},0,0]
[null,null,null,null,null,null,null,null,null,null,null,null,null,null,null,null,null,null,null,null,null,null,null,null,null,{"$f":"IF(B928>0,VLOOKUP(B928,'County code'!A:B,2,FALSE),\" \")","v":" "},{"$f":"IF(D928>0,VLOOKUP(D928,'County code'!D:E,2,FALSE),\" \")","v":" "},0,0]
[null,null,null,null,null,null,null,null,null,null,null,null,null,null,null,null,null,null,null,null,null,null,null,null,null,{"$f":"IF(B929>0,VLOOKUP(B929,'County code'!A:B,2,FALSE),\" \")","v":" "},{"$f":"IF(D929>0,VLOOKUP(D929,'County code'!D:E,2,FALSE),\" \")","v":" "},0,0]
[null,null,null,null,null,null,null,null,null,null,null,null,null,null,null,null,null,null,null,null,null,null,null,null,null,{"$f":"IF(B930>0,VLOOKUP(B930,'County code'!A:B,2,FALSE),\" \")","v":" "},{"$f":"IF(D930>0,VLOOKUP(D930,'County code'!D:E,2,FALSE),\" \")","v":" "},0,0]
[null,null,null,null,null,null,null,null,null,null,null,null,null,null,null,null,null,null,null,null,null,null,null,null,null,{"$f":"IF(B931>0,VLOOKUP(B931,'County code'!A:B,2,FALSE),\" \")","v":" "},{"$f":"IF(D931>0,VLOOKUP(D931,'County code'!D:E,2,FALSE),\" \")","v":" "},0,0]
[null,null,null,null,null,null,null,null,null,null,null,null,null,null,null,null,null,null,null,null,null,null,null,null,null,{"$f":"IF(B932>0,VLOOKUP(B932,'County code'!A:B,2,FALSE),\" \")","v":" "},{"$f":"IF(D932>0,VLOOKUP(D932,'County code'!D:E,2,FALSE),\" \")","v":" "},0,0]
[null,null,null,null,null,null,null,null,null,null,null,null,null,null,null,null,null,null,null,null,null,null,null,null,null,{"$f":"IF(B933>0,VLOOKUP(B933,'County code'!A:B,2,FALSE),\" \")","v":" "},{"$f":"IF(D933>0,VLOOKUP(D933,'County code'!D:E,2,FALSE),\" \")","v":" "},0,0]
[null,null,null,null,null,null,null,null,null,null,null,null,null,null,null,null,null,null,null,null,null,null,null,null,null,{"$f":"IF(B934>0,VLOOKUP(B934,'County code'!A:B,2,FALSE),\" \")","v":" "},{"$f":"IF(D934>0,VLOOKUP(D934,'County code'!D:E,2,FALSE),\" \")","v":" "},0,0]
[null,null,null,null,null,null,null,null,null,null,null,null,null,null,null,null,null,null,null,null,null,null,null,null,null,{"$f":"IF(B935>0,VLOOKUP(B935,'County code'!A:B,2,FALSE),\" \")","v":" "},{"$f":"IF(D935>0,VLOOKUP(D935,'County code'!D:E,2,FALSE),\" \")","v":" "},0,0]
[null,null,null,null,null,null,null,null,null,null,null,null,null,null,null,null,null,null,null,null,null,null,null,null,null,{"$f":"IF(B936>0,VLOOKUP(B936,'County code'!A:B,2,FALSE),\" \")","v":" "},{"$f":"IF(D936>0,VLOOKUP(D936,'County code'!D:E,2,FALSE),\" \")","v":" "},0,0]
[null,null,null,null,null,null,null,null,null,null,null,null,null,null,null,null,null,null,null,null,null,null,null,null,null,{"$f":"IF(B937>0,VLOOKUP(B937,'County code'!A:B,2,FALSE),\" \")","v":" "},{"$f":"IF(D937>0,VLOOKUP(D937,'County code'!D:E,2,FALSE),\" \")","v":" "},0,0]
[null,null,null,null,null,null,null,null,null,null,null,null,null,null,null,null,null,null,null,null,null,null,null,null,null,{"$f":"IF(B938>0,VLOOKUP(B938,'County code'!A:B,2,FALSE),\" \")","v":" "},{"$f":"IF(D938>0,VLOOKUP(D938,'County code'!D:E,2,FALSE),\" \")","v":" "},0,0]
[null,null,null,null,null,null,null,null,null,null,null,null,null,null,null,null,null,null,null,null,null,null,null,null,null,{"$f":"IF(B939>0,VLOOKUP(B939,'County code'!A:B,2,FALSE),\" \")","v":" "},{"$f":"IF(D939>0,VLOOKUP(D939,'County code'!D:E,2,FALSE),\" \")","v":" "},0,0]
[null,null,null,null,null,null,null,null,null,null,null,null,null,null,null,null,null,null,null,null,null,null,null,null,null,{"$f":"IF(B940>0,VLOOKUP(B940,'County code'!A:B,2,FALSE),\" \")","v":" "},{"$f":"IF(D940>0,VLOOKUP(D940,'County code'!D:E,2,FALSE),\" \")","v":" "},0,0]
[null,null,null,null,null,null,null,null,null,null,null,null,null,null,null,null,null,null,null,null,null,null,null,null,null,{"$f":"IF(B941>0,VLOOKUP(B941,'County code'!A:B,2,FALSE),\" \")","v":" "},{"$f":"IF(D941>0,VLOOKUP(D941,'County code'!D:E,2,FALSE),\" \")","v":" "},0,0]
[null,null,null,null,null,null,null,null,null,null,null,null,null,null,null,null,null,null,null,null,null,null,null,null,null,{"$f":"IF(B942>0,VLOOKUP(B942,'County code'!A:B,2,FALSE),\" \")","v":" "},{"$f":"IF(D942>0,VLOOKUP(D942,'County code'!D:E,2,FALSE),\" \")","v":" "},0,0]
[null,null,null,null,null,null,null,null,null,null,null,null,null,null,null,null,null,null,null,null,null,null,null,null,null,{"$f":"IF(B943>0,VLOOKUP(B943,'County code'!A:B,2,FALSE),\" \")","v":" "},{"$f":"IF(D943>0,VLOOKUP(D943,'County code'!D:E,2,FALSE),\" \")","v":" "},0,0]
[null,null,null,null,null,null,null,null,null,null,null,null,null,null,null,null,null,null,null,null,null,null,null,null,null,{"$f":"IF(B944>0,VLOOKUP(B944,'County code'!A:B,2,FALSE),\" \")","v":" "},{"$f":"IF(D944>0,VLOOKUP(D944,'County code'!D:E,2,FALSE),\" \")","v":" "},0,0]
[null,null,null,null,null,null,null,null,null,null,null,null,null,null,null,null,null,null,null,null,null,null,null,null,null,{"$f":"IF(B945>0,VLOOKUP(B945,'County code'!A:B,2,FALSE),\" \")","v":" "},{"$f":"IF(D945>0,VLOOKUP(D945,'County code'!D:E,2,FALSE),\" \")","v":" "},0,0]
[null,null,null,null,null,null,null,null,null,null,null,null,null,null,null,null,null,null,null,null,null,null,null,null,null,{"$f":"IF(B946>0,VLOOKUP(B946,'County code'!A:B,2,FALSE),\" \")","v":" "},{"$f":"IF(D946>0,VLOOKUP(D946,'County code'!D:E,2,FALSE),\" \")","v":" "},0,0]
[null,null,null,null,null,null,null,null,null,null,null,null,null,null,null,null,null,null,null,null,null,null,null,null,null,{"$f":"IF(B947>0,VLOOKUP(B947,'County code'!A:B,2,FALSE),\" \")","v":" "},{"$f":"IF(D947>0,VLOOKUP(D947,'County code'!D:E,2,FALSE),\" \")","v":" "},0,0]
[null,null,null,null,null,null,null,null,null,null,null,null,null,null,null,null,null,null,null,null,null,null,null,null,null,{"$f":"IF(B948>0,VLOOKUP(B948,'County code'!A:B,2,FALSE),\" \")","v":" "},{"$f":"IF(D948>0,VLOOKUP(D948,'County code'!D:E,2,FALSE),\" \")","v":" "},0,0]
[null,null,null,null,null,null,null,null,null,null,null,null,null,null,null,null,null,null,null,null,null,null,null,null,null,{"$f":"IF(B949>0,VLOOKUP(B949,'County code'!A:B,2,FALSE),\" \")","v":" "},{"$f":"IF(D949>0,VLOOKUP(D949,'County code'!D:E,2,FALSE),\" \")","v":" "},0,0]
[null,null,null,null,null,null,null,null,null,null,null,null,null,null,null,null,null,null,null,null,null,null,null,null,null,{"$f":"IF(B950>0,VLOOKUP(B950,'County code'!A:B,2,FALSE),\" \")","v":" "},{"$f":"IF(D950>0,VLOOKUP(D950,'County code'!D:E,2,FALSE),\" \")","v":" "},0,0]
[null,null,null,null,null,null,null,null,null,null,null,null,null,null,null,null,null,null,null,null,null,null,null,null,null,{"$f":"IF(B951>0,VLOOKUP(B951,'County code'!A:B,2,FALSE),\" \")","v":" "},{"$f":"IF(D951>0,VLOOKUP(D951,'County code'!D:E,2,FALSE),\" \")","v":" "},0,0]
[null,null,null,null,null,null,null,null,null,null,null,null,null,null,null,null,null,null,null,null,null,null,null,null,null,{"$f":"IF(B952>0,VLOOKUP(B952,'County code'!A:B,2,FALSE),\" \")","v":" "},{"$f":"IF(D952>0,VLOOKUP(D952,'County code'!D:E,2,FALSE),\" \")","v":" "},0,0]
[null,null,null,null,null,null,null,null,null,null,null,null,null,null,null,null,null,null,null,null,null,null,null,null,null,{"$f":"IF(B953>0,VLOOKUP(B953,'County code'!A:B,2,FALSE),\" \")","v":" "},{"$f":"IF(D953>0,VLOOKUP(D953,'County code'!D:E,2,FALSE),\" \")","v":" "},0,0]
[null,null,null,null,null,null,null,null,null,null,null,null,null,null,null,null,null,null,null,null,null,null,null,null,null,{"$f":"IF(B954>0,VLOOKUP(B954,'County code'!A:B,2,FALSE),\" \")","v":" "},{"$f":"IF(D954>0,VLOOKUP(D954,'County code'!D:E,2,FALSE),\" \")","v":" "},0,0]
[null,null,null,null,null,null,null,null,null,null,null,null,null,null,null,null,null,null,null,null,null,null,null,null,null,{"$f":"IF(B955>0,VLOOKUP(B955,'County code'!A:B,2,FALSE),\" \")","v":" "},{"$f":"IF(D955>0,VLOOKUP(D955,'County code'!D:E,2,FALSE),\" \")","v":" "},0,0]
[null,null,null,null,null,null,null,null,null,null,null,null,null,null,null,null,null,null,null,null,null,null,null,null,null,{"$f":"IF(B956>0,VLOOKUP(B956,'County code'!A:B,2,FALSE),\" \")","v":" "},{"$f":"IF(D956>0,VLOOKUP(D956,'County code'!D:E,2,FALSE),\" \")","v":" "},0,0]
[null,null,null,null,null,null,null,null,null,null,null,null,null,null,null,null,null,null,null,null,null,null,null,null,null,{"$f":"IF(B957>0,VLOOKUP(B957,'County code'!A:B,2,FALSE),\" \")","v":" "},{"$f":"IF(D957>0,VLOOKUP(D957,'County code'!D:E,2,FALSE),\" \")","v":" "},0,0]
[null,null,null,null,null,null,null,null,null,null,null,null,null,null,null,null,null,null,null,null,null,null,null,null,null,{"$f":"IF(B958>0,VLOOKUP(B958,'County code'!A:B,2,FALSE),\" \")","v":" "},{"$f":"IF(D958>0,VLOOKUP(D958,'County code'!D:E,2,FALSE),\" \")","v":" "},0,0]
[null,null,null,null,null,null,null,null,null,null,null,null,null,null,null,null,null,null,null,null,null,null,null,null,null,{"$f":"IF(B959>0,VLOOKUP(B959,'County code'!A:B,2,FALSE),\" \")","v":" "},{"$f":"IF(D959>0,VLOOKUP(D959,'County code'!D:E,2,FALSE),\" \")","v":" "},0,0]
[null,null,null,null,null,null,null,null,null,null,null,null,null,null,null,null,null,null,null,null,null,null,null,null,null,{"$f":"IF(B960>0,VLOOKUP(B960,'County code'!A:B,2,FALSE),\" \")","v":" "},{"$f":"IF(D960>0,VLOOKUP(D960,'County code'!D:E,2,FALSE),\" \")","v":" "},0,0]
[null,null,null,null,null,null,null,null,null,null,null,null,null,null,null,null,null,null,null,null,null,null,null,null,null,{"$f":"IF(B961>0,VLOOKUP(B961,'County code'!A:B,2,FALSE),\" \")","v":" "},{"$f":"IF(D961>0,VLOOKUP(D961,'County code'!D:E,2,FALSE),\" \")","v":" "},0,0]
[null,null,null,null,null,null,null,null,null,null,null,null,null,null,null,null,null,null,null,null,null,null,null,null,null,{"$f":"IF(B962>0,VLOOKUP(B962,'County code'!A:B,2,FALSE),\" \")","v":" "},{"$f":"IF(D962>0,VLOOKUP(D962,'County code'!D:E,2,FALSE),\" \")","v":" "},0,0]
[null,null,null,null,null,null,null,null,null,null,null,null,null,null,null,null,null,null,null,null,null,null,null,null,null,{"$f":"IF(B963>0,VLOOKUP(B963,'County code'!A:B,2,FALSE),\" \")","v":" "},{"$f":"IF(D963>0,VLOOKUP(D963,'County code'!D:E,2,FALSE),\" \")","v":" "},0,0]
[null,null,null,null,null,null,null,null,null,null,null,null,null,null,null,null,null,null,null,null,null,null,null,null,null,{"$f":"IF(B964>0,VLOOKUP(B964,'County code'!A:B,2,FALSE),\" \")","v":" "},{"$f":"IF(D964>0,VLOOKUP(D964,'County code'!D:E,2,FALSE),\" \")","v":" "},{"$f":"G964","v":0},0]
[null,null,null,null,null,null,null,null,null,null,null,null,null,null,null,null,null,null,null,null,null,null,null,null,null,{"$f":"IF(B965>0,VLOOKUP(B965,'County code'!A:B,2,FALSE),\" \")","v":" "},{"$f":"IF(D965>0,VLOOKUP(D965,'County code'!D:E,2,FALSE),\" \")","v":" "},0,{"$f":"IF(AA965=5,AB965,M965)","v":0}]
[null,null,null,null,null,null,null,null,null,null,null,null,null,null,null,null,null,null,null,null,null,null,null,null,null,{"$f":"IF(B966>0,VLOOKUP(B966,'County code'!A:B,2,FALSE),\" \")","v":" "},{"$f":"IF(D966>0,VLOOKUP(D966,'County code'!D:E,2,FALSE),\" \")","v":" "},0,0]
[null,null,null,null,null,null,null,null,null,null,null,null,null,null,null,null,null,null,null,null,null,null,null,null,null,{"$f":"IF(B967>0,VLOOKUP(B967,'County code'!A:B,2,FALSE),\" \")","v":" "},{"$f":"IF(D967>0,VLOOKUP(D967,'County code'!D:E,2,FALSE),\" \")","v":" "},0,0]
[null,null,null,null,null,null,null,null,null,null,null,null,null,null,null,null,null,null,null,null,null,null,null,null,null,{"$f":"IF(B968>0,VLOOKUP(B968,'County code'!A:B,2,FALSE),\" \")","v":" "},{"$f":"IF(D968>0,VLOOKUP(D968,'County code'!D:E,2,FALSE),\" \")","v":" "},0,0]
[null,null,null,null,null,null,null,null,null,null,null,null,null,null,null,null,null,null,null,null,null,null,null,null,null,{"$f":"IF(B969>0,VLOOKUP(B969,'County code'!A:B,2,FALSE),\" \")","v":" "},{"$f":"IF(D969>0,VLOOKUP(D969,'County code'!D:E,2,FALSE),\" \")","v":" "},0,0]
[null,null,null,null,null,null,null,null,null,null,null,null,null,null,null,null,null,null,null,null,null,null,null,null,null,{"$f":"IF(B970>0,VLOOKUP(B970,'County code'!A:B,2,FALSE),\" \")","v":" "},{"$f":"IF(D970>0,VLOOKUP(D970,'County code'!D:E,2,FALSE),\" \")","v":" "},0,0]
[null,null,null,null,null,null,null,null,null,null,null,null,null,null,null,null,null,null,null,null,null,null,null,null,null,{"$f":"IF(B971>0,VLOOKUP(B971,'County code'!A:B,2,FALSE),\" \")","v":" "},{"$f":"IF(D971>0,VLOOKUP(D971,'County code'!D:E,2,FALSE),\" \")","v":" "},0,0]
[null,null,null,null,null,null,null,null,null,null,null,null,null,null,null,null,null,null,null,null,null,null,null,null,null,{"$f":"IF(B972>0,VLOOKUP(B972,'County code'!A:B,2,FALSE),\" \")","v":" "},{"$f":"IF(D972>0,VLOOKUP(D972,'County code'!D:E,2,FALSE),\" \")","v":" "},0,0]
[null,null,null,null,null,null,null,null,null,null,null,null,null,null,null,null,null,null,null,null,null,null,null,null,null,{"$f":"IF(B973>0,VLOOKUP(B973,'County code'!A:B,2,FALSE),\" \")","v":" "},{"$f":"IF(D973>0,VLOOKUP(D973,'County code'!D:E,2,FALSE),\" \")","v":" "},0,0]
[null,null,null,null,null,null,null,null,null,null,null,null,null,null,null,null,null,null,null,null,null,null,null,null,null,{"$f":"IF(B974>0,VLOOKUP(B974,'County code'!A:B,2,FALSE),\" \")","v":" "},{"$f":"IF(D974>0,VLOOKUP(D974,'County code'!D:E,2,FALSE),\" \")","v":" "},0,0]
[null,null,null,null,null,null,null,null,null,null,null,null,null,null,null,null,null,null,null,null,null,null,null,null,null,{"$f":"IF(B975>0,VLOOKUP(B975,'County code'!A:B,2,FALSE),\" \")","v":" "},{"$f":"IF(D975>0,VLOOKUP(D975,'County code'!D:E,2,FALSE),\" \")","v":" "},0,0]
[null,null,null,null,null,null,null,null,null,null,null,null,null,null,null,null,null,null,null,null,null,null,null,null,null,{"$f":"IF(B976>0,VLOOKUP(B976,'County code'!A:B,2,FALSE),\" \")","v":" "},{"$f":"IF(D976>0,VLOOKUP(D976,'County code'!D:E,2,FALSE),\" \")","v":" "},0,0]
[null,null,null,null,null,null,null,null,null,null,null,null,null,null,null,null,null,null,null,null,null,null,null,null,null,{"$f":"IF(B977>0,VLOOKUP(B977,'County code'!A:B,2,FALSE),\" \")","v":" "},{"$f":"IF(D977>0,VLOOKUP(D977,'County code'!D:E,2,FALSE),\" \")","v":" "},0,0]
[null,null,null,null,null,null,null,null,null,null,null,null,null,null,null,null,null,null,null,null,null,null,null,null,null,{"$f":"IF(B978>0,VLOOKUP(B978,'County code'!A:B,2,FALSE),\" \")","v":" "},{"$f":"IF(D978>0,VLOOKUP(D978,'County code'!D:E,2,FALSE),\" \")","v":" "},0,0]
[null,null,null,null,null,null,null,null,null,null,null,null,null,null,null,null,null,null,null,null,null,null,null,null,null,{"$f":"IF(B979>0,VLOOKUP(B979,'County code'!A:B,2,FALSE),\" \")","v":" "},{"$f":"IF(D979>0,VLOOKUP(D979,'County code'!D:E,2,FALSE),\" \")","v":" "},0,0]
[null,null,null,null,null,null,null,null,null,null,null,null,null,null,null,null,null,null,null,null,null,null,null,null,null,{"$f":"IF(B980>0,VLOOKUP(B980,'County code'!A:B,2,FALSE),\" \")","v":" "},{"$f":"IF(D980>0,VLOOKUP(D980,'County code'!D:E,2,FALSE),\" \")","v":" "},0,0]
[null,null,null,null,null,null,null,null,null,null,null,null,null,null,null,null,null,null,null,null,null,null,null,null,null,{"$f":"IF(B981>0,VLOOKUP(B981,'County code'!A:B,2,FALSE),\" \")","v":" "},{"$f":"IF(D981>0,VLOOKUP(D981,'County code'!D:E,2,FALSE),\" \")","v":" "},0,0]
[null,null,null,null,null,null,null,null,null,null,null,null,null,null,null,null,null,null,null,null,null,null,null,null,null,{"$f":"IF(B982>0,VLOOKUP(B982,'County code'!A:B,2,FALSE),\" \")","v":" "},{"$f":"IF(D982>0,VLOOKUP(D982,'County code'!D:E,2,FALSE),\" \")","v":" "},0,0]
[null,null,null,null,null,null,null,null,null,null,null,null,null,null,null,null,null,null,null,null,null,null,null,null,null,{"$f":"IF(B983>0,VLOOKUP(B983,'County code'!A:B,2,FALSE),\" \")","v":" "},{"$f":"IF(D983>0,VLOOKUP(D983,'County code'!D:E,2,FALSE),\" \")","v":" "},0,0]
[null,null,null,null,null,null,null,null,null,null,null,null,null,null,null,null,null,null,null,null,null,null,null,null,null,{"$f":"IF(B984>0,VLOOKUP(B984,'County code'!A:B,2,FALSE),\" \")","v":" "},{"$f":"IF(D984>0,VLOOKUP(D984,'County code'!D:E,2,FALSE),\" \")","v":" "},0,0]
[null,null,null,null,null,null,null,null,null,null,null,null,null,null,null,null,null,null,null,null,null,null,null,null,null,{"$f":"IF(B985>0,VLOOKUP(B985,'County code'!A:B,2,FALSE),\" \")","v":" "},{"$f":"IF(D985>0,VLOOKUP(D985,'County code'!D:E,2,FALSE),\" \")","v":" "},0,0]
[null,null,null,null,null,null,null,null,null,null,null,null,null,null,null,null,null,null,null,null,null,null,null,null,null,{"$f":"IF(B986>0,VLOOKUP(B986,'County code'!A:B,2,FALSE),\" \")","v":" "},{"$f":"IF(D986>0,VLOOKUP(D986,'County code'!D:E,2,FALSE),\" \")","v":" "},0,0]
[null,null,null,null,null,null,null,null,null,null,null,null,null,null,null,null,null,null,null,null,null,null,null,null,null,{"$f":"IF(B987>0,VLOOKUP(B987,'County code'!A:B,2,FALSE),\" \")","v":" "},{"$f":"IF(D987>0,VLOOKUP(D987,'County code'!D:E,2,FALSE),\" \")","v":" "},0,0]
[null,null,null,null,null,null,null,null,null,null,null,null,null,null,null,null,null,null,null,null,null,null,null,null,null,{"$f":"IF(B988>0,VLOOKUP(B988,'County code'!A:B,2,FALSE),\" \")","v":" "},{"$f":"IF(D988>0,VLOOKUP(D988,'County code'!D:E,2,FALSE),\" \")","v":" "},0,0]
[null,null,null,null,null,null,null,null,null,null,null,null,null,null,null,null,null,null,null,null,null,null,null,null,null,{"$f":"IF(B989>0,VLOOKUP(B989,'County code'!A:B,2,FALSE),\" \")","v":" "},{"$f":"IF(D989>0,VLOOKUP(D989,'County code'!D:E,2,FALSE),\" \")","v":" "},0,0]
[null,null,null,null,null,null,null,null,null,null,null,null,null,null,null,null,null,null,null,null,null,null,null,null,null,{"$f":"IF(B990>0,VLOOKUP(B990,'County code'!A:B,2,FALSE),\" \")","v":" "},{"$f":"IF(D990>0,VLOOKUP(D990,'County code'!D:E,2,FALSE),\" \")","v":" "},0,0]
[null,null,null,null,null,null,null,null,null,null,null,null,null,null,null,null,null,null,null,null,null,null,null,null,null,{"$f":"IF(B991>0,VLOOKUP(B991,'County code'!A:B,2,FALSE),\" \")","v":" "},{"$f":"IF(D991>0,VLOOKUP(D991,'County code'!D:E,2,FALSE),\" \")","v":" "},0,0]
[null,null,null,null,null,null,null,null,null,null,null,null,null,null,null,null,null,null,null,null,null,null,null,null,null,{"$f":"IF(B992>0,VLOOKUP(B992,'County code'!A:B,2,FALSE),\" \")","v":" "},{"$f":"IF(D992>0,VLOOKUP(D992,'County code'!D:E,2,FALSE),\" \")","v":" "},0,0]
[null,null,null,null,null,null,null,null,null,null,null,null,null,null,null,null,null,null,null,null,null,null,null,null,null,{"$f":"IF(B993>0,VLOOKUP(B993,'County code'!A:B,2,FALSE),\" \")","v":" "},{"$f":"IF(D993>0,VLOOKUP(D993,'County code'!D:E,2,FALSE),\" \")","v":" "},0,0]
[null,null,null,null,null,null,null,null,null,null,null,null,null,null,null,null,null,null,null,null,null,null,null,null,null,{"$f":"IF(B994>0,VLOOKUP(B994,'County code'!A:B,2,FALSE),\" \")","v":" "},{"$f":"IF(D994>0,VLOOKUP(D994,'County code'!D:E,2,FALSE),\" \")","v":" "},0,0]
[null,null,null,null,null,null,null,null,null,null,null,null,null,null,null,null,null,null,null,null,null,null,null,null,null,{"$f":"IF(B995>0,VLOOKUP(B995,'County code'!A:B,2,FALSE),\" \")","v":" "},{"$f":"IF(D995>0,VLOOKUP(D995,'County code'!D:E,2,FALSE),\" \")","v":" "},0,0]
[null,null,null,null,null,null,null,null,null,null,null,null,null,null,null,null,null,null,null,null,null,null,null,null,null,{"$f":"IF(B996>0,VLOOKUP(B996,'County code'!A:B,2,FALSE),\" \")","v":" "},{"$f":"IF(D996>0,VLOOKUP(D996,'County code'!D:E,2,FALSE),\" \")","v":" "},0,0]
[null,null,null,null,null,null,null,null,null,null,null,null,null,null,null,null,null,null,null,null,null,null,null,null,null,{"$f":"IF(B997>0,VLOOKUP(B997,'County code'!A:B,2,FALSE),\" \")","v":" "},{"$f":"IF(D997>0,VLOOKUP(D997,'County code'!D:E,2,FALSE),\" \")","v":" "},0,0]
[null,null,null,null,null,null,null,null,null,null,null,null,null,null,null,null,null,null,null,null,null,null,null,null,null,{"$f":"IF(B998>0,VLOOKUP(B998,'County code'!A:B,2,FALSE),\" \")","v":" "},{"$f":"IF(D998>0,VLOOKUP(D998,'County code'!D:E,2,FALSE),\" \")","v":" "},0,0]
[null,null,null,null,null,null,null,null,null,null,null,null,null,null,null,null,null,null,null,null,null,null,null,null,null,{"$f":"IF(B999>0,VLOOKUP(B999,'County code'!A:B,2,FALSE),\" \")","v":" "},{"$f":"IF(D999>0,VLOOKUP(D999,'County code'!D:E,2,FALSE),\" \")","v":" "},0,0]
[null,null,null,null,null,null,null,null,null,null,null,null,null,null,null,null,null,null,null,null,null,null,null,null,null,{"$f":"IF(B1000>0,VLOOKUP(B1000,'County code'!A:B,2,FALSE),\" \")","v":" "},{"$f":"IF(D1000>0,VLOOKUP(D1000,'County code'!D:E,2,FALSE),\" \")","v":" "},0,0]
[null,null,null,null,null,null,null,null,null,null,null,null,null,null,null,null,null,null,null,null,null,null,null,null,null,{"$f":"IF(B1001>0,VLOOKUP(B1001,'County code'!A:B,2,FALSE),\" \")","v":" "},{"$f":"IF(D1001>0,VLOOKUP(D1001,'County code'!D:E,2,FALSE),\" \")","v":" "},0,0]
[null,null,null,null,null,null,null,null,null,null,null,null,null,null,null,null,null,null,null,null,null,null,null,null,null,{"$f":"IF(B1002>0,VLOOKUP(B1002,'County code'!A:B,2,FALSE),\" \")","v":" "},{"$f":"IF(D1002>0,VLOOKUP(D1002,'County code'!D:E,2,FALSE),\" \")","v":" "},0,0]
[null,null,null,null,null,null,null,null,null,null,null,null,null,null,null,null,null,null,null,null,null,null,null,null,null,{"$f":"IF(B1003>0,VLOOKUP(B1003,'County code'!A:B,2,FALSE),\" \")","v":" "},{"$f":"IF(D1003>0,VLOOKUP(D1003,'County code'!D:E,2,FALSE),\" \")","v":" "},0,0]
[null,null,null,null,null,null,null,null,null,null,null,null,null,null,null,null,null,null,null,null,null,null,null,null,null,{"$f":"IF(B1004>0,VLOOKUP(B1004,'County code'!A:B,2,FALSE),\" \")","v":" "},{"$f":"IF(D1004>0,VLOOKUP(D1004,'County code'!D:E,2,FALSE),\" \")","v":" "},0,0]

{"sheet":"工作表2","index":1,"n_rows":6,"n_cols":16,"rows_kept":6,"cut":false,"hidden":true,"merged":[]}
[]
[]
[]
[null,null,null,null,null,null,null,null,null,null,null,null,null,null,null,"防呆: 選非台灣的國家就不能選台幣付款"]
[null,null,null,null,null,null,null,null,null,null,null,null,null,null,null,"驗證: 選擇國內付款 就不用填國外付款的項目"]
[null,null,null,null,null,null,null,null,null,null,null,null,null,null,null,"受款人銀行國家需要對應到country code"]

{"sheet":"parameter","index":2,"n_rows":24,"n_cols":7,"rows_kept":24,"cut":false,"hidden":false,"merged":[]}
["參數_header","H"]
["參數_Affiliate","DBSTW"]
["Org ID",{"$f":"'Bulk bene upload'!B2","v":"TWGTS"}]
["Payee Bene Country","TWN"]
["Action Identifier","A",null,null,null,"受款人種類\nPayee Category","Entry indicator"]
["Entry indicator","A",null,null,null,null,"A"]
["Printed name for DD / Cheque",null,null,null,null,"Other","P"]
["DDA Reference",null,null,null,null,"Create","I"]
["Proxy type",null,null,null,null,"Modify"]
[null,null,null,null,null,"Delete"]
[]
["參數_表尾","T"]
["分隔符號","|"]
["今日",{"$f":"NOW()","v":"2024-05-30T14:44:17.120"},{"$f":"TEXT(TODAY(),\"yyyymmdd\")","v":"20240530"},{"$f":"CONCATENATE(TEXT(TODAY(),),TEXT(NOW(),\"HHMMSS\"))","v":"144417"}]
[]
["表頭",{"$f":"CONCATENATE(B1,B13,TEXT(TODAY(),\"yyymmdd\"),B13,D14)","v":"H|20240530|144417"}]
["表資料",{"$f":"CONCATENATE(B5,B13,B2,B13,B3)","v":"A|DBSTW|TWGTS"}]
["表尾",{"$f":"CONCATENATE(B12,B13,'Bulk bene upload'!C2)","v":"T|5"}]
["最大處理筆數",1000]
["暫存"]
["亂數",{"$f":"INT(RAND()*99999)","v":98525}]
[]
[]
["Payment options",0]

{"sheet":"FAQ","index":3,"n_rows":6,"n_cols":2,"rows_kept":6,"cut":false,"hidden":false,"merged":[]}
["受款人批次上傳操作步驟"]
[1,"登入DBS IDEAL進入首頁"]
[2,"點擊左側選單列的【付款及轉帳】,點選【受款人】"]
[3,"點選【上傳多筆受款人資料】"]
[4,"將您的txt檔案拖曳至灰底區域上傳檔案, 上傳後會出現檔案名稱, 確認後點選【確認上傳】"]
[5,"系統將會告知您上傳檔案正在處理中, 點選【我知道了】 之後即可在下方處確認檔案上傳狀態"]

{"sheet":"County code","index":4,"n_rows":252,"n_cols":5,"rows_kept":252,"cut":false,"hidden":true,"merged":[]}
["Description","Country_Code",null,"Currency","No"]
["UNITED_STATES","USA",null,"台幣付款",3]
["CANADA","CAN",null,"外幣付款",5]
["AFGHANISTAN","AFG"]
["ALBANIA","ALB"]
["ALGERIA","DZA"]
["AMERICAN_SAMOA","ASM"]
["ANDORRA","AND"]
["ANGOLA","AGO"]
["ANGUILLA","AIA"]
["ANTARCTICA","ATA"]
["ANTIGUA_AND_BARBUDA","ATG"]
["ARGENTINA","ARG"]
["ARMENIA","ARM"]
["ARUBA","ABW"]
["AUSTRALIA","AUS"]
["AUSTRIA","AUT"]
["AZERBAIJAN","AZE"]
["BAHAMAS","BHS"]
["BAHRAIN","BHR"]
["BANGLADESH","BGD"]
["BARBADOS","BRB"]
["BELARUS","BLR"]
["BELGIUM","BEL"]
["BELIZE","BLZ"]
["BENIN","BEN"]
["BERMUDA","BMU"]
["BHUTAN","BTN"]
["Bolivia__Plurinational_State_Of","BOL"]
["BOSNIA_AND_HERZEGOVINA","BIH"]
["BOTSWANA","BWA"]
["BOUVET_ISLAND","BVT"]
["BRAZIL","BRA"]
["BRITISH_INDIAN_OCEAN_TERRITORY","IOT"]
["BRUNEI_DARUSSALAM","BRN"]
["BULGARIA","BGR"]
["BURKINA_FASO","BFA"]
["BURUNDI","BDI"]
["CAMBODIA","KHM"]
["CAMEROON","CMR"]
["CAPE_VERDE","CPV"]
["CAYMAN_ISLANDS","CYM"]
["CENTRAL_AFRICAN_REPUBLIC","CAF"]
["CHAD","TCD"]
["CHILE","CHL"]
["CHINA","CHN"]
["CHRISTMAS_ISLAND","CXR"]
["COCOS(KEELING)_ISLANDS","CCK"]
["COLOMBIA","COL"]
["COMOROS","COM"]
["CONGO","COG"]
["REPUBLIC_OF_CONGO","COO"]
["COOK_ISLANDS","COK"]
["COSTA_RICA","CRI"]
["COTE_D'IVOIRE","CIV"]
["CROATIA","HRV"]
["CUBA","CUB"]
["CYPRUS","CYP"]
["CZECH_REPUBLIC","CZE"]
["DENMARK","DNK"]
["DJIBOUTI","DJI"]
["DOMINICA","DMA"]
["DOMINICAN_REPUBLIC","DOM"]
["TIMOR-LESTE","TLS"]
["ECUADOR","ECU"]
["EGYPT","EGY"]
["EL_SALVADOR","SLV"]
["EQUATORIAL_GUINEA","GNQ"]
["ERITREA","ERI"]
["ESTONIA","EST"]
["ETHIOPIA","ETH"]
["FALKLAND_ISLANDS(MALVINAS)","FLK"]
["FAROE_ISLANDS","FRO"]
["FIJI","FJI"]
["FINLAND","FIN"]
["FRANCE","FRA"]
["FRENCH_GUIANA","GUF"]
["FRENCH_POLYNESIA","PYF"]
["FRENCH_SOUTHERN_TERRITORIES","ATF"]
["GABON","GAB"]
["GAMBIA","GMB"]
["GEORGIA","GEO"]
["GERMANY","DEU"]
["GHANA","GHA"]
["GIBRALTAR","GIB"]
["GREECE","GRC"]
["GREENLAND","GRL"]
["GRENADA","GRD"]
["GUADELOUPE","GLP"]
["GUAM","GUM"]
["GUATEMALA","GTM"]
["GUINEA","GIN"]
["GUINEA-BISSAU","GNB"]
["GUYANA","GUY"]
["HAITI","HTI"]
["HEARD_ISLAND_AND_MCDONALD_ISLANDS","HMD"]
["VATICAN_CITY","VAT"]
["HONDURAS","HND"]
["HONG_KONG_SAR","HKG"]
["HUNGARY","HUN"]
["ICELAND","ISL"]
["INDIA","IND"]
["INDONESIA","IDN"]
["IRAN_ISLAMIC_REPUBLIC_OF","IRN"]
["IRAQ","IRQ"]
["IRELAND","IRL"]
["ISRAEL","ISR"]
["ITALY","ITA"]
["JAMAICA","JAM"]
["JAPAN","JPN"]
["JORDAN","JOR"]
["KAZAKSTAN","KAZ"]
["KENYA","KEN"]
["KIRIBATI","KIR"]
["KOREA_DEMOCRATIC_PEOPLE'S_REPUBLIC_OF","PRK"]
["KOREA_REPUBLIC_OF_Benjamin","KOR"]
["KUWAIT","KWT"]
["KYRGYZSTAN","KGZ"]
["LAO_PEOPLE'S_DEMOCRATIC_REPUBLIC","LAO"]
["LATVIA","LVA"]
["LEBANON","LBN"]
["LESOTHO","LSO"]
["LIBERIA","LBR"]
["LIBYA","LBY"]
["LIECHTENSTEIN","LIE"]
["LITHUANIA","LTU"]
["LUXEMBOURG","LUX"]
["MACAU","MAC"]
["MACEDONIA_THE_FORMER_YUGOSLAV_REPUBLIC_OF","MKD"]
["MADAGASCAR","MDG"]
["MALAWI","MWI"]
["MALAYSIA","MYS"]
["MALDIVES","MDV"]
["MALI","MLI"]
["MALTA","MLT"]
["MARSHALL_ISLANDS","MHL"]
["MARTINIQUE","MTQ"]
["MAURITANIA","MRT"]
["MAURITIUS","MUS"]
["MAYOTTE","MYT"]
["MEXICO","MEX"]
["MICRONESIA_FEDERATED_STATES_OF","FSM"]
["MOLDOVA_REPUBLIC_OF","MDA"]
["MONACO","MCO"]
["MONGOLIA","MNG"]
["MONTSERRAT","MSR"]
["MOROCCO","MAR"]
["MOZAMBIQUE","MOZ"]
["MYANMAR","MMR"]
["NAMIBIA","NAM"]
["NAURU","NRU"]
["NEPAL","NPL"]
["NETHERLANDS","NLD"]
["NETHERLANDS_ANTILLES","ANT"]
["NEW_CALEDONIA","NCL"]
["NEW_ZEALAND","NZL"]
["NICARAGUA","NIC"]
["NIGER","NER"]
["NIGERIA","NGA"]
["NIUE","NIU"]
["NORFOLK_ISLAND","NFK"]
["NORTHERN_MARIANA_ISLANDS","MNP"]
["NORWAY","NOR"]
["OMAN","OMN"]
["PAKISTAN","PAK"]
["PALAU","PLW"]
["PANAMA","PAN"]
["PAPUA_NEW_GUINEA","PNG"]
["PARAGUAY","PRY"]
["PERU","PER"]
["PHILIPPINES","PHL"]
["PITCAIRN_ISLANDS","PCN"]
["POLAND","POL"]
["PORTUGAL","PRT"]
["PUERTO_RICO","PRI"]
["QATAR","QAT"]
["REUNION","REU"]
["ROMANIA","ROM"]
["RUSSIAN_FEDERATION","RUS"]
["RWANDA","RWA"]
["SAINT_HELENA","SHN"]
["SAINT_KITTS_AND_NEVIS","KNA"]
["SAINT_LUCIA","LCA"]
["SAINT_PIERRE_AND_MIQUELON","SPM"]
["SAINT_VINCENT_AND_THE_GRENADINES","VCT"]
["SAMOA","WSM"]
["SAN_MARINO","SMR"]
["SAO_TOME_AND_PRINCIPE","STP"]
["SAUDI_ARABIA","SAU"]
["SENEGAL","SEN"]
["SEYCHELLES","SYC"]
["SIERRA_LEONE","SLE"]
["SINGAPORE","SGP"]
["SLOVAKIA","SVK"]
["SLOVENIA","SVN"]
["SOLOMON_ISLANDS","SLB"]
["SOMALIA","SOM"]
["SOUTH_AFRICA","ZAF"]
["SOUTH_GEORGIA_AND_THE_SOUTH_SANDWICH_ISLANDS","SGS"]
["SPAIN","ESP"]
["SRI_LANKA","LKA"]
["SUDAN","SDN"]
["SURINAME","SUR"]
["SVALBARD_AND_JAN_MAYEN_ISLANDS","SJM"]
["SWAZILAND","SWZ"]
["SWEDEN","SWE"]
["SWITZERLAND","CHE"]
["SYRIAN_ARAB_REPUBLIC","SYR"]
["TAIWAN_REGION","TWN"]
["TAJIKISTAN","TJK"]
["TANZANIA_UNITED_REPUBLIC_OF","TZA"]
["THAILAND","THA"]
["TOGO","TGO"]
["TOKELAU","TKL"]
["TONGA","TON"]
["TRINIDAD_AND_TOBAGO","TTO"]
["TUNISIA","TUN"]
["TURKEY","TUR"]
["TURKMENISTAN","TKM"]
["TURKS_AND_CAICOS_ISLANDS","TCA"]
["TUVALU","TUV"]
["UGANDA","UGA"]
["UKRAINE","UKR"]
["UNITED_ARAB_EMIRATES","ARE"]
["UNITED_KINGDOM","GBR"]
["UNITED_STATES_MINOR_OUTLYING_ISLANDS","UMI"]
["URUGUAY","URY"]
["UZBEKISTAN","UZB"]
["VANUATU","VUT"]
["Venezuela__Bolivarian_Republic_Of","VEN"]
["VIETNAM","VNM"]
["VIRGIN_ISLANDS_BRITISH","VGB"]
["VIRGIN_ISLANDS_U.S.","VIR"]
["WALLIS_AND_FUTUNA_ISLANDS","WLF"]
["WESTERN_SAHARA","ESH"]
["YEMEN","YEM"]
["Serbia","SRB"]
["ZAMBIA","ZMB"]
["ZIMBABWE","ZWE"]
["ALAND_ISLANDS","ALA"]
["GUERNSEY","GGY"]
["ISLE_OF_MAN","IMN"]
["JERSEY","JEY"]
["PALESTINIAN_TERRITORY__OCCUPIED","PSE"]
["Montenegro","MNE"]
["Saint_Barthelemy","BLM"]
["Saint_Martin","MAF"]
["KOSOVO","XKX"]
["SOUTH_SUDAN","SSD"]
["CURACAO","CUW"]
["SINT_MAARTEN","SXM"]
["BONAIRE__SINT_EUSTATIUS_AND_SABA","BES"]

{"sheet":"County code (2)","index":5,"n_rows":252,"n_cols":3,"rows_kept":252,"cut":false,"hidden":true,"merged":[]}
["Description","Currency1","Currency2"]
[{"$f":"'County code'!$A2","v":"UNITED_STATES"},{"$f":"'County code'!$D$3","v":"外幣付款"}]
[{"$f":"'County code'!$A3","v":"CANADA"},{"$f":"'County code'!$D$3","v":"外幣付款"}]
[{"$f":"'County code'!$A4","v":"AFGHANISTAN"},{"$f":"'County code'!$D$3","v":"外幣付款"}]
[{"$f":"'County code'!$A5","v":"ALBANIA"},{"$f":"'County code'!$D$3","v":"外幣付款"}]
[{"$f":"'County code'!$A6","v":"ALGERIA"},{"$f":"'County code'!$D$3","v":"外幣付款"}]
[{"$f":"'County code'!$A7","v":"AMERICAN_SAMOA"},{"$f":"'County code'!$D$3","v":"外幣付款"}]
[{"$f":"'County code'!$A8","v":"ANDORRA"},{"$f":"'County code'!$D$3","v":"外幣付款"}]
[{"$f":"'County code'!$A9","v":"ANGOLA"},{"$f":"'County code'!$D$3","v":"外幣付款"}]
[{"$f":"'County code'!$A10","v":"ANGUILLA"},{"$f":"'County code'!$D$3","v":"外幣付款"}]
[{"$f":"'County code'!$A11","v":"ANTARCTICA"},{"$f":"'County code'!$D$3","v":"外幣付款"}]
[{"$f":"'County code'!$A12","v":"ANTIGUA_AND_BARBUDA"},{"$f":"'County code'!$D$3","v":"外幣付款"}]
[{"$f":"'County code'!$A13","v":"ARGENTINA"},{"$f":"'County code'!$D$3","v":"外幣付款"}]
[{"$f":"'County code'!$A14","v":"ARMENIA"},{"$f":"'County code'!$D$3","v":"外幣付款"}]
[{"$f":"'County code'!$A15","v":"ARUBA"},{"$f":"'County code'!$D$3","v":"外幣付款"}]
[{"$f":"'County code'!$A16","v":"AUSTRALIA"},{"$f":"'County code'!$D$3","v":"外幣付款"}]
[{"$f":"'County code'!$A17","v":"AUSTRIA"},{"$f":"'County code'!$D$3","v":"外幣付款"}]
[{"$f":"'County code'!$A18","v":"AZERBAIJAN"},{"$f":"'County code'!$D$3","v":"外幣付款"}]
[{"$f":"'County code'!$A19","v":"BAHAMAS"},{"$f":"'County code'!$D$3","v":"外幣付款"}]
[{"$f":"'County code'!$A20","v":"BAHRAIN"},{"$f":"'County code'!$D$3","v":"外幣付款"}]
[{"$f":"'County code'!$A21","v":"BANGLADESH"},{"$f":"'County code'!$D$3","v":"外幣付款"}]
[{"$f":"'County code'!$A22","v":"BARBADOS"},{"$f":"'County code'!$D$3","v":"外幣付款"}]
[{"$f":"'County code'!$A23","v":"BELARUS"},{"$f":"'County code'!$D$3","v":"外幣付款"}]
[{"$f":"'County code'!$A24","v":"BELGIUM"},{"$f":"'County code'!$D$3","v":"外幣付款"}]
[{"$f":"'County code'!$A25","v":"BELIZE"},{"$f":"'County code'!$D$3","v":"外幣付款"}]
[{"$f":"'County code'!$A26","v":"BENIN"},{"$f":"'County code'!$D$3","v":"外幣付款"}]
[{"$f":"'County code'!$A27","v":"BERMUDA"},{"$f":"'County code'!$D$3","v":"外幣付款"}]
[{"$f":"'County code'!$A28","v":"BHUTAN"},{"$f":"'County code'!$D$3","v":"外幣付款"}]
[{"$f":"'County code'!$A29","v":"Bolivia__Plurinational_State_Of"},{"$f":"'County code'!$D$3","v":"外幣付款"}]
[{"$f":"'County code'!$A30","v":"BOSNIA_AND_HERZEGOVINA"},{"$f":"'County code'!$D$3","v":"外幣付款"}]
[{"$f":"'County code'!$A31","v":"BOTSWANA"},{"$f":"'County code'!$D$3","v":"外幣付款"}]
[{"$f":"'County code'!$A32","v":"BOUVET_ISLAND"},{"$f":"'County code'!$D$3","v":"外幣付款"}]
[{"$f":"'County code'!$A33","v":"BRAZIL"},{"$f":"'County code'!$D$3","v":"外幣付款"}]
[{"$f":"'County code'!$A34","v":"BRITISH_INDIAN_OCEAN_TERRITORY"},{"$f":"'County code'!$D$3","v":"外幣付款"}]
[{"$f":"'County code'!$A35","v":"BRUNEI_DARUSSALAM"},{"$f":"'County code'!$D$3","v":"外幣付款"}]
[{"$f":"'County code'!$A36","v":"BULGARIA"},{"$f":"'County code'!$D$3","v":"外幣付款"}]
[{"$f":"'County code'!$A37","v":"BURKINA_FASO"},{"$f":"'County code'!$D$3","v":"外幣付款"}]
[{"$f":"'County code'!$A38","v":"BURUNDI"},{"$f":"'County code'!$D$3","v":"外幣付款"}]
[{"$f":"'County code'!$A39","v":"CAMBODIA"},{"$f":"'County code'!$D$3","v":"外幣付款"}]
[{"$f":"'County code'!$A40","v":"CAMEROON"},{"$f":"'County code'!$D$3","v":"外幣付款"}]
[{"$f":"'County code'!$A41","v":"CAPE_VERDE"},{"$f":"'County code'!$D$3","v":"外幣付款"}]
[{"$f":"'County code'!$A42","v":"CAYMAN_ISLANDS"},{"$f":"'County code'!$D$3","v":"外幣付款"}]
[{"$f":"'County code'!$A43","v":"CENTRAL_AFRICAN_REPUBLIC"},{"$f":"'County code'!$D$3","v":"外幣付款"}]
[{"$f":"'County code'!$A44","v":"CHAD"},{"$f":"'County code'!$D$3","v":"外幣付款"}]
[{"$f":"'County code'!$A45","v":"CHILE"},{"$f":"'County code'!$D$3","v":"外幣付款"}]
[{"$f":"'County code'!$A46","v":"CHINA"},{"$f":"'County code'!$D$3","v":"外幣付款"}]
[{"$f":"'County code'!$A47","v":"CHRISTMAS_ISLAND"},{"$f":"'County code'!$D$3","v":"外幣付款"}]
[{"$f":"'County code'!$A48","v":"COCOS(KEELING)_ISLANDS"},{"$f":"'County code'!$D$3","v":"外幣付款"}]
[{"$f":"'County code'!$A49","v":"COLOMBIA"},{"$f":"'County code'!$D$3","v":"外幣付款"}]
[{"$f":"'County code'!$A50","v":"COMOROS"},{"$f":"'County code'!$D$3","v":"外幣付款"}]
[{"$f":"'County code'!$A51","v":"CONGO"},{"$f":"'County code'!$D$3","v":"外幣付款"}]
[{"$f":"'County code'!$A52","v":"REPUBLIC_OF_CONGO"},{"$f":"'County code'!$D$3","v":"外幣付款"}]
[{"$f":"'County code'!$A53","v":"COOK_ISLANDS"},{"$f":"'County code'!$D$3","v":"外幣付款"}]
[{"$f":"'County code'!$A54","v":"COSTA_RICA"},{"$f":"'County code'!$D$3","v":"外幣付款"}]
[{"$f":"'County code'!$A55","v":"COTE_D'IVOIRE"},{"$f":"'County code'!$D$3","v":"外幣付款"}]
[{"$f":"'County code'!$A56","v":"CROATIA"},{"$f":"'County code'!$D$3","v":"外幣付款"}]
[{"$f":"'County code'!$A57","v":"CUBA"},{"$f":"'County code'!$D$3","v":"外幣付款"}]
[{"$f":"'County code'!$A58","v":"CYPRUS"},{"$f":"'County code'!$D$3","v":"外幣付款"}]
[{"$f":"'County code'!$A59","v":"CZECH_REPUBLIC"},{"$f":"'County code'!$D$3","v":"外幣付款"}]
[{"$f":"'County code'!$A60","v":"DENMARK"},{"$f":"'County code'!$D$3","v":"外幣付款"}]
[{"$f":"'County code'!$A61","v":"DJIBOUTI"},{"$f":"'County code'!$D$3","v":"外幣付款"}]
[{"$f":"'County code'!$A62","v":"DOMINICA"},{"$f":"'County code'!$D$3","v":"外幣付款"}]
[{"$f":"'County code'!$A63","v":"DOMINICAN_REPUBLIC"},{"$f":"'County code'!$D$3","v":"外幣付款"}]
[{"$f":"'County code'!$A64","v":"TIMOR-LESTE"},{"$f":"'County code'!$D$3","v":"外幣付款"}]
[{"$f":"'County code'!$A65","v":"ECUADOR"},{"$f":"'County code'!$D$3","v":"外幣付款"}]
[{"$f":"'County code'!$A66","v":"EGYPT"},{"$f":"'County code'!$D$3","v":"外幣付款"}]
[{"$f":"'County code'!$A67","v":"EL_SALVADOR"},{"$f":"'County code'!$D$3","v":"外幣付款"}]
[{"$f":"'County code'!$A68","v":"EQUATORIAL_GUINEA"},{"$f":"'County code'!$D$3","v":"外幣付款"}]
[{"$f":"'County code'!$A69","v":"ERITREA"},{"$f":"'County code'!$D$3","v":"外幣付款"}]
[{"$f":"'County code'!$A70","v":"ESTONIA"},{"$f":"'County code'!$D$3","v":"外幣付款"}]
[{"$f":"'County code'!$A71","v":"ETHIOPIA"},{"$f":"'County code'!$D$3","v":"外幣付款"}]
[{"$f":"'County code'!$A72","v":"FALKLAND_ISLANDS(MALVINAS)"},{"$f":"'County code'!$D$3","v":"外幣付款"}]
[{"$f":"'County code'!$A73","v":"FAROE_ISLANDS"},{"$f":"'County code'!$D$3","v":"外幣付款"}]
[{"$f":"'County code'!$A74","v":"FIJI"},{"$f":"'County code'!$D$3","v":"外幣付款"}]
[{"$f":"'County code'!$A75","v":"FINLAND"},{"$f":"'County code'!$D$3","v":"外幣付款"}]
[{"$f":"'County code'!$A76","v":"FRANCE"},{"$f":"'County code'!$D$3","v":"外幣付款"}]
[{"$f":"'County code'!$A77","v":"FRENCH_GUIANA"},{"$f":"'County code'!$D$3","v":"外幣付款"}]
[{"$f":"'County code'!$A78","v":"FRENCH_POLYNESIA"},{"$f":"'County code'!$D$3","v":"外幣付款"}]
[{"$f":"'County code'!$A79","v":"FRENCH_SOUTHERN_TERRITORIES"},{"$f":"'County code'!$D$3","v":"外幣付款"}]
[{"$f":"'County code'!$A80","v":"GABON"},{"$f":"'County code'!$D$3","v":"外幣付款"}]
[{"$f":"'County code'!$A81","v":"GAMBIA"},{"$f":"'County code'!$D$3","v":"外幣付款"}]
[{"$f":"'County code'!$A82","v":"GEORGIA"},{"$f":"'County code'!$D$3","v":"外幣付款"}]
[{"$f":"'County code'!$A83","v":"GERMANY"},{"$f":"'County code'!$D$3","v":"外幣付款"}]
[{"$f":"'County code'!$A84","v":"GHANA"},{"$f":"'County code'!$D$3","v":"外幣付款"}]
[{"$f":"'County code'!$A85","v":"GIBRALTAR"},{"$f":"'County code'!$D$3","v":"外幣付款"}]
[{"$f":"'County code'!$A86","v":"GREECE"},{"$f":"'County code'!$D$3","v":"外幣付款"}]
[{"$f":"'County code'!$A87","v":"GREENLAND"},{"$f":"'County code'!$D$3","v":"外幣付款"}]
[{"$f":"'County code'!$A88","v":"GRENADA"},{"$f":"'County code'!$D$3","v":"外幣付款"}]
[{"$f":"'County code'!$A89","v":"GUADELOUPE"},{"$f":"'County code'!$D$3","v":"外幣付款"}]
[{"$f":"'County code'!$A90","v":"GUAM"},{"$f":"'County code'!$D$3","v":"外幣付款"}]
[{"$f":"'County code'!$A91","v":"GUATEMALA"},{"$f":"'County code'!$D$3","v":"外幣付款"}]
[{"$f":"'County code'!$A92","v":"GUINEA"},{"$f":"'County code'!$D$3","v":"外幣付款"}]
[{"$f":"'County code'!$A93","v":"GUINEA-BISSAU"},{"$f":"'County code'!$D$3","v":"外幣付款"}]
[{"$f":"'County code'!$A94","v":"GUYANA"},{"$f":"'County code'!$D$3","v":"外幣付款"}]
[{"$f":"'County code'!$A95","v":"HAITI"},{"$f":"'County code'!$D$3","v":"外幣付款"}]
[{"$f":"'County code'!$A96","v":"HEARD_ISLAND_AND_MCDONALD_ISLANDS"},{"$f":"'County code'!$D$3","v":"外幣付款"}]
[{"$f":"'County code'!$A97","v":"VATICAN_CITY"},{"$f":"'County code'!$D$3","v":"外幣付款"}]
[{"$f":"'County code'!$A98","v":"HONDURAS"},{"$f":"'County code'!$D$3","v":"外幣付款"}]
[{"$f":"'County code'!$A99","v":"HONG_KONG_SAR"},{"$f":"'County code'!$D$3","v":"外幣付款"}]
[{"$f":"'County code'!$A100","v":"HUNGARY"},{"$f":"'County code'!$D$3","v":"外幣付款"}]
[{"$f":"'County code'!$A101","v":"ICELAND"},{"$f":"'County code'!$D$3","v":"外幣付款"}]
[{"$f":"'County code'!$A102","v":"INDIA"},{"$f":"'County code'!$D$3","v":"外幣付款"}]
[{"$f":"'County code'!$A103","v":"INDONESIA"},{"$f":"'County code'!$D$3","v":"外幣付款"}]
[{"$f":"'County code'!$A104","v":"IRAN_ISLAMIC_REPUBLIC_OF"},{"$f":"'County code'!$D$3","v":"外幣付款"}]
[{"$f":"'County code'!$A105","v":"IRAQ"},{"$f":"'County code'!$D$3","v":"外幣付款"}]
[{"$f":"'County code'!$A106","v":"IRELAND"},{"$f":"'County code'!$D$3","v":"外幣付款"}]
[{"$f":"'County code'!$A107","v":"ISRAEL"},{"$f":"'County code'!$D$3","v":"外幣付款"}]
[{"$f":"'County code'!$A108","v":"ITALY"},{"$f":"'County code'!$D$3","v":"外幣付款"}]
[{"$f":"'County code'!$A109","v":"JAMAICA"},{"$f":"'County code'!$D$3","v":"外幣付款"}]
[{"$f":"'County code'!$A110","v":"JAPAN"},{"$f":"'County code'!$D$3","v":"外幣付款"}]
[{"$f":"'County code'!$A111","v":"JORDAN"},{"$f":"'County code'!$D$3","v":"外幣付款"}]
[{"$f":"'County code'!$A112","v":"KAZAKSTAN"},{"$f":"'County code'!$D$3","v":"外幣付款"}]
[{"$f":"'County code'!$A113","v":"KENYA"},{"$f":"'County code'!$D$3","v":"外幣付款"}]
[{"$f":"'County code'!$A114","v":"KIRIBATI"},{"$f":"'County code'!$D$3","v":"外幣付款"}]
[{"$f":"'County code'!$A115","v":"KOREA_DEMOCRATIC_PEOPLE'S_REPUBLIC_OF"},{"$f":"'County code'!$D$3","v":"外幣付款"}]
[{"$f":"'County code'!$A116","v":"KOREA_REPUBLIC_OF_Benjamin"},{"$f":"'County code'!$D$3","v":"外幣付款"}]
[{"$f":"'County code'!$A117","v":"KUWAIT"},{"$f":"'County code'!$D$3","v":"外幣付款"}]
[{"$f":"'County code'!$A118","v":"KYRGYZSTAN"},{"$f":"'County code'!$D$3","v":"外幣付款"}]
[{"$f":"'County code'!$A119","v":"LAO_PEOPLE'S_DEMOCRATIC_REPUBLIC"},{"$f":"'County code'!$D$3","v":"外幣付款"}]
[{"$f":"'County code'!$A120","v":"LATVIA"},{"$f":"'County code'!$D$3","v":"外幣付款"}]
[{"$f":"'County code'!$A121","v":"LEBANON"},{"$f":"'County code'!$D$3","v":"外幣付款"}]
[{"$f":"'County code'!$A122","v":"LESOTHO"},{"$f":"'County code'!$D$3","v":"外幣付款"}]
[{"$f":"'County code'!$A123","v":"LIBERIA"},{"$f":"'County code'!$D$3","v":"外幣付款"}]
[{"$f":"'County code'!$A124","v":"LIBYA"},{"$f":"'County code'!$D$3","v":"外幣付款"}]
[{"$f":"'County code'!$A125","v":"LIECHTENSTEIN"},{"$f":"'County code'!$D$3","v":"外幣付款"}]
[{"$f":"'County code'!$A126","v":"LITHUANIA"},{"$f":"'County code'!$D$3","v":"外幣付款"}]
[{"$f":"'County code'!$A127","v":"LUXEMBOURG"},{"$f":"'County code'!$D$3","v":"外幣付款"}]
[{"$f":"'County code'!$A128","v":"MACAU"},{"$f":"'County code'!$D$3","v":"外幣付款"}]
[{"$f":"'County code'!$A129","v":"MACEDONIA_THE_FORMER_YUGOSLAV_REPUBLIC_OF"},{"$f":"'County code'!$D$3","v":"外幣付款"}]
[{"$f":"'County code'!$A130","v":"MADAGASCAR"},{"$f":"'County code'!$D$3","v":"外幣付款"}]
[{"$f":"'County code'!$A131","v":"MALAWI"},{"$f":"'County code'!$D$3","v":"外幣付款"}]
[{"$f":"'County code'!$A132","v":"MALAYSIA"},{"$f":"'County code'!$D$3","v":"外幣付款"}]
[{"$f":"'County code'!$A133","v":"MALDIVES"},{"$f":"'County code'!$D$3","v":"外幣付款"}]
[{"$f":"'County code'!$A134","v":"MALI"},{"$f":"'County code'!$D$3","v":"外幣付款"}]
[{"$f":"'County code'!$A135","v":"MALTA"},{"$f":"'County code'!$D$3","v":"外幣付款"}]
[{"$f":"'County code'!$A136","v":"MARSHALL_ISLANDS"},{"$f":"'County code'!$D$3","v":"外幣付款"}]
[{"$f":"'County code'!$A137","v":"MARTINIQUE"},{"$f":"'County code'!$D$3","v":"外幣付款"}]
[{"$f":"'County code'!$A138","v":"MAURITANIA"},{"$f":"'County code'!$D$3","v":"外幣付款"}]
[{"$f":"'County code'!$A139","v":"MAURITIUS"},{"$f":"'County code'!$D$3","v":"外幣付款"}]
[{"$f":"'County code'!$A140","v":"MAYOTTE"},{"$f":"'County code'!$D$3","v":"外幣付款"}]
[{"$f":"'County code'!$A141","v":"MEXICO"},{"$f":"'County code'!$D$3","v":"外幣付款"}]
[{"$f":"'County code'!$A142","v":"MICRONESIA_FEDERATED_STATES_OF"},{"$f":"'County code'!$D$3","v":"外幣付款"}]
[{"$f":"'County code'!$A143","v":"MOLDOVA_REPUBLIC_OF"},{"$f":"'County code'!$D$3","v":"外幣付款"}]
[{"$f":"'County code'!$A144","v":"MONACO"},{"$f":"'County code'!$D$3","v":"外幣付款"}]
[{"$f":"'County code'!$A145","v":"MONGOLIA"},{"$f":"'County code'!$D$3","v":"外幣付款"}]
[{"$f":"'County code'!$A146","v":"MONTSERRAT"},{"$f":"'County code'!$D$3","v":"外幣付款"}]
[{"$f":"'County code'!$A147","v":"MOROCCO"},{"$f":"'County code'!$D$3","v":"外幣付款"}]
[{"$f":"'County code'!$A148","v":"MOZAMBIQUE"},{"$f":"'County code'!$D$3","v":"外幣付款"}]
[{"$f":"'County code'!$A149","v":"MYANMAR"},{"$f":"'County code'!$D$3","v":"外幣付款"}]
[{"$f":"'County code'!$A150","v":"NAMIBIA"},{"$f":"'County code'!$D$3","v":"外幣付款"}]
[{"$f":"'County code'!$A151","v":"NAURU"},{"$f":"'County code'!$D$3","v":"外幣付款"}]
[{"$f":"'County code'!$A152","v":"NEPAL"},{"$f":"'County code'!$D$3","v":"外幣付款"}]
[{"$f":"'County code'!$A153","v":"NETHERLANDS"},{"$f":"'County code'!$D$3","v":"外幣付款"}]
[{"$f":"'County code'!$A154","v":"NETHERLANDS_ANTILLES"},{"$f":"'County code'!$D$3","v":"外幣付款"}]
[{"$f":"'County code'!$A155","v":"NEW_CALEDONIA"},{"$f":"'County code'!$D$3","v":"外幣付款"}]
[{"$f":"'County code'!$A156","v":"NEW_ZEALAND"},{"$f":"'County code'!$D$3","v":"外幣付款"}]
[{"$f":"'County code'!$A157","v":"NICARAGUA"},{"$f":"'County code'!$D$3","v":"外幣付款"}]
[{"$f":"'County code'!$A158","v":"NIGER"},{"$f":"'County code'!$D$3","v":"外幣付款"}]
[{"$f":"'County code'!$A159","v":"NIGERIA"},{"$f":"'County code'!$D$3","v":"外幣付款"}]
[{"$f":"'County code'!$A160","v":"NIUE"},{"$f":"'County code'!$D$3","v":"外幣付款"}]
[{"$f":"'County code'!$A161","v":"NORFOLK_ISLAND"},{"$f":"'County code'!$D$3","v":"外幣付款"}]
[{"$f":"'County code'!$A162","v":"NORTHERN_MARIANA_ISLANDS"},{"$f":"'County code'!$D$3","v":"外幣付款"}]
[{"$f":"'County code'!$A163","v":"NORWAY"},{"$f":"'County code'!$D$3","v":"外幣付款"}]
[{"$f":"'County code'!$A164","v":"OMAN"},{"$f":"'County code'!$D$3","v":"外幣付款"}]
[{"$f":"'County code'!$A165","v":"PAKISTAN"},{"$f":"'County code'!$D$3","v":"外幣付款"}]
[{"$f":"'County code'!$A166","v":"PALAU"},{"$f":"'County code'!$D$3","v":"外幣付款"}]
[{"$f":"'County code'!$A167","v":"PANAMA"},{"$f":"'County code'!$D$3","v":"外幣付款"}]
[{"$f":"'County code'!$A168","v":"PAPUA_NEW_GUINEA"},{"$f":"'County code'!$D$3","v":"外幣付款"}]
[{"$f":"'County code'!$A169","v":"PARAGUAY"},{"$f":"'County code'!$D$3","v":"外幣付款"}]
[{"$f":"'County code'!$A170","v":"PERU"},{"$f":"'County code'!$D$3","v":"外幣付款"}]
[{"$f":"'County code'!$A171","v":"PHILIPPINES"},{"$f":"'County code'!$D$3","v":"外幣付款"}]
[{"$f":"'County code'!$A172","v":"PITCAIRN_ISLANDS"},{"$f":"'County code'!$D$3","v":"外幣付款"}]
[{"$f":"'County code'!$A173","v":"POLAND"},{"$f":"'County code'!$D$3","v":"外幣付款"}]
[{"$f":"'County code'!$A174","v":"PORTUGAL"},{"$f":"'County code'!$D$3","v":"外幣付款"}]
[{"$f":"'County code'!$A175","v":"PUERTO_RICO"},{"$f":"'County code'!$D$3","v":"外幣付款"}]
[{"$f":"'County code'!$A176","v":"QATAR"},{"$f":"'County code'!$D$3","v":"外幣付款"}]
[{"$f":"'County code'!$A177","v":"REUNION"},{"$f":"'County code'!$D$3","v":"外幣付款"}]
[{"$f":"'County code'!$A178","v":"ROMANIA"},{"$f":"'County code'!$D$3","v":"外幣付款"}]
[{"$f":"'County code'!$A179","v":"RUSSIAN_FEDERATION"},{"$f":"'County code'!$D$3","v":"外幣付款"}]
[{"$f":"'County code'!$A180","v":"RWANDA"},{"$f":"'County code'!$D$3","v":"外幣付款"}]
[{"$f":"'County code'!$A181","v":"SAINT_HELENA"},{"$f":"'County code'!$D$3","v":"外幣付款"}]
[{"$f":"'County code'!$A182","v":"SAINT_KITTS_AND_NEVIS"},{"$f":"'County code'!$D$3","v":"外幣付款"}]
[{"$f":"'County code'!$A183","v":"SAINT_LUCIA"},{"$f":"'County code'!$D$3","v":"外幣付款"}]
[{"$f":"'County code'!$A184","v":"SAINT_PIERRE_AND_MIQUELON"},{"$f":"'County code'!$D$3","v":"外幣付款"}]
[{"$f":"'County code'!$A185","v":"SAINT_VINCENT_AND_THE_GRENADINES"},{"$f":"'County code'!$D$3","v":"外幣付款"}]
[{"$f":"'County code'!$A186","v":"SAMOA"},{"$f":"'County code'!$D$3","v":"外幣付款"}]
[{"$f":"'County code'!$A187","v":"SAN_MARINO"},{"$f":"'County code'!$D$3","v":"外幣付款"}]
[{"$f":"'County code'!$A188","v":"SAO_TOME_AND_PRINCIPE"},{"$f":"'County code'!$D$3","v":"外幣付款"}]
[{"$f":"'County code'!$A189","v":"SAUDI_ARABIA"},{"$f":"'County code'!$D$3","v":"外幣付款"}]
[{"$f":"'County code'!$A190","v":"SENEGAL"},{"$f":"'County code'!$D$3","v":"外幣付款"}]
[{"$f":"'County code'!$A191","v":"SEYCHELLES"},{"$f":"'County code'!$D$3","v":"外幣付款"}]
[{"$f":"'County code'!$A192","v":"SIERRA_LEONE"},{"$f":"'County code'!$D$3","v":"外幣付款"}]
[{"$f":"'County code'!$A193","v":"SINGAPORE"},{"$f":"'County code'!$D$3","v":"外幣付款"}]
[{"$f":"'County code'!$A194","v":"SLOVAKIA"},{"$f":"'County code'!$D$3","v":"外幣付款"}]
[{"$f":"'County code'!$A195","v":"SLOVENIA"},{"$f":"'County code'!$D$3","v":"外幣付款"}]
[{"$f":"'County code'!$A196","v":"SOLOMON_ISLANDS"},{"$f":"'County code'!$D$3","v":"外幣付款"}]
[{"$f":"'County code'!$A197","v":"SOMALIA"},{"$f":"'County code'!$D$3","v":"外幣付款"}]
[{"$f":"'County code'!$A198","v":"SOUTH_AFRICA"},{"$f":"'County code'!$D$3","v":"外幣付款"}]
[{"$f":"'County code'!$A199","v":"SOUTH_GEORGIA_AND_THE_SOUTH_SANDWICH_ISLANDS"},{"$f":"'County code'!$D$3","v":"外幣付款"}]
[{"$f":"'County code'!$A200","v":"SPAIN"},{"$f":"'County code'!$D$3","v":"外幣付款"}]
[{"$f":"'County code'!$A201","v":"SRI_LANKA"},{"$f":"'County code'!$D$3","v":"外幣付款"}]
[{"$f":"'County code'!$A202","v":"SUDAN"},{"$f":"'County code'!$D$3","v":"外幣付款"}]
[{"$f":"'County code'!$A203","v":"SURINAME"},{"$f":"'County code'!$D$3","v":"外幣付款"}]
[{"$f":"'County code'!$A204","v":"SVALBARD_AND_JAN_MAYEN_ISLANDS"},{"$f":"'County code'!$D$3","v":"外幣付款"}]
[{"$f":"'County code'!$A205","v":"SWAZILAND"},{"$f":"'County code'!$D$3","v":"外幣付款"}]
[{"$f":"'County code'!$A206","v":"SWEDEN"},{"$f":"'County code'!$D$3","v":"外幣付款"}]
[{"$f":"'County code'!$A207","v":"SWITZERLAND"},{"$f":"'County code'!$D$3","v":"外幣付款"}]
[{"$f":"'County code'!$A208","v":"SYRIAN_ARAB_REPUBLIC"},{"$f":"'County code'!$D$3","v":"外幣付款"}]
[{"$f":"'County code'!$A209","v":"TAIWAN_REGION"},{"$f":"'County code'!$D$3","v":"外幣付款"},{"$f":"'County code'!D2","v":"台幣付款"}]
[{"$f":"'County code'!$A210","v":"TAJIKISTAN"},{"$f":"'County code'!$D$3","v":"外幣付款"}]
[{"$f":"'County code'!$A211","v":"TANZANIA_UNITED_REPUBLIC_OF"},{"$f":"'County code'!$D$3","v":"外幣付款"}]
[{"$f":"'County code'!$A212","v":"THAILAND"},{"$f":"'County code'!$D$3","v":"外幣付款"}]
[{"$f":"'County code'!$A213","v":"TOGO"},{"$f":"'County code'!$D$3","v":"外幣付款"}]
[{"$f":"'County code'!$A214","v":"TOKELAU"},{"$f":"'County code'!$D$3","v":"外幣付款"}]
[{"$f":"'County code'!$A215","v":"TONGA"},{"$f":"'County code'!$D$3","v":"外幣付款"}]
[{"$f":"'County code'!$A216","v":"TRINIDAD_AND_TOBAGO"},{"$f":"'County code'!$D$3","v":"外幣付款"}]
[{"$f":"'County code'!$A217","v":"TUNISIA"},{"$f":"'County code'!$D$3","v":"外幣付款"}]
[{"$f":"'County code'!$A218","v":"TURKEY"},{"$f":"'County code'!$D$3","v":"外幣付款"}]
[{"$f":"'County code'!$A219","v":"TURKMENISTAN"},{"$f":"'County code'!$D$3","v":"外幣付款"}]
[{"$f":"'County code'!$A220","v":"TURKS_AND_CAICOS_ISLANDS"},{"$f":"'County code'!$D$3","v":"外幣付款"}]
[{"$f":"'County code'!$A221","v":"TUVALU"},{"$f":"'County code'!$D$3","v":"外幣付款"}]
[{"$f":"'County code'!$A222","v":"UGANDA"},{"$f":"'County code'!$D$3","v":"外幣付款"}]
[{"$f":"'County code'!$A223","v":"UKRAINE"},{"$f":"'County code'!$D$3","v":"外幣付款"}]
[{"$f":"'County code'!$A224","v":"UNITED_ARAB_EMIRATES"},{"$f":"'County code'!$D$3","v":"外幣付款"}]
[{"$f":"'County code'!$A225","v":"UNITED_KINGDOM"},{"$f":"'County code'!$D$3","v":"外幣付款"}]
[{"$f":"'County code'!$A226","v":"UNITED_STATES_MINOR_OUTLYING_ISLANDS"},{"$f":"'County code'!$D$3","v":"外幣付款"}]
[{"$f":"'County code'!$A227","v":"URUGUAY"},{"$f":"'County code'!$D$3","v":"外幣付款"}]
[{"$f":"'County code'!$A228","v":"UZBEKISTAN"},{"$f":"'County code'!$D$3","v":"外幣付款"}]
[{"$f":"'County code'!$A229","v":"VANUATU"},{"$f":"'County code'!$D$3","v":"外幣付款"}]
[{"$f":"'County code'!$A230","v":"Venezuela__Bolivarian_Republic_Of"},{"$f":"'County code'!$D$3","v":"外幣付款"}]
[{"$f":"'County code'!$A231","v":"VIETNAM"},{"$f":"'County code'!$D$3","v":"外幣付款"}]
[{"$f":"'County code'!$A232","v":"VIRGIN_ISLANDS_BRITISH"},{"$f":"'County code'!$D$3","v":"外幣付款"}]
[{"$f":"'County code'!$A233","v":"VIRGIN_ISLANDS_U.S."},{"$f":"'County code'!$D$3","v":"外幣付款"}]
[{"$f":"'County code'!$A234","v":"WALLIS_AND_FUTUNA_ISLANDS"},{"$f":"'County code'!$D$3","v":"外幣付款"}]
[{"$f":"'County code'!$A235","v":"WESTERN_SAHARA"},{"$f":"'County code'!$D$3","v":"外幣付款"}]
[{"$f":"'County code'!$A236","v":"YEMEN"},{"$f":"'County code'!$D$3","v":"外幣付款"}]
[{"$f":"'County code'!$A237","v":"Serbia"},{"$f":"'County code'!$D$3","v":"外幣付款"}]
[{"$f":"'County code'!$A238","v":"ZAMBIA"},{"$f":"'County code'!$D$3","v":"外幣付款"}]
[{"$f":"'County code'!$A239","v":"ZIMBABWE"},{"$f":"'County code'!$D$3","v":"外幣付款"}]
[{"$f":"'County code'!$A240","v":"ALAND_ISLANDS"},{"$f":"'County code'!$D$3","v":"外幣付款"}]
[{"$f":"'County code'!$A241","v":"GUERNSEY"},{"$f":"'County code'!$D$3","v":"外幣付款"}]
[{"$f":"'County code'!$A242","v":"ISLE_OF_MAN"},{"$f":"'County code'!$D$3","v":"外幣付款"}]
[{"$f":"'County code'!$A243","v":"JERSEY"},{"$f":"'County code'!$D$3","v":"外幣付款"}]
[{"$f":"'County code'!$A244","v":"PALESTINIAN_TERRITORY__OCCUPIED"},{"$f":"'County code'!$D$3","v":"外幣付款"}]
[{"$f":"'County code'!$A245","v":"Montenegro"},{"$f":"'County code'!$D$3","v":"外幣付款"}]
[{"$f":"'County code'!$A246","v":"Saint_Barthelemy"},{"$f":"'County code'!$D$3","v":"外幣付款"}]
[{"$f":"'County code'!$A247","v":"Saint_Martin"},{"$f":"'County code'!$D$3","v":"外幣付款"}]
[{"$f":"'County code'!$A248","v":"KOSOVO"},{"$f":"'County code'!$D$3","v":"外幣付款"}]
[{"$f":"'County code'!$A249","v":"SOUTH_SUDAN"},{"$f":"'County code'!$D$3","v":"外幣付款"}]
[{"$f":"'County code'!$A250","v":"CURACAO"},{"$f":"'County code'!$D$3","v":"外幣付款"}]
[{"$f":"'County code'!$A251","v":"SINT_MAARTEN"},{"$f":"'County code'!$D$3","v":"外幣付款"}]
[{"$f":"'County code'!$A252","v":"BONAIRE__SINT_EUSTATIUS_AND_SABA"},{"$f":"'County code'!$D$3","v":"外幣付款"}]